Workbook

Sheet DropDowns (hidden)
B2: Spreadsheet Selection
B4: Utility | D4: 1=PG&E, 2=SDG&E, 3=SCE
B5: Climate Zone | C5: =#REF! ->  | D5: Set to 1 through 16 based on T24 standard
B6: Division (=1) | C6: 1 | D6: 1=Weighted Average (all cases in this tool)
B7: Voltage (=3) | C7: 3 | D7: 3=Secondary (all T24 customers)
B8: North / South | D8: 1=North, 2=South
B9: Measure Life | D9: years
B10: Calendar
B12: Lookup Tables
B14: Measure Life | F14: Climate Zone to Utility
C15: Measure Type | D15: Measure Life | F15: Climate Zone | G15: Utility | H15: North / South | J15: Utility
B16: 1 | C16: =#REF! ->  | D16: =#REF! ->  | F16: 1 | G16: 1 | H16: 1 | J16: PG&E
B17: 2 | C17: =#REF! ->  | D17: =#REF! ->  | F17: 2 | G17: 1 | H17: 1 | J17: PG&E
B18: 3 | C18: =#REF! ->  | D18: =#REF! ->  | F18: 3 | G18: 1 | H18: 1 | J18: PG&E
F19: 4 | G19: 1 | H19: 1 | J19: PG&E
B20: Calendar | F20: 5 | G20: 1 | H20: 1 | J20: PG&E (SCE)
F21: 6 | G21: 3 | H21: 2 | J21: SCE
B22: 1 | C22: Jan 2008 - Dec 2008 | F22: 7 | G22: 2 | H22: 2 | J22: SDG&E
B23: 2 | C23: Jul 2008 - Jun 2009 | F23: 8 | G23: 3 | H23: 2 | J23: SCE
F24: 9 | G24: 3 | H24: 2 | J24: SCE
F25: 10 | G25: 3 | H25: 2 | J25: SCE (SDG&E)
F26: 11 | G26: 1 | H26: 1 | J26: PG&E
F27: 12 | G27: 1 | H27: 1 | J27: PG&E
F28: 13 | G28: 1 | H28: 1 | J28: PG&E
F29: 14 | G29: 3 | H29: 2 | J29: SCE (SDG&E)
F30: 15 | G30: 3 | H30: 2 | J30: SCE (SDG&E)
F31: 16 | G31: 1 | H31: 1 | J31: PG&E (SCE)
G33: 1=PG&E, 2=SDG&E, 3=SCE | H33: 1=North, 2=South

Sheet Scenarios (hidden)
A2: Utility | B2: Total CZ's | C2: CZ | D2: Divisions per CZ | F2: Utility | G2: Total CZ's | H2: CZ | I2: Divisions per CZ | K2: Utility | L2: Total CZ's | M2: CZ | N2: Divisions per CZ
A3: PG&E | B3: 10 | C3: 1 | D3: 1 | F3: SDGE | G3: 4 | H3: 7 | I3: 1 | K3: SCE | L3: 8 | M3: 6 | N3: 3
C4: 2 | D4: 2 | H4: 10 | I4: 1 | M4: 8 | N4: 2
C5: 3A | D5: 3 | H5: 14 | I5: 1 | M5: 9 | N5: 4
C6: 3B | D6: 3 | H6: 15 | I6: 1 | M6: 10 | N6: 1
C7: 4 | D7: 4 | M7: 13 | N7: 1
C8: 5 | D8: 1 | M8: 14 | N8: 3
C9: 11 | D9: 3 | M9: 15 | N9: 2
C10: 12 | D10: 7 | M10: 16 | N10: 1
C11: 13 | D11: 3
C12: 16 | D12: 2

Sheet Instructions
B2: LEGEND
B3: Utility Input | E3: Enter Utility specific information and program data in yellow cells
B4: Do Not Alter
B5: Avoided Cost Input | E5: Inputs from Avoided Cost Model
B6: CPUC Input | E6: Inputs made by CPUC Energy Division Staff
B7: Formula | E7: Formulas contained in this Excel Workbook
B9: All inputs in nominal dollars
B11: TO Add PLS or DR Program
B12: Copy either DR or PLS program sheet (e.g. BIP Example) and rename
B13: On summary tab, insert a column between program columns and last portfolio column
B14: Copy column C (e.g. BIP Example) and paste into added column
B15: Change label in Row 2 (e.g. from "BIP Example") to name of added tab. (Must be exactly the same)
B16: INDIRECT Excel references will update the Summary results automatically
B18: Portfolio Tab
B19: The naming and formatting of the Portfolio Tab is consistent with that for individual programs
B20: Enter portfolio impacts adjusted for dual participation
B21: Total portfolio costs should be entered, including all program or portfolio level administration costs.
B22: Enter total benefits, starting in cell D107 adjusted for dual participation
B23: Average Avoided Cost values on a $/kW-Yr. and $/MWh basis are calculated by spreadsheet
B25: Fix Charts
B27: This workbook has a macro to fix chart links and formatting on any DR Reporting Template workbook
B28: Open this workbook and the workbook with data entered and the charts that need correction
B29: From the workbook with data already entered, press "Ctrl+Shift+F"
B30: If for any reason using the keyboard shortcut does not work press "Alt-F8" to see a list of macros
B31: Run the Macro "FormatChartssub" (may have workbook name in front e.g. 'DR Reporting Template 2011-05-09 Review!'FormatChartsub)

Sheet PG&E Inputs
B2: Generation Capacity ($/MWh) | H2: Energy ($/MWh) | N2: GHG Cap and Trade Hourly Marginal Emissions ($/MWh) | T2: GHG Adder Hourly Marginal Emissions ($/MWh) | Z2: GHG Portfolio Rebalancing ($/MWh) | AF2: Total GHG Values ($/MWh)
A3: Date/Time Stamp | B3: 2023 | C3: 2024 | D3: 2025 | E3: 2026 | F3: 2027 | H3: 2023 | I3: 2024 | J3: 2025 | K3: 2026 | L3: 2027 | N3: 2023 | O3: 2024 | P3: 2025 | Q3: 2026 | R3: 2027 | T3: 2023 | U3: 2024 | V3: 2025 | W3: 2026 | X3: 2027 | Z3: 2023 | AA3: 2024 | AB3: 2025 | AC3: 2026 | AD3: 2027 | AF3: 2023 | AG3: 2024 | AH3: 2025 | AI3: 2026 | AJ3: 2027
A4: 2020-01-01 | B4: 0 | C4: 0 | D4: 0 | E4: 0 | F4: 0 | H4: 61.48602956 | I4: 30.43621508 | J4: 34.09197301 | K4: 49.37789784 | L4: 37.40222097 | N4: 13.13922759 | O4: 6.954169583 | P4: 7.783338669 | Q4: 11.3313096 | R4: 8.60479903 | T4: 28.04766364 | U4: 14.88265405 | V4: 16.68731327 | W4: 24.32332843 | X4: 18.48461761 | Z4: -9.742393205 | AA4: -10.00898985 | AB4: -10.16453026 | AC4: -10.28217642 | AD4: -11.21155591 | AF4: =SUM(N4,T4,Z4) -> 31.44449802 | AG4: =SUM(O4,U4,AA4) -> 11.82783378 | AH4: 14.30612168 | AI4: 25.37246161 | AJ4: =SUM(R4,X4,AD4) -> 15.87786073
A5: 2020-01-01T01:00:00 | B5: 0 | C5: 0 | D5: 0 | E5: 0 | F5: 0 | H5: 23.78625985 | I5: 28.47515322 | J5: 32.9523027 | K5: 49.02216943 | L5: 38.57066977 | N5: 5.04652582 | O5: 6.501689707 | P5: 7.520147224 | Q5: 11.24871773 | R5: 8.874641464 | T5: 10.77257075 | U5: 13.91429954 | V5: 16.12303639 | W5: 24.14604008 | X5: 19.06428649 | Z5: -9.742393205 | AA5: -10.00898985 | AB5: -10.16453026 | AC5: -10.28217642 | AD5: -11.21155591 | AF5: =SUM(N5,T5,Z5) -> 6.076703363 | AG5: 10.4069994 | AH5: 13.47865335 | AI5: 25.11258139 | AJ5: 16.72737204
A6: 2020-01-01T02:00:00 | B6: 0 | C6: 0 | D6: 0 | E6: 0 | F6: 0 | H6: 28.73521146 | I6: 26.51409137 | J6: 32.9523027 | K6: 36.53276858 | L6: 38.57066977 | N6: 6.108952308 | O6: 6.050484423 | P6: 7.520147224 | Q6: 8.365376553 | R6: 8.874641464 | T6: 13.04048038 | U6: 12.94867279 | V6: 16.12303639 | W6: 17.95677715 | X6: 19.06428649 | Z6: -9.742393205 | AA6: -10.00898985 | AB6: -10.16453026 | AC6: -10.28217642 | AD6: -11.21155591 | AF6: 9.407039482 | AG6: 8.990167369 | AH6: 13.47865335 | AI6: 16.03997728 | AJ6: 16.72737204
A7: 2020-01-01T03:00:00 | B7: 0 | C7: 0 | D7: 0 | E7: 0 | F7: 0 | H7: 26.75563305 | I7: 23.57248719 | J7: 32.9523027 | K7: 36.53276858 | L7: 50.25917171 | N7: 5.683270266 | O7: 5.371127313 | P7: 7.520147224 | Q7: 8.365376553 | R7: 11.58576427 | T7: 12.13179784 | U7: 11.49477716 | V7: 16.12303639 | W7: 17.95677715 | X7: 24.88825381 | Z7: -9.742393205 | AA7: -10.00898985 | AB7: -10.16453026 | AC7: -10.28217642 | AD7: -11.21155591 | AF7: 8.072674899 | AG7: 6.856914621 | AH7: 13.47865335 | AI7: 16.03997728 | AJ7: 25.26246217
A8: 2020-01-01T04:00:00 | B8: 0 | C8: 0 | D8: 0 | E8: 0 | F8: 0 | H8: 23.78625985 | I8: 28.47515322 | J8: 32.76948078 | K8: 36.53276858 | L8: 37.40222097 | N8: 5.04652582 | O8: 6.501689707 | P8: 7.47902356 | Q8: 8.365376553 | R8: 8.60479903 | T8: 10.77257075 | U8: 13.91429954 | V8: 16.03486813 | W8: 17.95677715 | X8: 18.48461761 | Z8: -9.742393205 | AA8: -10.00898985 | AB8: -10.16453026 | AC8: -10.28217642 | AD8: -11.21155591 | AF8: 6.076703363 | AG8: 10.4069994 | AH8: 13.34936142 | AI8: 16.03997728 | AJ8: 15.87786073
A9: 2020-01-01T05:00:00 | B9: 0 | C9: 0 | D9: 0 | E9: 0 | F9: 0 | H9: 23.78625985 | I9: 26.51409137 | J9: 33.92714331 | K9: 36.53276858 | L9: 50.30896902 | N9: 5.04652582 | O9: 6.050484423 | P9: 7.744956583 | Q9: 8.365376553 | R9: 11.59846274 | T9: 10.77257075 | U9: 12.94867279 | V9: 16.60502289 | W9: 17.95677715 | X9: 24.91553235 | Z9: -9.742393205 | AA9: -10.00898985 | AB9: -10.16453026 | AC9: -10.28217642 | AD9: -11.21155591 | AF9: 6.076703363 | AG9: 8.990167369 | AH9: 14.18544921 | AI9: 16.03997728 | AJ9: 25.30243918
A10: 2020-01-01T06:00:00 | B10: 0 | C10: 0 | D10: 0 | E10: 0 | F10: 0 | H10: 28.73521146 | I10: 28.47515322 | J10: 33.09898878 | K10: 49.36981662 | L10: 40.87113773 | N10: 6.108952308 | O10: 6.501689707 | P10: 7.554416943 | Q10: 11.32983475 | R10: 9.409564407 | T10: 13.04048038 | U10: 13.91429954 | V10: 16.19650994 | W10: 24.32016256 | X10: 20.21339479 | Z10: -9.742393205 | AA10: -10.00898985 | AB10: -10.16453026 | AC10: -10.28217642 | AD10: -11.21155591 | AF10: 9.407039482 | AG10: 10.4069994 | AH10: 13.58639662 | AI10: 25.36782089 | AJ10: 18.41140329
A11: 2020-01-01T07:00:00 | B11: 0 | C11: 0 | D11: 0 | E11: 0 | F11: 0 | H11: 25.76583827 | I11: 29.45568415 | J11: 33.72148466 | K11: 49.64153129 | L11: 38.57066977 | N11: 5.471022117 | O11: 6.728566941 | P11: 7.696978976 | Q11: 11.39177865 | R11: 8.874641464 | T11: 11.67872214 | U11: 14.39984067 | V11: 16.50215992 | W11: 24.45312882 | X11: 19.06428649 | Z11: -9.742393205 | AA11: -10.00898985 | AB11: -10.16453026 | AC11: -10.28217642 | AD11: -11.21155591 | AF11: 7.407351054 | AG11: 11.11941777 | AH11: 14.03460863 | AI11: 25.56273105 | AJ11: 16.72737204
A12: 2020-01-01T08:00:00 | B12: 0 | C12: 0 | D12: 0 | E12: 0 | F12: 0 | H12: 23.78625985 | I12: 29.45568415 | J12: 34.99959608 | K12: 49.83471887 | L12: 81.62628445 | N12: 5.04652582 | O12: 6.728566941 | P12: 7.991698563 | Q12: 11.43602429 | R12: 18.86198614 | T12: 10.77257075 | U12: 14.39984067 | V12: 17.13403247 | W12: 24.54810473 | X12: 40.51885464 | Z12: -9.742393205 | AA12: -10.00898985 | AB12: -10.16453026 | AC12: -10.28217642 | AD12: -11.21155591 | AF12: 6.076703363 | AG12: 11.11941777 | AH12: 14.96120077 | AI12: 25.7019526 | AJ12: 48.16928488
A13: 2020-01-01T09:00:00 | B13: 0 | C13: 0 | D13: 0 | E13: 0 | F13: 0 | H13: 22.79646507 | I13: 28.47515322 | J13: 34.99959608 | K13: 45.64012522 | L13: 38.57066977 | N13: 4.833091927 | O13: 6.501689707 | P13: 7.991698563 | Q13: 10.46851953 | R13: 8.874641464 | T13: 10.3169639 | U13: 13.91429954 | V13: 17.13403247 | W13: 22.47129834 | X13: 19.06428649 | Z13: -9.742393205 | AA13: -10.00898985 | AB13: -10.16453026 | AC13: -10.28217642 | AD13: -11.21155591 | AF13: 5.407662625 | AG13: 10.4069994 | AH13: 14.96120077 | AI13: 22.65764145 | AJ13: 16.72737204
A14: 2020-01-01T10:00:00 | B14: 0 | C14: 0 | D14: 0 | E14: 0 | F14: 0 | H14: 23.78625985 | I14: 28.47515322 | J14: 34.99959608 | K14: 45.57539215 | L14: 40.77942504 | N14: 5.04652582 | O14: 6.501689707 | P14: 7.991698563 | Q14: 10.45377098 | R14: 9.387342088 | T14: 10.77257075 | U14: 13.91429954 | V14: 17.13403247 | W14: 22.43963971 | X14: 20.16565736 | Z14: -9.742393205 | AA14: -10.00898985 | AB14: -10.16453026 | AC14: -10.28217642 | AD14: -11.21155591 | AF14: 6.076703363 | AG14: 10.4069994 | AH14: 14.96120077 | AI14: 22.61123427 | AJ14: 18.34144354
A15: 2020-01-01T11:00:00 | B15: 0 | C15: 0 | D15: 0 | E15: 0 | F15: 0 | H15: 20.81688666 | I15: 28.47515322 | J15: 32.65971077 | K15: 32.10709251 | L15: 38.57066977 | N15: 4.408595629 | O15: 6.501689707 | P15: 7.452978574 | Q15: 7.343302161 | R15: 8.874641464 | T15: 9.41081251 | U15: 13.91429954 | V15: 15.97902823 | W15: 15.76283382 | X15: 19.06428649 | Z15: -9.742393205 | AA15: -10.00898985 | AB15: -10.16453026 | AC15: -10.28217642 | AD15: -11.21155591 | AF15: 4.077014934 | AG15: 10.4069994 | AH15: 13.26747654 | AI15: 12.82395956 | AJ15: 16.72737204
A16: 2020-01-01T12:00:00 | B16: 0 | C16: 0 | D16: 0 | E16: 0 | F16: 0 | H16: 19.82710302 | I16: 21.61142534 | J16: 32.98969624 | K16: 32.10709251 | L16: 38.57066977 | N16: 4.19634748 | O16: 4.918647438 | P16: 7.529742745 | Q16: 7.343302161 | R16: 8.874641464 | T16: 8.957736813 | U16: 10.52642265 | V16: 16.14360898 | W16: 15.76283382 | X16: 19.06428649 | Z16: -9.742393205 | AA16: -10.00898985 | AB16: -10.16453026 | AC16: -10.28217642 | AD16: -11.21155591 | AF16: 3.411691089 | AG16: 5.436080238 | AH16: 13.50882147 | AI16: 12.82395956 | AJ16: 16.72737204
A17: 2020-01-01T13:00:00 | B17: 0 | C17: 0 | D17: 0 | E17: 0 | F17: 0 | H17: 18.83730824 | I17: 24.55302952 | J17: 31.94465686 | K17: 32.10709251 | L17: 37.40222097 | N17: 3.984099331 | O17: 5.598004547 | P17: 7.288483921 | Q17: 7.343302161 | R17: 8.60479903 | T17: 8.504661117 | U17: 11.98031829 | V17: 15.62635517 | W17: 15.76283382 | X17: 18.48461761 | Z17: -9.742393205 | AA17: -10.00898985 | AB17: -10.16453026 | AC17: -10.28217642 | AD17: -11.21155591 | AF17: 2.746367243 | AG17: 7.569332987 | AH17: 12.75030883 | AI17: 12.82395956 | AJ17: 15.87786073
A18: 2020-01-01T14:00:00 | B18: 0 | C18: 0 | D18: 0 | E18: 0 | F18: 0 | H18: 22.79646507 | I18: 22.59195627 | J18: 32.65971077 | K18: 34.31993054 | L18: 40.76982805 | N18: 4.833091927 | O18: 5.145524671 | P18: 7.452978574 | Q18: 7.855076784 | R18: 9.38575478 | T18: 10.3169639 | U18: 11.01196378 | V18: 15.97902823 | W18: 16.86138842 | X18: 20.16224754 | Z18: -9.742393205 | AA18: -10.00898985 | AB18: -10.16453026 | AC18: -10.28217642 | AD18: -11.21155591 | AF18: 5.407662625 | AG18: 6.148498605 | AH18: 13.26747654 | AI18: 14.43428878 | AJ18: 18.33644641
A19: 2020-01-01T15:00:00 | B19: 0 | C19: 0 | D19: 0 | E19: 0 | F19: 0 | H19: 28.73521146 | I19: 28.47515322 | J19: 32.65971077 | K19: 34.31993054 | L19: 49.52630951 | N19: 6.108952308 | O19: 6.501689707 | P19: 7.452978574 | Q19: 7.855076784 | R19: 11.41592227 | T19: 13.04048038 | U19: 13.91429954 | V19: 15.97902823 | W19: 16.86138842 | X19: 24.5234034 | Z19: -9.742393205 | AA19: -10.00898985 | AB19: -10.16453026 | AC19: -10.28217642 | AD19: -11.21155591 | AF19: 9.407039482 | AG19: 10.4069994 | AH19: 13.26747654 | AI19: 14.43428878 | AJ19: 24.72776976
A20: 2020-01-01T16:00:00 | B20: 0 | C20: 0 | D20: 0 | E20: 0 | F20: 0 | H20: 27.74542783 | I20: 29.45568415 | J20: 34.22744452 | K20: 41.02997357 | L20: 49.53122356 | N20: 5.895518415 | O20: 6.728566941 | P20: 7.813496022 | Q20: 9.403674348 | R20: 11.41750958 | T20: 12.58487353 | U20: 14.39984067 | V20: 16.75197 | W20: 20.18554497 | X20: 24.52681322 | Z20: -9.742393205 | AA20: -10.00898985 | AB20: -10.16453026 | AC20: -10.28217642 | AD20: -11.21155591 | AF20: 8.737998744 | AG20: 11.11941777 | AH20: 14.40093576 | AI20: 19.3070429 | AJ20: 24.73276689
A21: 2020-01-01T17:00:00 | B21: 0 | C21: 0 | D21: 0 | E21: 0 | F21: 0 | H21: 83.93788661 | I21: 99.09367406 | J21: 70.11881422 | K21: 58.23352269 | L21: 38.57066977 | N21: 17.88457447 | O21: 22.24289102 | P21: 16.07798155 | Q21: 13.37545838 | R21: 8.874641464 | T21: 38.17732251 | U21: 47.60212533 | V21: 34.47085195 | W21: 28.71121508 | X21: 19.06428649 | Z21: -9.742393205 | AA21: -10.00898985 | AB21: -10.16453026 | AC21: -10.28217642 | AD21: -11.21155591 | AF21: 46.31950377 | AG21: 59.8360265 | AH21: 40.38430324 | AI21: 31.80449705 | AJ21: 16.72737204
A22: 2020-01-01T18:00:00 | B22: 0 | C22: 0 | D22: 0 | E22: 0 | F22: 0 | H22: 28.73521146 | I22: 42.5186428 | J22: 43.99156033 | K22: 110.3798633 | L22: 37.40222097 | N22: 6.108952308 | O22: 9.741700535 | P22: 10.0629604 | Q22: 25.24509 | R22: 8.60479903 | T22: 13.04048038 | U22: 20.84826336 | V22: 21.57477399 | W22: 54.19008365 | X22: 18.48461761 | Z22: -9.742393205 | AA22: -10.00898985 | AB22: -10.16453026 | AC22: -10.28217642 | AD22: -11.21155591 | AF22: 9.407039482 | AG22: 20.58097405 | AH22: 21.47320413 | AI22: 69.15299722 | AJ22: 15.87786073
A23: 2020-01-01T19:00:00 | B23: 0 | C23: 0 | D23: 0 | E23: 0 | F23: 0 | H23: 28.73521146 | I23: 42.51622711 | J23: 44.12144203 | K23: 53.83143568 | L23: 37.40222097 | N23: 6.108952308 | O23: 9.740425944 | P23: 10.09174697 | Q23: 12.35928341 | R23: 8.60479903 | T23: 13.04048038 | U23: 20.8455356 | V23: 21.63649178 | W23: 26.52993521 | X23: 18.48461761 | Z23: -9.742393205 | AA23: -10.00898985 | AB23: -10.16453026 | AC23: -10.28217642 | AD23: -11.21155591 | AF23: 9.407039482 | AG23: 20.5769717 | AH23: 21.56370848 | AI23: 28.6070422 | AJ23: 15.87786073
A24: 2020-01-01T20:00:00 | B24: 0 | C24: 0 | D24: 0 | E24: 0 | F24: 0 | H24: 28.73521146 | I24: 53.02118635 | J24: 44.22592501 | K24: 45.42416979 | L24: 36.23377217 | N24: 6.108952308 | O24: 12.16342381 | P24: 10.11642116 | Q24: 10.41837447 | R24: 8.333369287 | T24: 13.04048038 | U24: 26.03100579 | V24: 21.68939274 | W24: 22.36365899 | X24: 17.90153891 | Z24: -9.742393205 | AA24: -10.00898985 | AB24: -10.16453026 | AC24: -10.28217642 | AD24: -11.21155591 | AF24: 9.407039482 | AG24: 28.18543975 | AH24: 21.64128364 | AI24: 22.49985703 | AJ24: 15.02335229
A25: 2020-01-01T21:00:00 | B25: 0 | C25: 0 | D25: 0 | E25: 0 | F25: 0 | H25: 29.72500625 | I25: 31.41674601 | J25: 93.90172259 | K25: 41.01400156 | L25: 37.40222097 | N25: 6.321200457 | O25: 7.181046816 | P25: 21.49533879 | Q25: 9.400724638 | R25: 8.60479903 | T25: 13.49355608 | U25: 15.36819518 | V25: 46.08555115 | W25: 20.17921325 | X25: 18.48461761 | Z25: -9.742393205 | AA25: -10.00898985 | AB25: -10.16453026 | AC25: -10.28217642 | AD25: -11.21155591 | AF25: 10.07236333 | AG25: 12.54025215 | AH25: 57.41635968 | AI25: 19.29776147 | AJ25: 15.87786073
A26: 2020-01-01T22:00:00 | B26: 0 | C26: 0 | D26: 0 | E26: 0 | F26: 0 | H26: 26.75563305 | I26: 29.45568415 | J26: 33.72148466 | K26: 41.07181977 | L26: 37.40222097 | N26: 5.683270266 | O26: 6.728566941 | P26: 7.696978976 | Q26: 9.413998332 | R26: 8.60479903 | T26: 12.13179784 | U26: 14.39984067 | V26: 16.50215992 | W26: 20.20770602 | X26: 18.48461761 | Z26: -9.742393205 | AA26: -10.00898985 | AB26: -10.16453026 | AC26: -10.28217642 | AD26: -11.21155591 | AF26: 8.072674899 | AG26: 11.11941777 | AH26: 14.03460863 | AI26: 19.33952793 | AJ26: 15.87786073
A27: 2020-01-01T23:00:00 | B27: 0 | C27: 0 | D27: 0 | E27: 0 | F27: 0 | H27: 32.11998071 | I27: 28.47515322 | J27: 34.99959608 | K27: 36.53276858 | L27: 37.40222097 | N27: 6.834627543 | O27: 6.501689707 | P27: 7.991698563 | Q27: 8.365376553 | R27: 8.60479903 | T27: 14.58954365 | U27: 13.91429954 | V27: 17.13403247 | W27: 17.95677715 | X27: 18.48461761 | Z27: -9.742393205 | AA27: -10.00898985 | AB27: -10.16453026 | AC27: -10.28217642 | AD27: -11.21155591 | AF27: 11.68177799 | AG27: 10.4069994 | AH27: 14.96120077 | AI27: 16.03997728 | AJ27: 15.87786073
A28: 2020-01-02 | B28: 0 | C28: 0 | D28: 0 | E28: 0 | F28: 0 | H28: 28.73521146 | I28: 30.43621508 | J28: 34.99959608 | K28: 36.53276858 | L28: 38.57066977 | N28: 6.108952308 | O28: 6.954169583 | P28: 7.991698563 | Q28: 8.365376553 | R28: 8.874641464 | T28: 13.04048038 | U28: 14.88265405 | V28: 17.13403247 | W28: 17.95677715 | X28: 19.06428649 | Z28: -9.742393205 | AA28: -10.00898985 | AB28: -10.16453026 | AC28: -10.28217642 | AD28: -11.21155591 | AF28: 9.407039482 | AG28: 11.82783378 | AH28: 14.96120077 | AI28: 16.03997728 | AJ28: 16.72737204
A29: 2020-01-02T01:00:00 | B29: 0 | C29: 0 | D29: 0 | E29: 0 | F29: 0 | H29: 31.72485441 | I29: 46.00603344 | J29: 33.21328888 | K29: 35.42634361 | L29: 37.40222097 | N29: 6.75043973 | O29: 10.54596758 | P29: 7.58046193 | Q29: 8.110226669 | R29: 8.60479903 | T29: 14.40983207 | U29: 22.5694794 | V29: 16.25234984 | W29: 17.40908278 | X29: 18.48461761 | Z29: -9.742393205 | AA29: -10.00898985 | AB29: -10.16453026 | AC29: -10.28217642 | AD29: -11.21155591 | AF29: 11.41787859 | AG29: 23.10645713 | AH29: 13.66828151 | AI29: 15.23713303 | AJ29: 15.87786073
A30: 2020-01-02T02:00:00 | B30: 0 | C30: 0 | D30: 0 | E30: 0 | F30: 0 | H30: 31.72521119 | I30: 28.47515322 | J30: 33.21328888 | K30: 34.31993054 | L30: 37.40222097 | N30: 6.75043973 | O30: 6.501689707 | P30: 7.58046193 | Q30: 7.855076784 | R30: 8.60479903 | T30: 14.40983207 | U30: 13.91429954 | V30: 16.25234984 | W30: 16.86138842 | X30: 18.48461761 | Z30: -9.742393205 | AA30: -10.00898985 | AB30: -10.16453026 | AC30: -10.28217642 | AD30: -11.21155591 | AF30: 11.41787859 | AG30: 10.4069994 | AH30: 13.66828151 | AI30: 14.43428878 | AJ30: 15.87786073
A31: 2020-01-02T03:00:00 | B31: 0 | C31: 0 | D31: 0 | E31: 0 | F31: 0 | H31: 34.72569143 | I31: 28.47515322 | J31: 32.16823785 | K31: 35.42634361 | L31: 37.40222097 | N31: 7.39429864 | O31: 6.501689707 | P31: 7.340573894 | Q31: 8.110226669 | R31: 8.60479903 | T31: 15.78424605 | U31: 13.91429954 | V31: 15.73803497 | W31: 17.40908278 | X31: 18.48461761 | Z31: -9.742393205 | AA31: -10.00898985 | AB31: -10.16453026 | AC31: -10.28217642 | AD31: -11.21155591 | AF31: 13.43615148 | AG31: 10.4069994 | AH31: 12.9140786 | AI31: 15.23713303 | AJ31: 15.87786073
A32: 2020-01-02T04:00:00 | B32: 0 | C32: 0 | D32: 0 | E32: 0 | F32: 0 | H32: 37.72492292 | I32: 29.45568415 | J32: 32.16823785 | K32: 36.53276858 | L32: 38.57066977 | N32: 8.03815755 | O32: 6.728566941 | P32: 7.340573894 | Q32: 8.365376553 | R32: 8.874641464 | T32: 17.15866003 | U32: 14.39984067 | V32: 15.73803497 | W32: 17.95677715 | X32: 19.06428649 | Z32: -9.742393205 | AA32: -10.00898985 | AB32: -10.16453026 | AC32: -10.28217642 | AD32: -11.21155591 | AF32: 15.45442438 | AG32: 11.11941777 | AH32: 12.9140786 | AI32: 16.03997728 | AJ32: 16.72737204
A33: 2020-01-02T05:00:00 | B33: 0 | C33: 0 | D33: 0 | E33: 0 | F33: 0 | H33: 89.26165017 | I33: 30.43621508 | J33: 33.09898878 | K33: 37.63918165 | L33: 39.89742634 | N33: 18.891271 | O33: 6.954169583 | P33: 7.554416943 | Q33: 8.620526437 | R33: 9.1825793 | T33: 40.32626813 | U33: 14.88265405 | V33: 16.19650994 | W33: 18.50447151 | X33: 19.72579097 | Z33: -9.742393205 | AA33: -10.00898985 | AB33: -10.16453026 | AC33: -10.28217642 | AD33: -11.21155591 | AF33: 49.47514592 | AG33: 11.82783378 | AH33: 13.58639662 | AI33: 16.84282153 | AJ33: 17.69681436
A34: 2020-01-02T06:00:00 | B34: 0 | C34: 0 | D34: 0 | E34: 0 | F34: 0 | H34: 30.72412199 | I34: 42.78559936 | J34: 48.73412321 | K34: 39.85201969 | L34: 42.52726934 | N34: 6.535820093 | O34: 9.802880913 | P34: 11.15410827 | Q34: 9.132301061 | R34: 9.793693048 | T34: 13.95169407 | U34: 20.9791958 | V34: 23.91417191 | W34: 19.60302611 | X34: 21.03857049 | Z34: -9.742393205 | AA34: -10.00898985 | AB34: -10.16453026 | AC34: -10.28217642 | AD34: -11.21155591 | AF34: 10.74512096 | AG34: 20.77308686 | AH34: 24.90374991 | AI34: 18.45315075 | AJ34: 19.62070763
A35: 2020-01-02T07:00:00 | B35: 0 | C35: 0 | D35: 0 | E35: 0 | F35: 0 | H35: 31.72272486 | I35: 42.92033106 | J35: 59.61262705 | K35: 37.63918165 | L35: 45.14517995 | N35: 6.749253986 | O35: 9.834745693 | P35: 13.65853936 | Q35: 8.620526437 | R35: 10.40004487 | T35: 14.40730092 | U35: 21.04738978 | V35: 29.28361913 | W35: 18.50447151 | X35: 22.34112056 | Z35: -9.742393205 | AA35: -10.00898985 | AB35: -10.16453026 | AC35: -10.28217642 | AD35: -11.21155591 | AF35: 11.4141617 | AG35: 20.87314562 | AH35: 32.77762823 | AI35: 16.84282153 | AJ35: 21.52960952
A36: 2020-01-02T08:00:00 | B36: 0 | C36: 0 | D36: 0 | E36: 0 | F36: 0 | H36: 29.72500625 | I36: 28.47515322 | J36: 59.61650499 | K36: 39.85201969 | L36: 46.44898402 | N36: 6.321200457 | O36: 6.501689707 | P36: 13.65991015 | Q36: 9.132301061 | R36: 10.70322078 | T36: 13.49355608 | U36: 13.91429954 | V36: 29.28655808 | W36: 19.60302611 | X36: 22.9923956 | Z36: -9.742393205 | AA36: -10.00898985 | AB36: -10.16453026 | AC36: -10.28217642 | AD36: -11.21155591 | AF36: 10.07236333 | AG36: 10.4069994 | AH36: 32.78193796 | AI36: 18.45315075 | AJ36: 22.48406047
A37: 2020-01-02T09:00:00 | B37: 0 | C37: 0 | D37: 0 | E37: 0 | F37: 0 | H37: 28.73521146 | I37: 31.41674601 | J37: 41.1279675 | K37: 34.31993054 | L37: 49.0546825 | N37: 6.108952308 | O37: 7.181046816 | P37: 9.403611002 | Q37: 7.855076784 | R37: 11.30639799 | T37: 13.04048038 | U37: 15.36819518 | V37: 20.16114284 | W37: 16.86138842 | X37: 24.28812603 | Z37: -9.742393205 | AA37: -10.00898985 | AB37: -10.16453026 | AC37: -10.28217642 | AD37: -11.21155591 | AF37: 9.407039482 | AG37: 12.54025215 | AH37: 19.40022358 | AI37: 14.43428878 | AJ37: 24.38296811
A38: 2020-01-02T10:00:00 | B38: 0 | C38: 0 | D38: 0 | E38: 0 | F38: 0 | H38: 28.73521146 | I38: 34.35833879 | J38: 41.12874774 | K38: 27.68141643 | L38: 43.80461783 | N38: 6.108952308 | O38: 7.859129334 | P38: 9.403611002 | Q38: 6.322702624 | R38: 10.08893242 | T38: 13.04048038 | U38: 16.81936306 | V38: 20.16114284 | W38: 13.57205635 | X38: 21.67279644 | Z38: -9.742393205 | AA38: -10.00898985 | AB38: -10.16453026 | AC38: -10.28217642 | AD38: -11.21155591 | AF38: 9.407039482 | AG38: 14.66950255 | AH38: 19.40022358 | AI38: 9.612582558 | AJ38: 20.55017295
A39: 2020-01-02T11:00:00 | B39: 0 | C39: 0 | D39: 0 | E39: 0 | F39: 0 | H39: 29.72500625 | I39: 29.45568415 | J39: 59.62647349 | K39: 31.00066754 | L39: 45.10786238 | N39: 6.321200457 | O39: 6.728566941 | P39: 13.66265173 | Q39: 7.088152277 | R39: 10.39210833 | T39: 13.49355608 | U39: 14.39984067 | V39: 29.29243596 | W39: 15.21513945 | X39: 22.32407148 | Z39: -9.742393205 | AA39: -10.00898985 | AB39: -10.16453026 | AC39: -10.28217642 | AD39: -11.21155591 | AF39: 10.07236333 | AG39: 11.11941777 | AH39: 32.79055743 | AI39: 12.02111531 | AJ39: 21.5046239
A40: 2020-01-02T12:00:00 | B40: 0 | C40: 0 | D40: 0 | E40: 0 | F40: 0 | H40: 28.73521146 | I40: 24.55302952 | J40: 70.09984378 | K40: 26.57499146 | L40: 45.10315511 | N40: 6.108952308 | O40: 5.598004547 | P40: 16.07386918 | Q40: 6.066077885 | R40: 10.39052102 | T40: 13.04048038 | U40: 11.98031829 | V40: 34.46203512 | W40: 13.02119612 | X40: 22.32066166 | Z40: -9.742393205 | AA40: -10.00898985 | AB40: -10.16453026 | AC40: -10.28217642 | AD40: -11.21155591 | AF40: 9.407039482 | AG40: 7.569332987 | AH40: 40.37137405 | AI40: 8.805097589 | AJ40: 21.49962677
A41: 2020-01-02T13:00:00 | B41: 0 | C41: 0 | D41: 0 | E41: 0 | F41: 0 | H41: 28.73521146 | I41: 23.57248719 | J41: 33.72148466 | K41: 27.68141643 | L41: 52.94169476 | N41: 6.108952308 | O41: 5.371127313 | P41: 7.696978976 | Q41: 6.322702624 | R41: 12.20798918 | T41: 13.04048038 | U41: 11.49477716 | V41: 16.50215992 | W41: 13.57205635 | X41: 26.22490205 | Z41: -9.742393205 | AA41: -10.00898985 | AB41: -10.16453026 | AC41: -10.28217642 | AD41: -11.21155591 | AF41: 9.407039482 | AG41: 6.856914621 | AH41: 14.03460863 | AI41: 9.612582558 | AJ41: 27.22133532
A42: 2020-01-02T14:00:00 | B42: 0 | C42: 0 | D42: 0 | E42: 0 | F42: 0 | H42: 53.70960414 | I42: 23.57248719 | J42: 35.39138395 | K42: 26.57499146 | L42: 47.72046971 | N42: 11.46970025 | O42: 5.371127313 | P42: 8.082170622 | Q42: 6.066077885 | R42: 10.99687284 | T42: 24.48380565 | U42: 11.49477716 | V42: 17.32800265 | W42: 13.02119612 | X42: 23.62321173 | Z42: -9.742393205 | AA42: -10.00898985 | AB42: -10.16453026 | AC42: -10.28217642 | AD42: -11.21155591 | AF42: 26.21111269 | AG42: 6.856914621 | AH42: 15.24564301 | AI42: 8.805097589 | AJ42: 23.40852866
A43: 2020-01-02T15:00:00 | B43: 0 | C43: 0 | D43: 0 | E43: 0 | F43: 0 | H43: 62.37783159 | I43: 28.47515322 | J43: 33.95454505 | K43: 36.53276858 | L43: 51.6294614 | N43: 13.33013235 | O43: 6.501689707 | P43: 7.751810527 | Q43: 8.365376553 | R43: 11.90322596 | T43: 28.45517865 | U43: 13.91429954 | V43: 16.6197176 | W43: 17.95677715 | X43: 25.5702172 | Z43: -9.742393205 | AA43: -10.00898985 | AB43: -10.16453026 | AC43: -10.28217642 | AD43: -11.21155591 | AF43: 32.04291779 | AG43: 10.4069994 | AH43: 14.20699787 | AI43: 16.03997728 | AJ43: 26.26188725
A44: 2020-01-02T16:00:00 | B44: 0 | C44: 0 | D44: 0 | E44: 0 | F44: 0 | H44: 62.34219786 | I44: 284.8691262 | J44: 41.12919027 | K44: 45.38412073 | L44: 304.0871518 | N44: 13.32301788 | O44: 68.69791645 | P44: 9.403611002 | Q44: 10.40952534 | R44: 83.78766308 | T44: 28.43999176 | U44: 147.0207639 | V44: 20.16114284 | W44: 22.34466381 | X44: 179.9905968 | Z44: -9.742393205 | AA44: -10.00898985 | AB44: -10.16453026 | AC44: -10.28217642 | AD44: -11.21155591 | AF44: 32.02061644 | AG44: 205.7096905 | AH44: 19.40022358 | AI44: 22.47201273 | AJ44: 252.5667039
A45: 2020-01-02T17:00:00 | B45: 0 | C45: 0 | D45: 0 | E45: 0 | F45: 0 | H45: 34.97846121 | I45: 38.57047066 | J45: 96.00978193 | K45: 118.124481 | L45: 47.48393856 | N45: 7.448842857 | O45: 8.830367828 | P45: 21.94221593 | Q45: 26.80696125 | R45: 10.94290436 | T45: 15.90067891 | U45: 18.89791555 | V45: 47.04364628 | W45: 57.54273298 | X45: 23.50727795 | Z45: -9.742393205 | AA45: -10.00898985 | AB45: -10.16453026 | AC45: -10.28217642 | AD45: -11.21155591 | AF45: 13.60712856 | AG45: 17.71929353 | AH45: 58.82133195 | AI45: 74.06751781 | AJ45: 23.2386264
A46: 2020-01-02T18:00:00 | B46: 0 | C46: 0 | D46: 0 | E46: 0 | F46: 0 | H46: 29.72500625 | I46: 62.71604617 | J46: 100.2616172 | K46: 53.55711455 | L46: 275.1662742 | N46: 6.321200457 | O46: 14.40033137 | P46: 22.7770263 | Q46: 12.29586465 | R46: 58.15104454 | T46: 13.49355608 | U46: 30.81822314 | V46: 48.83346202 | W46: 26.39380308 | X46: 124.9186434 | Z46: -9.742393205 | AA46: -10.00898985 | AB46: -10.16453026 | AC46: -10.28217642 | AD46: -11.21155591 | AF46: 10.07236333 | AG46: 35.20956466 | AH46: 61.44595805 | AI46: 28.40749132 | AJ46: 171.8581321
A47: 2020-01-02T19:00:00 | B47: 0 | C47: 0 | D47: 0 | E47: 0 | F47: 0 | H47: 29.72500625 | I47: 38.5562386 | J47: 102.4825792 | K47: 49.01756349 | L47: 38.57066977 | N47: 6.321200457 | O47: 8.827818646 | P47: 23.23212817 | Q47: 11.24724288 | R47: 8.874641464 | T47: 13.49355608 | U47: 18.89246003 | V47: 49.8091908 | W47: 24.14287421 | X47: 19.06428649 | Z47: -9.742393205 | AA47: -10.00898985 | AB47: -10.16453026 | AC47: -10.28217642 | AD47: -11.21155591 | AF47: 10.07236333 | AG47: 17.71128883 | AH47: 62.87678871 | AI47: 25.10794067 | AJ47: 16.72737204
A48: 2020-01-02T20:00:00 | B48: 0 | C48: 0 | D48: 0 | E48: 0 | F48: 0 | H48: 29.72500625 | I48: 38.50410755 | J48: 107.7962466 | K48: 37.63918165 | L48: 44.33301182 | N48: 6.321200457 | O48: 8.815072734 | P48: 24.26570291 | Q48: 8.620526437 | R48: 10.21115517 | T48: 13.49355608 | U48: 18.86518244 | V48: 52.02515314 | W48: 18.50447151 | X48: 21.93535235 | Z48: -9.742393205 | AA48: -10.00898985 | AB48: -10.16453026 | AC48: -10.28217642 | AD48: -11.21155591 | AF48: 10.07236333 | AG48: 17.67126533 | AH48: 66.12632579 | AI48: 16.84282153 | AJ48: 20.9349516
A49: 2020-01-02T21:00:00 | B49: 0 | C49: 0 | D49: 0 | E49: 0 | F49: 0 | H49: 69.81773236 | I49: 34.93313632 | J49: 51.46003189 | K49: 40.5417798 | L49: 51.62520418 | N49: 14.92732931 | O49: 7.991686819 | P49: 11.78192953 | Q49: 9.291585382 | R49: 11.90322596 | T49: 31.86463655 | U49: 17.10305001 | V49: 25.26020739 | W49: 19.94493936 | X49: 25.5702172 | Z49: -9.742393205 | AA49: -10.00898985 | AB49: -10.16453026 | AC49: -10.28217642 | AD49: -11.21155591 | AF49: 37.04957265 | AG49: 15.08574699 | AH49: 26.87760666 | AI49: 18.95434832 | AJ49: 26.26188725
A50: 2020-01-02T22:00:00 | B50: 0 | C50: 0 | D50: 0 | E50: 0 | F50: 0 | H50: 44.08400458 | I50: 31.41674601 | J50: 36.99220242 | K50: 40.60149038 | L50: 45.139901 | N50: 9.402948719 | O50: 7.181046816 | P50: 8.450912802 | Q50: 9.304859075 | R50: 10.39845756 | T50: 20.0720127 | U50: 15.36819518 | V50: 18.11857808 | W50: 19.97343213 | X50: 22.33771074 | Z50: -9.742393205 | AA50: -10.00898985 | AB50: -10.16453026 | AC50: -10.28217642 | AD50: -11.21155591 | AF50: 19.73256821 | AG50: 12.54025215 | AH50: 16.40496062 | AI50: 18.99611478 | AJ50: 21.5246124
A51: 2020-01-02T23:00:00 | B51: 0 | C51: 0 | D51: 0 | E51: 0 | F51: 0 | H51: 32.48431216 | I51: 30.43621508 | J51: 34.70140269 | K51: 37.63918165 | L51: 42.52954391 | N51: 6.912886637 | O51: 6.954169583 | P51: 7.923159124 | Q51: 8.620526437 | R51: 9.793693048 | T51: 14.7565995 | U51: 14.88265405 | V51: 16.98708537 | W51: 18.50447151 | X51: 21.03857049 | Z51: -9.742393205 | AA51: -10.00898985 | AB51: -10.16453026 | AC51: -10.28217642 | AD51: -11.21155591 | AF51: 11.92709293 | AG51: 11.82783378 | AH51: 14.74571423 | AI51: 16.84282153 | AJ51: 19.62070763
A52: 2020-01-03 | B52: 0 | C52: 0 | D52: 0 | E52: 0 | F52: 0 | H52: 30.71478988 | I52: 31.41674601 | J52: 34.22744452 | K52: 36.53276858 | L52: 37.40222097 | N52: 6.533448606 | O52: 7.181046816 | P52: 7.813496022 | Q52: 8.365376553 | R52: 8.60479903 | T52: 13.94663177 | U52: 15.36819518 | V52: 16.75197 | W52: 17.95677715 | X52: 18.48461761 | Z52: -9.742393205 | AA52: -10.00898985 | AB52: -10.16453026 | AC52: -10.28217642 | AD52: -11.21155591 | AF52: 10.73768717 | AG52: 12.54025215 | AH52: 14.40093576 | AI52: 16.03997728 | AJ52: 15.87786073
A53: 2020-01-03T01:00:00 | B53: 0 | C53: 0 | D53: 0 | E53: 0 | F53: 0 | H53: 42.35603641 | I53: 33.37780786 | J53: 34.16282392 | K53: 38.74560662 | L53: 37.40222097 | N53: 9.031810895 | O53: 7.633526692 | P53: 7.799788134 | Q53: 8.875676322 | R53: 8.60479903 | T53: 19.27976301 | U53: 16.33654969 | V53: 16.72258058 | W53: 19.05216588 | X53: 18.48461761 | Z53: -9.742393205 | AA53: -10.00898985 | AB53: -10.16453026 | AC53: -10.28217642 | AD53: -11.21155591 | AF53: 18.5691807 | AG53: 13.96108653 | AH53: 14.35783845 | AI53: 17.64566578 | AJ53: 15.87786073
A54: 2020-01-03T02:00:00 | B54: 0 | C54: 0 | D54: 0 | E54: 0 | F54: 0 | H54: 30.71478988 | I54: 31.41674601 | J54: 33.72148466 | K54: 42.06485773 | L54: 35.06533553 | N54: 6.533448606 | O54: 7.181046816 | P54: 7.696978976 | Q54: 9.642600829 | R54: 8.061939545 | T54: 13.94663177 | U54: 15.36819518 | V54: 16.50215992 | W54: 20.69841484 | X54: 17.31846022 | Z54: -9.742393205 | AA54: -10.00898985 | AB54: -10.16453026 | AC54: -10.28217642 | AD54: -11.21155591 | AF54: 10.73768717 | AG54: 12.54025215 | AH54: 14.03460863 | AI54: 20.05883925 | AJ54: 14.16884385
A55: 2020-01-03T03:00:00 | B55: 0 | C55: 0 | D55: 0 | E55: 0 | F55: 0 | H55: 29.72500625 | I55: 31.41674601 | J55: 34.22744452 | K55: 42.06485773 | L55: 29.2231037 | N55: 6.321200457 | O55: 7.181046816 | P55: 7.813496022 | Q55: 9.642600829 | R55: 6.707965449 | T55: 13.49355608 | U55: 15.36819518 | V55: 16.75197 | W55: 20.69841484 | X55: 14.40988637 | Z55: -9.742393205 | AA55: -10.00898985 | AB55: -10.16453026 | AC55: -10.28217642 | AD55: -11.21155591 | AF55: 10.07236333 | AG55: 12.54025215 | AH55: 14.40093576 | AI55: 20.05883925 | AJ55: 9.906295909
A56: 2020-01-03T04:00:00 | B56: 0 | C56: 0 | D56: 0 | E56: 0 | F56: 0 | H56: 30.71478988 | I56: 33.37780786 | J56: 33.84090875 | K56: 42.06485773 | L56: 37.40222097 | N56: 6.533448606 | O56: 7.633526692 | P56: 7.724394751 | Q56: 9.642600829 | R56: 8.60479903 | T56: 13.94663177 | U56: 16.33654969 | V56: 16.56093876 | W56: 20.69841484 | X56: 18.48461761 | Z56: -9.742393205 | AA56: -10.00898985 | AB56: -10.16453026 | AC56: -10.28217642 | AD56: -11.21155591 | AF56: 10.73768717 | AG56: 13.96108653 | AH56: 14.12080325 | AI56: 20.05883925 | AJ56: 15.87786073
A57: 2020-01-03T05:00:00 | B57: 0 | C57: 0 | D57: 0 | E57: 0 | F57: 0 | H57: 33.59757624 | I57: 33.37780786 | J57: 35.94762886 | K57: 45.38412073 | L57: 37.40222097 | N57: 7.152406895 | O57: 7.633526692 | P57: 8.209653978 | Q57: 10.40952534 | R57: 8.60479903 | T57: 15.26789162 | U57: 16.33654969 | V57: 17.60132427 | W57: 22.34466381 | X57: 18.48461761 | Z57: -9.742393205 | AA57: -10.00898985 | AB57: -10.16453026 | AC57: -10.28217642 | AD57: -11.21155591 | AF57: 12.67790531 | AG57: 13.96108653 | AH57: 15.64644798 | AI57: 22.47201273 | AJ57: 15.87786073
A58: 2020-01-03T06:00:00 | B58: 0 | C58: 0 | D58: 0 | E58: 0 | F58: 0 | H58: 40.13161549 | I58: 33.37780786 | J58: 50.04082421 | K58: 42.06485773 | L58: 42.52977501 | N58: 8.555141867 | O58: 7.633526692 | P58: 11.4556818 | Q58: 9.642600829 | R58: 9.793693048 | T58: 18.26224106 | U58: 16.33654969 | V58: 24.56073917 | W58: 20.69841484 | X58: 21.03857049 | Z58: -9.742393205 | AA58: -10.00898985 | AB58: -10.16453026 | AC58: -10.28217642 | AD58: -11.21155591 | AF58: 17.07498972 | AG58: 13.96108653 | AH58: 25.85189071 | AI58: 20.05883925 | AJ58: 19.62070763
A59: 2020-01-03T07:00:00 | B59: 0 | C59: 0 | D59: 0 | E59: 0 | F59: 0 | H59: 36.96291195 | I59: 34.35833879 | J59: 51.35837876 | K59: 37.63918165 | L59: 45.14670039 | N59: 7.874524898 | O59: 7.859129334 | P59: 11.75862612 | Q59: 8.620526437 | R59: 10.40004487 | T59: 16.80936145 | U59: 16.81936306 | V59: 25.21024538 | W59: 18.50447151 | X59: 22.34112056 | Z59: -9.742393205 | AA59: -10.00898985 | AB59: -10.16453026 | AC59: -10.28217642 | AD59: -11.21155591 | AF59: 14.94149315 | AG59: 14.66950255 | AH59: 26.80434123 | AI59: 16.84282153 | AJ59: 21.52960952
A60: 2020-01-03T08:00:00 | B60: 0 | C60: 0 | D60: 0 | E60: 0 | F60: 0 | H60: 36.94969982 | I60: 31.41674601 | J60: 41.10697075 | K60: 38.74560662 | L60: 43.2444528 | N60: 7.872153411 | O60: 7.181046816 | P60: 9.398127846 | Q60: 8.875676322 | R60: 9.958773125 | T60: 16.80429915 | U60: 15.36819518 | V60: 20.14938707 | W60: 19.05216588 | X60: 21.39319145 | Z60: -9.742393205 | AA60: -10.00898985 | AB60: -10.16453026 | AC60: -10.28217642 | AD60: -11.21155591 | AF60: 14.93405936 | AG60: 12.54025215 | AH60: 19.38298466 | AI60: 17.64566578 | AJ60: 20.14040867
A61: 2020-01-03T09:00:00 | B61: 0 | C61: 0 | D61: 0 | E61: 0 | F61: 0 | H61: 40.03956541 | I61: 29.45568415 | J61: 5.013187998 | K61: 37.63918165 | L61: 38.57066977 | N61: 8.534984222 | O61: 6.728566941 | P61: 1.087035499 | Q61: 8.620526437 | R61: 8.874641464 | T61: 18.21921152 | U61: 14.39984067 | V61: 2.330581089 | W61: 18.50447151 | X61: 19.06428649 | Z61: -9.742393205 | AA61: -10.00898985 | AB61: -10.16453026 | AC61: -10.28217642 | AD61: -11.21155591 | AF61: 17.01180254 | AG61: 11.11941777 | AH61: -6.746913674 | AI61: 16.84282153 | AJ61: 16.72737204
A62: 2020-01-03T10:00:00 | B62: 0 | C62: 0 | D62: 0 | E62: 0 | F62: 0 | H62: 43.12989928 | I62: 30.43621508 | J62: 13.3400841 | K62: 40.95844466 | L62: 36.23377217 | N62: 9.199000777 | O62: 6.954169583 | P62: 3.004768996 | Q62: 9.387450945 | R62: 8.333369287 | T62: 19.63665504 | U62: 14.88265405 | V62: 6.442161094 | W62: 20.15072048 | X62: 17.90153891 | Z62: -9.742393205 | AA62: -10.00898985 | AB62: -10.16453026 | AC62: -10.28217642 | AD62: -11.21155591 | AF62: 19.09326262 | AG62: 11.82783378 | AH62: -0.7176001718 | AI62: 19.255995 | AJ62: 15.02335229
A63: 2020-01-03T11:00:00 | B63: 0 | C63: 0 | D63: 0 | E63: 0 | F63: 0 | H63: 52.4195651 | I63: 32.39727693 | J63: 36.51018561 | K63: 35.42634361 | L63: 36.23377217 | N63: 11.19223619 | O63: 7.406649459 | P63: 8.339878912 | Q63: 8.110226669 | R63: 8.333369287 | T63: 23.89151675 | U63: 15.85100855 | V63: 17.88052377 | W63: 17.40908278 | X63: 17.90153891 | Z63: -9.742393205 | AA63: -10.00898985 | AB63: -10.16453026 | AC63: -10.28217642 | AD63: -11.21155591 | AF63: 25.34135973 | AG63: 13.24866816 | AH63: 16.05587242 | AI63: 15.23713303 | AJ63: 15.02335229
A64: 2020-01-03T12:00:00 | B64: 0 | C64: 0 | D64: 0 | E64: 0 | F64: 0 | H64: 43.10852573 | I64: 28.47515322 | J64: 36.15444041 | K64: 35.42634361 | L64: 29.2231037 | N64: 9.194257802 | O64: 6.501689707 | P64: 8.257631585 | Q64: 8.110226669 | R64: 6.707965449 | T64: 19.62653045 | U64: 13.91429954 | V64: 17.70418724 | W64: 17.40908278 | X64: 14.40988637 | Z64: -9.742393205 | AA64: -10.00898985 | AB64: -10.16453026 | AC64: -10.28217642 | AD64: -11.21155591 | AF64: 19.07839504 | AG64: 10.4069994 | AH64: 15.79728856 | AI64: 15.23713303 | AJ64: 9.906295909
A65: 2020-01-03T13:00:00 | B65: 0 | C65: 0 | D65: 0 | E65: 0 | F65: 0 | H65: 33.81316252 | I65: 24.55302952 | J65: 30.92922021 | K65: 37.63918165 | L65: 32.72843794 | N65: 7.198650905 | O65: 5.598004547 | P65: 7.05407904 | Q65: 8.620526437 | R65: 7.520667368 | T65: 15.36660644 | U65: 11.98031829 | V65: 15.12379607 | W65: 18.50447151 | X65: 16.15571264 | Z65: -9.742393205 | AA65: -10.00898985 | AB65: -10.16453026 | AC65: -10.28217642 | AD65: -11.21155591 | AF65: 12.82286414 | AG65: 7.569332987 | AH65: 12.01334485 | AI65: 16.84282153 | AJ65: 12.4648241
A66: 2020-01-03T14:00:00 | B66: 0 | C66: 0 | D66: 0 | E66: 0 | F66: 0 | H66: 40.01467978 | I66: 28.47515322 | J66: 29.04960966 | K66: 37.63918165 | L66: 30.3915525 | N66: 8.530241247 | O66: 6.501689707 | P66: 6.622280576 | Q66: 8.620526437 | R66: 6.977807883 | T66: 18.20908693 | U66: 13.91429954 | V66: 14.19802931 | W66: 18.50447151 | X66: 14.98955525 | Z66: -9.742393205 | AA66: -10.00898985 | AB66: -10.16453026 | AC66: -10.28217642 | AD66: -11.21155591 | AF66: 16.99693497 | AG66: 10.4069994 | AH66: 10.65577962 | AI66: 16.84282153 | AJ66: 10.75580722
A67: 2020-01-03T15:00:00 | B67: 0 | C67: 0 | D67: 0 | E67: 0 | F67: 0 | H67: 40.01341989 | I67: 31.41674601 | J67: 27.76752715 | K67: 42.06485773 | L67: 38.57066977 | N67: 8.529055503 | O67: 7.181046816 | P67: 6.3261902 | Q67: 9.642600829 | R67: 8.874641464 | T67: 18.20655578 | U67: 15.36819518 | V67: 13.56321781 | W67: 20.69841484 | X67: 19.06428649 | Z67: -9.742393205 | AA67: -10.00898985 | AB67: -10.16453026 | AC67: -10.28217642 | AD67: -11.21155591 | AF67: 16.99321808 | AG67: 12.54025215 | AH67: 9.724877752 | AI67: 20.05883925 | AJ67: 16.72737204
A68: 2020-01-03T16:00:00 | B68: 0 | C68: 0 | D68: 0 | E68: 0 | F68: 0 | H68: 63.03185989 | I68: 31.41674601 | J68: 36.63636406 | K68: 49.80979681 | L68: 60.01451865 | N68: 13.47123586 | O68: 7.181046816 | P68: 8.368665476 | Q68: 11.43012487 | R68: 13.8492661 | T68: 28.7563854 | U68: 15.36819518 | V68: 17.94224155 | W68: 24.53544127 | X68: 29.75065276 | Z68: -9.742393205 | AA68: -10.00898985 | AB68: -10.16453026 | AC68: -10.28217642 | AD68: -11.21155591 | AF68: =SUM(N68,T68,Z68) -> 32.48522806 | AG68: 12.54025215 | AH68: 16.14637676 | AI68: 25.68338973 | AJ68: 32.38836295
A69: 2020-01-03T17:00:00 | B69: 0 | C69: 0 | D69: 0 | E69: 0 | F69: 0 | H69: 60.78292127 | I69: 90.11984079 | J69: 71.11565308 | K69: 35.42634361 | L69: 143.7894343 | N69: 12.98745237 | O69: 20.46101252 | P69: 16.30827406 | Q69: 8.110226669 | R69: 32.56045794 | T69: 27.72367655 | U69: 43.788718 | V69: 34.96459422 | W69: 17.40908278 | X69: 69.9455748 | Z69: -9.742393205 | AA69: -10.00898985 | AB69: -10.16453026 | AC69: -10.28217642 | AD69: -11.21155591 | AF69: 30.96873572 | AG69: 54.24074068 | AH69: 41.10833803 | AI69: 15.23713303 | AJ69: 91.29447683
A70: 2020-01-03T18:00:00 | B70: 0 | C70: 0 | D70: 0 | E70: 0 | F70: 0 | H70: 77.71207464 | I70: 66.12453945 | J70: 44.97851221 | K70: 37.63918165 | L70: 79.84872476 | N70: 16.62175727 | O70: 15.18675414 | P70: 10.28914055 | Q70: 8.620526437 | R70: 18.44928595 | T70: 35.48164867 | U70: 32.50125055 | V70: 22.05969944 | W70: 18.50447151 | X70: 39.63230224 | Z70: -9.742393205 | AA70: -10.00898985 | AB70: -10.16453026 | AC70: -10.28217642 | AD70: -11.21155591 | AF70: 42.36101274 | AG70: 37.67901484 | AH70: 22.18430973 | AI70: 16.84282153 | AJ70: 46.87003228
A71: 2020-01-03T19:00:00 | B71: 0 | C71: 0 | D71: 0 | E71: 0 | F71: 0 | H71: 77.75093057 | I71: 50.67386475 | J71: 56.82978377 | K71: 35.42634361 | L71: 74.63140419 | N71: 16.63005748 | O71: 11.62299715 | P71: 13.018381 | Q71: 8.110226669 | R71: 17.23816961 | T71: 35.49936672 | U71: 24.8744359 | V71: 27.91113317 | W71: 17.40908278 | X71: 37.03061192 | Z71: -9.742393205 | AA71: -10.00898985 | AB71: -10.16453026 | AC71: -10.28217642 | AD71: -11.21155591 | AF71: 42.38703099 | AG71: 26.4884432 | AH71: 30.76498391 | AI71: 15.23713303 | AJ71: 43.05722562
A72: 2020-01-03T20:00:00 | B72: 0 | C72: 0 | D72: 0 | E72: 0 | F72: 0 | H72: 68.87905793 | I72: 50.63481489 | J72: 72.17570345 | K72: 35.42634361 | L72: 74.11157328 | N72: 14.72575286 | O72: 11.61407501 | P72: 16.55227447 | Q72: 8.110226669 | R72: 17.11753417 | T72: 31.43434119 | U72: 24.85534158 | V72: 35.48772592 | W72: 17.40908278 | X72: 36.77146583 | Z72: -9.742393205 | AA72: -10.00898985 | AB72: -10.16453026 | AC72: -10.28217642 | AD72: -11.21155591 | AF72: 36.41770084 | AG72: 26.46042674 | AH72: 41.87547012 | AI72: 15.23713303 | AJ72: 42.67744409
A73: 2020-01-03T21:00:00 | B73: 0 | C73: 0 | D73: 0 | E73: 0 | F73: 0 | H73: 45.88579344 | I73: 30.43621508 | J73: 39.30413865 | K73: 36.53276858 | L73: 45.54662365 | N73: 9.789501214 | O73: 6.954169583 | P73: 8.982778847 | Q73: 8.365376553 | R73: 10.49369607 | T73: 20.89716732 | U73: 14.88265405 | V73: 19.25888761 | W73: 17.95677715 | X73: 22.54229976 | Z73: -9.742393205 | AA73: -10.00898985 | AB73: -10.16453026 | AC73: -10.28217642 | AD73: -11.21155591 | AF73: 20.94427533 | AG73: 11.82783378 | AH73: 18.0771362 | AI73: 16.03997728 | AJ73: 21.82443992
A74: 2020-01-03T22:00:00 | B74: 0 | C74: 0 | D74: 0 | E74: 0 | F74: 0 | H74: 30.71478988 | I74: 30.43621508 | J74: 54.79662796 | K74: 36.53276858 | L74: 36.23377217 | N74: 6.533448606 | O74: 6.954169583 | P74: 12.55094203 | Q74: 8.365376553 | R74: 8.333369287 | T74: 13.94663177 | U74: 14.88265405 | V74: 26.90895391 | W74: 17.95677715 | X74: 17.90153891 | Z74: -9.742393205 | AA74: -10.00898985 | AB74: -10.16453026 | AC74: -10.28217642 | AD74: -11.21155591 | AF74: 10.73768717 | AG74: 11.82783378 | AH74: 29.29536568 | AI74: 16.03997728 | AJ74: 15.02335229
A75: 2020-01-03T23:00:00 | B75: 0 | C75: 0 | D75: 0 | E75: 0 | F75: 0 | H75: 28.73521146 | I75: 31.41674601 | J75: 35.8152201 | K75: 37.63918165 | L75: 41.83719828 | N75: 6.108952308 | O75: 7.181046816 | P75: 8.179496625 | Q75: 8.620526437 | R75: 9.633374896 | T75: 13.04048038 | U75: 15.36819518 | V75: 17.53666754 | W75: 18.50447151 | X75: 20.69417898 | Z75: -9.742393205 | AA75: -10.00898985 | AB75: -10.16453026 | AC75: -10.28217642 | AD75: -11.21155591 | AF75: 9.407039482 | AG75: 12.54025215 | AH75: 15.5516339 | AI75: 16.84282153 | AJ75: 19.11599797
A76: 2020-01-04 | B76: 0 | C76: 0 | D76: 0 | E76: 0 | F76: 0 | H76: 28.73521146 | I76: 29.45568415 | J76: 50.99723007 | K76: 36.53276858 | L76: 37.40222097 | N76: 6.108952308 | O76: 6.728566941 | P76: 11.675008 | Q76: 8.365376553 | R76: 8.60479903 | T76: 13.04048038 | U76: 14.39984067 | V76: 25.03096991 | W76: 17.95677715 | X76: 18.48461761 | Z76: -9.742393205 | AA76: -10.00898985 | AB76: -10.16453026 | AC76: -10.28217642 | AD76: -11.21155591 | AF76: 9.407039482 | AG76: 11.11941777 | AH76: 26.54144765 | AI76: 16.03997728 | AJ76: 15.87786073
A77: 2020-01-04T01:00:00 | B77: 0 | C77: 0 | D77: 0 | E77: 0 | F77: 0 | H77: 25.76583827 | I77: 33.59738498 | J77: 55.65363991 | K77: 34.31993054 | L77: 37.40222097 | N77: 5.471022117 | O77: 7.683235749 | P77: 12.74696483 | Q77: 7.855076784 | R77: 8.60479903 | T77: 11.67872214 | U77: 16.44293229 | V77: 27.32922263 | W77: 16.86138842 | X77: 18.48461761 | Z77: -9.742393205 | AA77: -10.00898985 | AB77: -10.16453026 | AC77: -10.28217642 | AD77: -11.21155591 | AF77: 7.407351054 | AG77: 14.1171782 | AH77: 29.9116572 | AI77: 14.43428878 | AJ77: 15.87786073
A78: 2020-01-04T02:00:00 | B78: 0 | C78: 0 | D78: 0 | E78: 0 | F78: 0 | H78: 28.73521146 | I78: 28.47515322 | J78: 35.19183916 | K78: 35.42634361 | L78: 35.06533553 | N78: 6.108952308 | O78: 6.501689707 | P78: 8.035563803 | Q78: 8.110226669 | R78: 8.061939545 | T78: 13.04048038 | U78: 13.91429954 | V78: 17.22807862 | W78: 17.40908278 | X78: 17.31846022 | Z78: -9.742393205 | AA78: -10.00898985 | AB78: -10.16453026 | AC78: -10.28217642 | AD78: -11.21155591 | AF78: 9.407039482 | AG78: 10.4069994 | AH78: 15.09911216 | AI78: 15.23713303 | AJ78: 14.16884385
A79: 2020-01-04T03:00:00 | B79: 0 | C79: 0 | D79: 0 | E79: 0 | F79: 0 | H79: 28.73521146 | I79: 29.45568415 | J79: 48.59810436 | K79: 34.31993054 | L79: 30.3915525 | N79: 6.108952308 | O79: 6.728566941 | P79: 11.12258013 | Q79: 7.855076784 | R79: 6.977807883 | T79: 13.04048038 | U79: 14.39984067 | V79: 23.84657624 | W79: 16.86138842 | X79: 14.98955525 | Z79: -9.742393205 | AA79: -10.00898985 | AB79: -10.16453026 | AC79: -10.28217642 | AD79: -11.21155591 | AF79: 9.407039482 | AG79: 11.11941777 | AH79: 24.8046261 | AI79: 14.43428878 | AJ79: 10.75580722
A80: 2020-01-04T04:00:00 | B80: 0 | C80: 0 | D80: 0 | E80: 0 | F80: 0 | H80: 26.75563305 | I80: 29.45568415 | J80: 41.42977097 | K80: 34.31993054 | L80: 35.06533553 | N80: 5.683270266 | O80: 6.728566941 | P80: 9.47215044 | Q80: 7.855076784 | R80: 8.061939545 | T80: 12.13179784 | U80: 14.39984067 | V80: 20.30808995 | W80: 16.86138842 | X80: 17.31846022 | Z80: -9.742393205 | AA80: -10.00898985 | AB80: -10.16453026 | AC80: -10.28217642 | AD80: -11.21155591 | AF80: 8.072674899 | AG80: 11.11941777 | AH80: 19.61571012 | AI80: 14.43428878 | AJ80: 14.16884385
A81: 2020-01-04T05:00:00 | B81: 0 | C81: 0 | D81: 0 | E81: 0 | F81: 0 | H81: 28.73521146 | I81: 28.47515322 | J81: 42.6703724 | K81: 36.53276858 | L81: 35.06533553 | N81: 6.108952308 | O81: 6.501689707 | P81: 9.758645294 | Q81: 8.365376553 | R81: 8.061939545 | T81: 13.04048038 | U81: 13.91429954 | V81: 20.92232885 | W81: 17.95677715 | X81: 17.31846022 | Z81: -9.742393205 | AA81: -10.00898985 | AB81: -10.16453026 | AC81: -10.28217642 | AD81: -11.21155591 | AF81: 9.407039482 | AG81: 10.4069994 | AH81: 20.51644388 | AI81: 16.03997728 | AJ81: 14.16884385
A82: 2020-01-04T06:00:00 | B82: 0 | C82: 0 | D82: 0 | E82: 0 | F82: 0 | H82: 28.73521146 | I82: 31.52928071 | J82: 42.8751227 | K82: 37.63918165 | L82: 36.23377217 | N82: 6.108952308 | O82: 7.20653864 | P82: 9.805252113 | Q82: 8.620526437 | R82: 8.333369287 | T82: 13.04048038 | U82: 15.42275036 | V82: 21.02225288 | W82: 18.50447151 | X82: 17.90153891 | Z82: -9.742393205 | AA82: -10.00898985 | AB82: -10.16453026 | AC82: -10.28217642 | AD82: -11.21155591 | AF82: 9.407039482 | AG82: 12.62029916 | AH82: 20.66297473 | AI82: 16.84282153 | AJ82: 15.02335229
A83: 2020-01-04T07:00:00 | B83: 0 | C83: 0 | D83: 0 | E83: 0 | F83: 0 | H83: 30.71478988 | I83: 31.52176016 | J83: 89.56854385 | K83: 37.63918165 | L83: 37.40222097 | N83: 6.533448606 | O83: 7.205264049 | P83: 20.55634848 | Q83: 8.620526437 | R83: 8.60479903 | T83: 13.94663177 | U83: 15.42002261 | V83: 44.07237581 | W83: 18.50447151 | X83: 18.48461761 | Z83: -9.742393205 | AA83: -10.00898985 | AB83: -10.16453026 | AC83: -10.28217642 | AD83: -11.21155591 | AF83: 10.73768717 | AG83: 12.61629681 | AH83: 54.46419403 | AI83: 16.84282153 | AJ83: 15.87786073
A84: 2020-01-04T08:00:00 | B84: 0 | C84: 0 | D84: 0 | E84: 0 | F84: 0 | H84: 28.73521146 | I84: 31.51583488 | J84: 41.79061688 | K84: 34.31993054 | L84: 33.89688674 | N84: 6.108952308 | O84: 7.203989458 | P84: 9.555768556 | Q84: 7.855076784 | R84: 7.790509802 | T84: 13.04048038 | U84: 15.41729485 | V84: 20.48736541 | W84: 16.86138842 | X84: 16.73538152 | Z84: -9.742393205 | AA84: -10.00898985 | AB84: -10.16453026 | AC84: -10.28217642 | AD84: -11.21155591 | AF84: 9.407039482 | AG84: 12.61229446 | AH84: 19.87860371 | AI84: 14.43428878 | AJ84: 13.31433541
A85: 2020-01-04T09:00:00 | B85: 0 | C85: 0 | D85: 0 | E85: 0 | F85: 0 | H85: 28.73521146 | I85: 39.72088614 | J85: 2.339066633 | K85: 22.14931538 | L85: 29.2231037 | N85: 6.108952308 | O85: 9.096757389 | P85: 0.4715513389 | Q85: 5.045478348 | R85: 6.707965449 | T85: 13.04048038 | U85: 19.46801722 | V85: 1.010996084 | W85: 10.83041866 | X85: 14.40988637 | Z85: -9.742393205 | AA85: -10.00898985 | AB85: -10.16453026 | AC85: -10.28217642 | AD85: -11.21155591 | AF85: 9.407039482 | AG85: 18.55578476 | AH85: -8.68198284 | AI85: 5.593720586 | AJ85: 9.906295909
A86: 2020-01-04T10:00:00 | B86: 0 | C86: 0 | D86: 0 | E86: 0 | F86: 0 | H86: 28.73521146 | I86: 39.70561716 | J86: 26.37506906 | K86: 22.14931538 | L86: 28.0546549 | N86: 6.108952308 | O86: 9.092933615 | P86: 6.005425627 | Q86: 5.045478348 | R86: 6.436535707 | T86: 13.04048038 | U86: 19.45983394 | V86: 12.87550536 | W86: 10.83041866 | X86: 13.82680767 | Z86: -9.742393205 | AA86: -10.00898985 | AB86: -10.16453026 | AC86: -10.28217642 | AD86: -11.21155591 | AF86: 9.407039482 | AG86: 18.54377771 | AH86: 8.716400726 | AI86: 5.593720586 | AJ86: 9.05178747
A87: 2020-01-04T11:00:00 | B87: 0 | C87: 0 | D87: 0 | E87: 0 | F87: 0 | H87: 28.73521146 | I87: 33.5522959 | J87: 2.339066633 | K87: 22.14931538 | L87: 29.2231037 | N87: 6.108952308 | O87: 7.673039019 | P87: 0.4715513389 | Q87: 5.045478348 | R87: 6.707965449 | T87: 13.04048038 | U87: 16.42111022 | V87: 1.010996084 | W87: 10.83041866 | X87: 14.40988637 | Z87: -9.742393205 | AA87: -10.00898985 | AB87: -10.16453026 | AC87: -10.28217642 | AD87: -11.21155591 | AF87: 9.407039482 | AG87: 14.08515939 | AH87: -8.68198284 | AI87: 5.593720586 | AJ87: 9.906295909
A88: 2020-01-04T12:00:00 | B88: 0 | C88: 0 | D88: 0 | E88: 0 | F88: 0 | H88: 29.72500625 | I88: 33.55195405 | J88: 12.91743579 | K88: 22.14931538 | L88: 30.3915525 | N88: 6.321200457 | O88: 7.673039019 | P88: 2.907442993 | Q88: 5.045478348 | R88: 6.977807883 | T88: 13.49355608 | U88: 16.42111022 | V88: 6.233496205 | W88: 10.83041866 | X88: 14.98955525 | Z88: -9.742393205 | AA88: -10.00898985 | AB88: -10.16453026 | AC88: -10.28217642 | AD88: -11.21155591 | AF88: 10.07236333 | AG88: 14.08515939 | AH88: -1.023591064 | AI88: 5.593720586 | AJ88: 10.75580722
A89: 2020-01-04T13:00:00 | B89: 0 | C89: 0 | D89: 0 | E89: 0 | F89: 0 | H89: 31.70458466 | I89: 45.84402267 | J89: 2.339066633 | K89: 23.25574035 | L89: 25.71776947 | N89: 6.745696755 | O89: 10.50900444 | P89: 0.4715513389 | Q89: 5.300628232 | R89: 5.893676222 | T89: 14.39970747 | U89: 22.49037438 | V89: 1.010996084 | W89: 11.37811302 | X89: 12.66065028 | Z89: -9.742393205 | AA89: -10.00898985 | AB89: -10.16453026 | AC89: -10.28217642 | AD89: -11.21155591 | AF89: 11.40301102 | AG89: 22.99038897 | AH89: -8.68198284 | AI89: 6.396564837 | AJ89: 7.342770593
A90: 2020-01-04T14:00:00 | B90: 0 | C90: 0 | D90: 0 | E90: 0 | F90: 0 | H90: 30.71478988 | I90: 37.65151704 | J90: 14.28047747 | K90: 22.14931538 | L90: 29.2231037 | N90: 6.533448606 | O90: 8.618785689 | P90: 3.221353623 | Q90: 5.045478348 | R90: 6.707965449 | T90: 13.94663177 | U90: 18.44510753 | V90: 6.906513947 | W90: 10.83041866 | X90: 14.40988637 | Z90: -9.742393205 | AA90: -10.00898985 | AB90: -10.16453026 | AC90: -10.28217642 | AD90: -11.21155591 | AF90: 10.73768717 | AG90: 17.05490337 | AH90: -0.03666269266 | AI90: 5.593720586 | AJ90: 9.906295909
A91: 2020-01-04T15:00:00 | B91: 0 | C91: 0 | D91: 0 | E91: 0 | F91: 0 | H91: 31.70458466 | I91: 33.55083737 | J91: 7.632283448 | K91: 21.04290231 | L91: 33.89688674 | N91: 6.745696755 | O91: 7.673039019 | P91: 1.69018256 | Q91: 4.788853609 | R91: 7.790509802 | T91: 14.39970747 | U91: 16.42111022 | V91: 3.623715616 | W91: 10.27955843 | X91: 16.73538152 | Z91: -9.742393205 | AA91: -10.00898985 | AB91: -10.16453026 | AC91: -10.28217642 | AD91: -11.21155591 | AF91: 11.40301102 | AG91: 14.08515939 | AH91: -4.850632087 | AI91: 4.786235618 | AJ91: 13.31433541
A92: 2020-01-04T16:00:00 | B92: 0 | C92: 0 | D92: 0 | E92: 0 | F92: 0 | H92: 56.10117801 | I92: 76.3961339 | J92: 42.26790565 | K92: 37.63918165 | L92: 37.40222097 | N92: 11.98312733 | O92: 17.55494459 | P92: 9.665431658 | Q92: 8.620526437 | R92: 8.60479903 | T92: 25.57979323 | U92: 37.56942709 | V92: 20.72248078 | W92: 18.50447151 | X92: 18.48461761 | Z92: -9.742393205 | AA92: -10.00898985 | AB92: -10.16453026 | AC92: -10.28217642 | AD92: -11.21155591 | AF92: 27.82052736 | AG92: 45.11538183 | AH92: 20.22338218 | AI92: 16.84282153 | AJ92: 15.87786073
A93: 2020-01-04T17:00:00 | B93: 0 | C93: 0 | D93: 0 | E93: 0 | F93: 0 | H93: 58.45155457 | I93: 51.66901516 | J93: 56.10794056 | K93: 87.2292621 | L93: 41.31949599 | N93: 12.48706847 | O93: 11.85242356 | P93: 12.85251556 | Q93: 20.06982442 | R93: 9.512739455 | T93: 26.65553161 | U93: 25.36543255 | V93: 27.55552118 | W93: 43.08106901 | X93: 20.43503289 | Z93: -9.742393205 | AA93: -10.00898985 | AB93: -10.16453026 | AC93: -10.28217642 | AD93: -11.21155591 | AF93: 29.40020688 | AG93: 27.20886626 | AH93: 30.24350648 | AI93: 52.86871702 | AJ93: 18.73621644
A94: 2020-01-04T18:00:00 | B94: 0 | C94: 0 | D94: 0 | E94: 0 | F94: 0 | H94: 59.98411702 | I94: 46.56062805 | J94: 69.11568681 | K94: 155.4973157 | L94: 88.23667692 | N94: 12.81670526 | O94: 10.6734267 | P94: 15.84768904 | Q94: 34.28889977 | R94: 20.39373878 | T94: 27.35919108 | U94: 22.84225531 | V94: 33.97710968 | W94: 73.60315795 | X94: 43.80932799 | Z94: -9.742393205 | AA94: -10.00898985 | AB94: -10.16453026 | AC94: -10.28217642 | AD94: -11.21155591 | AF94: 30.43350313 | AG94: 23.50669217 | AH94: 39.66026845 | AI94: 97.6098813 | AJ94: 52.99151086
A95: 2020-01-04T19:00:00 | B95: 0 | C95: 0 | D95: 0 | E95: 0 | F95: 0 | H95: 59.99487626 | I95: 46.60498787 | J95: 69.63407237 | K95: 57.72375122 | L95: 38.57066977 | N95: 12.81907675 | O95: 10.68362343 | P95: 15.96694766 | Q95: 13.25747 | R95: 8.874641464 | T95: 27.36425337 | U95: 22.86407739 | V95: 34.23279764 | W95: 28.45794601 | X95: 19.06428649 | Z95: -9.742393205 | AA95: -10.00898985 | AB95: -10.16453026 | AC95: -10.28217642 | AD95: -11.21155591 | AF95: 30.44093692 | AG95: 23.53871097 | AH95: 40.03521504 | AI95: 31.43323959 | AJ95: 16.72737204
A96: 2020-01-04T20:00:00 | B96: 0 | C96: 0 | D96: 0 | E96: 0 | F96: 0 | H96: 59.96242014 | I96: 52.04395991 | J96: 96.02070536 | K96: 62.77462096 | L96: 56.44643299 | N96: 12.81196228 | O96: 11.93909576 | P96: 21.94221593 | Q96: 14.42408016 | R96: 13.0206911 | T96: 27.34906648 | U96: 25.55092017 | V96: 47.04364628 | W96: 30.96214395 | X96: 27.97072832 | Z96: -9.742393205 | AA96: -10.00898985 | AB96: -10.16453026 | AC96: -10.28217642 | AD96: -11.21155591 | AF96: 30.41863556 | AG96: 27.48102609 | AH96: 58.82133195 | AI96: 35.1040477 | AJ96: 29.77986351
A97: 2020-01-04T21:00:00 | B97: 0 | C97: 0 | D97: 0 | E97: 0 | F97: 0 | H97: 29.72500625 | I97: 39.9734625 | J97: 64.1637038 | K97: 37.63918165 | L97: 44.11217157 | N97: 6.321200457 | O97: 9.154113993 | P97: 14.70719277 | Q97: 8.620526437 | R97: 10.1603613 | T97: 13.49355608 | U97: 19.59076638 | V97: 31.53190985 | W97: 18.50447151 | X97: 21.8262382 | Z97: -9.742393205 | AA97: -10.00898985 | AB97: -10.16453026 | AC97: -10.28217642 | AD97: -11.21155591 | AF97: 10.07236333 | AG97: 18.73589053 | AH97: 36.07457236 | AI97: 16.84282153 | AJ97: 20.77504359
A98: 2020-01-04T22:00:00 | B98: 0 | C98: 0 | D98: 0 | E98: 0 | F98: 0 | H98: 29.72500625 | I98: 29.45568415 | J98: 75.02685894 | K98: 37.63918165 | L98: 38.57066977 | N98: 6.321200457 | O98: 6.728566941 | P98: 17.20888229 | Q98: 8.620526437 | R98: 8.874641464 | T98: 13.49355608 | U98: 14.39984067 | V98: 36.89547919 | W98: 18.50447151 | X98: 19.06428649 | Z98: -9.742393205 | AA98: -10.00898985 | AB98: -10.16453026 | AC98: -10.28217642 | AD98: -11.21155591 | AF98: 10.07236333 | AG98: 11.11941777 | AH98: 43.93983122 | AI98: 16.84282153 | AJ98: 16.72737204
A99: 2020-01-04T23:00:00 | B99: 0 | C99: 0 | D99: 0 | E99: 0 | F99: 0 | H99: 28.73521146 | I99: 28.47515322 | J99: 42.37113092 | K99: 35.42634361 | L99: 37.40222097 | N99: 6.108952308 | O99: 6.501689707 | P99: 9.688735067 | Q99: 8.110226669 | R99: 8.60479903 | T99: 13.04048038 | U99: 13.91429954 | V99: 20.7724428 | W99: 17.40908278 | X99: 18.48461761 | Z99: -9.742393205 | AA99: -10.00898985 | AB99: -10.16453026 | AC99: -10.28217642 | AD99: -11.21155591 | AF99: 9.407039482 | AG99: 10.4069994 | AH99: 20.2966476 | AI99: 15.23713303 | AJ99: 15.87786073
A100: 2020-01-05 | B100: 0 | C100: 0 | D100: 0 | E100: 0 | F100: 0 | H100: 28.73521146 | I100: 32.18684981 | J100: 40.58259943 | K100: 36.53276858 | L100: 37.40222097 | N100: 6.108952308 | O100: 7.358214993 | P100: 9.277498434 | Q100: 8.365376553 | R100: 8.60479903 | T100: 13.04048038 | U100: 15.74735371 | V100: 19.89076017 | W100: 17.95677715 | X100: 18.48461761 | Z100: -9.742393205 | AA100: -10.00898985 | AB100: -10.16453026 | AC100: -10.28217642 | AD100: -11.21155591 | AF100: 9.407039482 | AG100: 13.09657885 | AH100: 19.00372834 | AI100: 16.03997728 | AJ100: 15.87786073
A101: 2020-01-05T01:00:00 | B101: 0 | C101: 0 | D101: 0 | E101: 0 | F101: 0 | H101: 23.78625985 | I101: 28.47515322 | J101: 37.37616455 | K101: 35.42634361 | L101: 29.2231037 | N101: 5.04652582 | O101: 6.501689707 | P101: 8.538643284 | Q101: 8.110226669 | R101: 6.707965449 | T101: 10.77257075 | U101: 13.91429954 | V101: 18.30667037 | W101: 17.40908278 | X101: 14.40988637 | Z101: -9.742393205 | AA101: -10.00898985 | AB101: -10.16453026 | AC101: -10.28217642 | AD101: -11.21155591 | AF101: 6.076703363 | AG101: 10.4069994 | AH101: 16.68078339 | AI101: 15.23713303 | AJ101: 9.906295909
A102: 2020-01-05T02:00:00 | B102: 0 | C102: 0 | D102: 0 | E102: 0 | F102: 0 | H102: 23.78625985 | I102: 23.57248719 | J102: 35.59527248 | K102: 34.31993054 | L102: 35.06533553 | N102: 5.04652582 | O102: 5.371127313 | P102: 8.12877744 | Q102: 7.855076784 | R102: 8.061939545 | T102: 10.77257075 | U102: 11.49477716 | V102: 17.42792668 | W102: 16.86138842 | X102: 17.31846022 | Z102: -9.742393205 | AA102: -10.00898985 | AB102: -10.16453026 | AC102: -10.28217642 | AD102: -11.21155591 | AF102: 6.076703363 | AG102: 6.856914621 | AH102: 15.39217386 | AI102: 14.43428878 | AJ102: 14.16884385
A103: 2020-01-05T03:00:00 | B103: 0 | C103: 0 | D103: 0 | E103: 0 | F103: 0 | H103: 23.78625985 | I103: 26.51409137 | J103: 36.68087297 | K103: 34.31993054 | L103: 33.89688674 | N103: 5.04652582 | O103: 6.050484423 | P103: 8.379631786 | Q103: 7.855076784 | R103: 7.790509802 | T103: 10.77257075 | U103: 12.94867279 | V103: 17.96575309 | W103: 16.86138842 | X103: 16.73538152 | Z103: -9.742393205 | AA103: -10.00898985 | AB103: -10.16453026 | AC103: -10.28217642 | AD103: -11.21155591 | AF103: 6.076703363 | AG103: 8.990167369 | AH103: 16.18085461 | AI103: 14.43428878 | AJ103: 13.31433541
A104: 2020-01-05T04:00:00 | B104: 0 | C104: 0 | D104: 0 | E104: 0 | F104: 0 | H104: 23.78625985 | I104: 23.57248719 | J104: 35.52059021 | K104: 34.31993054 | L104: 35.06533553 | N104: 5.04652582 | O104: 5.371127313 | P104: 8.112327975 | Q104: 7.855076784 | R104: 8.061939545 | T104: 10.77257075 | U104: 11.49477716 | V104: 17.39265938 | W104: 16.86138842 | X104: 17.31846022 | Z104: -9.742393205 | AA104: -10.00898985 | AB104: -10.16453026 | AC104: -10.28217642 | AD104: -11.21155591 | AF104: 6.076703363 | AG104: 6.856914621 | AH104: 15.34045709 | AI104: 14.43428878 | AJ104: 14.16884385
A105: 2020-01-05T05:00:00 | B105: 0 | C105: 0 | D105: 0 | E105: 0 | F105: 0 | H105: 23.78625985 | I105: 28.47515322 | J105: 35.91872485 | K105: 34.31993054 | L105: 35.06533553 | N105: 5.04652582 | O105: 6.501689707 | P105: 8.204170823 | Q105: 7.855076784 | R105: 8.061939545 | T105: 10.77257075 | U105: 13.91429954 | V105: 17.5895685 | W105: 16.86138842 | X105: 17.31846022 | Z105: -9.742393205 | AA105: -10.00898985 | AB105: -10.16453026 | AC105: -10.28217642 | AD105: -11.21155591 | AF105: 6.076703363 | AG105: 10.4069994 | AH105: 15.62920906 | AI105: 14.43428878 | AJ105: 14.16884385
A106: 2020-01-05T06:00:00 | B106: 0 | C106: 0 | D106: 0 | E106: 0 | F106: 0 | H106: 28.73521146 | I106: 28.47515322 | J106: 37.78512946 | K106: 34.31993054 | L106: 37.40222097 | N106: 6.108952308 | O106: 6.501689707 | P106: 8.63322771 | Q106: 7.855076784 | R106: 8.60479903 | T106: 13.04048038 | U106: 13.91429954 | V106: 18.50945738 | W106: 16.86138842 | X106: 18.48461761 | Z106: -9.742393205 | AA106: -10.00898985 | AB106: -10.16453026 | AC106: -10.28217642 | AD106: -11.21155591 | AF106: 9.407039482 | AG106: 10.4069994 | AH106: 16.97815482 | AI106: 14.43428878 | AJ106: 15.87786073
A107: 2020-01-05T07:00:00 | B107: 0 | C107: 0 | D107: 0 | E107: 0 | F107: 0 | H107: 28.73521146 | I107: 28.47515322 | J107: 55.00681669 | K107: 35.42634361 | L107: 36.23377217 | N107: 6.108952308 | O107: 6.501689707 | P107: 12.59891964 | Q107: 8.110226669 | R107: 8.333369287 | T107: 13.04048038 | U107: 13.91429954 | V107: 27.01181689 | W107: 17.40908278 | X107: 17.90153891 | Z107: -9.742393205 | AA107: -10.00898985 | AB107: -10.16453026 | AC107: -10.28217642 | AD107: -11.21155591 | AF107: 9.407039482 | AG107: 10.4069994 | AH107: 29.44620626 | AI107: 15.23713303 | AJ107: 15.02335229
A108: 2020-01-05T08:00:00 | B108: 0 | C108: 0 | D108: 0 | E108: 0 | F108: 0 | H108: 23.78625985 | I108: 23.57248719 | J108: 35.38549135 | K108: 27.68141643 | L108: 28.0546549 | N108: 5.04652582 | O108: 5.371127313 | P108: 8.080799833 | Q108: 6.322702624 | R108: 6.436535707 | T108: 10.77257075 | U108: 11.49477716 | V108: 17.32506371 | W108: 13.57205635 | X108: 13.82680767 | Z108: -9.742393205 | AA108: -10.00898985 | AB108: -10.16453026 | AC108: -10.28217642 | AD108: -11.21155591 | AF108: 6.076703363 | AG108: 6.856914621 | AH108: 15.24133328 | AI108: 9.612582558 | AJ108: 9.05178747
A109: 2020-01-05T09:00:00 | B109: 0 | C109: 0 | D109: 0 | E109: 0 | F109: 0 | H109: 22.79646507 | I109: 23.57248719 | J109: 28.68362811 | K109: 1.127355211 | L109: 1.180421318 | N109: 4.833091927 | O109: 5.371127313 | P109: 6.537291672 | Q109: 0.1917311269 | R109: 0.2031754798 | T109: 10.3169639 | U109: 11.49477716 | V109: 14.0158149 | W109: 0.4115622407 | X109: 0.4364565677 | Z109: -9.742393205 | AA109: -10.00898985 | AB109: -10.16453026 | AC109: -10.28217642 | AD109: -11.21155591 | AF109: 5.407662625 | AG109: 6.856914621 | AH109: 10.38857631 | AI109: -9.678883051 | AJ109: -10.57192386
A110: 2020-01-05T10:00:00 | B110: 0 | C110: 0 | D110: 0 | E110: 0 | F110: 0 | H110: 20.81688666 | I110: 18.66983256 | J110: 0.291136247 | K110: 22.14931538 | L110: 1.180421318 | N110: 4.408595629 | O110: 4.24056492 | P110: 0 | Q110: 5.045478348 | R110: 0.2031754798 | T110: 9.41081251 | U110: 9.075254769 | V110: 0 | W110: 10.83041866 | X110: 0.4364565677 | Z110: -9.742393205 | AA110: -10.00898985 | AB110: -10.16453026 | AC110: -10.28217642 | AD110: -11.21155591 | AF110: 4.077014934 | AG110: 3.30682984 | AH110: -10.16453026 | AI110: 5.593720586 | AJ110: -10.57192386
A111: 2020-01-05T11:00:00 | B111: 0 | C111: 0 | D111: 0 | E111: 0 | F111: 0 | H111: 20.81688666 | I111: 20.63089441 | J111: 0.291136247 | K111: 22.14931538 | L111: 1.180421318 | N111: 4.408595629 | O111: 4.693044795 | P111: 0 | Q111: 5.045478348 | R111: 0.2031754798 | T111: 9.41081251 | U111: 10.04360928 | V111: 0 | W111: 10.83041866 | X111: 0.4364565677 | Z111: -9.742393205 | AA111: -10.00898985 | AB111: -10.16453026 | AC111: -10.28217642 | AD111: -11.21155591 | AF111: 4.077014934 | AG111: 4.727664223 | AH111: -10.16453026 | AI111: 5.593720586 | AJ111: -10.57192386
A112: 2020-01-05T12:00:00 | B112: 0 | C112: 0 | D112: 0 | E112: 0 | F112: 0 | H112: 19.82710302 | I112: 20.63089441 | J112: 0.291136247 | K112: 22.14931538 | L112: 0.3040871518 | N112: 4.19634748 | O112: 4.693044795 | P112: 0 | Q112: 5.045478348 | R112: 0 | T112: 8.957736813 | U112: 10.04360928 | V112: 0 | W112: 10.83041866 | X112: 0 | Z112: -9.742393205 | AA112: -10.00898985 | AB112: -10.16453026 | AC112: -10.28217642 | AD112: -11.21155591 | AF112: 3.411691089 | AG112: 4.727664223 | AH112: -10.16453026 | AI112: 5.593720586 | AJ112: -11.21155591
A113: 2020-01-05T13:00:00 | B113: 0 | C113: 0 | D113: 0 | E113: 0 | F113: 0 | H113: 21.80668144 | I113: 23.57248719 | J113: 0.291136247 | K113: 22.14931538 | L113: 24.54932067 | N113: 4.620843778 | O113: 5.371127313 | P113: 0 | Q113: 5.045478348 | R113: 5.623833787 | T113: 9.863888206 | U113: 11.49477716 | V113: 0 | W113: 10.83041866 | X113: 12.0809814 | Z113: -9.742393205 | AA113: -10.00898985 | AB113: -10.16453026 | AC113: -10.28217642 | AD113: -11.21155591 | AF113: 4.742338779 | AG113: 6.856914621 | AH113: -10.16453026 | AI113: 5.593720586 | AJ113: 6.49325928
A114: 2020-01-05T14:00:00 | B114: 0 | C114: 0 | D114: 0 | E114: 0 | F114: 0 | H114: 21.80668144 | I114: 21.61142534 | J114: 0.291136247 | K114: 1.127355211 | L114: 0.3040871518 | N114: 4.620843778 | O114: 4.918647438 | P114: 0 | Q114: 0.1917311269 | R114: 0 | T114: 9.863888206 | U114: 10.52642265 | V114: 0 | W114: 0.4115622407 | X114: 0 | Z114: -9.742393205 | AA114: -10.00898985 | AB114: -10.16453026 | AC114: -10.28217642 | AD114: -11.21155591 | AF114: 4.742338779 | AG114: 5.436080238 | AH114: -10.16453026 | AI114: -9.678883051 | AJ114: -11.21155591
A115: 2020-01-05T15:00:00 | B115: 0 | C115: 0 | D115: 0 | E115: 0 | F115: 0 | H115: 23.78625985 | I115: 22.59195627 | J115: 1.694471185 | K115: 23.25574035 | L115: 24.54932067 | N115: 5.04652582 | O115: 5.145524671 | P115: 0.3235061511 | Q115: 5.300628232 | R115: 5.623833787 | T115: 10.77257075 | U115: 11.01196378 | V115: 0.6935903368 | W115: 11.37811302 | X115: 12.0809814 | Z115: -9.742393205 | AA115: -10.00898985 | AB115: -10.16453026 | AC115: -10.28217642 | AD115: -11.21155591 | AF115: 6.076703363 | AG115: 6.148498605 | AH115: -9.147433775 | AI115: 6.396564837 | AJ115: 6.49325928
A116: 2020-01-05T16:00:00 | B116: 0 | C116: 0 | D116: 0 | E116: 0 | F116: 0 | H116: 278.7369141 | I116: 36.73668833 | J116: 44.96676195 | K116: 34.31993054 | L116: 39.7391064 | N116: 64.53766619 | O116: 8.40720355 | P116: 10.28639897 | Q116: 7.855076784 | R116: 9.146071206 | T116: 137.7653855 | U116: 17.99229951 | V116: 22.05382156 | W116: 16.86138842 | X116: 19.64736518 | Z116: -9.742393205 | AA116: -10.00898985 | AB116: -10.16453026 | AC116: -10.28217642 | AD116: -11.21155591 | AF116: 192.5606585 | AG116: 16.39051321 | AH116: 22.17569027 | AI116: 14.43428878 | AJ116: 17.58188048
A117: 2020-01-05T17:00:00 | B117: 0 | C117: 0 | D117: 0 | E117: 0 | F117: 0 | H117: 29.72500625 | I117: 90.63185317 | J117: 70.0200608 | K117: 73.62785441 | L117: 38.57066977 | N117: 6.321200457 | O117: 20.56170523 | P117: 16.05604893 | Q117: 16.92985851 | R117: 8.874641464 | T117: 13.49355608 | U117: 44.00421098 | V117: 34.42382888 | W117: 36.34094585 | X117: 19.06428649 | Z117: -9.742393205 | AA117: -10.00898985 | AB117: -10.16453026 | AC117: -10.28217642 | AD117: -11.21155591 | AF117: 10.07236333 | AG117: 54.55692636 | AH117: 40.31534754 | AI117: 42.98862794 | AJ117: 16.72737204
A118: 2020-01-05T18:00:00 | B118: 0 | C118: 0 | D118: 0 | E118: 0 | F118: 0 | H118: 28.73521146 | I118: 28.47515322 | J118: 60.64313291 | K118: 80.93086144 | L118: 37.40222097 | N118: 6.108952308 | O118: 6.501689707 | P118: 13.89705661 | Q118: 18.61561757 | R118: 8.60479903 | T118: 13.04048038 | U118: 13.91429954 | V118: 29.79499506 | W118: 39.95952771 | X118: 18.48461761 | Z118: -9.742393205 | AA118: -10.00898985 | AB118: -10.16453026 | AC118: -10.28217642 | AD118: -11.21155591 | AF118: 9.407039482 | AG118: 10.4069994 | AH118: 33.52752141 | AI118: 48.29296886 | AJ118: 15.87786073
A119: 2020-01-05T19:00:00 | B119: 0 | C119: 0 | D119: 0 | E119: 0 | F119: 0 | H119: 28.73521146 | I119: 28.47515322 | J119: 60.5735397 | K119: 51.73197276 | L119: 38.57066977 | N119: 6.108952308 | O119: 6.501689707 | P119: 13.88060714 | Q119: 11.87405618 | R119: 8.874641464 | T119: 13.04048038 | U119: 13.91429954 | V119: 29.75972776 | W119: 25.48836615 | X119: 19.06428649 | Z119: -9.742393205 | AA119: -10.00898985 | AB119: -10.16453026 | AC119: -10.28217642 | AD119: -11.21155591 | AF119: =SUM(N119,T119,Z119) -> 9.407039482 | AG119: 10.4069994 | AH119: 33.47580464 | AI119: 27.08024591 | AJ119: 16.72737204
A120: 2020-01-05T20:00:00 | B120: 0 | C120: 0 | D120: 0 | E120: 0 | F120: 0 | H120: 29.72500625 | I120: 28.47515322 | J120: 60.63335074 | K120: 37.63918165 | L120: 37.40222097 | N120: 6.321200457 | O120: 6.501689707 | P120: 13.89431503 | Q120: 8.620526437 | R120: 8.60479903 | T120: 13.49355608 | U120: 13.91429954 | V120: 29.78911718 | W120: 18.50447151 | X120: 18.48461761 | Z120: -9.742393205 | AA120: -10.00898985 | AB120: -10.16453026 | AC120: -10.28217642 | AD120: -11.21155591 | AF120: 10.07236333 | AG120: 10.4069994 | AH120: 33.51890195 | AI120: 16.84282153 | AJ120: 15.87786073
A121: 2020-01-05T21:00:00 | B121: 0 | C121: 0 | D121: 0 | E121: 0 | F121: 0 | H121: 30.71478988 | I121: 29.45568415 | J121: 50.37762226 | K121: 37.63918165 | L121: 38.57066977 | N121: 6.533448606 | O121: 6.728566941 | P121: 11.53244597 | Q121: 8.620526437 | R121: 8.874641464 | T121: 13.94663177 | U121: 14.39984067 | V121: 24.72531993 | W121: 18.50447151 | X121: 19.06428649 | Z121: -9.742393205 | AA121: -10.00898985 | AB121: -10.16453026 | AC121: -10.28217642 | AD121: -11.21155591 | AF121: 10.73768717 | AG121: 11.11941777 | AH121: 26.09323564 | AI121: 16.84282153 | AJ121: 16.72737204
A122: 2020-01-05T22:00:00 | B122: 0 | C122: 0 | D122: 0 | E122: 0 | F122: 0 | H122: 30.71478988 | I122: 29.45568415 | J122: 49.15932188 | K122: 35.42634361 | L122: 38.57066977 | N122: 6.533448606 | O122: 6.728566941 | P122: 11.25280506 | Q122: 8.110226669 | R122: 8.874641464 | T122: 13.94663177 | U122: 14.39984067 | V122: 24.12577574 | W122: 17.40908278 | X122: 19.06428649 | Z122: -9.742393205 | AA122: -10.00898985 | AB122: -10.16453026 | AC122: -10.28217642 | AD122: -11.21155591 | AF122: 10.73768717 | AG122: 11.11941777 | AH122: 25.21405054 | AI122: 15.23713303 | AJ122: 16.72737204
A123: 2020-01-05T23:00:00 | B123: 0 | C123: 0 | D123: 0 | E123: 0 | F123: 0 | H123: 30.71478988 | I123: 28.47515322 | J123: 33.98846825 | K123: 35.42634361 | L123: 37.40222097 | N123: 6.533448606 | O123: 6.501689707 | P123: 7.758664471 | Q123: 8.110226669 | R123: 8.60479903 | T123: 13.94663177 | U123: 13.91429954 | V123: 16.63441231 | W123: 17.40908278 | X123: 18.48461761 | Z123: -9.742393205 | AA123: -10.00898985 | AB123: -10.16453026 | AC123: -10.28217642 | AD123: -11.21155591 | AF123: 10.73768717 | AG123: 10.4069994 | AH123: 14.22854652 | AI123: 15.23713303 | AJ123: 15.87786073
A124: 2020-01-06 | B124: 0 | C124: 0 | D124: 0 | E124: 0 | F124: 0 | H124: 28.73521146 | I124: 28.47515322 | J124: 35.10163351 | K124: 32.10709251 | L124: 38.57066977 | N124: 6.108952308 | O124: 6.501689707 | P124: 8.015001972 | Q124: 7.343302161 | R124: 8.874641464 | T124: 13.04048038 | U124: 13.91429954 | V124: 17.18399449 | W124: 15.76283382 | X124: 19.06428649 | Z124: -9.742393205 | AA124: -10.00898985 | AB124: -10.16453026 | AC124: -10.28217642 | AD124: -11.21155591 | AF124: 9.407039482 | AG124: 10.4069994 | AH124: 15.0344662 | AI124: 12.82395956 | AJ124: 16.72737204
A125: 2020-01-06T01:00:00 | B125: 0 | C125: 0 | D125: 0 | E125: 0 | F125: 0 | H125: 29.72500625 | I125: 28.47515322 | J125: 40.59041353 | K125: 34.31993054 | L125: 39.7391064 | N125: 6.321200457 | O125: 6.501689707 | P125: 9.278869223 | Q125: 7.855076784 | R125: 9.146071206 | T125: 13.49355608 | U125: 13.91429954 | V125: 19.89369911 | W125: 16.86138842 | X125: 19.64736518 | Z125: -9.742393205 | AA125: -10.00898985 | AB125: -10.16453026 | AC125: -10.28217642 | AD125: -11.21155591 | AF125: 10.07236333 | AG125: 10.4069994 | AH125: 19.00803807 | AI125: 14.43428878 | AJ125: 17.58188048
A126: 2020-01-06T02:00:00 | B126: 0 | C126: 0 | D126: 0 | E126: 0 | F126: 0 | H126: 28.73521146 | I126: 28.47515322 | J126: 33.10721047 | K126: 34.31993054 | L126: 39.7391064 | N126: 6.108952308 | O126: 6.501689707 | P126: 7.555787732 | Q126: 7.855076784 | R126: 9.146071206 | T126: 13.04048038 | U126: 13.91429954 | V126: 16.19944888 | W126: 16.86138842 | X126: 19.64736518 | Z126: -9.742393205 | AA126: -10.00898985 | AB126: -10.16453026 | AC126: -10.28217642 | AD126: -11.21155591 | AF126: 9.407039482 | AG126: 10.4069994 | AH126: 13.59070635 | AI126: 14.43428878 | AJ126: 17.58188048
A127: 2020-01-06T03:00:00 | B127: 0 | C127: 0 | D127: 0 | E127: 0 | F127: 0 | H127: 23.78625985 | I127: 28.47515322 | J127: 34.66020109 | K127: 34.31993054 | L127: 44.41288944 | N127: 5.04652582 | O127: 6.501689707 | P127: 7.913563602 | Q127: 7.855076784 | R127: 10.23020287 | T127: 10.77257075 | U127: 13.91429954 | V127: 16.96651277 | W127: 16.86138842 | X127: 21.97627015 | Z127: -9.742393205 | AA127: -10.00898985 | AB127: -10.16453026 | AC127: -10.28217642 | AD127: -11.21155591 | AF127: 6.076703363 | AG127: 10.4069994 | AH127: 14.71554611 | AI127: 14.43428878 | AJ127: 20.99491711
A128: 2020-01-06T04:00:00 | B128: 0 | C128: 0 | D128: 0 | E128: 0 | F128: 0 | H128: 29.72500625 | I128: 28.47515322 | J128: 32.67643364 | K128: 35.42634361 | L128: 42.076004 | N128: 6.321200457 | O128: 6.501689707 | P128: 7.45709094 | Q128: 8.110226669 | R128: 9.688930691 | T128: 13.49355608 | U128: 13.91429954 | V128: 15.98784505 | W128: 17.40908278 | X128: 20.81352257 | Z128: -9.742393205 | AA128: -10.00898985 | AB128: -10.16453026 | AC128: -10.28217642 | AD128: -11.21155591 | AF128: 10.07236333 | AG128: 10.4069994 | AH128: 13.28040573 | AI128: 15.23713303 | AJ128: 19.29089736
A129: 2020-01-06T05:00:00 | B129: 0 | C129: 0 | D129: 0 | E129: 0 | F129: 0 | H129: 30.71478988 | I129: 29.45568415 | J129: 34.1522615 | K129: 36.53276858 | L129: 70.80815292 | N129: 6.533448606 | O129: 6.728566941 | P129: 7.797046556 | Q129: 8.365376553 | R129: 16.3524515 | T129: 13.94663177 | U129: 14.39984067 | V129: 16.71670269 | W129: 17.95677715 | X129: 35.12793407 | Z129: -9.742393205 | AA129: -10.00898985 | AB129: -10.16453026 | AC129: -10.28217642 | AD129: -11.21155591 | AF129: 10.73768717 | AG129: 11.11941777 | AH129: 14.34921899 | AI129: 16.03997728 | AJ129: 40.26882966
A130: 2020-01-06T06:00:00 | B130: 0 | C130: 0 | D130: 0 | E130: 0 | F130: 0 | H130: 32.69437944 | I130: 31.87785796 | J130: 35.86785753 | K130: 53.09907956 | L130: 38.57066977 | N130: 6.957944903 | O130: 7.286837886 | P130: 8.191833724 | Q130: 12.18967511 | R130: 8.874641464 | T130: 14.85278317 | U130: 15.59459919 | V130: 17.56311802 | W130: 26.16586092 | X130: 19.06428649 | Z130: -9.742393205 | AA130: -10.00898985 | AB130: -10.16453026 | AC130: -10.28217642 | AD130: -11.21155591 | AF130: 12.06833486 | AG130: 12.87244723 | AH130: 15.59042148 | AI130: 28.07335961 | AJ130: 16.72737204
A131: 2020-01-06T07:00:00 | B131: 0 | C131: 0 | D131: 0 | E131: 0 | F131: 0 | H131: 30.71478988 | I131: 31.11890964 | J131: 47.3254663 | K131: 49.15156417 | L131: 37.40222097 | N131: 6.533448606 | O131: 7.112218892 | P131: 10.83060212 | Q131: 11.27821483 | R131: 8.60479903 | T131: 13.94663177 | U131: 15.22089619 | V131: 23.22058157 | W131: 24.20935734 | X131: 18.48461761 | Z131: -9.742393205 | AA131: -10.00898985 | AB131: -10.16453026 | AC131: -10.28217642 | AD131: -11.21155591 | AF131: 10.73768717 | AG131: 12.32412523 | AH131: 23.88665343 | AI131: 25.20539575 | AJ131: 15.87786073
A132: 2020-01-06T08:00:00 | B132: 0 | C132: 0 | D132: 0 | E132: 0 | F132: 0 | H132: 55.84290039 | I132: 28.47515322 | J132: 38.62242566 | K132: 41.46621664 | L132: 36.23377217 | N132: 11.92739737 | O132: 6.501689707 | P132: 8.826508927 | Q132: 9.503964476 | R132: 8.333369287 | T132: 25.46082922 | U132: 13.91429954 | V132: 18.92384821 | W132: 20.40082369 | X132: 17.90153891 | Z132: -9.742393205 | AA132: -10.00898985 | AB132: -10.16453026 | AC132: -10.28217642 | AD132: -11.21155591 | AF132: 27.64583339 | AG132: 10.4069994 | AH132: 17.58582688 | AI132: 19.62261174 | AJ132: 15.02335229
A133: 2020-01-06T09:00:00 | B133: 0 | C133: 0 | D133: 0 | E133: 0 | F133: 0 | H133: 29.72500625 | I133: 28.47515322 | J133: 48.04680876 | K133: 43.4699665 | L133: 37.40222097 | N133: 6.321200457 | O133: 6.501689707 | P133: 10.99646756 | Q133: 9.96706889 | R133: 8.60479903 | T133: 13.49355608 | U133: 13.91429954 | V133: 23.57619357 | W133: 21.39490479 | X133: 18.48461761 | Z133: -9.742393205 | AA133: -10.00898985 | AB133: -10.16453026 | AC133: -10.28217642 | AD133: -11.21155591 | AF133: 10.07236333 | AG133: 10.4069994 | AH133: 24.40813086 | AI133: 21.07979726 | AJ133: 15.87786073
A134: 2020-01-06T10:00:00 | B134: 0 | C134: 0 | D134: 0 | E134: 0 | F134: 0 | H134: 28.73521146 | I134: 27.4946223 | J134: 48.01050989 | K134: 36.53276858 | L134: 38.57066977 | N134: 6.108952308 | O134: 6.276087065 | P134: 10.98824283 | Q134: 8.365376553 | R134: 8.874641464 | T134: 13.04048038 | U134: 13.43148617 | V134: 23.55855991 | W134: 17.95677715 | X134: 19.06428649 | Z134: -9.742393205 | AA134: -10.00898985 | AB134: -10.16453026 | AC134: -10.28217642 | AD134: -11.21155591 | AF134: 9.407039482 | AG134: 9.698583385 | AH134: 24.38227248 | AI134: 16.03997728 | AJ134: 16.72737204
A135: 2020-01-06T11:00:00 | B135: 0 | C135: 0 | D135: 0 | E135: 0 | F135: 0 | H135: 28.73521146 | I135: 21.61142534 | J135: 34.47001924 | K135: 36.53276858 | L135: 38.57066977 | N135: 6.108952308 | O135: 4.918647438 | P135: 7.869698362 | Q135: 8.365376553 | R135: 8.874641464 | T135: 13.04048038 | U135: 10.52642265 | V135: 16.87246663 | W135: 17.95677715 | X135: 19.06428649 | Z135: -9.742393205 | AA135: -10.00898985 | AB135: -10.16453026 | AC135: -10.28217642 | AD135: -11.21155591 | AF135: 9.407039482 | AG135: 5.436080238 | AH135: 14.57763472 | AI135: 16.03997728 | AJ135: 16.72737204
A136: 2020-01-06T12:00:00 | B136: 0 | C136: 0 | D136: 0 | E136: 0 | F136: 0 | H136: 28.73521146 | I136: 19.65036348 | J136: 43.50731923 | K136: 35.42634361 | L136: 37.40222097 | N136: 6.108952308 | O136: 4.466167562 | P136: 9.950555723 | Q136: 8.110226669 | R136: 8.60479903 | T136: 13.04048038 | U136: 9.558068142 | V136: 21.33378074 | W136: 17.40908278 | X136: 18.48461761 | Z136: -9.742393205 | AA136: -10.00898985 | AB136: -10.16453026 | AC136: -10.28217642 | AD136: -11.21155591 | AF136: 9.407039482 | AG136: 4.015245856 | AH136: 21.1198062 | AI136: 15.23713303 | AJ136: 15.87786073
A137: 2020-01-06T13:00:00 | B137: 0 | C137: 0 | D137: 0 | E137: 0 | F137: 0 | H137: 28.73521146 | I137: 26.51409137 | J137: 38.58642958 | K137: 35.42634361 | L137: 36.23377217 | N137: 6.108952308 | O137: 6.050484423 | P137: 8.818284194 | Q137: 8.110226669 | R137: 8.333369287 | T137: 13.04048038 | U137: 12.94867279 | V137: 18.90621456 | W137: 17.40908278 | X137: 17.90153891 | Z137: -9.742393205 | AA137: -10.00898985 | AB137: -10.16453026 | AC137: -10.28217642 | AD137: -11.21155591 | AF137: 9.407039482 | AG137: 8.990167369 | AH137: 17.55996849 | AI137: 15.23713303 | AJ137: 15.02335229
A138: 2020-01-06T14:00:00 | B138: 0 | C138: 0 | D138: 0 | E138: 0 | F138: 0 | H138: 29.72500625 | I138: 21.61142534 | J138: 49.73988249 | K138: 35.42634361 | L138: 36.23377217 | N138: 6.321200457 | O138: 4.918647438 | P138: 11.38577157 | Q138: 8.110226669 | R138: 8.333369287 | T138: 13.49355608 | U138: 10.52642265 | V138: 24.41085312 | W138: 17.40908278 | X138: 17.90153891 | Z138: -9.742393205 | AA138: -10.00898985 | AB138: -10.16453026 | AC138: -10.28217642 | AD138: -11.21155591 | AF138: 10.07236333 | AG138: 5.436080238 | AH138: 25.63209443 | AI138: 15.23713303 | AJ138: 15.02335229
A139: 2020-01-06T15:00:00 | B139: 0 | C139: 0 | D139: 0 | E139: 0 | F139: 0 | H139: 37.64333105 | I139: 26.51409137 | J139: 53.75279971 | K139: 40.53068746 | L139: 39.7391064 | N139: 8.020371392 | O139: 6.050484423 | P139: 12.30968321 | Q139: 9.288635672 | R139: 9.146071206 | T139: 17.1206928 | U139: 12.94867279 | V139: 26.3917001 | W139: 19.93860763 | X139: 19.64736518 | Z139: -9.742393205 | AA139: -10.00898985 | AB139: -10.16453026 | AC139: -10.28217642 | AD139: -11.21155591 | AF139: 15.39867098 | AG139: 8.990167369 | AH139: 28.53685305 | AI139: 18.94506688 | AJ139: 17.58188048
A140: 2020-01-06T16:00:00 | B140: 0 | C140: 0 | D140: 0 | E140: 0 | F140: 0 | H140: 278.7369141 | I140: 37.61480311 | J140: 54.0558609 | K140: 66.53431642 | L140: 304.0871518 | N140: 64.53766619 | O140: 8.609863551 | P140: 12.37959343 | Q140: 15.2912948 | R140: 83.12893008 | T140: 137.7653855 | U140: 18.42601321 | V140: 26.54158615 | W140: 32.82367163 | X140: 178.5755227 | Z140: -9.742393205 | AA140: -10.00898985 | AB140: -10.16453026 | AC140: -10.28217642 | AD140: -11.21155591 | AF140: 192.5606585 | AG140: 17.02688692 | AH140: 28.75664932 | AI140: 37.83279001 | AJ140: 250.4928969
A141: 2020-01-06T17:00:00 | B141: 0 | C141: 0 | D141: 0 | E141: 0 | F141: 0 | H141: 28.73521146 | I141: 113.170425 | J141: 75.61351012 | K141: 136.9565686 | L141: 37.40222097 | N141: 6.108952308 | O141: 25.04571706 | P141: 17.34321959 | Q141: 30.6445335 | R141: 8.60479903 | T141: 13.04048038 | U141: 53.60046775 | V141: 37.18349551 | W141: 65.78030952 | X141: 18.48461761 | Z141: -9.742393205 | AA141: -10.00898985 | AB141: -10.16453026 | AC141: -10.28217642 | AD141: -11.21155591 | AF141: 9.407039482 | AG141: 68.63719497 | AH141: 44.36218484 | AI141: 86.1426666 | AJ141: 15.87786073
A142: 2020-01-06T18:00:00 | B142: 0 | C142: 0 | D142: 0 | E142: 0 | F142: 0 | H142: 30.71478988 | I142: 59.47854273 | J142: 110.9779698 | K142: 74.31161609 | L142: 88.91403713 | N142: 6.533448606 | O142: 13.65342093 | P142: 24.90723206 | Q142: 17.08766797 | R142: 20.55088232 | T142: 13.94663177 | U142: 29.21975626 | V142: 53.40057805 | W142: 36.67969324 | X142: 44.14689986 | Z142: -9.742393205 | AA142: -10.00898985 | AB142: -10.16453026 | AC142: -10.28217642 | AD142: -11.21155591 | AF142: 10.73768717 | AG142: 32.86418734 | AH142: 68.14327984 | AI142: 43.48518479 | AJ142: 53.48622627
A143: 2020-01-06T19:00:00 | B143: 0 | C143: 0 | D143: 0 | E143: 0 | F143: 0 | H143: 30.71478988 | I143: 55.90127019 | J143: 64.05315355 | K143: 71.52503522 | L143: 60.57066972 | N143: 6.533448606 | O143: 12.82876042 | P143: 14.68114779 | Q143: 16.44463127 | R143: 13.97783808 | T143: 13.94663177 | U143: 27.45489608 | V143: 31.47606995 | W143: 35.2993768 | X143: 30.02684793 | Z143: -9.742393205 | AA143: -10.00898985 | AB143: -10.16453026 | AC143: -10.28217642 | AD143: -11.21155591 | AF143: 10.73768717 | AG143: 30.27466665 | AH143: 35.99268747 | AI143: 41.46183165 | AJ143: 32.79313011
A144: 2020-01-06T20:00:00 | B144: 0 | C144: 0 | D144: 0 | E144: 0 | F144: 0 | H144: 28.73521146 | I144: 41.22783242 | J144: 130.566455 | K144: 44.25394007 | L144: 38.57066977 | N144: 6.108952308 | O144: 9.443446195 | P144: 28.61658648 | Q144: 10.14847603 | R144: 8.874641464 | T144: 13.04048038 | U144: 20.20996771 | V144: 61.35335539 | W144: 21.78430599 | X144: 19.06428649 | Z144: -9.742393205 | AA144: -10.00898985 | AB144: -10.16453026 | AC144: -10.28217642 | AD144: -11.21155591 | AF144: 9.407039482 | AG144: 19.64442406 | AH144: 79.80541161 | AI144: 21.6506056 | AJ144: 16.72737204
A145: 2020-01-06T21:00:00 | B145: 0 | C145: 0 | D145: 0 | E145: 0 | F145: 0 | H145: 29.72500625 | I145: 29.45568415 | J145: 57.32138479 | K145: 50.99673644 | L145: 47.4232671 | N145: 6.321200457 | O145: 6.728566941 | P145: 13.13215647 | Q145: 11.70444787 | R145: 10.92861858 | T145: 13.49355608 | U145: 14.39984067 | V145: 28.15506537 | W145: 25.12429186 | X145: 23.4765896 | Z145: -9.742393205 | AA145: -10.00898985 | AB145: -10.16453026 | AC145: -10.28217642 | AD145: -11.21155591 | AF145: 10.07236333 | AG145: 11.11941777 | AH145: 31.12269158 | AI145: 26.54656332 | AJ145: 23.19365227
A146: 2020-01-06T22:00:00 | B146: 0 | C146: 0 | D146: 0 | E146: 0 | F146: 0 | H146: 28.73521146 | I146: 28.47515322 | J146: 35.0033692 | K146: 35.42634361 | L146: 38.57066977 | N146: 6.108952308 | O146: 6.501689707 | P146: 7.993069351 | Q146: 8.110226669 | R146: 8.874641464 | T146: 13.04048038 | U146: 13.91429954 | V146: 17.13697141 | W146: 17.40908278 | X146: 19.06428649 | Z146: -9.742393205 | AA146: -10.00898985 | AB146: -10.16453026 | AC146: -10.28217642 | AD146: -11.21155591 | AF146: 9.407039482 | AG146: 10.4069994 | AH146: 14.9655105 | AI146: 15.23713303 | AJ146: 16.72737204
A147: 2020-01-06T23:00:00 | B147: 0 | C147: 0 | D147: 0 | E147: 0 | F147: 0 | H147: 28.73521146 | I147: 29.45568415 | J147: 38.66812241 | K147: 36.53276858 | L147: 36.23377217 | N147: 6.108952308 | O147: 6.728566941 | P147: 8.836104448 | Q147: 8.365376553 | R147: 8.333369287 | T147: 13.04048038 | U147: 14.39984067 | V147: 18.94442081 | W147: 17.95677715 | X147: 17.90153891 | Z147: -9.742393205 | AA147: -10.00898985 | AB147: -10.16453026 | AC147: -10.28217642 | AD147: -11.21155591 | AF147: 9.407039482 | AG147: 11.11941777 | AH147: 17.615995 | AI147: 16.03997728 | AJ147: 15.02335229
A148: 2020-01-07 | B148: 0 | C148: 0 | D148: 0 | E148: 0 | F148: 0 | H148: 29.72500625 | I148: 28.47515322 | J148: 33.10721047 | K148: 37.63918165 | L148: 37.40222097 | N148: 6.321200457 | O148: 6.501689707 | P148: 7.555787732 | Q148: 8.620526437 | R148: 8.60479903 | T148: 13.49355608 | U148: 13.91429954 | V148: 16.19944888 | W148: 18.50447151 | X148: 18.48461761 | Z148: -9.742393205 | AA148: -10.00898985 | AB148: -10.16453026 | AC148: -10.28217642 | AD148: -11.21155591 | AF148: 10.07236333 | AG148: 10.4069994 | AH148: 13.59070635 | AI148: 16.84282153 | AJ148: 15.87786073
A149: 2020-01-07T01:00:00 | B149: 0 | C149: 0 | D149: 0 | E149: 0 | F149: 0 | H149: 29.72500625 | I149: 29.45568415 | J149: 32.68952312 | K149: 37.63918165 | L149: 37.40222097 | N149: 6.321200457 | O149: 6.728566941 | P149: 7.459832518 | Q149: 8.620526437 | R149: 8.60479903 | T149: 13.49355608 | U149: 14.39984067 | V149: 15.99372294 | W149: 18.50447151 | X149: 18.48461761 | Z149: -9.742393205 | AA149: -10.00898985 | AB149: -10.16453026 | AC149: -10.28217642 | AD149: -11.21155591 | AF149: 10.07236333 | AG149: 11.11941777 | AH149: 13.28902519 | AI149: 16.84282153 | AJ149: 15.87786073
A150: 2020-01-07T02:00:00 | B150: 0 | C150: 0 | D150: 0 | E150: 0 | F150: 0 | H150: 33.68416308 | I150: 28.47515322 | J150: 34.1522615 | K150: 35.42634361 | L150: 40.9075552 | N150: 7.171378796 | O150: 6.501689707 | P150: 7.797046556 | Q150: 8.110226669 | R150: 9.417500949 | T150: 15.30839001 | U150: 13.91429954 | V150: 16.71670269 | W150: 17.40908278 | X150: 20.23044388 | Z150: -9.742393205 | AA150: -10.00898985 | AB150: -10.16453026 | AC150: -10.28217642 | AD150: -11.21155591 | AF150: 12.7373756 | AG150: 10.4069994 | AH150: 14.34921899 | AI150: 15.23713303 | AJ150: 18.43638892
A151: 2020-01-07T03:00:00 | B151: 0 | C151: 0 | D151: 0 | E151: 0 | F151: 0 | H151: 32.69437944 | I151: 28.47515322 | J151: 32.68952312 | K151: 34.31993054 | L151: 38.57066977 | N151: 6.957944903 | O151: 6.501689707 | P151: 7.459832518 | Q151: 7.855076784 | R151: 8.874641464 | T151: 14.85278317 | U151: 13.91429954 | V151: 15.99372294 | W151: 16.86138842 | X151: 19.06428649 | Z151: -9.742393205 | AA151: -10.00898985 | AB151: -10.16453026 | AC151: -10.28217642 | AD151: -11.21155591 | AF151: 12.06833486 | AG151: 10.4069994 | AH151: 13.28902519 | AI151: 14.43428878 | AJ151: 16.72737204
A152: 2020-01-07T04:00:00 | B152: 0 | C152: 0 | D152: 0 | E152: 0 | F152: 0 | H152: 34.67395786 | I152: 31.21025007 | J152: 32.68952312 | K152: 36.53276858 | L152: 39.7391064 | N152: 7.383626945 | O152: 7.132612351 | P152: 7.459832518 | Q152: 8.365376553 | R152: 9.146071206 | T152: 15.76146571 | U152: 15.26454033 | V152: 15.99372294 | W152: 17.95677715 | X152: 19.64736518 | Z152: -9.742393205 | AA152: -10.00898985 | AB152: -10.16453026 | AC152: -10.28217642 | AD152: -11.21155591 | AF152: 13.40269945 | AG152: 12.38816283 | AH152: 13.28902519 | AI152: 16.03997728 | AJ152: 17.58188048
A153: 2020-01-07T05:00:00 | B153: 0 | C153: 0 | D153: 0 | E153: 0 | F153: 0 | H153: 32.69437944 | I153: 28.47515322 | J153: 33.72148466 | K153: 44.56541815 | L153: 39.7391064 | N153: 6.957944903 | O153: 6.501689707 | P153: 7.696978976 | Q153: 10.21926906 | R153: 9.146071206 | T153: 14.85278317 | U153: 13.91429954 | V153: 16.50215992 | W153: 21.93626743 | X153: 19.64736518 | Z153: -9.742393205 | AA153: -10.00898985 | AB153: -10.16453026 | AC153: -10.28217642 | AD153: -11.21155591 | AF153: 12.06833486 | AG153: 10.4069994 | AH153: 14.03460863 | AI153: 21.87336008 | AJ153: 17.58188048
A154: 2020-01-07T06:00:00 | B154: 0 | C154: 0 | D154: 0 | E154: 0 | F154: 0 | H154: 30.71478988 | I154: 34.52598997 | J154: 47.71416813 | K154: 62.93594783 | L154: 37.40222097 | N154: 6.533448606 | O154: 7.89736707 | P154: 10.91970339 | Q154: 14.46095153 | R154: 8.60479903 | T154: 13.94663177 | U154: 16.90119584 | V154: 23.41161281 | W154: 31.04129054 | X154: 18.48461761 | Z154: -9.742393205 | AA154: -10.00898985 | AB154: -10.16453026 | AC154: -10.28217642 | AD154: -11.21155591 | AF154: 10.73768717 | AG154: 14.78957306 | AH154: 24.16678593 | AI154: 35.22006565 | AJ154: 15.87786073
A155: 2020-01-07T07:00:00 | B155: 0 | C155: 0 | D155: 0 | E155: 0 | F155: 0 | H155: 46.83817058 | I155: 29.45568415 | J155: 50.32564862 | K155: 63.50262108 | L155: 37.40222097 | N155: 9.9946349 | O155: 6.728566941 | P155: 11.52147966 | Q155: 14.59221361 | R155: 8.60479903 | T155: 21.33505612 | U155: 14.39984067 | V155: 24.70180839 | W155: 31.32305238 | X155: 18.48461761 | Z155: -9.742393205 | AA155: -10.00898985 | AB155: -10.16453026 | AC155: -10.28217642 | AD155: -11.21155591 | AF155: 21.58729781 | AG155: 11.11941777 | AH155: 26.05875779 | AI155: 35.63308958 | AJ155: 15.87786073
A156: 2020-01-07T08:00:00 | B156: 0 | C156: 0 | D156: 0 | E156: 0 | F156: 0 | H156: 28.73521146 | I156: 31.11422639 | J156: 44.05678649 | K156: 52.66646649 | L156: 37.40222097 | N156: 6.108952308 | O156: 7.1109443 | P156: 10.07666829 | Q156: 12.09085983 | R156: 8.60479903 | T156: 13.04048038 | U156: 15.21816843 | V156: 21.60416341 | W156: 25.95374807 | X156: 18.48461761 | Z156: -9.742393205 | AA156: -10.00898985 | AB156: -10.16453026 | AC156: -10.28217642 | AD156: -11.21155591 | AF156: 9.407039482 | AG156: 12.32012288 | AH156: 21.51630144 | AI156: 27.76243149 | AJ156: 15.87786073
A157: 2020-01-07T09:00:00 | B157: 0 | C157: 0 | D157: 0 | E157: 0 | F157: 0 | H157: 23.78625985 | I157: 28.47515322 | J157: 33.65816835 | K157: 36.53276858 | L157: 38.57066977 | N157: 5.04652582 | O157: 6.501689707 | P157: 7.683271088 | Q157: 8.365376553 | R157: 8.874641464 | T157: 10.77257075 | U157: 13.91429954 | V157: 16.4727705 | W157: 17.95677715 | X157: 19.06428649 | Z157: -9.742393205 | AA157: -10.00898985 | AB157: -10.16453026 | AC157: -10.28217642 | AD157: -11.21155591 | AF157: 6.076703363 | AG157: 10.4069994 | AH157: 13.99151132 | AI157: 16.03997728 | AJ157: 16.72737204
A158: 2020-01-07T10:00:00 | B158: 0 | C158: 0 | D158: 0 | E158: 0 | F158: 0 | H158: 19.82710302 | I158: 28.47515322 | J158: 17.39917553 | K158: 46.71578443 | L158: 82.97986151 | N158: 4.19634748 | O158: 6.501689707 | P158: 3.939646941 | Q158: 10.71629514 | R158: 19.1746859 | T158: 8.957736813 | U158: 13.91429954 | V158: 8.44651961 | W158: 23.00316339 | X158: 41.19058858 | Z158: -9.742393205 | AA158: -10.00898985 | AB158: -10.16453026 | AC158: -10.28217642 | AD158: -11.21155591 | AF158: 3.411691089 | AG158: 10.4069994 | AH158: 2.221636289 | AI158: 23.43728211 | AJ158: 49.15371857
A159: 2020-01-07T11:00:00 | B159: 0 | C159: 0 | D159: 0 | E159: 0 | F159: 0 | H159: 20.81688666 | I159: 28.47515322 | J159: 36.55503224 | K159: 46.70314487 | L159: 70.41535746 | N159: 4.408595629 | O159: 6.501689707 | P159: 8.349474433 | Q159: 10.71334543 | R159: 16.26038761 | T159: 9.41081251 | U159: 13.91429954 | V159: 17.90109636 | W159: 22.99683166 | X159: 34.93016469 | Z159: -9.742393205 | AA159: -10.00898985 | AB159: -10.16453026 | AC159: -10.28217642 | AD159: -11.21155591 | AF159: 4.077014934 | AG159: 10.4069994 | AH159: 16.08604053 | AI159: 23.42800068 | AJ159: 39.97899639
A160: 2020-01-07T12:00:00 | B160: 0 | C160: 0 | D160: 0 | E160: 0 | F160: 0 | H160: 37.64333105 | I160: 24.55302952 | J160: 36.55425199 | K160: 53.16468146 | L160: 38.57066977 | N160: 8.020371392 | O160: 5.598004547 | P160: 8.349474433 | Q160: 12.20589851 | R160: 8.874641464 | T160: 17.1206928 | U160: 11.98031829 | V160: 17.90109636 | W160: 26.20068542 | X160: 19.06428649 | Z160: -9.742393205 | AA160: -10.00898985 | AB160: -10.16453026 | AC160: -10.28217642 | AD160: -11.21155591 | AF160: 15.39867098 | AG160: 7.569332987 | AH160: 16.08604053 | AI160: 28.12440751 | AJ160: 16.72737204
A161: 2020-01-07T13:00:00 | B161: 0 | C161: 0 | D161: 0 | E161: 0 | F161: 0 | H161: 23.78625985 | I161: 28.47515322 | J161: 35.98512721 | K161: 46.69703933 | L161: 131.6489372 | N161: 5.04652582 | O161: 6.501689707 | P161: 8.219249499 | Q161: 10.71187058 | R161: 29.98266904 | T161: 10.77257075 | U161: 13.91429954 | V161: 17.62189686 | W161: 22.9936658 | X161: 64.4080321 | Z161: -9.742393205 | AA161: -10.00898985 | AB161: -10.16453026 | AC161: -10.28217642 | AD161: -11.21155591 | AF161: 6.076703363 | AG161: 10.4069994 | AH161: 15.6766161 | AI161: 23.42335996 | AJ161: 83.17914523
A162: 2020-01-07T14:00:00 | B162: 0 | C162: 0 | D162: 0 | E162: 0 | F162: 0 | H162: 28.73521146 | I162: 32.73318321 | J162: 55.93356159 | K162: 51.10964739 | L162: 39.7391064 | N162: 6.108952308 | O162: 7.484399522 | P162: 12.8113919 | Q162: 11.73099526 | R162: 9.146071206 | T162: 13.04048038 | U162: 16.01740186 | V162: 27.46735291 | W162: 25.1812774 | X162: 19.64736518 | Z162: -9.742393205 | AA162: -10.00898985 | AB162: -10.16453026 | AC162: -10.28217642 | AD162: -11.21155591 | AF162: 9.407039482 | AG162: 13.49281154 | AH162: 30.11421455 | AI162: 26.63009624 | AJ162: 17.58188048
A163: 2020-01-07T15:00:00 | B163: 0 | C163: 0 | D163: 0 | E163: 0 | F163: 0 | H163: 33.68416308 | I163: 29.45568415 | J163: 55.05000966 | K163: 53.18408115 | L163: 44.41288944 | N163: 7.171378796 | O163: 6.728566941 | P163: 12.60851516 | Q163: 12.21032308 | R163: 10.23020287 | T163: 15.30839001 | U163: 14.39984067 | V163: 27.03238948 | W163: 26.21018301 | X163: 21.97627015 | Z163: -9.742393205 | AA163: -10.00898985 | AB163: -10.16453026 | AC163: -10.28217642 | AD163: -11.21155591 | AF163: 12.7373756 | AG163: 11.11941777 | AH163: 29.47637438 | AI163: 28.13832966 | AJ163: 20.99491711
A164: 2020-01-07T16:00:00 | B164: 0 | C164: 0 | D164: 0 | E164: 0 | F164: 0 | H164: 278.7369141 | I164: 284.8691262 | J164: 55.19795346 | K164: 60.86871457 | L164: 304.0871518 | N164: 64.53766619 | O164: 70.25164313 | P164: 12.64278488 | Q164: 13.98309857 | R164: 83.12893008 | T164: 137.7653855 | U164: 150.3459023 | V164: 27.10586303 | W164: 30.0155508 | X164: 178.5755227 | Z164: -9.742393205 | AA164: -10.00898985 | AB164: -10.16453026 | AC164: -10.28217642 | AD164: -11.21155591 | AF164: 192.5606585 | AG164: 210.5885556 | AH164: 29.58411765 | AI164: 33.71647295 | AJ164: 250.4928969
A165: 2020-01-07T17:00:00 | B165: 0 | C165: 0 | D165: 0 | E165: 0 | F165: 0 | H165: 29.72500625 | I165: 85.05148348 | J165: 97.3843526 | K165: 95.11885384 | L165: 40.64006798 | N165: 6.321200457 | O165: 19.45153629 | P165: 22.2150029 | Q165: 21.89127013 | R165: 9.35559592 | T165: 13.49355608 | U165: 41.62833274 | V165: 47.62849575 | W165: 46.9909103 | X165: 20.09746102 | Z165: -9.742393205 | AA165: -10.00898985 | AB165: -10.16453026 | AC165: -10.28217642 | AD165: -11.21155591 | AF165: 10.07236333 | AG165: 51.07087918 | AH165: 59.67896839 | AI165: 58.60000401 | AJ165: 18.24150103
A166: 2020-01-07T18:00:00 | B166: 0 | C166: 0 | D166: 0 | E166: 0 | F166: 0 | H166: 66.7603006 | I166: 62.08502687 | J166: 68.88827446 | K166: 37.63918165 | L166: 107.6511941 | N166: 14.27042722 | O166: 14.25502797 | P166: 15.79559906 | Q166: 8.620526437 | R166: 24.89693281 | T166: 30.46237992 | U166: 30.50725859 | V166: 33.86542988 | W166: 18.50447151 | X166: 53.48297863 | Z166: -9.742393205 | AA166: -10.00898985 | AB166: -10.16453026 | AC166: -10.28217642 | AD166: -11.21155591 | AF166: 34.99041394 | AG166: 34.75329671 | AH166: 39.49649868 | AI166: 16.84282153 | AJ166: 67.16835554
A167: 2020-01-07T19:00:00 | B167: 0 | C167: 0 | D167: 0 | E167: 0 | F167: 0 | H167: 45.02447408 | I167: 45.01009679 | J167: 74.08311168 | K167: 37.63918165 | L167: 43.2444528 | N167: 9.605710917 | O167: 10.31654117 | P167: 16.99092688 | Q167: 8.620526437 | R167: 9.958773125 | T167: 20.5048392 | U167: 22.07848275 | V167: 36.42818739 | W167: 18.50447151 | X167: 21.39319145 | Z167: -9.742393205 | AA167: -10.00898985 | AB167: -10.16453026 | AC167: -10.28217642 | AD167: -11.21155591 | AF167: 20.36815691 | AG167: 22.38603406 | AH167: 43.254584 | AI167: 16.84282153 | AJ167: 20.14040867
A168: 2020-01-07T20:00:00 | B168: 0 | C168: 0 | D168: 0 | E168: 0 | F168: 0 | H168: 37.81779806 | I168: 38.3849411 | J168: 77.59299205 | K168: 95.24965297 | L168: 71.9217079 | N168: 8.058315195 | O168: 8.788306318 | P168: 17.79969225 | Q168: 21.92076723 | R168: 16.61118278 | T168: 17.20168957 | U168: 18.8078995 | V168: 38.16216323 | W168: 47.05422757 | X168: 35.68373423 | Z168: -9.742393205 | AA168: -10.00898985 | AB168: -10.16453026 | AC168: -10.28217642 | AD168: -11.21155591 | AF168: 15.51761156 | AG168: 17.58721597 | AH168: 45.79732522 | AI168: 58.69281837 | AJ168: 41.0833611
A169: 2020-01-07T21:00:00 | B169: 0 | C169: 0 | D169: 0 | E169: 0 | F169: 0 | H169: 59.12198374 | I169: 38.30208976 | J169: 44.3152689 | K169: 52.0049728 | L169: 44.41288944 | N169: 12.63172922 | O169: 8.769187451 | P169: 10.136983 | Q169: 11.93747493 | R169: 10.23020287 | T169: 26.96433181 | U169: 18.76698311 | V169: 21.73347687 | W169: 25.62449828 | X169: 21.97627015 | Z169: -9.742393205 | AA169: -10.00898985 | AB169: -10.16453026 | AC169: -10.28217642 | AD169: -11.21155591 | AF169: 29.85366782 | AG169: 17.52718071 | AH169: 21.7059296 | AI169: 27.27979679 | AJ169: 20.99491711
A170: 2020-01-07T22:00:00 | B170: 0 | C170: 0 | D170: 0 | E170: 0 | F170: 0 | H170: 30.71478988 | I170: 28.47515322 | J170: 34.26058747 | K170: 42.50751579 | L170: 44.41288944 | N170: 6.533448606 | O170: 6.501689707 | P170: 7.821720754 | Q170: 9.744365812 | R170: 10.23020287 | T170: 13.94663177 | U170: 13.91429954 | V170: 16.76960365 | W170: 20.91685942 | X170: 21.97627015 | Z170: -9.742393205 | AA170: -10.00898985 | AB170: -10.16453026 | AC170: -10.28217642 | AD170: -11.21155591 | AF170: =SUM(N170,T170,Z170) -> 10.73768717 | AG170: 10.4069994 | AH170: 14.42679414 | AI170: 20.37904881 | AJ170: 20.99491711
A171: 2020-01-07T23:00:00 | B171: 0 | C171: 0 | D171: 0 | E171: 0 | F171: 0 | H171: 28.73521146 | I171: 28.47515322 | J171: 32.43136679 | K171: 37.63918165 | L171: 38.57066977 | N171: 6.108952308 | O171: 6.501689707 | P171: 7.4008886 | Q171: 8.620526437 | R171: 8.874641464 | T171: 13.04048038 | U171: 13.91429954 | V171: 15.86734843 | W171: 18.50447151 | X171: 19.06428649 | Z171: -9.742393205 | AA171: -10.00898985 | AB171: -10.16453026 | AC171: -10.28217642 | AD171: -11.21155591 | AF171: 9.407039482 | AG171: 10.4069994 | AH171: 13.10370676 | AI171: 16.84282153 | AJ171: 16.72737204
A172: 2020-01-08 | B172: 0 | C172: 0 | D172: 0 | E172: 0 | F172: 0 | H172: 29.72500625 | I172: 28.47515322 | J172: 33.26400481 | K172: 37.63918165 | L172: 39.7391064 | N172: 6.321200457 | O172: 6.501689707 | P172: 7.592799029 | Q172: 8.620526437 | R172: 9.146071206 | T172: 13.49355608 | U172: 13.91429954 | V172: 16.27880032 | W172: 18.50447151 | X172: 19.64736518 | Z172: -9.742393205 | AA172: -10.00898985 | AB172: -10.16453026 | AC172: -10.28217642 | AD172: -11.21155591 | AF172: 10.07236333 | AG172: 10.4069994 | AH172: 13.70706909 | AI172: 16.84282153 | AJ172: 17.58188048
A173: 2020-01-08T01:00:00 | B173: 0 | C173: 0 | D173: 0 | E173: 0 | F173: 0 | H173: 34.67395786 | I173: 28.47515322 | J173: 31.42033212 | K173: 36.53276858 | L173: 57.91564831 | N173: 7.383626945 | O173: 6.501689707 | P173: 7.167854508 | Q173: 8.365376553 | R173: 13.36196241 | T173: 15.76146571 | U173: 13.91429954 | V173: 15.36772827 | W173: 17.95677715 | X173: 28.70383896 | Z173: -9.742393205 | AA173: -10.00898985 | AB173: -10.16453026 | AC173: -10.28217642 | AD173: -11.21155591 | AF173: 13.40269945 | AG173: 10.4069994 | AH173: 12.37105251 | AI173: 16.03997728 | AJ173: 30.85424546
A174: 2020-01-08T02:00:00 | B174: 0 | C174: 0 | D174: 0 | E174: 0 | F174: 0 | H174: 37.64333105 | I174: 28.47515322 | J174: 27.08504556 | K174: 34.31993054 | L174: 39.7391064 | N174: 8.020371392 | O174: 6.501689707 | P174: 6.16992028 | Q174: 7.855076784 | R174: 9.146071206 | T174: 17.1206928 | U174: 13.91429954 | V174: 13.22817841 | W174: 16.86138842 | X174: 19.64736518 | Z174: -9.742393205 | AA174: -10.00898985 | AB174: -10.16453026 | AC174: -10.28217642 | AD174: -11.21155591 | AF174: 15.39867098 | AG174: 10.4069994 | AH174: 9.233568432 | AI174: 14.43428878 | AJ174: 17.58188048
A175: 2020-01-08T03:00:00 | B175: 0 | C175: 0 | D175: 0 | E175: 0 | F175: 0 | H175: 32.69437944 | I175: 28.47515322 | J175: 27.08504556 | K175: 34.31993054 | L175: 38.57066977 | N175: 6.957944903 | O175: 6.501689707 | P175: 6.16992028 | Q175: 7.855076784 | R175: 8.874641464 | T175: 14.85278317 | U175: 13.91429954 | V175: 13.22817841 | W175: 16.86138842 | X175: 19.06428649 | Z175: -9.742393205 | AA175: -10.00898985 | AB175: -10.16453026 | AC175: -10.28217642 | AD175: -11.21155591 | AF175: 12.06833486 | AG175: 10.4069994 | AH175: 9.233568432 | AI175: 14.43428878 | AJ175: 16.72737204
A176: 2020-01-08T04:00:00 | B176: 0 | C176: 0 | D176: 0 | E176: 0 | F176: 0 | H176: 33.68416308 | I176: 31.21479659 | J176: 33.26400481 | K176: 34.31993054 | L176: 39.7391064 | N176: 7.171378796 | O176: 7.133886942 | P176: 7.592799029 | Q176: 7.855076784 | R176: 9.146071206 | T176: 15.30839001 | U176: 15.26726809 | V176: 16.27880032 | W176: 16.86138842 | X176: 19.64736518 | Z176: -9.742393205 | AA176: -10.00898985 | AB176: -10.16453026 | AC176: -10.28217642 | AD176: -11.21155591 | AF176: 12.7373756 | AG176: 12.39216519 | AH176: 13.70706909 | AI176: 14.43428878 | AJ176: 17.58188048
A177: 2020-01-08T05:00:00 | B177: 0 | C177: 0 | D177: 0 | E177: 0 | F177: 0 | H177: 37.64333105 | I177: 29.45568415 | J177: 33.51042253 | K177: 37.63918165 | L177: 53.623446 | N177: 8.020371392 | O177: 6.728566941 | P177: 7.649001369 | Q177: 8.620526437 | R177: 12.36672002 | T177: 17.1206928 | U177: 14.39984067 | V177: 16.39929695 | W177: 18.50447151 | X177: 26.56588374 | Z177: -9.742393205 | AA177: -10.00898985 | AB177: -10.16453026 | AC177: -10.28217642 | AD177: -11.21155591 | AF177: 15.39867098 | AG177: 11.11941777 | AH177: 13.88376805 | AI177: 16.84282153 | AJ177: 27.72104786
A178: 2020-01-08T06:00:00 | B178: 0 | C178: 0 | D178: 0 | E178: 0 | F178: 0 | H178: 30.71478988 | I178: 35.34600284 | J178: 33.92234538 | K178: 37.63918165 | L178: 59.12548945 | N178: 6.533448606 | O178: 8.087281159 | P178: 7.743585794 | Q178: 8.620526437 | R178: 13.642916 | T178: 13.94663177 | U178: 17.30763195 | V178: 16.60208395 | W178: 18.50447151 | X178: 29.30737656 | Z178: -9.742393205 | AA178: -10.00898985 | AB178: -10.16453026 | AC178: -10.28217642 | AD178: -11.21155591 | AF178: 10.73768717 | AG178: 15.38592326 | AH178: 14.18113948 | AI178: 16.84282153 | AJ178: 31.73873666
A179: 2020-01-08T07:00:00 | B179: 0 | C179: 0 | D179: 0 | E179: 0 | F179: 0 | H179: 29.72500625 | I179: 35.47095783 | J179: 35.99582938 | K179: 44.94174831 | L179: 39.7391064 | N179: 6.321200457 | O179: 8.115322165 | P179: 8.220620288 | Q179: 10.3062855 | R179: 9.146071206 | T179: 13.49355608 | U179: 17.36764265 | V179: 17.6248358 | W179: 22.12305337 | X179: 19.64736518 | Z179: -9.742393205 | AA179: -10.00898985 | AB179: -10.16453026 | AC179: -10.28217642 | AD179: -11.21155591 | AF179: 10.07236333 | AG179: 15.47397497 | AH179: 15.68092583 | AI179: 22.14716245 | AJ179: 17.58188048
A180: 2020-01-08T08:00:00 | B180: 0 | C180: 0 | D180: 0 | E180: 0 | F180: 0 | H180: 32.69437944 | I180: 28.47515322 | J180: 33.92234538 | K180: 35.42634361 | L180: 54.87796362 | N180: 6.957944903 | O180: 6.501689707 | P180: 7.743585794 | Q180: 8.110226669 | R180: 12.65719747 | T180: 14.85278317 | U180: 13.91429954 | V180: 16.60208395 | W180: 17.40908278 | X180: 27.18988024 | Z180: -9.742393205 | AA180: -10.00898985 | AB180: -10.16453026 | AC180: -10.28217642 | AD180: -11.21155591 | AF180: 12.06833486 | AG180: 10.4069994 | AH180: 14.18113948 | AI180: 15.23713303 | AJ180: 28.6355218
A181: 2020-01-08T09:00:00 | B181: 0 | C181: 0 | D181: 0 | E181: 0 | F181: 0 | H181: 30.71478988 | I181: 18.66983256 | J181: 35.05793978 | K181: 80.52322993 | L181: 78.9883649 | N181: 6.533448606 | O181: 4.24056492 | P181: 8.00540645 | Q181: 18.52122686 | R181: 18.24928508 | T181: 13.94663177 | U181: 9.075254769 | V181: 17.16342189 | W181: 39.75691245 | X181: 39.20266531 | Z181: -9.742393205 | AA181: -10.00898985 | AB181: -10.16453026 | AC181: -10.28217642 | AD181: -11.21155591 | AF181: 10.73768717 | AG181: 3.30682984 | AH181: 15.00429808 | AI181: 47.99596289 | AJ181: 46.24039448
A182: 2020-01-08T10:00:00 | B182: 0 | C182: 0 | D182: 0 | E182: 0 | F182: 0 | H182: 29.72500625 | I182: 18.66983256 | J182: 26.85953142 | K182: 36.53276858 | L182: 38.57066977 | N182: 6.321200457 | O182: 4.24056492 | P182: 6.117830306 | Q182: 8.365376553 | R182: 8.874641464 | T182: 13.49355608 | U182: 9.075254769 | V182: 13.11649861 | W182: 17.95677715 | X182: 19.06428649 | Z182: -9.742393205 | AA182: -10.00898985 | AB182: -10.16453026 | AC182: -10.28217642 | AD182: -11.21155591 | AF182: 10.07236333 | AG182: 3.30682984 | AH182: 9.069798658 | AI182: 16.03997728 | AJ182: 16.72737204
A183: 2020-01-08T11:00:00 | B183: 0 | C183: 0 | D183: 0 | E183: 0 | F183: 0 | H183: 23.78625985 | I183: 17.68930163 | J183: 28.53385598 | K183: 35.42634361 | L183: 37.40222097 | N183: 5.04652582 | O183: 4.014962277 | P183: 6.503021952 | Q183: 8.110226669 | R183: 8.60479903 | T183: 10.77257075 | U183: 8.592441395 | V183: 13.94234135 | W183: 17.40908278 | X183: 18.48461761 | Z183: -9.742393205 | AA183: -10.00898985 | AB183: -10.16453026 | AC183: -10.28217642 | AD183: -11.21155591 | AF183: 6.076703363 | AG183: 2.598413824 | AH183: 10.28083304 | AI183: 15.23713303 | AJ183: 15.87786073
A184: 2020-01-08T12:00:00 | B184: 0 | C184: 0 | D184: 0 | E184: 0 | F184: 0 | H184: 32.69437944 | I184: 29.45568415 | J184: 25.43959007 | K184: 42.46159922 | L184: 37.40222097 | N184: 6.957944903 | O184: 6.728566941 | P184: 5.790211789 | Q184: 9.734041828 | R184: 8.60479903 | T184: 14.85278317 | U184: 14.39984067 | V184: 12.41409145 | W184: 20.89469837 | X184: 18.48461761 | Z184: -9.742393205 | AA184: -10.00898985 | AB184: -10.16453026 | AC184: -10.28217642 | AD184: -11.21155591 | AF184: 12.06833486 | AG184: 11.11941777 | AH184: 8.039772978 | AI184: 20.34656378 | AJ184: 15.87786073
A185: 2020-01-08T13:00:00 | B185: 0 | C185: 0 | D185: 0 | E185: 0 | F185: 0 | H185: 33.68416308 | I185: 11.80611607 | J185: 27.44781297 | K185: 37.63918165 | L185: 38.57066977 | N185: 7.171378796 | O185: 2.65752265 | P185: 6.253538395 | Q185: 8.620526437 | R185: 8.874641464 | T185: 15.30839001 | U185: 5.687377876 | V185: 13.40745388 | W185: 18.50447151 | X185: 19.06428649 | Z185: -9.742393205 | AA185: -10.00898985 | AB185: -10.16453026 | AC185: -10.28217642 | AD185: -11.21155591 | AF185: 12.7373756 | AG185: -1.664089322 | AH185: 9.496462016 | AI185: 16.84282153 | AJ185: 16.72737204
A186: 2020-01-08T14:00:00 | B186: 0 | C186: 0 | D186: 0 | E186: 0 | F186: 0 | H186: 33.68416308 | I186: 15.72823978 | J186: 29.83273123 | K186: 42.46677644 | L186: 38.57066977 | N186: 7.171378796 | O186: 3.562482402 | P186: 6.801853905 | Q186: 9.735516683 | R186: 8.874641464 | T186: 15.30839001 | U186: 7.624086889 | V186: 14.58303073 | W186: 20.89786424 | X186: 19.06428649 | Z186: -9.742393205 | AA186: -10.00898985 | AB186: -10.16453026 | AC186: -10.28217642 | AD186: -11.21155591 | AF186: 12.7373756 | AG186: 1.177579442 | AH186: 11.22035437 | AI186: 20.3512045 | AJ186: 16.72737204
A187: 2020-01-08T15:00:00 | B187: 0 | C187: 0 | D187: 0 | E187: 0 | F187: 0 | H187: 47.54123428 | I187: 20.63089441 | J187: 33.63034737 | K187: 47.28511174 | L187: 45.49938067 | N187: 10.14522437 | O187: 4.693044795 | P187: 7.676417144 | Q187: 10.84755722 | R187: 10.48258491 | T187: 21.65651206 | U187: 10.04360928 | V187: 16.45807579 | W187: 23.28492523 | X187: 22.51843104 | Z187: -9.742393205 | AA187: -10.00898985 | AB187: -10.16453026 | AC187: -10.28217642 | AD187: -11.21155591 | AF187: 22.05934322 | AG187: 4.727664223 | AH187: 13.96996267 | AI187: 23.85030603 | AJ187: 21.78946004
A188: 2020-01-08T16:00:00 | B188: 0 | C188: 0 | D188: 0 | E188: 0 | F188: 0 | H188: 278.7369141 | I188: 34.35462409 | J188: 68.80290167 | K188: 54.84428988 | L188: 48.38147004 | N188: 64.53766619 | O188: 7.857854743 | P188: 15.77503723 | Q188: 12.59231047 | R188: 11.15084176 | T188: 137.7653855 | U188: 16.8166353 | V188: 33.82134575 | W188: 27.03014162 | X188: 23.95396397 | Z188: -9.742393205 | AA188: -10.00898985 | AB188: -10.16453026 | AC188: -10.28217642 | AD188: -11.21155591 | AF188: 192.5606585 | AG188: 14.6655002 | AH188: 39.43185271 | AI188: 29.34027568 | AJ188: 23.89324982
A189: 2020-01-08T17:00:00 | B189: 0 | C189: 0 | D189: 0 | E189: 0 | F189: 0 | H189: 30.71478988 | I189: 88.76103785 | J189: 58.26418877 | K189: 80.24031581 | L189: 39.7391064 | N189: 6.533448606 | O189: 20.18315164 | P189: 13.3487411 | Q189: 18.45633325 | R189: 9.146071206 | T189: 13.94663177 | U189: 43.1940665 | V189: 28.61941822 | W189: 39.61761446 | X189: 19.64736518 | Z189: -9.742393205 | AA189: -10.00898985 | AB189: -10.16453026 | AC189: -10.28217642 | AD189: -11.21155591 | AF189: 10.73768717 | AG189: 53.3682283 | AH189: 31.80362905 | AI189: 47.79177129 | AJ189: 17.58188048
A190: 2020-01-08T18:00:00 | B190: 0 | C190: 0 | D190: 0 | E190: 0 | F190: 0 | H190: 30.71478988 | I190: 56.67433663 | J190: 92.27523754 | K190: 37.63918165 | L190: 95.70482626 | N190: 6.533448606 | O190: 13.00720319 | P190: 21.1649787 | Q190: 8.620526437 | R190: 22.12707959 | T190: 13.94663177 | U190: 27.83678236 | V190: 45.3772661 | W190: 18.50447151 | X190: 47.53284808 | Z190: -9.742393205 | AA190: -10.00898985 | AB190: -10.16453026 | AC190: -10.28217642 | AD190: -11.21155591 | AF190: 10.73768717 | AG190: 30.8349957 | AH190: 56.37771454 | AI190: 16.84282153 | AJ190: 58.44837176
A191: 2020-01-08T19:00:00 | B191: 0 | C191: 0 | D191: 0 | E191: 0 | F191: 0 | H191: 53.78494115 | I191: 48.77149733 | J191: 76.30239671 | K191: 50.24205283 | L191: 67.57928256 | N191: 11.48511492 | O191: 11.18326318 | P191: 17.50223109 | Q191: 11.530415 | R191: 15.60324192 | T191: 24.51671059 | U191: 23.93335898 | V191: 37.5244128 | W191: 24.75071998 | X191: 33.51850048 | Z191: -9.742393205 | AA191: -10.00898985 | AB191: -10.16453026 | AC191: -10.28217642 | AD191: -11.21155591 | AF191: 26.2594323 | AG191: 25.10763232 | AH191: 44.86211362 | AI191: 25.99895857 | AJ191: 37.91018649
A192: 2020-01-08T20:00:00 | B192: 0 | C192: 0 | D192: 0 | E192: 0 | F192: 0 | H192: 70.12652826 | I192: 40.76551262 | J192: 59.97470738 | K192: 108.7915167 | L192: 39.7391064 | N192: 14.99373097 | O192: 9.337655125 | P192: 13.74215748 | Q192: 24.91619737 | R192: 9.146071206 | T192: 32.0063809 | U192: 19.9835637 | V192: 29.4628946 | W192: 53.48409611 | X192: 19.64736518 | Z192: -9.742393205 | AA192: -10.00898985 | AB192: -10.16453026 | AC192: -10.28217642 | AD192: -11.21155591 | AF192: 37.25771866 | AG192: 19.31222898 | AH192: 33.04052182 | AI192: 68.11811706 | AJ192: 17.58188048
A193: 2020-01-08T21:00:00 | B193: 0 | C193: 0 | D193: 0 | E193: 0 | F193: 0 | H193: 43.33081284 | I193: 38.33300376 | J193: 38.41941053 | K193: 72.25042888 | L193: 46.67399635 | N193: 9.241687556 | O193: 8.775560407 | P193: 8.779902109 | Q193: 16.61128987 | R193: 10.75401465 | T193: 19.72777641 | U193: 18.78062191 | V193: 18.82392418 | W193: 35.65711936 | X193: 23.10150974 | Z193: -9.742393205 | AA193: -10.00898985 | AB193: -10.16453026 | AC193: -10.28217642 | AD193: -11.21155591 | AF193: 19.22707076 | AG193: 17.54719246 | AH193: 17.43929603 | AI193: 41.98623281 | AJ193: 22.64396848
A194: 2020-01-08T22:00:00 | B194: 0 | C194: 0 | D194: 0 | E194: 0 | F194: 0 | H194: 30.71478988 | I194: 27.4946223 | J194: 32.14110395 | K194: 36.53276858 | L194: 38.57066977 | N194: 6.533448606 | O194: 6.276087065 | P194: 7.33371995 | Q194: 8.365376553 | R194: 8.874641464 | T194: 13.94663177 | U194: 13.43148617 | V194: 15.72334026 | W194: 17.95677715 | X194: 19.06428649 | Z194: -9.742393205 | AA194: -10.00898985 | AB194: -10.16453026 | AC194: -10.28217642 | AD194: -11.21155591 | AF194: 10.73768717 | AG194: 9.698583385 | AH194: 12.89252995 | AI194: 16.03997728 | AJ194: 16.72737204
A195: 2020-01-08T23:00:00 | B195: 0 | C195: 0 | D195: 0 | E195: 0 | F195: 0 | H195: 30.71478988 | I195: 28.47515322 | J195: 32.92472627 | K195: 36.53276858 | L195: 39.7391064 | N195: 6.533448606 | O195: 6.501689707 | P195: 7.514664069 | Q195: 8.365376553 | R195: 9.146071206 | T195: 13.94663177 | U195: 13.91429954 | V195: 16.11128062 | W195: 17.95677715 | X195: 19.64736518 | Z195: -9.742393205 | AA195: -10.00898985 | AB195: -10.16453026 | AC195: -10.28217642 | AD195: -11.21155591 | AF195: 10.73768717 | AG195: 10.4069994 | AH195: 13.46141443 | AI195: 16.03997728 | AJ195: 17.58188048
A196: 2020-01-09 | B196: 0 | C196: 0 | D196: 0 | E196: 0 | F196: 0 | H196: 32.69437944 | I196: 28.47515322 | J196: 32.80828342 | K196: 36.53276858 | L196: 37.40222097 | N196: 6.957944903 | O196: 6.501689707 | P196: 7.487248293 | Q196: 8.365376553 | R196: 8.60479903 | T196: 14.85278317 | U196: 13.91429954 | V196: 16.05250178 | W196: 17.95677715 | X196: 18.48461761 | Z196: -9.742393205 | AA196: -10.00898985 | AB196: -10.16453026 | AC196: -10.28217642 | AD196: -11.21155591 | AF196: 12.06833486 | AG196: 10.4069994 | AH196: 13.37521981 | AI196: 16.03997728 | AJ196: 15.87786073
A197: 2020-01-09T01:00:00 | B197: 0 | C197: 0 | D197: 0 | E197: 0 | F197: 0 | H197: 33.68416308 | I197: 28.47515322 | J197: 32.80828342 | K197: 36.53276858 | L197: 37.40222097 | N197: 7.171378796 | O197: 6.501689707 | P197: 7.487248293 | Q197: 8.365376553 | R197: 8.60479903 | T197: 15.30839001 | U197: 13.91429954 | V197: 16.05250178 | W197: 17.95677715 | X197: 18.48461761 | Z197: -9.742393205 | AA197: -10.00898985 | AB197: -10.16453026 | AC197: -10.28217642 | AD197: -11.21155591 | AF197: 12.7373756 | AG197: 10.4069994 | AH197: 13.37521981 | AI197: 16.03997728 | AJ197: 15.87786073
A198: 2020-01-09T02:00:00 | B198: 0 | C198: 0 | D198: 0 | E198: 0 | F198: 0 | H198: 32.69437944 | I198: 28.47515322 | J198: 28.13007329 | K198: 35.42634361 | L198: 36.23377217 | N198: 6.957944903 | O198: 6.501689707 | P198: 6.409808315 | Q198: 8.110226669 | R198: 8.333369287 | T198: 14.85278317 | U198: 13.91429954 | V198: 13.74249328 | W198: 17.40908278 | X198: 17.90153891 | Z198: -9.742393205 | AA198: -10.00898985 | AB198: -10.16453026 | AC198: -10.28217642 | AD198: -11.21155591 | AF198: 12.06833486 | AG198: 10.4069994 | AH198: 9.987771336 | AI198: 15.23713303 | AJ198: 15.02335229
A199: 2020-01-09T03:00:00 | B199: 0 | C199: 0 | D199: 0 | E199: 0 | F199: 0 | H199: 32.69437944 | I199: 28.47515322 | J199: 29.67315363 | K199: 34.31993054 | L199: 37.40222097 | N199: 6.957944903 | O199: 6.501689707 | P199: 6.764842608 | Q199: 7.855076784 | R199: 8.60479903 | T199: 14.85278317 | U199: 13.91429954 | V199: 14.50367929 | W199: 16.86138842 | X199: 18.48461761 | Z199: -9.742393205 | AA199: -10.00898985 | AB199: -10.16453026 | AC199: -10.28217642 | AD199: -11.21155591 | AF199: 12.06833486 | AG199: 10.4069994 | AH199: 11.10399163 | AI199: 14.43428878 | AJ199: 15.87786073
A200: 2020-01-09T04:00:00 | B200: 0 | C200: 0 | D200: 0 | E200: 0 | F200: 0 | H200: 34.67395786 | I200: 31.21352037 | J200: 32.83183052 | K200: 34.31993054 | L200: 36.23377217 | N200: 7.383626945 | O200: 7.133886942 | P200: 7.492731448 | Q200: 7.855076784 | R200: 8.333369287 | T200: 15.76146571 | U200: 15.26726809 | V200: 16.06425755 | W200: 16.86138842 | X200: 17.90153891 | Z200: -9.742393205 | AA200: -10.00898985 | AB200: -10.16453026 | AC200: -10.28217642 | AD200: -11.21155591 | AF200: 13.40269945 | AG200: 12.39216519 | AH200: 13.39245873 | AI200: 14.43428878 | AJ200: 15.02335229
A201: 2020-01-09T05:00:00 | B201: 0 | C201: 0 | D201: 0 | E201: 0 | F201: 0 | H201: 32.69437944 | I201: 28.47515322 | J201: 34.66020109 | K201: 36.53276858 | L201: 38.57066977 | N201: 6.957944903 | O201: 6.501689707 | P201: 7.913563602 | Q201: 8.365376553 | R201: 8.874641464 | T201: 14.85278317 | U201: 13.91429954 | V201: 16.96651277 | W201: 17.95677715 | X201: 19.06428649 | Z201: -9.742393205 | AA201: -10.00898985 | AB201: -10.16453026 | AC201: -10.28217642 | AD201: -11.21155591 | AF201: 12.06833486 | AG201: 10.4069994 | AH201: 14.71554611 | AI201: 16.03997728 | AJ201: 16.72737204
... 2049 more rows

Sheet SCE Inputs
B2: Generation Capacity ($/MWh) | H2: Energy ($/MWh) | N2: GHG Cap and Trade Hourly Marginal Emissions ($/MWh) | T2: GHG Adder Hourly Marginal Emissions ($/MWh) | Z2: GHG Portfolio Rebalancing ($/MWh) | AF2: Total GHG Values ($/MWh)
A3: Date/Time Stamp | B3: 2023 | C3: 2024 | D3: 2025 | E3: 2026 | F3: 2027 | H3: 2023 | I3: 2024 | J3: 2025 | K3: 2026 | L3: 2027 | N3: 2023 | O3: 2024 | P3: 2025 | Q3: 2026 | R3: 2027 | T3: 2023 | U3: 2024 | V3: 2025 | W3: 2026 | X3: 2027 | Z3: 2023 | AA3: 2024 | AB3: 2025 | AC3: 2026 | AD3: 2027 | AF3: 2023 | AG3: 2024 | AH3: 2025 | AI3: 2026 | AJ3: 2027
A4: 2020-01-01 | B4: 0 | C4: 0 | D4: 0 | E4: 0 | F4: 0 | H4: 101.2718 | I4: 30.43622 | J4: 34.09197 | K4: 41.30977 | L4: 37.40222 | N4: 21.55919465 | O4: 6.954169583 | P4: 7.783338669 | Q4: 9.46856796 | R4: 8.60479903 | T4: 46.0213537 | U4: 14.88265405 | V4: 16.68731327 | W4: 20.32484296 | X4: 18.48461761 | Z4: -9.742393205 | AA4: -10.00898985 | AB4: -10.16453026 | AC4: -10.28217642 | AD4: -11.21155591 | AF4: =SUM(N4,T4,Z4) -> 57.83815515 | AG4: =SUM(O4,U4,AA4) -> 11.82783378 | AH4: 14.30612168 | AI4: 19.51123451 | AJ4: =SUM(R4,X4,AD4) -> 15.87786073
A5: 2020-01-01T01:00:00 | B5: 0 | C5: 0 | D5: 0 | E5: 0 | F5: 0 | H5: 23.78626 | I5: 28.47515 | J5: 32.9523 | K5: 41.3062 | L5: 38.57067 | N5: 5.04652582 | O5: 6.501689707 | P5: 7.520147224 | Q5: 9.467093105 | R5: 8.874641464 | T5: 10.77257075 | U5: 13.91429954 | V5: 16.12303639 | W5: 20.3216771 | X5: 19.06428649 | Z5: -9.742393205 | AA5: -10.00898985 | AB5: -10.16453026 | AC5: -10.28217642 | AD5: -11.21155591 | AF5: =SUM(N5,T5,Z5) -> 6.076703363 | AG5: 10.4069994 | AH5: 13.47865335 | AI5: 19.50659379 | AJ5: 16.72737204
A6: 2020-01-01T02:00:00 | B6: 0 | C6: 0 | D6: 0 | E6: 0 | F6: 0 | H6: 28.73521 | I6: 26.51409 | J6: 32.9523 | K6: 36.53277 | L6: 38.57067 | N6: 6.108952308 | O6: 6.050484423 | P6: 7.520147224 | Q6: 8.365376553 | R6: 8.874641464 | T6: 13.04048038 | U6: 12.94867279 | V6: 16.12303639 | W6: 17.95677715 | X6: 19.06428649 | Z6: -9.742393205 | AA6: -10.00898985 | AB6: -10.16453026 | AC6: -10.28217642 | AD6: -11.21155591 | AF6: 9.407039482 | AG6: 8.990167369 | AH6: 13.47865335 | AI6: 16.03997728 | AJ6: 16.72737204
A7: 2020-01-01T03:00:00 | B7: 0 | C7: 0 | D7: 0 | E7: 0 | F7: 0 | H7: 26.75563 | I7: 23.57249 | J7: 32.9523 | K7: 36.53277 | L7: 136.686 | N7: 5.683270266 | O7: 5.371127313 | P7: 7.520147224 | Q7: 8.365376553 | R7: 31.35727815 | T7: 12.13179784 | U7: 11.49477716 | V7: 16.12303639 | W7: 17.95677715 | X7: 67.36093356 | Z7: -9.742393205 | AA7: -10.00898985 | AB7: -10.16453026 | AC7: -10.28217642 | AD7: -11.21155591 | AF7: 8.072674899 | AG7: 6.856914621 | AH7: 13.47865335 | AI7: 16.03997728 | AJ7: 87.5066558
A8: 2020-01-01T04:00:00 | B8: 0 | C8: 0 | D8: 0 | E8: 0 | F8: 0 | H8: 23.78626 | I8: 28.47515 | J8: 32.76948 | K8: 36.53277 | L8: 37.40222 | N8: 5.04652582 | O8: 6.501689707 | P8: 7.47902356 | Q8: 8.365376553 | R8: 8.60479903 | T8: 10.77257075 | U8: 13.91429954 | V8: 16.03486813 | W8: 17.95677715 | X8: 18.48461761 | Z8: -9.742393205 | AA8: -10.00898985 | AB8: -10.16453026 | AC8: -10.28217642 | AD8: -11.21155591 | AF8: 6.076703363 | AG8: 10.4069994 | AH8: 13.34936142 | AI8: 16.03997728 | AJ8: 15.87786073
A9: 2020-01-01T05:00:00 | B9: 0 | C9: 0 | D9: 0 | E9: 0 | F9: 0 | H9: 23.78626 | I9: 26.51409 | J9: 33.92714 | K9: 36.53277 | L9: 48.0952 | N9: 5.04652582 | O9: 6.050484423 | P9: 7.744956583 | Q9: 8.365376553 | R9: 11.08417481 | T9: 10.77257075 | U9: 12.94867279 | V9: 16.60502289 | W9: 17.95677715 | X9: 23.81075166 | Z9: -9.742393205 | AA9: -10.00898985 | AB9: -10.16453026 | AC9: -10.28217642 | AD9: -11.21155591 | AF9: 6.076703363 | AG9: 8.990167369 | AH9: 14.18544921 | AI9: 16.03997728 | AJ9: 23.68337056
A10: 2020-01-01T06:00:00 | B10: 0 | C10: 0 | D10: 0 | E10: 0 | F10: 0 | H10: 28.73521 | I10: 28.47515 | J10: 33.09899 | K10: 41.26804 | L10: 40.47371 | N10: 6.108952308 | O10: 6.501689707 | P10: 7.554416943 | Q10: 9.458243976 | R10: 9.315913209 | T10: 13.04048038 | U10: 13.91429954 | V10: 16.19650994 | W10: 20.30268192 | X10: 20.01221559 | Z10: -9.742393205 | AA10: -10.00898985 | AB10: -10.16453026 | AC10: -10.28217642 | AD10: -11.21155591 | AF10: 9.407039482 | AG10: 10.4069994 | AH10: 13.58639662 | AI10: 19.47874948 | AJ10: 18.11657289
A11: 2020-01-01T07:00:00 | B11: 0 | C11: 0 | D11: 0 | E11: 0 | F11: 0 | H11: 25.76584 | I11: 29.45568 | J11: 33.72148 | K11: 41.25029 | L11: 38.57067 | N11: 5.471022117 | O11: 6.728566941 | P11: 7.696978976 | Q11: 9.455294267 | R11: 8.874641464 | T11: 11.67872214 | U11: 14.39984067 | V11: 16.50215992 | W11: 20.29635019 | X11: 19.06428649 | Z11: -9.742393205 | AA11: -10.00898985 | AB11: -10.16453026 | AC11: -10.28217642 | AD11: -11.21155591 | AF11: 7.407351054 | AG11: 11.11941777 | AH11: 14.03460863 | AI11: 19.46946804 | AJ11: 16.72737204
A12: 2020-01-01T08:00:00 | B12: 0 | C12: 0 | D12: 0 | E12: 0 | F12: 0 | H12: 23.78626 | I12: 29.45568 | J12: 34.9996 | K12: 41.24148 | L12: 106.7557 | N12: 5.04652582 | O12: 6.728566941 | P12: 7.991698563 | Q12: 9.452344557 | R12: 24.68899541 | T12: 10.77257075 | U12: 14.39984067 | V12: 17.13403247 | W12: 20.29001847 | X12: 53.03629262 | Z12: -9.742393205 | AA12: -10.00898985 | AB12: -10.16453026 | AC12: -10.28217642 | AD12: -11.21155591 | AF12: 6.076703363 | AG12: 11.11941777 | AH12: 14.96120077 | AI12: 19.46018661 | AJ12: 66.51373211
A13: 2020-01-01T09:00:00 | B13: 0 | C13: 0 | D13: 0 | E13: 0 | F13: 0 | H13: 22.79647 | I13: 28.47515 | J13: 34.9996 | K13: 45.9563 | L13: 38.57067 | N13: 4.833091927 | O13: 6.501689707 | P13: 7.991698563 | Q13: 10.54078742 | R13: 8.874641464 | T13: 10.3169639 | U13: 13.91429954 | V13: 17.13403247 | W13: 22.62642565 | X13: 19.06428649 | Z13: -9.742393205 | AA13: -10.00898985 | AB13: -10.16453026 | AC13: -10.28217642 | AD13: -11.21155591 | AF13: 5.407662625 | AG13: 10.4069994 | AH13: 14.96120077 | AI13: 22.88503665 | AJ13: =SUM(R13,X13,AD13) -> 16.72737204
A14: 2020-01-01T10:00:00 | B14: 0 | C14: 0 | D14: 0 | E14: 0 | F14: 0 | H14: 23.78626 | I14: 28.47515 | J14: 34.9996 | K14: 45.98202 | L14: 40.47305 | N14: 5.04652582 | O14: 6.501689707 | P14: 7.991698563 | Q14: 10.54668684 | R14: 9.315913209 | T14: 10.77257075 | U14: 13.91429954 | V14: 17.13403247 | W14: 22.6390891 | X14: 20.01221559 | Z14: -9.742393205 | AA14: -10.00898985 | AB14: -10.16453026 | AC14: -10.28217642 | AD14: -11.21155591 | AF14: 6.076703363 | AG14: 10.4069994 | AH14: 14.96120077 | AI14: 22.90359952 | AJ14: 18.11657289
A15: 2020-01-01T11:00:00 | B15: 0 | C15: 0 | D15: 0 | E15: 0 | F15: 0 | H15: 20.81689 | I15: 28.47515 | J15: 32.65971 | K15: 32.10709 | L15: 38.57067 | N15: 4.408595629 | O15: 6.501689707 | P15: 7.452978574 | Q15: 7.343302161 | R15: 8.874641464 | T15: 9.41081251 | U15: 13.91429954 | V15: 15.97902823 | W15: 15.76283382 | X15: 19.06428649 | Z15: -9.742393205 | AA15: -10.00898985 | AB15: -10.16453026 | AC15: -10.28217642 | AD15: -11.21155591 | AF15: 4.077014934 | AG15: 10.4069994 | AH15: 13.26747654 | AI15: 12.82395956 | AJ15: 16.72737204
A16: 2020-01-01T12:00:00 | B16: 0 | C16: 0 | D16: 0 | E16: 0 | F16: 0 | H16: 19.8271 | I16: 21.61143 | J16: 32.9897 | K16: 32.10709 | L16: 38.57067 | N16: 4.19634748 | O16: 4.918647438 | P16: 7.529742745 | Q16: 7.343302161 | R16: 8.874641464 | T16: 8.957736813 | U16: 10.52642265 | V16: 16.14360898 | W16: 15.76283382 | X16: 19.06428649 | Z16: -9.742393205 | AA16: -10.00898985 | AB16: -10.16453026 | AC16: -10.28217642 | AD16: -11.21155591 | AF16: 3.411691089 | AG16: 5.436080238 | AH16: 13.50882147 | AI16: 12.82395956 | AJ16: 16.72737204
A17: 2020-01-01T13:00:00 | B17: 0 | C17: 0 | D17: 0 | E17: 0 | F17: 0 | H17: 18.83731 | I17: 24.55303 | J17: 31.94466 | K17: 32.10709 | L17: 37.40222 | N17: 3.984099331 | O17: 5.598004547 | P17: 7.288483921 | Q17: 7.343302161 | R17: 8.60479903 | T17: 8.504661117 | U17: 11.98031829 | V17: 15.62635517 | W17: 15.76283382 | X17: 18.48461761 | Z17: -9.742393205 | AA17: -10.00898985 | AB17: -10.16453026 | AC17: -10.28217642 | AD17: -11.21155591 | AF17: 2.746367243 | AG17: 7.569332987 | AH17: 12.75030883 | AI17: 12.82395956 | AJ17: 15.87786073
A18: 2020-01-01T14:00:00 | B18: 0 | C18: 0 | D18: 0 | E18: 0 | F18: 0 | H18: 22.79647 | I18: 22.59196 | J18: 32.65971 | K18: 34.31993 | L18: 40.47581 | N18: 4.833091927 | O18: 5.145524671 | P18: 7.452978574 | Q18: 7.855076784 | R18: 9.317500517 | T18: 10.3169639 | U18: 11.01196378 | V18: 15.97902823 | W18: 16.86138842 | X18: 20.01562541 | Z18: -9.742393205 | AA18: -10.00898985 | AB18: -10.16453026 | AC18: -10.28217642 | AD18: -11.21155591 | AF18: 5.407662625 | AG18: 6.148498605 | AH18: 13.26747654 | AI18: 14.43428878 | AJ18: 18.12157002
A19: 2020-01-01T15:00:00 | B19: 0 | C19: 0 | D19: 0 | E19: 0 | F19: 0 | H19: 28.73521 | I19: 28.47515 | J19: 32.65971 | K19: 34.31993 | L19: 48.09435 | N19: 6.108952308 | O19: 6.501689707 | P19: 7.452978574 | Q19: 7.855076784 | R19: 11.08417481 | T19: 13.04048038 | U19: 13.91429954 | V19: 15.97902823 | W19: 16.86138842 | X19: 23.81075166 | Z19: -9.742393205 | AA19: -10.00898985 | AB19: -10.16453026 | AC19: -10.28217642 | AD19: -11.21155591 | AF19: 9.407039482 | AG19: 10.4069994 | AH19: 13.26747654 | AI19: 14.43428878 | AJ19: 23.68337056
A20: 2020-01-01T16:00:00 | B20: 0 | C20: 0 | D20: 0 | E20: 0 | F20: 0 | H20: 27.74543 | I20: 29.45568 | J20: 34.22744 | K20: 41.25568 | L20: 48.08083 | N20: 5.895518415 | O20: 6.728566941 | P20: 7.813496022 | Q20: 9.455294267 | R20: 11.08100019 | T20: 12.58487353 | U20: 14.39984067 | V20: 16.75197 | W20: 20.29635019 | X20: 23.80393203 | Z20: -9.742393205 | AA20: -10.00898985 | AB20: -10.16453026 | AC20: -10.28217642 | AD20: -11.21155591 | AF20: 8.737998744 | AG20: 11.11941777 | AH20: 14.40093576 | AI20: 19.46946804 | AJ20: 23.67337631
A21: 2020-01-01T17:00:00 | B21: 0 | C21: 0 | D21: 0 | E21: 0 | F21: 0 | H21: 130.4153 | I21: 45.22414 | J21: 85.12605 | K21: 66.15676 | L21: 38.57067 | N21: 26.85828391 | O21: 10.36497563 | P21: 19.53374005 | Q21: 15.20427836 | R21: 8.874641464 | T21: 57.33305921 | U21: 22.18213759 | V21: 41.879925 | W21: 32.63688569 | X21: 19.06428649 | Z21: -9.742393205 | AA21: -10.00898985 | AB21: -10.16453026 | AC21: -10.28217642 | AD21: -11.21155591 | AF21: 74.44894992 | AG21: 22.53812338 | AH21: 51.24913479 | AI21: 37.55898763 | AJ21: 16.72737204
A22: 2020-01-01T18:00:00 | B22: 0 | C22: 0 | D22: 0 | E22: 0 | F22: 0 | H22: 28.73521 | I22: 45.24345 | J22: 35.56136 | K22: 196.6984 | L22: 37.40222 | N22: 6.108952308 | O22: 10.370074 | P22: 8.120552707 | Q22: 42.41092527 | R22: 8.60479903 | T22: 13.04048038 | U22: 22.19304863 | V22: 17.41029303 | W22: 91.03756764 | X22: 18.48461761 | Z22: -9.742393205 | AA22: -10.00898985 | AB22: -10.16453026 | AC22: -10.28217642 | AD22: -11.21155591 | AF22: 9.407039482 | AG22: 22.55413278 | AH22: 15.36631548 | AI22: 123.1663165 | AJ22: 15.87786073
A23: 2020-01-01T19:00:00 | B23: 0 | C23: 0 | D23: 0 | E23: 0 | F23: 0 | H23: 28.73521 | I23: 45.31886 | J23: 35.69021 | K23: 93.18958 | L23: 37.40222 | N23: 6.108952308 | O23: 10.38791827 | P23: 8.150710061 | Q23: 21.44586397 | R23: 8.60479903 | T23: 13.04048038 | U23: 22.23123726 | V23: 17.47494976 | W23: 46.03481955 | X23: 18.48461761 | Z23: -9.742393205 | AA23: -10.00898985 | AB23: -10.16453026 | AC23: -10.28217642 | AD23: -11.21155591 | AF23: 9.407039482 | AG23: 22.61016569 | AH23: 15.46112955 | AI23: 57.19850711 | AJ23: 15.87786073
A24: 2020-01-01T20:00:00 | B24: 0 | C24: 0 | D24: 0 | E24: 0 | F24: 0 | H24: 28.73521 | I24: 59.29035 | J24: 35.69021 | K24: 68.13966 | L24: 36.23377 | N24: 6.108952308 | O24: 13.61008483 | P24: 8.150710061 | Q24: 15.66295821 | R24: 8.333369287 | T24: 13.04048038 | U24: 29.12701245 | V24: 17.47494976 | W24: 33.6214692 | X24: 17.90153891 | Z24: -9.742393205 | AA24: -10.00898985 | AB24: -10.16453026 | AC24: -10.28217642 | AD24: -11.21155591 | AF24: 9.407039482 | AG24: 32.72810743 | AH24: 15.46112955 | AI24: 39.002251 | AJ24: 15.02335229
A25: 2020-01-01T21:00:00 | B25: 0 | C25: 0 | D25: 0 | E25: 0 | F25: 0 | H25: 29.72501 | I25: 31.41675 | J25: 76.46625 | K25: 52.84227 | L25: 37.40222 | N25: 6.321200457 | O25: 7.181046816 | P25: 17.53924239 | Q25: 12.13068091 | R25: 8.60479903 | T25: 13.49355608 | U25: 15.36819518 | V25: 37.60376423 | W25: 26.03922638 | X25: 18.48461761 | Z25: -9.742393205 | AA25: -10.00898985 | AB25: -10.16453026 | AC25: -10.28217642 | AD25: -11.21155591 | AF25: 10.07236333 | AG25: 12.54025215 | AH25: 44.97847636 | AI25: 27.88773088 | AJ25: 15.87786073
A26: 2020-01-01T22:00:00 | B26: 0 | C26: 0 | D26: 0 | E26: 0 | F26: 0 | H26: 26.75563 | I26: 29.45568 | J26: 33.72148 | K26: 52.85586 | L26: 37.40222 | N26: 5.683270266 | O26: 6.728566941 | P26: 7.696978976 | Q26: 12.13363062 | R26: 8.60479903 | T26: 12.13179784 | U26: 14.39984067 | V26: 16.50215992 | W26: 26.04555811 | X26: 18.48461761 | Z26: -9.742393205 | AA26: -10.00898985 | AB26: -10.16453026 | AC26: -10.28217642 | AD26: -11.21155591 | AF26: 8.072674899 | AG26: 11.11941777 | AH26: 14.03460863 | AI26: 27.89701232 | AJ26: 15.87786073
A27: 2020-01-01T23:00:00 | B27: 0 | C27: 0 | D27: 0 | E27: 0 | F27: 0 | H27: 33.10295 | I27: 28.47515 | J27: 34.9996 | K27: 36.53277 | L27: 37.40222 | N27: 7.045689948 | O27: 6.501689707 | P27: 7.991698563 | Q27: 8.365376553 | R27: 8.60479903 | T27: 15.0400882 | U27: 13.91429954 | V27: 17.13403247 | W27: 17.95677715 | X27: 18.48461761 | Z27: -9.742393205 | AA27: -10.00898985 | AB27: -10.16453026 | AC27: -10.28217642 | AD27: -11.21155591 | AF27: 12.34338494 | AG27: 10.4069994 | AH27: 14.96120077 | AI27: 16.03997728 | AJ27: 15.87786073
A28: 2020-01-02 | B28: 0 | C28: 0 | D28: 0 | E28: 0 | F28: 0 | H28: 28.73521 | I28: 30.43622 | J28: 34.9996 | K28: 36.53277 | L28: 38.57067 | N28: 6.108952308 | O28: 6.954169583 | P28: 7.991698563 | Q28: 8.365376553 | R28: 8.874641464 | T28: 13.04048038 | U28: 14.88265405 | V28: 17.13403247 | W28: 17.95677715 | X28: 19.06428649 | Z28: -9.742393205 | AA28: -10.00898985 | AB28: -10.16453026 | AC28: -10.28217642 | AD28: -11.21155591 | AF28: 9.407039482 | AG28: 11.82783378 | AH28: 14.96120077 | AI28: 16.03997728 | AJ28: 16.72737204
A29: 2020-01-02T01:00:00 | B29: 0 | C29: 0 | D29: 0 | E29: 0 | F29: 0 | H29: 32.70758 | I29: 45.17099 | J29: 33.21329 | K29: 35.42634 | L29: 37.40222 | N29: 6.961502135 | O29: 10.35350431 | P29: 7.58046193 | Q29: 8.110226669 | R29: 8.60479903 | T29: 14.86037661 | U29: 22.15758776 | V29: 16.25234984 | W29: 17.40908278 | X29: 18.48461761 | Z29: -9.742393205 | AA29: -10.00898985 | AB29: -10.16453026 | AC29: -10.28217642 | AD29: -11.21155591 | AF29: 12.07948554 | AG29: 22.50210223 | AH29: 13.66828151 | AI29: 15.23713303 | AJ29: 15.87786073
A30: 2020-01-02T02:00:00 | B30: 0 | C30: 0 | D30: 0 | E30: 0 | F30: 0 | H30: 31.70458 | I30: 28.47515 | J30: 33.21329 | K30: 34.31993 | L30: 37.40222 | N30: 6.745696755 | O30: 6.501689707 | P30: 7.58046193 | Q30: 7.855076784 | R30: 8.60479903 | T30: 14.39970747 | U30: 13.91429954 | V30: 16.25234984 | W30: 16.86138842 | X30: 18.48461761 | Z30: -9.742393205 | AA30: -10.00898985 | AB30: -10.16453026 | AC30: -10.28217642 | AD30: -11.21155591 | AF30: 11.40301102 | AG30: 10.4069994 | AH30: 13.66828151 | AI30: 14.43428878 | AJ30: 15.87786073
A31: 2020-01-02T03:00:00 | B31: 0 | C31: 0 | D31: 0 | E31: 0 | F31: 0 | H31: 34.67396 | I31: 28.47515 | J31: 32.16824 | K31: 35.42634 | L31: 37.40222 | N31: 7.383626945 | O31: 6.501689707 | P31: 7.340573894 | Q31: 8.110226669 | R31: 8.60479903 | T31: 15.76146571 | U31: 13.91429954 | V31: 15.73803497 | W31: 17.40908278 | X31: 18.48461761 | Z31: -9.742393205 | AA31: -10.00898985 | AB31: -10.16453026 | AC31: -10.28217642 | AD31: -11.21155591 | AF31: 13.40269945 | AG31: 10.4069994 | AH31: 12.9140786 | AI31: 15.23713303 | AJ31: 15.87786073
A32: 2020-01-02T04:00:00 | B32: 0 | C32: 0 | D32: 0 | E32: 0 | F32: 0 | H32: 37.64333 | I32: 29.45568 | J32: 32.16824 | K32: 36.53277 | L32: 38.57067 | N32: 8.020371392 | O32: 6.728566941 | P32: 7.340573894 | Q32: 8.365376553 | R32: 8.874641464 | T32: 17.1206928 | U32: 14.39984067 | V32: 15.73803497 | W32: 17.95677715 | X32: 19.06428649 | Z32: -9.742393205 | AA32: -10.00898985 | AB32: -10.16453026 | AC32: -10.28217642 | AD32: -11.21155591 | AF32: 15.39867098 | AG32: 11.11941777 | AH32: 12.9140786 | AI32: 16.03997728 | AJ32: 16.72737204
A33: 2020-01-02T05:00:00 | B33: 0 | C33: 0 | D33: 0 | E33: 0 | F33: 0 | H33: 67.30126 | I33: 30.43622 | J33: 33.09899 | K33: 37.63918 | L33: 39.73911 | N33: 14.38663011 | O33: 6.954169583 | P33: 7.554416943 | Q33: 8.620526437 | R33: 9.146071206 | T33: 30.71043254 | U33: 14.88265405 | V33: 16.19650994 | W33: 18.50447151 | X33: 19.64736518 | Z33: -9.742393205 | AA33: -10.00898985 | AB33: -10.16453026 | AC33: -10.28217642 | AD33: -11.21155591 | AF33: 35.35466945 | AG33: 11.82783378 | AH33: 13.58639662 | AI33: 16.84282153 | AJ33: 17.58188048
A34: 2020-01-02T06:00:00 | B34: 0 | C34: 0 | D34: 0 | E34: 0 | F34: 0 | H34: 30.71479 | I34: 35.99319 | J34: 52.56006 | K34: 39.85202 | L34: 42.076 | N34: 6.533448606 | O34: 8.236408329 | P34: 12.03552545 | Q34: 9.132301061 | R34: 9.688930691 | T34: 13.94663177 | U34: 17.62677978 | V34: 25.80391168 | W34: 19.60302611 | X34: 20.81352257 | Z34: -9.742393205 | AA34: -10.00898985 | AB34: -10.16453026 | AC34: -10.28217642 | AD34: -11.21155591 | AF34: 10.73768717 | AG34: 15.85419826 | AH34: 27.67490687 | AI34: 18.45315075 | AJ34: 19.29089736
A35: 2020-01-02T07:00:00 | B35: 0 | C35: 0 | D35: 0 | E35: 0 | F35: 0 | H35: 44.11848 | I35: 35.98806 | J35: 66.56235 | K35: 37.63918 | L35: 44.41289 | N35: 9.411248926 | O35: 8.235133738 | P35: 15.25962065 | Q35: 8.620526437 | R35: 10.23020287 | T35: 20.08973074 | U35: 17.62405202 | V35: 32.71630351 | W35: 18.50447151 | X35: 21.97627015 | Z35: -9.742393205 | AA35: -10.00898985 | AB35: -10.16453026 | AC35: -10.28217642 | AD35: -11.21155591 | AF35: 19.75858646 | AG35: 15.85019591 | AH35: 37.8113939 | AI35: 16.84282153 | AJ35: 20.99491711
A36: 2020-01-02T08:00:00 | B36: 0 | C36: 0 | D36: 0 | E36: 0 | F36: 0 | H36: 29.72501 | I36: 28.47515 | J36: 66.51732 | K36: 39.85202 | L36: 51.44736 | N36: 6.321200457 | O36: 6.501689707 | P36: 15.24865434 | Q36: 9.132301061 | R36: 11.86195594 | T36: 13.49355608 | U36: 13.91429954 | V36: 32.69279198 | W36: 19.60302611 | X36: 25.48156196 | Z36: -9.742393205 | AA36: -10.00898985 | AB36: -10.16453026 | AC36: -10.28217642 | AD36: -11.21155591 | AF36: 10.07236333 | AG36: 10.4069994 | AH36: 37.77691606 | AI36: 18.45315075 | AJ36: 26.13196199
A37: 2020-01-02T09:00:00 | B37: 0 | C37: 0 | D37: 0 | E37: 0 | F37: 0 | H37: 28.73521 | I37: 31.41675 | J37: 42.70721 | K37: 34.31993 | L37: 47.91822 | N37: 6.108952308 | O37: 7.181046816 | P37: 9.766870027 | Q37: 7.855076784 | R37: 11.04290479 | T37: 13.04048038 | U37: 15.36819518 | V37: 20.9399625 | W37: 16.86138842 | X37: 23.72209642 | Z37: -9.742393205 | AA37: -10.00898985 | AB37: -10.16453026 | AC37: -10.28217642 | AD37: -11.21155591 | AF37: 9.407039482 | AG37: 12.54025215 | AH37: 20.54230226 | AI37: 14.43428878 | AJ37: 23.5534453
A38: 2020-01-02T10:00:00 | B38: 0 | C38: 0 | D38: 0 | E38: 0 | F38: 0 | H38: 28.73521 | I38: 34.35834 | J38: 42.71977 | K38: 27.68142 | L38: 43.24445 | N38: 6.108952308 | O38: 7.859129334 | P38: 9.769611605 | Q38: 6.322702624 | R38: 9.958773125 | T38: 13.04048038 | U38: 16.81936306 | V38: 20.94584038 | W38: 13.57205635 | X38: 21.39319145 | Z38: -9.742393205 | AA38: -10.00898985 | AB38: -10.16453026 | AC38: -10.28217642 | AD38: -11.21155591 | AF38: 9.407039482 | AG38: 14.66950255 | AH38: 20.55092172 | AI38: 9.612582558 | AJ38: 20.14040867
A39: 2020-01-02T11:00:00 | B39: 0 | C39: 0 | D39: 0 | E39: 0 | F39: 0 | H39: 29.72501 | I39: 29.45568 | J39: 66.64974 | K39: 31.00067 | L39: 44.41289 | N39: 6.321200457 | O39: 6.728566941 | P39: 15.28018248 | Q39: 7.088152277 | R39: 10.23020287 | T39: 13.49355608 | U39: 14.39984067 | V39: 32.76038765 | W39: 15.21513945 | X39: 21.97627015 | Z39: -9.742393205 | AA39: -10.00898985 | AB39: -10.16453026 | AC39: -10.28217642 | AD39: -11.21155591 | AF39: 10.07236333 | AG39: 11.11941777 | AH39: 37.87603987 | AI39: 12.02111531 | AJ39: 20.99491711
A40: 2020-01-02T12:00:00 | B40: 0 | C40: 0 | D40: 0 | E40: 0 | F40: 0 | H40: 28.73521 | I40: 24.55303 | J40: 85.66617 | K40: 26.57499 | L40: 44.41289 | N40: 6.108952308 | O40: 5.598004547 | P40: 19.65848183 | Q40: 6.066077885 | R40: 10.23020287 | T40: 13.04048038 | U40: 11.98031829 | V40: 42.14736873 | W40: 13.02119612 | X40: 21.97627015 | Z40: -9.742393205 | AA40: -10.00898985 | AB40: -10.16453026 | AC40: -10.28217642 | AD40: -11.21155591 | AF40: 9.407039482 | AG40: 7.569332987 | AH40: 51.6413203 | AI40: 8.805097589 | AJ40: 20.99491711
A41: 2020-01-02T13:00:00 | B41: 0 | C41: 0 | D41: 0 | E41: 0 | F41: 0 | H41: 28.73521 | I41: 23.57249 | J41: 33.72148 | K41: 27.68142 | L41: 51.42356 | N41: 6.108952308 | O41: 5.371127313 | P41: 7.696978976 | Q41: 6.322702624 | R41: 11.85560671 | T41: 13.04048038 | U41: 11.49477716 | V41: 16.50215992 | W41: 13.57205635 | X41: 25.46792269 | Z41: -9.742393205 | AA41: -10.00898985 | AB41: -10.16453026 | AC41: -10.28217642 | AD41: -11.21155591 | AF41: 9.407039482 | AG41: 6.856914621 | AH41: 14.03460863 | AI41: 9.612582558 | AJ41: 26.11197349
A42: 2020-01-02T14:00:00 | B42: 0 | C42: 0 | D42: 0 | E42: 0 | F42: 0 | H42: 34.67396 | I42: 23.57249 | J42: 35.39138 | K42: 26.57499 | L42: 46.74979 | N42: 7.383626945 | O42: 5.371127313 | P42: 8.082170622 | Q42: 6.066077885 | R42: 10.77147504 | T42: 15.76146571 | U42: 11.49477716 | V42: 17.32800265 | W42: 13.02119612 | X42: 23.13901772 | Z42: -9.742393205 | AA42: -10.00898985 | AB42: -10.16453026 | AC42: -10.28217642 | AD42: -11.21155591 | AF42: 13.40269945 | AG42: 6.856914621 | AH42: 15.24564301 | AI42: 8.805097589 | AJ42: 22.69893686
A43: 2020-01-02T15:00:00 | B43: 0 | C43: 0 | D43: 0 | E43: 0 | F43: 0 | H43: 37.64333 | I43: 28.47515 | J43: 33.95455 | K43: 36.53277 | L43: 50.25512 | N43: 8.020371392 | O43: 6.501689707 | P43: 7.751810527 | Q43: 8.365376553 | R43: 11.58576427 | T43: 17.1206928 | U43: 13.91429954 | V43: 16.6197176 | W43: 17.95677715 | X43: 24.88825381 | Z43: -9.742393205 | AA43: -10.00898985 | AB43: -10.16453026 | AC43: -10.28217642 | AD43: -11.21155591 | AF43: 15.39867098 | AG43: 10.4069994 | AH43: 14.20699787 | AI43: 16.03997728 | AJ43: 25.26246217
A44: 2020-01-02T16:00:00 | B44: 0 | C44: 0 | D44: 0 | E44: 0 | F44: 0 | H44: 48.3033 | I44: 284.8691 | J44: 42.72286 | K44: 58.52942 | L44: 304.0872 | N44: 10.30885702 | O44: 68.69791645 | P44: 9.769611605 | Q44: 13.44330171 | R44: 83.12893008 | T44: 22.00581064 | U44: 147.0207639 | V44: 20.94584038 | W44: 28.8568448 | X44: 178.5755227 | Z44: -9.742393205 | AA44: -10.00898985 | AB44: -10.16453026 | AC44: -10.28217642 | AD44: -11.21155591 | AF44: 22.57227445 | AG44: 205.7096905 | AH44: 20.55092172 | AI44: 32.01797009 | AJ44: 250.4928969
A45: 2020-01-02T17:00:00 | B45: 0 | C45: 0 | D45: 0 | E45: 0 | F45: 0 | H45: 42.4947 | I45: 64.52818 | J45: 146.8856 | K45: 130.8874 | L45: 55.10914 | N45: 9.062640235 | O45: 14.81839728 | P45: 31.89825481 | Q45: 29.59886143 | R45: 12.71116595 | T45: 19.34557289 | U45: 31.71292815 | V45: 68.38918278 | W45: 63.53571237 | X45: 27.30581402 | Z45: -9.742393205 | AA45: -10.00898985 | AB45: -10.16453026 | AC45: -10.28217642 | AD45: -11.21155591 | AF45: 18.66581992 | AG45: 36.52233558 | AH45: 90.12290733 | AI45: 82.85239739 | AJ45: 28.80542406
A46: 2020-01-02T18:00:00 | B46: 0 | C46: 0 | D46: 0 | E46: 0 | F46: 0 | H46: 29.72501 | I46: 64.57004 | J46: 113.7785 | K46: 88.07055 | L46: 249.799 | N46: 6.321200457 | O46: 14.82731942 | P46: 25.6584243 | Q46: 20.26450526 | R46: 53.39864308 | T46: 13.49355608 | U46: 31.73202246 | V46: 55.01111832 | W46: 43.49896298 | X46: 114.7096515 | Z46: -9.742393205 | AA46: -10.00898985 | AB46: -10.16453026 | AC46: -10.28217642 | AD46: -11.21155591 | AF46: 10.07236333 | AG46: 36.55035203 | AH46: 70.50501236 | AI46: 53.48129182 | AJ46: 156.8967387
A47: 2020-01-02T19:00:00 | B47: 0 | C47: 0 | D47: 0 | E47: 0 | F47: 0 | H47: 29.72501 | I47: 64.60404 | J47: 131.465 | K47: 88.20895 | L47: 38.57067 | N47: 6.321200457 | O47: 14.83624156 | P47: 29.00314892 | Q47: 20.29547721 | R47: 8.874641464 | T47: 13.49355608 | U47: 31.75111677 | V47: 62.18213706 | W47: 43.56544611 | X47: 19.06428649 | Z47: -9.742393205 | AA47: -10.00898985 | AB47: -10.16453026 | AC47: -10.28217642 | AD47: -11.21155591 | AF47: 10.07236333 | AG47: 36.57836848 | AH47: 81.02075571 | AI47: 53.5787469 | AJ47: 16.72737204
A48: 2020-01-02T20:00:00 | B48: 0 | C48: 0 | D48: 0 | E48: 0 | F48: 0 | H48: 29.72501 | I48: 64.72401 | J48: 129.9692 | K48: 37.63918 | L48: 45.22086 | N48: 6.321200457 | O48: 14.86300797 | P48: 28.72899116 | Q48: 8.620526437 | R48: 10.41750526 | T48: 13.49355608 | U48: 31.80839972 | V48: 61.59434864 | W48: 18.50447151 | X48: 22.37862855 | Z48: -9.742393205 | AA48: -10.00898985 | AB48: -10.16453026 | AC48: -10.28217642 | AD48: -11.21155591 | AF48: 10.07236333 | AG48: 36.66241784 | AH48: 80.15880954 | AI48: 16.84282153 | AJ48: 21.5845779
A49: 2020-01-02T21:00:00 | B49: 0 | C49: 0 | D49: 0 | E49: 0 | F49: 0 | H49: 126.7244 | I49: 32.39728 | J49: 56.20793 | K49: 112.476 | L49: 55.17657 | N49: 26.19426736 | O49: 7.406649459 | P49: 12.87581897 | Q49: 25.89845068 | R49: 12.72703904 | T49: 55.9156157 | U49: 15.85100855 | V49: 27.60548319 | W49: 55.59256113 | X49: 27.33991219 | Z49: -9.742393205 | AA49: -10.00898985 | AB49: -10.16453026 | AC49: -10.28217642 | AD49: -11.21155591 | AF49: 72.36748985 | AG49: 13.24866816 | AH49: 30.3167719 | AI49: 71.20883539 | AJ49: 28.85539532
A50: 2020-01-02T22:00:00 | B50: 0 | C50: 0 | D50: 0 | E50: 0 | F50: 0 | H50: 33.72722 | I50: 31.41675 | J50: 37.3855 | K50: 40.63841 | L50: 44.41289 | N50: 7.179679003 | O50: 7.181046816 | P50: 8.541384862 | Q50: 9.313708204 | R50: 10.23020287 | T50: 15.32610805 | U50: 15.36819518 | V50: 18.31254826 | W50: 19.99242731 | X50: 21.97627015 | Z50: -9.742393205 | AA50: -10.00898985 | AB50: -10.16453026 | AC50: -10.28217642 | AD50: -11.21155591 | AF50: 12.76339385 | AG50: 12.54025215 | AH50: 16.68940286 | AI50: 19.02395909 | AJ50: 20.99491711
A51: 2020-01-02T23:00:00 | B51: 0 | C51: 0 | D51: 0 | E51: 0 | F51: 0 | H51: 34.41255 | I51: 30.43622 | J51: 34.7014 | K51: 37.63918 | L51: 42.076 | N51: 7.32671124 | O51: 6.954169583 | P51: 7.923159124 | Q51: 8.620526437 | R51: 9.688930691 | T51: 15.63997055 | U51: 14.88265405 | V51: 16.98708537 | W51: 18.50447151 | X51: 20.81352257 | Z51: -9.742393205 | AA51: -10.00898985 | AB51: -10.16453026 | AC51: -10.28217642 | AD51: -11.21155591 | AF51: 13.22428858 | AG51: 11.82783378 | AH51: 14.74571423 | AI51: 16.84282153 | AJ51: 19.29089736
A52: 2020-01-03 | B52: 0 | C52: 0 | D52: 0 | E52: 0 | F52: 0 | H52: 30.71479 | I52: 31.41675 | J52: 34.22744 | K52: 36.53277 | L52: 37.40222 | N52: 6.533448606 | O52: 7.181046816 | P52: 7.813496022 | Q52: 8.365376553 | R52: 8.60479903 | T52: 13.94663177 | U52: 15.36819518 | V52: 16.75197 | W52: 17.95677715 | X52: 18.48461761 | Z52: -9.742393205 | AA52: -10.00898985 | AB52: -10.16453026 | AC52: -10.28217642 | AD52: -11.21155591 | AF52: 10.73768717 | AG52: 12.54025215 | AH52: 14.40093576 | AI52: 16.03997728 | AJ52: 15.87786073
A53: 2020-01-03T01:00:00 | B53: 0 | C53: 0 | D53: 0 | E53: 0 | F53: 0 | H53: 64.72668 | I53: 33.37781 | J53: 34.16282 | K53: 40.62971 | L53: 37.40222 | N53: 13.83407348 | O53: 7.633526692 | P53: 7.799788134 | Q53: 9.310758494 | R53: 8.60479903 | T53: 29.53091704 | U53: 16.33654969 | V53: 16.72258058 | W53: 19.98609558 | X53: 18.48461761 | Z53: -9.742393205 | AA53: -10.00898985 | AB53: -10.16453026 | AC53: -10.28217642 | AD53: -11.21155591 | AF53: 33.62259732 | AG53: 13.96108653 | AH53: 14.35783845 | AI53: 19.01467766 | AJ53: 15.87786073
A54: 2020-01-03T02:00:00 | B54: 0 | C54: 0 | D54: 0 | E54: 0 | F54: 0 | H54: 30.71479 | I54: 31.41675 | J54: 33.72148 | K54: 49.58614 | L54: 35.06534 | N54: 6.533448606 | O54: 7.181046816 | P54: 7.696978976 | Q54: 11.37850496 | R54: 8.061939545 | T54: 13.94663177 | U54: 15.36819518 | V54: 16.50215992 | W54: 24.42463605 | X54: 17.31846022 | Z54: -9.742393205 | AA54: -10.00898985 | AB54: -10.16453026 | AC54: -10.28217642 | AD54: -11.21155591 | AF54: 10.73768717 | AG54: 12.54025215 | AH54: 14.03460863 | AI54: 25.52096459 | AJ54: 14.16884385
A55: 2020-01-03T03:00:00 | B55: 0 | C55: 0 | D55: 0 | E55: 0 | F55: 0 | H55: 29.72501 | I55: 31.41675 | J55: 34.22744 | K55: 49.59058 | L55: 29.2231 | N55: 6.321200457 | O55: 7.181046816 | P55: 7.813496022 | Q55: 11.37997981 | R55: 6.707965449 | T55: 13.49355608 | U55: 15.36819518 | V55: 16.75197 | W55: 24.42780192 | X55: 14.40988637 | Z55: -9.742393205 | AA55: -10.00898985 | AB55: -10.16453026 | AC55: -10.28217642 | AD55: -11.21155591 | AF55: 10.07236333 | AG55: 12.54025215 | AH55: 14.40093576 | AI55: 25.52560531 | AJ55: 9.906295909
A56: 2020-01-03T04:00:00 | B56: 0 | C56: 0 | D56: 0 | E56: 0 | F56: 0 | H56: 30.71479 | I56: 33.37781 | J56: 33.84091 | K56: 49.61512 | L56: 37.40222 | N56: 6.533448606 | O56: 7.633526692 | P56: 7.724394751 | Q56: 11.38587923 | R56: 8.60479903 | T56: 13.94663177 | U56: 16.33654969 | V56: 16.56093876 | W56: 24.44046537 | X56: 18.48461761 | Z56: -9.742393205 | AA56: -10.00898985 | AB56: -10.16453026 | AC56: -10.28217642 | AD56: -11.21155591 | AF56: 10.73768717 | AG56: 13.96108653 | AH56: 14.12080325 | AI56: 25.54416818 | AJ56: 15.87786073
A57: 2020-01-03T05:00:00 | B57: 0 | C57: 0 | D57: 0 | E57: 0 | F57: 0 | H57: 40.41211 | I57: 33.37781 | J57: 35.94963 | K57: 58.60991 | L57: 37.40222 | N57: 8.615614804 | O57: 7.633526692 | P57: 8.211024767 | Q57: 13.46247482 | R57: 8.60479903 | T57: 18.39132967 | U57: 16.33654969 | V57: 17.60426321 | W57: 28.89800102 | X57: 18.48461761 | Z57: -9.742393205 | AA57: -10.00898985 | AB57: -10.16453026 | AC57: -10.28217642 | AD57: -11.21155591 | AF57: 17.26455126 | AG57: 13.96108653 | AH57: 15.65075771 | AI57: 32.07829942 | AJ57: 15.87786073
A58: 2020-01-03T06:00:00 | B58: 0 | C58: 0 | D58: 0 | E58: 0 | F58: 0 | H58: 59.77175 | I58: 33.37781 | J58: 49.63121 | K58: 113.0387 | L58: 42.076 | N58: 12.77046125 | O58: 7.633526692 | P58: 11.36109737 | Q58: 26.02823791 | R58: 9.688930691 | T58: 27.26047626 | U58: 16.33654969 | V58: 24.35795217 | W58: 55.87115711 | X58: 20.81352257 | Z58: -9.742393205 | AA58: -10.00898985 | AB58: -10.16453026 | AC58: -10.28217642 | AD58: -11.21155591 | AF58: 30.2885443 | AG58: 13.96108653 | AH58: 25.55451928 | AI58: 71.61721859 | AJ58: 19.29089736
A59: 2020-01-03T07:00:00 | B59: 0 | C59: 0 | D59: 0 | E59: 0 | F59: 0 | H59: 50.0358 | I59: 34.35834 | J59: 61.64422 | K59: 37.63918 | L59: 44.41289 | N59: 10.68118059 | O59: 7.859129334 | P59: 14.12734912 | Q59: 8.620526437 | R59: 10.23020287 | T59: 22.80059147 | U59: 16.81936306 | V59: 30.28873733 | W59: 18.50447151 | X59: 21.97627015 | Z59: -9.742393205 | AA59: -10.00898985 | AB59: -10.16453026 | AC59: -10.28217642 | AD59: -11.21155591 | AF59: 23.73937885 | AG59: 14.66950255 | AH59: 34.25155619 | AI59: 16.84282153 | AJ59: 20.99491711
A60: 2020-01-03T08:00:00 | B60: 0 | C60: 0 | D60: 0 | E60: 0 | F60: 0 | H60: 49.99808 | I60: 31.41675 | J60: 38.71458 | K60: 84.6379 | L60: 43.24445 | N60: 10.67288038 | O60: 7.181046816 | P60: 8.847070759 | Q60: 19.47103337 | R60: 9.958773125 | T60: 22.78287343 | U60: 15.36819518 | V60: 18.96793235 | W60: 41.79572847 | X60: 21.39319145 | Z60: -9.742393205 | AA60: -10.00898985 | AB60: -10.16453026 | AC60: -10.28217642 | AD60: -11.21155591 | AF60: 23.7133606 | AG60: 12.54025215 | AH60: 17.65047284 | AI60: 50.98458542 | AJ60: 20.14040867
A61: 2020-01-03T09:00:00 | B61: 0 | C61: 0 | D61: 0 | E61: 0 | F61: 0 | H61: 59.61329 | I61: 29.45568 | J61: 5.013188 | K61: 37.63918 | L61: 38.57067 | N61: 12.73726042 | O61: 6.728566941 | P61: 1.087035499 | Q61: 8.620526437 | R61: 8.874641464 | T61: 27.18960408 | U61: 14.39984067 | V61: 2.330581089 | W61: 18.50447151 | X61: 19.06428649 | Z61: -9.742393205 | AA61: -10.00898985 | AB61: -10.16453026 | AC61: -10.28217642 | AD61: -11.21155591 | AF61: 30.1844713 | AG61: 11.11941777 | AH61: -6.746913674 | AI61: 16.84282153 | AJ61: 16.72737204
A62: 2020-01-03T10:00:00 | B62: 0 | C62: 0 | D62: 0 | E62: 0 | F62: 0 | H62: 64.50759 | I62: 30.43622 | J62: 0.291136 | K62: 46.6373 | L62: 36.23377 | N62: 13.78782947 | O62: 6.954169583 | P62: 0 | Q62: 10.69859688 | R62: 8.333369287 | T62: 29.43220222 | U62: 14.88265405 | V62: 0 | W62: 22.96517303 | X62: 17.90153891 | Z62: -9.742393205 | AA62: -10.00898985 | AB62: -10.16453026 | AC62: -10.28217642 | AD62: -11.21155591 | AF62: 33.47763849 | AG62: 11.82783378 | AH62: -10.16453026 | AI62: 23.38159349 | AJ62: 15.02335229
A63: 2020-01-03T11:00:00 | B63: 0 | C63: 0 | D63: 0 | E63: 0 | F63: 0 | H63: 76.8282 | I63: 34.51074 | J63: 36.15444 | K63: 35.42634 | L63: 36.23377 | N63: 16.43203825 | O63: 7.894817888 | P63: 8.257631585 | Q63: 8.110226669 | R63: 8.333369287 | T63: 35.07666481 | U63: 16.89574032 | V63: 17.70418724 | W63: 17.40908278 | X63: 17.90153891 | Z63: -9.742393205 | AA63: -10.00898985 | AB63: -10.16453026 | AC63: -10.28217642 | AD63: -11.21155591 | AF63: 41.76630986 | AG63: 14.78156836 | AH63: 15.79728856 | AI63: 15.23713303 | AJ63: 15.02335229
A64: 2020-01-03T12:00:00 | B64: 0 | C64: 0 | D64: 0 | E64: 0 | F64: 0 | H64: 64.48031 | I64: 28.47515 | J64: 36.15444 | K64: 35.42634 | L64: 29.2231 | N64: 13.78190075 | O64: 6.501689707 | P64: 8.257631585 | Q64: 8.110226669 | R64: 6.707965449 | T64: 29.41954648 | U64: 13.91429954 | V64: 17.70418724 | W64: 17.40908278 | X64: 14.40988637 | Z64: -9.742393205 | AA64: -10.00898985 | AB64: -10.16453026 | AC64: -10.28217642 | AD64: -11.21155591 | AF64: 33.45905402 | AG64: 10.4069994 | AH64: 15.79728856 | AI64: 15.23713303 | AJ64: 9.906295909
A65: 2020-01-03T13:00:00 | B65: 0 | C65: 0 | D65: 0 | E65: 0 | F65: 0 | H65: 40.3569 | I65: 24.55303 | J65: 30.92922 | K65: 37.63918 | L65: 32.72844 | N65: 8.603757365 | O65: 5.598004547 | P65: 7.05407904 | Q65: 8.620526437 | R65: 7.520667368 | T65: 18.36601817 | U65: 11.98031829 | V65: 15.12379607 | W65: 18.50447151 | X65: 16.15571264 | Z65: -9.742393205 | AA65: -10.00898985 | AB65: -10.16453026 | AC65: -10.28217642 | AD65: -11.21155591 | AF65: 17.22738233 | AG65: 7.569332987 | AH65: 12.01334485 | AI65: 16.84282153 | AJ65: 12.4648241
A66: 2020-01-03T14:00:00 | B66: 0 | C66: 0 | D66: 0 | E66: 0 | F66: 0 | H66: 59.6366 | I66: 28.47515 | J66: 29.04961 | K66: 37.63918 | L66: 30.39155 | N66: 12.7420034 | O66: 6.501689707 | P66: 6.622280576 | Q66: 8.620526437 | R66: 6.977807883 | T66: 27.19972868 | U66: 13.91429954 | V66: 14.19802931 | W66: 18.50447151 | X66: 14.98955525 | Z66: -9.742393205 | AA66: -10.00898985 | AB66: -10.16453026 | AC66: -10.28217642 | AD66: -11.21155591 | AF66: 30.19933887 | AG66: 10.4069994 | AH66: 10.65577962 | AI66: 16.84282153 | AJ66: 10.75580722
A67: 2020-01-03T15:00:00 | B67: 0 | C67: 0 | D67: 0 | E67: 0 | F67: 0 | H67: 59.67486 | I67: 31.41675 | J67: 27.76753 | K67: 49.68129 | L67: 38.57067 | N67: 12.7503036 | O67: 7.181046816 | P67: 6.3261902 | Q67: 11.40062778 | R67: 8.874641464 | T67: 27.21744672 | U67: 15.36819518 | V67: 13.56321781 | W67: 24.472124 | X67: 19.06428649 | Z67: -9.742393205 | AA67: -10.00898985 | AB67: -10.16453026 | AC67: -10.28217642 | AD67: -11.21155591 | AF67: 30.22535712 | AG67: 12.54025215 | AH67: 9.724877752 | AI67: 25.59057536 | AJ67: 16.72737204
A68: 2020-01-03T16:00:00 | B68: 0 | C68: 0 | D68: 0 | E68: 0 | F68: 0 | H68: 76.81383 | I68: 31.41675 | J68: 36.80307 | K68: 70.59197 | L68: 52.44889 | N68: 16.42966677 | O68: 7.181046816 | P68: 8.407047562 | Q68: 16.22930247 | R68: 12.09370297 | T68: 35.07160251 | U68: 15.36819518 | V68: 18.02453193 | W68: 34.83716074 | X68: 25.97939523 | Z68: -9.742393205 | AA68: -10.00898985 | AB68: -10.16453026 | AC68: -10.28217642 | AD68: -11.21155591 | AF68: =SUM(N68,T68,Z68) -> 41.75887607 | AG68: 12.54025215 | AH68: 16.26704923 | AI68: 40.78428679 | AJ68: 26.86154229
A69: 2020-01-03T17:00:00 | B69: 0 | C69: 0 | D69: 0 | E69: 0 | F69: 0 | H69: 49.96274 | I69: 114.84 | J69: 50.06048 | K69: 35.42634 | L69: 126.375 | N69: 10.66576592 | O69: 25.79135292 | P69: 11.45979417 | Q69: 8.110226669 | R69: 29.23980869 | T69: 22.76768653 | U69: 55.19620687 | V69: 24.569556 | W69: 17.40908278 | X69: 62.81223777 | Z69: -9.742393205 | AA69: -10.00898985 | AB69: -10.16453026 | AC69: -10.28217642 | AD69: -11.21155591 | AF69: 23.69105925 | AG69: 70.97856993 | AH69: 25.8648199 | AI69: 15.23713303 | AJ69: 80.84049055
A70: 2020-01-03T18:00:00 | B70: 0 | C70: 0 | D70: 0 | E70: 0 | F70: 0 | H70: 59.6169 | I70: 49.63261 | J70: 66.97861 | K70: 37.63918 | L70: 106.3025 | N70: 12.73726042 | O70: 11.38209941 | P70: 15.35557587 | Q70: 8.620526437 | R70: 24.58423305 | T70: 27.18960408 | U70: 24.35888942 | V70: 32.92202946 | W70: 18.50447151 | X70: 52.8112447 | Z70: -9.742393205 | AA70: -10.00898985 | AB70: -10.16453026 | AC70: -10.28217642 | AD70: -11.21155591 | AF70: 30.1844713 | AG70: 25.73199898 | AH70: 38.11307506 | AI70: 16.84282153 | AJ70: 66.18392184
A71: 2020-01-03T19:00:00 | B71: 0 | C71: 0 | D71: 0 | E71: 0 | F71: 0 | H71: 59.70592 | I71: 40.5237 | J71: 72.89116 | K71: 35.42634 | L71: 106.4587 | N71: 12.75623232 | O71: 9.281573113 | P71: 16.71676912 | Q71: 8.110226669 | R71: 24.62074115 | T71: 27.23010247 | U71: 19.8635423 | V71: 35.84039897 | W71: 17.40908278 | X71: 52.88967049 | Z71: -9.742393205 | AA71: -10.00898985 | AB71: -10.16453026 | AC71: -10.28217642 | AD71: -11.21155591 | AF71: 30.24394159 | AG71: 19.13612556 | AH71: 42.39263783 | AI71: 15.23713303 | AJ71: 66.29885572
A72: 2020-01-03T20:00:00 | B72: 0 | C72: 0 | D72: 0 | E72: 0 | F72: 0 | H72: 59.79258 | I72: 40.52277 | J72: 72.5045 | K72: 35.42634 | L72: 105.1525 | N72: 12.77520422 | O72: 9.281573113 | P72: 16.62766785 | Q72: 8.110226669 | R72: 24.31756523 | T72: 27.27060086 | U72: 19.8635423 | V72: 35.64936773 | W72: 17.40908278 | X72: 52.23839545 | Z72: -9.742393205 | AA72: -10.00898985 | AB72: -10.16453026 | AC72: -10.28217642 | AD72: -11.21155591 | AF72: 30.30341188 | AG72: 19.13612556 | AH72: 42.11250532 | AI72: 15.23713303 | AJ72: 65.34440478
A73: 2020-01-03T21:00:00 | B73: 0 | C73: 0 | D73: 0 | E73: 0 | F73: 0 | H73: 40.42623 | I73: 30.43622 | J73: 39.08938 | K73: 36.53277 | L73: 48.32007 | N73: 8.617986291 | O73: 6.954169583 | P73: 8.933430451 | Q73: 8.365376553 | R73: 11.13655598 | T73: 18.39639196 | U73: 14.88265405 | V73: 19.1530857 | W73: 17.95677715 | X73: 23.92327562 | Z73: -9.742393205 | AA73: -10.00898985 | AB73: -10.16453026 | AC73: -10.28217642 | AD73: -11.21155591 | AF73: 17.27198505 | AG73: 11.82783378 | AH73: 17.92198589 | AI73: 16.03997728 | AJ73: 23.84827569
A74: 2020-01-03T22:00:00 | B74: 0 | C74: 0 | D74: 0 | E74: 0 | F74: 0 | H74: 30.71479 | I74: 30.43622 | J74: 53.79609 | K74: 36.53277 | L74: 36.23377 | N74: 6.533448606 | O74: 6.954169583 | P74: 12.31927873 | Q74: 8.365376553 | R74: 8.333369287 | T74: 13.94663177 | U74: 14.88265405 | V74: 26.4122727 | W74: 17.95677715 | X74: 17.90153891 | Z74: -9.742393205 | AA74: -10.00898985 | AB74: -10.16453026 | AC74: -10.28217642 | AD74: -11.21155591 | AF74: 10.73768717 | AG74: 11.82783378 | AH74: 28.56702116 | AI74: 16.03997728 | AJ74: 15.02335229
A75: 2020-01-03T23:00:00 | B75: 0 | C75: 0 | D75: 0 | E75: 0 | F75: 0 | H75: 28.73521 | I75: 31.41675 | J75: 35.83205 | K75: 37.63918 | L75: 40.30836 | N75: 6.108952308 | O75: 7.181046816 | P75: 8.183608991 | Q75: 8.620526437 | R75: 9.277817806 | T75: 13.04048038 | U75: 15.36819518 | V75: 17.54548437 | W75: 18.50447151 | X75: 19.93037999 | Z75: -9.742393205 | AA75: -10.00898985 | AB75: -10.16453026 | AC75: -10.28217642 | AD75: -11.21155591 | AF75: 9.407039482 | AG75: 12.54025215 | AH75: 15.5645631 | AI75: 16.84282153 | AJ75: 17.99664188
A76: 2020-01-04 | B76: 0 | C76: 0 | D76: 0 | E76: 0 | F76: 0 | H76: 28.73521 | I76: 29.45568 | J76: 50.99723 | K76: 36.53277 | L76: 37.40222 | N76: 6.108952308 | O76: 6.728566941 | P76: 11.675008 | Q76: 8.365376553 | R76: 8.60479903 | T76: 13.04048038 | U76: 14.39984067 | V76: 25.03096991 | W76: 17.95677715 | X76: 18.48461761 | Z76: -9.742393205 | AA76: -10.00898985 | AB76: -10.16453026 | AC76: -10.28217642 | AD76: -11.21155591 | AF76: 9.407039482 | AG76: 11.11941777 | AH76: 26.54144765 | AI76: 16.03997728 | AJ76: 15.87786073
A77: 2020-01-04T01:00:00 | B77: 0 | C77: 0 | D77: 0 | E77: 0 | F77: 0 | H77: 25.76584 | I77: 63.71957 | J77: 55.65364 | K77: 34.31993 | L77: 37.40222 | N77: 5.471022117 | O77: 14.63103238 | P77: 12.74696483 | Q77: 7.855076784 | R77: 8.60479903 | T77: 11.67872214 | U77: 31.31194755 | V77: 27.32922263 | W77: 16.86138842 | X77: 18.48461761 | Z77: -9.742393205 | AA77: -10.00898985 | AB77: -10.16453026 | AC77: -10.28217642 | AD77: -11.21155591 | AF77: 7.407351054 | AG77: 35.93399007 | AH77: 29.9116572 | AI77: 14.43428878 | AJ77: 15.87786073
A78: 2020-01-04T02:00:00 | B78: 0 | C78: 0 | D78: 0 | E78: 0 | F78: 0 | H78: 28.73521 | I78: 28.47515 | J78: 35.19184 | K78: 35.42634 | L78: 35.06534 | N78: 6.108952308 | O78: 6.501689707 | P78: 8.035563803 | Q78: 8.110226669 | R78: 8.061939545 | T78: 13.04048038 | U78: 13.91429954 | V78: 17.22807862 | W78: 17.40908278 | X78: 17.31846022 | Z78: -9.742393205 | AA78: -10.00898985 | AB78: -10.16453026 | AC78: -10.28217642 | AD78: -11.21155591 | AF78: 9.407039482 | AG78: 10.4069994 | AH78: 15.09911216 | AI78: 15.23713303 | AJ78: 14.16884385
A79: 2020-01-04T03:00:00 | B79: 0 | C79: 0 | D79: 0 | E79: 0 | F79: 0 | H79: 28.73521 | I79: 29.45568 | J79: 71.67961 | K79: 34.31993 | L79: 30.39155 | N79: 6.108952308 | O79: 6.728566941 | P79: 16.43712821 | Q79: 7.855076784 | R79: 6.977807883 | T79: 13.04048038 | U79: 14.39984067 | V79: 35.24085478 | W79: 16.86138842 | X79: 14.98955525 | Z79: -9.742393205 | AA79: -10.00898985 | AB79: -10.16453026 | AC79: -10.28217642 | AD79: -11.21155591 | AF79: 9.407039482 | AG79: 11.11941777 | AH79: 41.51345273 | AI79: 14.43428878 | AJ79: 10.75580722
A80: 2020-01-04T04:00:00 | B80: 0 | C80: 0 | D80: 0 | E80: 0 | F80: 0 | H80: 26.75563 | I80: 29.45568 | J80: 41.42977 | K80: 34.31993 | L80: 35.06534 | N80: 5.683270266 | O80: 6.728566941 | P80: 9.47215044 | Q80: 7.855076784 | R80: 8.061939545 | T80: 12.13179784 | U80: 14.39984067 | V80: 20.30808995 | W80: 16.86138842 | X80: 17.31846022 | Z80: -9.742393205 | AA80: -10.00898985 | AB80: -10.16453026 | AC80: -10.28217642 | AD80: -11.21155591 | AF80: 8.072674899 | AG80: 11.11941777 | AH80: 19.61571012 | AI80: 14.43428878 | AJ80: 14.16884385
A81: 2020-01-04T05:00:00 | B81: 0 | C81: 0 | D81: 0 | E81: 0 | F81: 0 | H81: 28.73521 | I81: 28.47515 | J81: 44.39354 | K81: 36.53277 | L81: 35.06534 | N81: 6.108952308 | O81: 6.501689707 | P81: 10.15480325 | Q81: 8.365376553 | R81: 8.061939545 | T81: 13.04048038 | U81: 13.91429954 | V81: 21.77168311 | W81: 17.95677715 | X81: 17.31846022 | Z81: -9.742393205 | AA81: -10.00898985 | AB81: -10.16453026 | AC81: -10.28217642 | AD81: -11.21155591 | AF81: 9.407039482 | AG81: 10.4069994 | AH81: 21.7619561 | AI81: 16.03997728 | AJ81: 14.16884385
A82: 2020-01-04T06:00:00 | B82: 0 | C82: 0 | D82: 0 | E82: 0 | F82: 0 | H82: 28.73521 | I82: 46.48288 | J82: 45.64287 | K82: 37.63918 | L82: 36.23377 | N82: 6.108952308 | O82: 10.65558243 | P82: 10.44266889 | Q82: 8.620526437 | R82: 8.333369287 | T82: 13.04048038 | U82: 22.80406669 | V82: 22.38886096 | W82: 18.50447151 | X82: 17.90153891 | Z82: -9.742393205 | AA82: -10.00898985 | AB82: -10.16453026 | AC82: -10.28217642 | AD82: -11.21155591 | AF82: 9.407039482 | AG82: 23.45065926 | AH82: 22.66699959 | AI82: 16.84282153 | AJ82: 15.02335229
A83: 2020-01-04T07:00:00 | B83: 0 | C83: 0 | D83: 0 | E83: 0 | F83: 0 | H83: 30.71479 | I83: 46.38503 | J83: 84.96138 | K83: 37.63918 | L83: 37.40222 | N83: 6.533448606 | O83: 10.63391437 | P83: 19.49535797 | Q83: 8.620526437 | R83: 8.60479903 | T83: 13.94663177 | U83: 22.75769478 | V83: 41.79763462 | W83: 18.50447151 | X83: 18.48461761 | Z83: -9.742393205 | AA83: -10.00898985 | AB83: -10.16453026 | AC83: -10.28217642 | AD83: -11.21155591 | AF83: 10.73768717 | AG83: 23.38261931 | AH83: 51.12846232 | AI83: 16.84282153 | AJ83: 15.87786073
A84: 2020-01-04T08:00:00 | B84: 0 | C84: 0 | D84: 0 | E84: 0 | F84: 0 | H84: 28.73521 | I84: 46.32159 | J84: 43.82356 | K84: 34.31993 | L84: 33.89689 | N84: 6.108952308 | O84: 10.61861928 | P84: 10.02320753 | Q84: 7.855076784 | R84: 7.790509802 | T84: 13.04048038 | U84: 22.72496167 | V84: 21.48954467 | W84: 16.86138842 | X84: 16.73538152 | Z84: -9.742393205 | AA84: -10.00898985 | AB84: -10.16453026 | AC84: -10.28217642 | AD84: -11.21155591 | AF84: 9.407039482 | AG84: 23.3345911 | AH84: 21.34822194 | AI84: 14.43428878 | AJ84: 13.31433541
A85: 2020-01-04T09:00:00 | B85: 0 | C85: 0 | D85: 0 | E85: 0 | F85: 0 | H85: 28.73521 | I85: 88.81498 | J85: 2.339067 | K85: 22.14932 | L85: 29.2231 | N85: 6.108952308 | O85: 20.4202256 | P85: 0.4715513389 | Q85: 5.045478348 | R85: 6.707965449 | T85: 13.04048038 | U85: 43.70142971 | V85: 1.010996084 | W85: 10.83041866 | X85: 14.40988637 | Z85: -9.742393205 | AA85: -10.00898985 | AB85: -10.16453026 | AC85: -10.28217642 | AD85: -11.21155591 | AF85: 9.407039482 | AG85: 54.11266547 | AH85: -8.68198284 | AI85: 5.593720586 | AJ85: 9.906295909
A86: 2020-01-04T10:00:00 | B86: 0 | C86: 0 | D86: 0 | E86: 0 | F86: 0 | H86: 28.73521 | I86: 49.6793 | J86: 26.37507 | K86: 22.14932 | L86: 28.05465 | N86: 6.108952308 | O86: 11.39357073 | P86: 6.005425627 | Q86: 5.045478348 | R86: 6.436535707 | T86: 13.04048038 | U86: 24.38343925 | V86: 12.87550536 | W86: 10.83041866 | X86: 13.82680767 | Z86: -9.742393205 | AA86: -10.00898985 | AB86: -10.16453026 | AC86: -10.28217642 | AD86: -11.21155591 | AF86: 9.407039482 | AG86: 25.76802013 | AH86: 8.716400726 | AI86: 5.593720586 | AJ86: 9.05178747
A87: 2020-01-04T11:00:00 | B87: 0 | C87: 0 | D87: 0 | E87: 0 | F87: 0 | H87: 28.73521 | I87: 37.55329 | J87: 2.339067 | K87: 22.14932 | L87: 29.2231 | N87: 6.108952308 | O87: 8.595843047 | P87: 0.4715513389 | Q87: 5.045478348 | R87: 6.707965449 | T87: 13.04048038 | U87: 18.39600786 | V87: 1.010996084 | W87: 10.83041866 | X87: 14.40988637 | Z87: -9.742393205 | AA87: -10.00898985 | AB87: -10.16453026 | AC87: -10.28217642 | AD87: -11.21155591 | AF87: 9.407039482 | AG87: 16.98286106 | AH87: -8.68198284 | AI87: 5.593720586 | AJ87: 9.906295909
A88: 2020-01-04T12:00:00 | B88: 0 | C88: 0 | D88: 0 | E88: 0 | F88: 0 | H88: 29.72501 | I88: 37.5407 | J88: 16.47467 | K88: 22.14932 | L88: 30.39155 | N88: 6.321200457 | O88: 8.593293865 | P88: 3.725803892 | Q88: 5.045478348 | R88: 6.977807883 | T88: 13.49355608 | U88: 18.39055234 | V88: 7.988044642 | W88: 10.83041866 | X88: 14.98955525 | Z88: -9.742393205 | AA88: -10.00898985 | AB88: -10.16453026 | AC88: -10.28217642 | AD88: -11.21155591 | AF88: 10.07236333 | AG88: 16.97485636 | AH88: 1.549318271 | AI88: 5.593720586 | AJ88: 10.75580722
A89: 2020-01-04T13:00:00 | B89: 0 | C89: 0 | D89: 0 | E89: 0 | F89: 0 | H89: 34.42217 | I89: 80.16558 | J89: 2.339067 | K89: 23.25574 | L89: 25.71777 | N89: 7.329082728 | O89: 18.42549038 | P89: 0.4715513389 | Q89: 5.300628232 | R89: 5.893676222 | T89: 15.64503285 | U89: 39.43248661 | V89: 1.010996084 | W89: 11.37811302 | X89: 12.66065028 | Z89: -9.742393205 | AA89: -10.00898985 | AB89: -10.16453026 | AC89: -10.28217642 | AD89: -11.21155591 | AF89: 13.23172237 | AG89: 47.84898713 | AH89: -8.68198284 | AI89: 6.396564837 | AJ89: 7.342770593
A90: 2020-01-04T14:00:00 | B90: 0 | C90: 0 | D90: 0 | E90: 0 | F90: 0 | H90: 30.71479 | I90: 63.9378 | J90: 18.28253 | K90: 22.14932 | L90: 29.2231 | N90: 6.533448606 | O90: 14.68201602 | P90: 4.14252368 | Q90: 5.045478348 | R90: 6.707965449 | T90: 13.94663177 | U90: 31.42105791 | V90: 8.881483041 | W90: 10.83041866 | X90: 14.40988637 | Z90: -9.742393205 | AA90: -10.00898985 | AB90: -10.16453026 | AC90: -10.28217642 | AD90: -11.21155591 | AF90: 10.73768717 | AG90: 36.09408409 | AH90: 2.859476459 | AI90: 5.593720586 | AJ90: 9.906295909
A91: 2020-01-04T15:00:00 | B91: 0 | C91: 0 | D91: 0 | E91: 0 | F91: 0 | H91: 70.56184 | I91: 49.53957 | J91: 7.632283 | K91: 21.0429 | L91: 33.89689 | N91: 15.08740473 | O91: 11.36043136 | P91: 1.69018256 | Q91: 4.788853609 | R91: 7.790509802 | T91: 32.20634168 | U91: 24.31251751 | V91: 3.623715616 | W91: 10.27955843 | X91: 16.73538152 | Z91: -9.742393205 | AA91: -10.00898985 | AB91: -10.16453026 | AC91: -10.28217642 | AD91: -11.21155591 | AF91: 37.55135321 | AG91: 25.66395902 | AH91: -4.850632087 | AI91: 4.786235618 | AJ91: 13.31433541
A92: 2020-01-04T16:00:00 | B92: 0 | C92: 0 | D92: 0 | E92: 0 | F92: 0 | H92: 88.08401 | I92: 70.89347 | J92: 43.90464 | K92: 37.63918 | L92: 37.40222 | N92: 18.84858422 | O92: 16.28672634 | P92: 10.04239857 | Q92: 8.620526437 | R92: 8.60479903 | T92: 40.23514676 | U92: 34.85530671 | V92: 21.53068986 | W92: 18.50447151 | X92: 18.48461761 | Z92: -9.742393205 | AA92: -10.00898985 | AB92: -10.16453026 | AC92: -10.28217642 | AD92: -11.21155591 | AF92: 49.34133777 | AG92: 41.13304321 | AH92: 21.40855817 | AI92: 16.84282153 | AJ92: 15.87786073
A93: 2020-01-04T17:00:00 | B93: 0 | C93: 0 | D93: 0 | E93: 0 | F93: 0 | H93: 70.45409 | I93: 61.27364 | J93: 48.37522 | K93: 58.00412 | L93: 94.29389 | N93: 15.06368985 | O93: 14.06766307 | P93: 11.07186094 | Q93: 13.32236361 | R93: 21.79850675 | T93: 32.1557187 | U93: 30.10627799 | V93: 23.73783538 | W93: 28.597244 | X93: 46.82701598 | Z93: -9.742393205 | AA93: -10.00898985 | AB93: -10.16453026 | AC93: -10.28217642 | AD93: -11.21155591 | AF93: 37.47701535 | AG93: 34.16495121 | AH93: 24.64516606 | AI93: 31.63743119 | AJ93: 57.41396681
A94: 2020-01-04T18:00:00 | B94: 0 | C94: 0 | D94: 0 | E94: 0 | F94: 0 | H94: 70.592 | I94: 50.69849 | J94: 82.99146 | K94: 128.2788 | L94: 94.44161 | N94: 15.09333345 | O94: 11.62809551 | P94: 19.04299767 | Q94: 29.10478507 | R94: 21.83342753 | T94: 32.21899743 | U94: 24.88534694 | V94: 40.82778372 | W94: 62.47514814 | X94: 46.90203195 | Z94: -9.742393205 | AA94: -10.00898985 | AB94: -10.16453026 | AC94: -10.28217642 | AD94: -11.21155591 | AF94: 37.56993767 | AG94: 26.5044526 | AH94: 49.70625113 | AI94: 81.29775679 | AJ94: 57.52390357
A95: 2020-01-04T19:00:00 | B95: 0 | C95: 0 | D95: 0 | E95: 0 | F95: 0 | H95: 70.71663 | I95: 50.76026 | J95: 83.62975 | K95: 85.53204 | L95: 38.57067 | N95: 15.12060556 | O95: 11.64211601 | P95: 19.18967207 | Q95: 19.67751304 | R95: 8.874641464 | T95: 32.27721386 | U95: 24.91535229 | V95: 41.14225053 | W95: 42.23894935 | X95: 19.06428649 | Z95: -9.742393205 | AA95: -10.00898985 | AB95: -10.16453026 | AC95: -10.28217642 | AD95: -11.21155591 | AF95: 37.65542621 | AG95: 26.54847845 | AH95: 50.16739234 | AI95: 51.63428597 | AJ95: 16.72737204
A96: 2020-01-04T20:00:00 | B96: 0 | C96: 0 | D96: 0 | E96: 0 | F96: 0 | H96: 70.76517 | I96: 61.50734 | J96: 41.41889 | K96: 117.097 | L96: 117.8812 | N96: 15.13127725 | O96: 14.1211959 | P96: 9.469408863 | Q96: 26.87332972 | R96: 27.26995892 | T96: 32.2999942 | U96: 30.22084388 | V96: 20.30221206 | W96: 57.68519683 | X96: 58.58065495 | Z96: -9.742393205 | AA96: -10.00898985 | AB96: -10.16453026 | AC96: -10.28217642 | AD96: -11.21155591 | AF96: 37.68887825 | AG96: 34.33304993 | AH96: 19.60709066 | AI96: 74.27635013 | AJ96: 74.63905797
A97: 2020-01-04T21:00:00 | B97: 0 | C97: 0 | D97: 0 | E97: 0 | F97: 0 | H97: 29.72501 | I97: 40.16249 | J97: 57.20776 | K97: 37.63918 | L97: 117.841 | N97: 6.321200457 | O97: 9.197450093 | P97: 13.10611148 | Q97: 8.620526437 | R97: 27.26043507 | T97: 13.49355608 | U97: 19.68351019 | V97: 28.09922547 | W97: 18.50447151 | X97: 58.56019605 | Z97: -9.742393205 | AA97: -10.00898985 | AB97: -10.16453026 | AC97: -10.28217642 | AD97: -11.21155591 | AF97: 10.07236333 | AG97: 18.87197044 | AH97: 31.04080669 | AI97: 16.84282153 | AJ97: 74.60907521
A98: 2020-01-04T22:00:00 | B98: 0 | C98: 0 | D98: 0 | E98: 0 | F98: 0 | H98: 29.72501 | I98: 29.45568 | J98: 78.45358 | K98: 37.63918 | L98: 38.57067 | N98: 6.321200457 | O98: 6.728566941 | P98: 17.99708584 | Q98: 8.620526437 | R98: 8.874641464 | T98: 13.49355608 | U98: 14.39984067 | V98: 38.5853709 | W98: 18.50447151 | X98: 19.06428649 | Z98: -9.742393205 | AA98: -10.00898985 | AB98: -10.16453026 | AC98: -10.28217642 | AD98: -11.21155591 | AF98: 10.07236333 | AG98: 11.11941777 | AH98: 46.41792647 | AI98: 16.84282153 | AJ98: 16.72737204
A99: 2020-01-04T23:00:00 | B99: 0 | C99: 0 | D99: 0 | E99: 0 | F99: 0 | H99: 28.73521 | I99: 28.47515 | J99: 44.55263 | K99: 35.42634 | L99: 37.40222 | N99: 6.108952308 | O99: 6.501689707 | P99: 10.19181455 | Q99: 8.110226669 | R99: 8.60479903 | T99: 13.04048038 | U99: 13.91429954 | V99: 21.85103455 | W99: 17.40908278 | X99: 18.48461761 | Z99: -9.742393205 | AA99: -10.00898985 | AB99: -10.16453026 | AC99: -10.28217642 | AD99: -11.21155591 | AF99: 9.407039482 | AG99: 10.4069994 | AH99: 21.87831884 | AI99: 15.23713303 | AJ99: 15.87786073
A100: 2020-01-05 | B100: 0 | C100: 0 | D100: 0 | E100: 0 | F100: 0 | H100: 28.73521 | I100: 40.13877 | J100: 41.84997 | K100: 36.53277 | L100: 37.40222 | N100: 6.108952308 | O100: 9.192351729 | P100: 9.569476443 | Q100: 8.365376553 | R100: 8.60479903 | T100: 13.04048038 | U100: 19.67259916 | V100: 20.51675484 | W100: 17.95677715 | X100: 18.48461761 | Z100: -9.742393205 | AA100: -10.00898985 | AB100: -10.16453026 | AC100: -10.28217642 | AD100: -11.21155591 | AF100: 9.407039482 | AG100: 18.85596104 | AH100: 19.92170102 | AI100: 16.03997728 | AJ100: 15.87786073
A101: 2020-01-05T01:00:00 | B101: 0 | C101: 0 | D101: 0 | E101: 0 | F101: 0 | H101: 23.78626 | I101: 28.47515 | J101: 37.51668 | K101: 35.42634 | L101: 29.2231 | N101: 5.04652582 | O101: 6.501689707 | P101: 8.571542215 | Q101: 8.110226669 | R101: 6.707965449 | T101: 10.77257075 | U101: 13.91429954 | V101: 18.37720498 | W101: 17.40908278 | X101: 14.40988637 | Z101: -9.742393205 | AA101: -10.00898985 | AB101: -10.16453026 | AC101: -10.28217642 | AD101: -11.21155591 | AF101: 6.076703363 | AG101: 10.4069994 | AH101: 16.78421694 | AI101: 15.23713303 | AJ101: 9.906295909
A102: 2020-01-05T02:00:00 | B102: 0 | C102: 0 | D102: 0 | E102: 0 | F102: 0 | H102: 23.78626 | I102: 23.57249 | J102: 35.59527 | K102: 34.31993 | L102: 35.06534 | N102: 5.04652582 | O102: 5.371127313 | P102: 8.12877744 | Q102: 7.855076784 | R102: 8.061939545 | T102: 10.77257075 | U102: 11.49477716 | V102: 17.42792668 | W102: 16.86138842 | X102: 17.31846022 | Z102: -9.742393205 | AA102: -10.00898985 | AB102: -10.16453026 | AC102: -10.28217642 | AD102: -11.21155591 | AF102: 6.076703363 | AG102: 6.856914621 | AH102: 15.39217386 | AI102: 14.43428878 | AJ102: 14.16884385
A103: 2020-01-05T03:00:00 | B103: 0 | C103: 0 | D103: 0 | E103: 0 | F103: 0 | H103: 23.78626 | I103: 26.51409 | J103: 36.82582 | K103: 34.31993 | L103: 33.89689 | N103: 5.04652582 | O103: 6.050484423 | P103: 8.412530717 | Q103: 7.855076784 | R103: 7.790509802 | T103: 10.77257075 | U103: 12.94867279 | V103: 18.0362877 | W103: 16.86138842 | X103: 16.73538152 | Z103: -9.742393205 | AA103: -10.00898985 | AB103: -10.16453026 | AC103: -10.28217642 | AD103: -11.21155591 | AF103: 6.076703363 | AG103: 8.990167369 | AH103: 16.28428815 | AI103: 14.43428878 | AJ103: 13.31433541
A104: 2020-01-05T04:00:00 | B104: 0 | C104: 0 | D104: 0 | E104: 0 | F104: 0 | H104: 23.78626 | I104: 23.57249 | J104: 35.52059 | K104: 34.31993 | L104: 35.06534 | N104: 5.04652582 | O104: 5.371127313 | P104: 8.112327975 | Q104: 7.855076784 | R104: 8.061939545 | T104: 10.77257075 | U104: 11.49477716 | V104: 17.39265938 | W104: 16.86138842 | X104: 17.31846022 | Z104: -9.742393205 | AA104: -10.00898985 | AB104: -10.16453026 | AC104: -10.28217642 | AD104: -11.21155591 | AF104: 6.076703363 | AG104: 6.856914621 | AH104: 15.34045709 | AI104: 14.43428878 | AJ104: 14.16884385
A105: 2020-01-05T05:00:00 | B105: 0 | C105: 0 | D105: 0 | E105: 0 | F105: 0 | H105: 23.78626 | I105: 28.47515 | J105: 35.95215 | K105: 34.31993 | L105: 35.06534 | N105: 5.04652582 | O105: 6.501689707 | P105: 8.211024767 | Q105: 7.855076784 | R105: 8.061939545 | T105: 10.77257075 | U105: 13.91429954 | V105: 17.60426321 | W105: 16.86138842 | X105: 17.31846022 | Z105: -9.742393205 | AA105: -10.00898985 | AB105: -10.16453026 | AC105: -10.28217642 | AD105: -11.21155591 | AF105: 6.076703363 | AG105: 10.4069994 | AH105: 15.65075771 | AI105: 14.43428878 | AJ105: 14.16884385
A106: 2020-01-05T06:00:00 | B106: 0 | C106: 0 | D106: 0 | E106: 0 | F106: 0 | H106: 28.73521 | I106: 28.47515 | J106: 38.09004 | K106: 34.31993 | L106: 37.40222 | N106: 6.108952308 | O106: 6.501689707 | P106: 8.703137937 | Q106: 7.855076784 | R106: 8.60479903 | T106: 13.04048038 | U106: 13.91429954 | V106: 18.65934343 | W106: 16.86138842 | X106: 18.48461761 | Z106: -9.742393205 | AA106: -10.00898985 | AB106: -10.16453026 | AC106: -10.28217642 | AD106: -11.21155591 | AF106: 9.407039482 | AG106: 10.4069994 | AH106: 17.1979511 | AI106: 14.43428878 | AJ106: 15.87786073
A107: 2020-01-05T07:00:00 | B107: 0 | C107: 0 | D107: 0 | E107: 0 | F107: 0 | H107: 28.73521 | I107: 28.47515 | J107: 65.3848 | K107: 35.42634 | L107: 36.23377 | N107: 6.108952308 | O107: 6.501689707 | P107: 14.98820447 | Q107: 8.110226669 | R107: 8.333369287 | T107: 13.04048038 | U107: 13.91429954 | V107: 32.13439298 | W107: 17.40908278 | X107: 17.90153891 | Z107: -9.742393205 | AA107: -10.00898985 | AB107: -10.16453026 | AC107: -10.28217642 | AD107: -11.21155591 | AF107: 9.407039482 | AG107: 10.4069994 | AH107: 36.95806719 | AI107: 15.23713303 | AJ107: 15.02335229
A108: 2020-01-05T08:00:00 | B108: 0 | C108: 0 | D108: 0 | E108: 0 | F108: 0 | H108: 23.78626 | I108: 23.57249 | J108: 35.38549 | K108: 27.68142 | L108: 28.05465 | N108: 5.04652582 | O108: 5.371127313 | P108: 8.080799833 | Q108: 6.322702624 | R108: 6.436535707 | T108: 10.77257075 | U108: 11.49477716 | V108: 17.32506371 | W108: 13.57205635 | X108: 13.82680767 | Z108: -9.742393205 | AA108: -10.00898985 | AB108: -10.16453026 | AC108: -10.28217642 | AD108: -11.21155591 | AF108: 6.076703363 | AG108: 6.856914621 | AH108: 15.24133328 | AI108: 9.612582558 | AJ108: 9.05178747
A109: 2020-01-05T09:00:00 | B109: 0 | C109: 0 | D109: 0 | E109: 0 | F109: 0 | H109: 22.79647 | I109: 23.57249 | J109: 28.68363 | K109: 1.127355 | L109: 1.180421 | N109: 4.833091927 | O109: 5.371127313 | P109: 6.537291672 | Q109: 0.1917311269 | R109: 0.2031754798 | T109: 10.3169639 | U109: 11.49477716 | V109: 14.0158149 | W109: 0.4115622407 | X109: 0.4364565677 | Z109: -9.742393205 | AA109: -10.00898985 | AB109: -10.16453026 | AC109: -10.28217642 | AD109: -11.21155591 | AF109: 5.407662625 | AG109: 6.856914621 | AH109: 10.38857631 | AI109: -9.678883051 | AJ109: -10.57192386
A110: 2020-01-05T10:00:00 | B110: 0 | C110: 0 | D110: 0 | E110: 0 | F110: 0 | H110: 20.81689 | I110: 18.66983 | J110: 1.353062 | K110: 22.14932 | L110: 1.180421 | N110: 4.408595629 | O110: 4.24056492 | P110: 0.2440004021 | Q110: 5.045478348 | R110: 0.2031754798 | T110: 9.41081251 | U110: 9.075254769 | V110: 0.5231316947 | W110: 10.83041866 | X110: 0.4364565677 | Z110: -9.742393205 | AA110: -10.00898985 | AB110: -10.16453026 | AC110: -10.28217642 | AD110: -11.21155591 | AF110: 4.077014934 | AG110: 3.30682984 | AH110: -9.397398166 | AI110: 5.593720586 | AJ110: -10.57192386
A111: 2020-01-05T11:00:00 | B111: 0 | C111: 0 | D111: 0 | E111: 0 | F111: 0 | H111: 20.81689 | I111: 20.63089 | J111: 0.291136 | K111: 22.14932 | L111: 1.180421 | N111: 4.408595629 | O111: 4.693044795 | P111: 0 | Q111: 5.045478348 | R111: 0.2031754798 | T111: 9.41081251 | U111: 10.04360928 | V111: 0 | W111: 10.83041866 | X111: 0.4364565677 | Z111: -9.742393205 | AA111: -10.00898985 | AB111: -10.16453026 | AC111: -10.28217642 | AD111: -11.21155591 | AF111: 4.077014934 | AG111: 4.727664223 | AH111: -10.16453026 | AI111: 5.593720586 | AJ111: -10.57192386
A112: 2020-01-05T12:00:00 | B112: 0 | C112: 0 | D112: 0 | E112: 0 | F112: 0 | H112: 19.8271 | I112: 20.63089 | J112: 0.291136 | K112: 22.14932 | L112: 0.304087 | N112: 4.19634748 | O112: 4.693044795 | P112: 0 | Q112: 5.045478348 | R112: 0 | T112: 8.957736813 | U112: 10.04360928 | V112: 0 | W112: 10.83041866 | X112: 0 | Z112: -9.742393205 | AA112: -10.00898985 | AB112: -10.16453026 | AC112: -10.28217642 | AD112: -11.21155591 | AF112: 3.411691089 | AG112: 4.727664223 | AH112: -10.16453026 | AI112: 5.593720586 | AJ112: -11.21155591
A113: 2020-01-05T13:00:00 | B113: 0 | C113: 0 | D113: 0 | E113: 0 | F113: 0 | H113: 21.80668 | I113: 23.57249 | J113: 0.291136 | K113: 22.14932 | L113: 24.54932 | N113: 4.620843778 | O113: 5.371127313 | P113: 0 | Q113: 5.045478348 | R113: 5.623833787 | T113: 9.863888206 | U113: 11.49477716 | V113: 0 | W113: 10.83041866 | X113: 12.0809814 | Z113: -9.742393205 | AA113: -10.00898985 | AB113: -10.16453026 | AC113: -10.28217642 | AD113: -11.21155591 | AF113: 4.742338779 | AG113: 6.856914621 | AH113: -10.16453026 | AI113: 5.593720586 | AJ113: 6.49325928
A114: 2020-01-05T14:00:00 | B114: 0 | C114: 0 | D114: 0 | E114: 0 | F114: 0 | H114: 21.80668 | I114: 21.61143 | J114: 0.291136 | K114: 1.127355 | L114: 0.304087 | N114: 4.620843778 | O114: 4.918647438 | P114: 0 | Q114: 0.1917311269 | R114: 0 | T114: 9.863888206 | U114: 10.52642265 | V114: 0 | W114: 0.4115622407 | X114: 0 | Z114: -9.742393205 | AA114: -10.00898985 | AB114: -10.16453026 | AC114: -10.28217642 | AD114: -11.21155591 | AF114: 4.742338779 | AG114: 5.436080238 | AH114: -10.16453026 | AI114: -9.678883051 | AJ114: -11.21155591
A115: 2020-01-05T15:00:00 | B115: 0 | C115: 0 | D115: 0 | E115: 0 | F115: 0 | H115: 23.78626 | I115: 22.59196 | J115: 1.694471 | K115: 23.25574 | L115: 24.54932 | N115: 5.04652582 | O115: 5.145524671 | P115: 0.3235061511 | Q115: 5.300628232 | R115: 5.623833787 | T115: 10.77257075 | U115: 11.01196378 | V115: 0.6935903368 | W115: 11.37811302 | X115: 12.0809814 | Z115: -9.742393205 | AA115: -10.00898985 | AB115: -10.16453026 | AC115: -10.28217642 | AD115: -11.21155591 | AF115: 6.076703363 | AG115: 6.148498605 | AH115: -9.147433775 | AI115: 6.396564837 | AJ115: 6.49325928
A116: 2020-01-05T16:00:00 | B116: 0 | C116: 0 | D116: 0 | E116: 0 | F116: 0 | H116: 278.7369 | I116: 45.22042 | J116: 44.96676 | K116: 34.31993 | L116: 46.29054 | N116: 64.53766619 | O116: 10.36497563 | P116: 10.28639897 | Q116: 7.855076784 | R116: 10.66512538 | T116: 137.7653855 | U116: 22.18213759 | V116: 22.05382156 | W116: 16.86138842 | X116: 22.91055999 | Z116: -9.742393205 | AA116: -10.00898985 | AB116: -10.16453026 | AC116: -10.28217642 | AD116: -11.21155591 | AF116: 192.5606585 | AG116: 22.53812338 | AH116: 22.17569027 | AI116: 14.43428878 | AJ116: 22.36412946
A117: 2020-01-05T17:00:00 | B117: 0 | C117: 0 | D117: 0 | E117: 0 | F117: 0 | H117: 29.72501 | I117: 190.1462 | J117: 43.0749 | K117: 49.42061 | L117: 38.57067 | N117: 6.321200457 | O117: 40.13560227 | P117: 9.851858931 | Q117: 11.34015873 | R117: 8.874641464 | T117: 13.49355608 | U117: 85.8944086 | V117: 21.12217691 | W117: 24.34232361 | X117: 19.06428649 | Z117: -9.742393205 | AA117: -10.00898985 | AB117: -10.16453026 | AC117: -10.28217642 | AD117: -11.21155591 | AF117: 10.07236333 | AG117: 116.021021 | AH117: 20.80950558 | AI117: 25.40030592 | AJ117: 16.72737204
A118: 2020-01-05T18:00:00 | B118: 0 | C118: 0 | D118: 0 | E118: 0 | F118: 0 | H118: 28.73521 | I118: 28.47515 | J118: 58.01817 | K118: 53.39822 | L118: 37.40222 | N118: 6.108952308 | O118: 6.501689707 | P118: 13.29253876 | Q118: 12.25899328 | R118: 8.60479903 | T118: 13.04048038 | U118: 13.91429954 | V118: 28.49892159 | W118: 26.3146565 | X118: 18.48461761 | Z118: -9.742393205 | AA118: -10.00898985 | AB118: -10.16453026 | AC118: -10.28217642 | AD118: -11.21155591 | AF118: 9.407039482 | AG118: 10.4069994 | AH118: 31.62693009 | AI118: 28.29147336 | AJ118: 15.87786073
A119: 2020-01-05T19:00:00 | B119: 0 | C119: 0 | D119: 0 | E119: 0 | F119: 0 | H119: 28.73521 | I119: 28.47515 | J119: 55.70086 | K119: 41.58231 | L119: 38.57067 | N119: 6.108952308 | O119: 6.501689707 | P119: 12.75793114 | Q119: 9.530511863 | R119: 8.874641464 | T119: 13.04048038 | U119: 13.91429954 | V119: 27.35273417 | W119: 20.45780923 | X119: 19.06428649 | Z119: -9.742393205 | AA119: -10.00898985 | AB119: -10.16453026 | AC119: -10.28217642 | AD119: -11.21155591 | AF119: =SUM(N119,T119,Z119) -> 9.407039482 | AG119: 10.4069994 | AH119: 29.94613505 | AI119: 19.70614467 | AJ119: 16.72737204
A120: 2020-01-05T20:00:00 | B120: 0 | C120: 0 | D120: 0 | E120: 0 | F120: 0 | H120: 29.72501 | I120: 28.47515 | J120: 69.86051 | K120: 37.63918 | L120: 37.40222 | N120: 6.321200457 | O120: 6.501689707 | P120: 16.01903763 | Q120: 8.620526437 | R120: 8.60479903 | T120: 13.49355608 | U120: 13.91429954 | V120: 34.34447744 | W120: 18.50447151 | X120: 18.48461761 | Z120: -9.742393205 | AA120: -10.00898985 | AB120: -10.16453026 | AC120: -10.28217642 | AD120: -11.21155591 | AF120: 10.07236333 | AG120: 10.4069994 | AH120: 40.19898481 | AI120: 16.84282153 | AJ120: 15.87786073
A121: 2020-01-05T21:00:00 | B121: 0 | C121: 0 | D121: 0 | E121: 0 | F121: 0 | H121: 30.71479 | I121: 29.45568 | J121: 74.20184 | K121: 37.63918 | L121: 38.57067 | N121: 6.533448606 | O121: 6.728566941 | P121: 17.01834265 | Q121: 8.620526437 | R121: 8.874641464 | T121: 13.94663177 | U121: 14.39984067 | V121: 36.48696623 | W121: 18.50447151 | X121: 19.06428649 | Z121: -9.742393205 | AA121: -10.00898985 | AB121: -10.16453026 | AC121: -10.28217642 | AD121: -11.21155591 | AF121: 10.73768717 | AG121: 11.11941777 | AH121: 43.34077862 | AI121: 16.84282153 | AJ121: 16.72737204
A122: 2020-01-05T22:00:00 | B122: 0 | C122: 0 | D122: 0 | E122: 0 | F122: 0 | H122: 30.71479 | I122: 29.45568 | J122: 61.86828 | K122: 35.42634 | L122: 38.57067 | N122: 6.533448606 | O122: 6.728566941 | P122: 14.17806831 | Q122: 8.110226669 | R122: 8.874641464 | T122: 13.94663177 | U122: 14.39984067 | V122: 30.39747819 | W122: 17.40908278 | X122: 19.06428649 | Z122: -9.742393205 | AA122: -10.00898985 | AB122: -10.16453026 | AC122: -10.28217642 | AD122: -11.21155591 | AF122: 10.73768717 | AG122: 11.11941777 | AH122: 34.41101624 | AI122: 15.23713303 | AJ122: 16.72737204
A123: 2020-01-05T23:00:00 | B123: 0 | C123: 0 | D123: 0 | E123: 0 | F123: 0 | H123: 30.71479 | I123: 28.47515 | J123: 33.98847 | K123: 35.42634 | L123: 37.40222 | N123: 6.533448606 | O123: 6.501689707 | P123: 7.758664471 | Q123: 8.110226669 | R123: 8.60479903 | T123: 13.94663177 | U123: 13.91429954 | V123: 16.63441231 | W123: 17.40908278 | X123: 18.48461761 | Z123: -9.742393205 | AA123: -10.00898985 | AB123: -10.16453026 | AC123: -10.28217642 | AD123: -11.21155591 | AF123: 10.73768717 | AG123: 10.4069994 | AH123: 14.22854652 | AI123: 15.23713303 | AJ123: 15.87786073
A124: 2020-01-06 | B124: 0 | C124: 0 | D124: 0 | E124: 0 | F124: 0 | H124: 28.73521 | I124: 28.47515 | J124: 35.10163 | K124: 32.10709 | L124: 38.57067 | N124: 6.108952308 | O124: 6.501689707 | P124: 8.015001972 | Q124: 7.343302161 | R124: 8.874641464 | T124: 13.04048038 | U124: 13.91429954 | V124: 17.18399449 | W124: 15.76283382 | X124: 19.06428649 | Z124: -9.742393205 | AA124: -10.00898985 | AB124: -10.16453026 | AC124: -10.28217642 | AD124: -11.21155591 | AF124: 9.407039482 | AG124: 10.4069994 | AH124: 15.0344662 | AI124: 12.82395956 | AJ124: 16.72737204
A125: 2020-01-06T01:00:00 | B125: 0 | C125: 0 | D125: 0 | E125: 0 | F125: 0 | H125: 29.72501 | I125: 28.47515 | J125: 50.56973 | K125: 34.31993 | L125: 48.46647 | N125: 6.321200457 | O125: 6.501689707 | P125: 11.577682 | Q125: 7.855076784 | R125: 11.16988946 | T125: 13.49355608 | U125: 13.91429954 | V125: 24.82230502 | W125: 16.86138842 | X125: 23.99488178 | Z125: -9.742393205 | AA125: -10.00898985 | AB125: -10.16453026 | AC125: -10.28217642 | AD125: -11.21155591 | AF125: 10.07236333 | AG125: 10.4069994 | AH125: 26.23545676 | AI125: 14.43428878 | AJ125: 23.95321533
A126: 2020-01-06T02:00:00 | B126: 0 | C126: 0 | D126: 0 | E126: 0 | F126: 0 | H126: 28.73521 | I126: 28.47515 | J126: 33.10721 | K126: 34.31993 | L126: 46.29705 | N126: 6.108952308 | O126: 6.501689707 | P126: 7.555787732 | Q126: 7.855076784 | R126: 10.66671269 | T126: 13.04048038 | U126: 13.91429954 | V126: 16.19944888 | W126: 16.86138842 | X126: 22.91396981 | Z126: -9.742393205 | AA126: -10.00898985 | AB126: -10.16453026 | AC126: -10.28217642 | AD126: -11.21155591 | AF126: 9.407039482 | AG126: 10.4069994 | AH126: 13.59070635 | AI126: 14.43428878 | AJ126: 22.36912658
A127: 2020-01-06T03:00:00 | B127: 0 | C127: 0 | D127: 0 | E127: 0 | F127: 0 | H127: 23.78626 | I127: 28.47515 | J127: 34.6602 | K127: 34.31993 | L127: 77.27888 | N127: 5.04652582 | O127: 6.501689707 | P127: 7.913563602 | Q127: 7.855076784 | R127: 17.85245798 | T127: 10.77257075 | U127: 13.91429954 | V127: 16.96651277 | W127: 16.86138842 | X127: 38.35021107 | Z127: -9.742393205 | AA127: -10.00898985 | AB127: -10.16453026 | AC127: -10.28217642 | AD127: -11.21155591 | AF127: 6.076703363 | AG127: 10.4069994 | AH127: 14.71554611 | AI127: 14.43428878 | AJ127: 44.99111314
A128: 2020-01-06T04:00:00 | B128: 0 | C128: 0 | D128: 0 | E128: 0 | F128: 0 | H128: 29.72501 | I128: 28.47515 | J128: 32.67643 | K128: 35.42634 | L128: 61.8998 | N128: 6.321200457 | O128: 6.501689707 | P128: 7.45709094 | Q128: 8.110226669 | R128: 14.28577592 | T128: 13.49355608 | U128: 13.91429954 | V128: 15.98784505 | W128: 17.40908278 | X128: 30.68835242 | Z128: -9.742393205 | AA128: -10.00898985 | AB128: -10.16453026 | AC128: -10.28217642 | AD128: -11.21155591 | AF128: 10.07236333 | AG128: 10.4069994 | AH128: 13.28040573 | AI128: 15.23713303 | AJ128: 33.76257243
A129: 2020-01-06T05:00:00 | B129: 0 | C129: 0 | D129: 0 | E129: 0 | F129: 0 | H129: 30.71479 | I129: 29.45568 | J129: 34.15226 | K129: 36.53277 | L129: 230.3802 | N129: 6.533448606 | O129: 6.728566941 | P129: 7.797046556 | Q129: 8.365376553 | R129: 49.58910284 | T129: 13.94663177 | U129: 14.39984067 | V129: 16.71670269 | W129: 17.95677715 | X129: 106.5260909 | Z129: -9.742393205 | AA129: -10.00898985 | AB129: -10.16453026 | AC129: -10.28217642 | AD129: -11.21155591 | AF129: 10.73768717 | AG129: 11.11941777 | AH129: 14.34921899 | AI129: 16.03997728 | AJ129: 144.9036378
A130: 2020-01-06T06:00:00 | B130: 0 | C130: 0 | D130: 0 | E130: 0 | F130: 0 | H130: 37.03085 | I130: 34.79101 | J130: 37.24234 | K130: 53.51214 | L130: 38.57067 | N130: 7.888753825 | O130: 7.958547448 | P130: 8.508485931 | Q130: 12.28554067 | R130: 8.874641464 | T130: 16.83973524 | U130: 17.03212828 | V130: 18.24201365 | W130: 26.37164204 | X130: 19.06428649 | Z130: -9.742393205 | AA130: -10.00898985 | AB130: -10.16453026 | AC130: -10.28217642 | AD130: -11.21155591 | AF130: 14.98609586 | AG130: 14.98168588 | AH130: 16.58596931 | AI130: 28.37500629 | AJ130: 16.72737204
A131: 2020-01-06T07:00:00 | B131: 0 | C131: 0 | D131: 0 | E131: 0 | F131: 0 | H131: 30.71479 | I131: 108.584 | J131: 62.77091 | K131: 49.53424 | L131: 37.40222 | N131: 6.533448606 | O131: 24.57539291 | P131: 14.3864282 | Q131: 11.36670612 | R131: 8.60479903 | T131: 13.94663177 | U131: 52.59392461 | V131: 30.84419739 | W131: 24.39930915 | X131: 18.48461761 | Z131: -9.742393205 | AA131: -10.00898985 | AB131: -10.16453026 | AC131: -10.28217642 | AD131: -11.21155591 | AF131: 10.73768717 | AG131: 67.16032768 | AH131: 35.06609533 | AI131: 25.48383885 | AJ131: 15.87786073
A132: 2020-01-06T08:00:00 | B132: 0 | C132: 0 | D132: 0 | E132: 0 | F132: 0 | H132: 84.31979 | I132: 28.47515 | J132: 39.39734 | K132: 41.60242 | L132: 36.23377 | N132: 18.03990691 | O132: 6.501689707 | P132: 9.004711468 | Q132: 9.536411282 | R132: 8.333369287 | T132: 38.50890305 | U132: 13.91429954 | V132: 19.30591069 | W132: 20.47047268 | X132: 17.90153891 | Z132: -9.742393205 | AA132: -10.00898985 | AB132: -10.16453026 | AC132: -10.28217642 | AD132: -11.21155591 | AF132: 46.80641675 | AG132: 10.4069994 | AH132: 18.14609189 | AI132: 19.72470754 | AJ132: 15.02335229
A133: 2020-01-06T09:00:00 | B133: 0 | C133: 0 | D133: 0 | E133: 0 | F133: 0 | H133: 29.72501 | I133: 28.47515 | J133: 50.70432 | K133: 45.56808 | L133: 37.40222 | N133: 6.321200457 | O133: 6.501689707 | P133: 11.60783935 | Q133: 10.45082127 | R133: 8.60479903 | T133: 13.49355608 | U133: 13.91429954 | V133: 24.88696175 | W133: 22.43330798 | X133: 18.48461761 | Z133: -9.742393205 | AA133: -10.00898985 | AB133: -10.16453026 | AC133: -10.28217642 | AD133: -11.21155591 | AF133: 10.07236333 | AG133: 10.4069994 | AH133: 26.33027084 | AI133: 22.60195284 | AJ133: 15.87786073
A134: 2020-01-06T10:00:00 | B134: 0 | C134: 0 | D134: 0 | E134: 0 | F134: 0 | H134: 28.73521 | I134: 27.49462 | J134: 50.70526 | K134: 36.53277 | L134: 38.57067 | N134: 6.108952308 | O134: 6.276087065 | P134: 11.60783935 | Q134: 8.365376553 | R134: 8.874641464 | T134: 13.04048038 | U134: 13.43148617 | V134: 24.88696175 | W134: 17.95677715 | X134: 19.06428649 | Z134: -9.742393205 | AA134: -10.00898985 | AB134: -10.16453026 | AC134: -10.28217642 | AD134: -11.21155591 | AF134: 9.407039482 | AG134: 9.698583385 | AH134: 26.33027084 | AI134: 16.03997728 | AJ134: 16.72737204
A135: 2020-01-06T11:00:00 | B135: 0 | C135: 0 | D135: 0 | E135: 0 | F135: 0 | H135: 28.73521 | I135: 21.61143 | J135: 34.47002 | K135: 36.53277 | L135: 38.57067 | N135: 6.108952308 | O135: 4.918647438 | P135: 7.869698362 | Q135: 8.365376553 | R135: 8.874641464 | T135: 13.04048038 | U135: 10.52642265 | V135: 16.87246663 | W135: 17.95677715 | X135: 19.06428649 | Z135: -9.742393205 | AA135: -10.00898985 | AB135: -10.16453026 | AC135: -10.28217642 | AD135: -11.21155591 | AF135: 9.407039482 | AG135: 5.436080238 | AH135: 14.57763472 | AI135: 16.03997728 | AJ135: 16.72737204
A136: 2020-01-06T12:00:00 | B136: 0 | C136: 0 | D136: 0 | E136: 0 | F136: 0 | H136: 28.73521 | I136: 19.65036 | J136: 45.48965 | K136: 35.42634 | L136: 37.40222 | N136: 6.108952308 | O136: 4.466167562 | P136: 10.40702839 | Q136: 8.110226669 | R136: 8.60479903 | T136: 13.04048038 | U136: 9.558068142 | V136: 22.31244846 | W136: 17.40908278 | X136: 18.48461761 | Z136: -9.742393205 | AA136: -10.00898985 | AB136: -10.16453026 | AC136: -10.28217642 | AD136: -11.21155591 | AF136: 9.407039482 | AG136: 4.015245856 | AH136: 22.55494658 | AI136: 15.23713303 | AJ136: 15.87786073
A137: 2020-01-06T13:00:00 | B137: 0 | C137: 0 | D137: 0 | E137: 0 | F137: 0 | H137: 28.73521 | I137: 26.51409 | J137: 39.39819 | K137: 35.42634 | L137: 36.23377 | N137: 6.108952308 | O137: 6.050484423 | P137: 9.004711468 | Q137: 8.110226669 | R137: 8.333369287 | T137: 13.04048038 | U137: 12.94867279 | V137: 19.30591069 | W137: 17.40908278 | X137: 17.90153891 | Z137: -9.742393205 | AA137: -10.00898985 | AB137: -10.16453026 | AC137: -10.28217642 | AD137: -11.21155591 | AF137: 9.407039482 | AG137: 8.990167369 | AH137: 18.14609189 | AI137: 15.23713303 | AJ137: 15.02335229
A138: 2020-01-06T14:00:00 | B138: 0 | C138: 0 | D138: 0 | E138: 0 | F138: 0 | H138: 29.72501 | I138: 21.61143 | J138: 52.86384 | K138: 35.42634 | L138: 36.23377 | N138: 6.321200457 | O138: 4.918647438 | P138: 12.10543568 | Q138: 8.110226669 | R138: 8.333369287 | T138: 13.49355608 | U138: 10.52642265 | V138: 25.95379773 | W138: 17.40908278 | X138: 17.90153891 | Z138: -9.742393205 | AA138: -10.00898985 | AB138: -10.16453026 | AC138: -10.28217642 | AD138: -11.21155591 | AF138: 10.07236333 | AG138: 5.436080238 | AH138: 27.89470315 | AI138: 15.23713303 | AJ138: 15.02335229
A139: 2020-01-06T15:00:00 | B139: 0 | C139: 0 | D139: 0 | E139: 0 | F139: 0 | H139: 37.64333 | I139: 26.51409 | J139: 54.53731 | K139: 41.61041 | L139: 39.73911 | N139: 8.020371392 | O139: 6.050484423 | P139: 12.49062732 | Q139: 9.537886137 | R139: 9.146071206 | T139: 17.1206928 | U139: 12.94867279 | V139: 26.77964046 | W139: 20.47363854 | X139: 19.64736518 | Z139: -9.742393205 | AA139: -10.00898985 | AB139: -10.16453026 | AC139: -10.28217642 | AD139: -11.21155591 | AF139: 15.39867098 | AG139: 8.990167369 | AH139: 29.10573752 | AI139: 19.72934826 | AJ139: 17.58188048
A140: 2020-01-06T16:00:00 | B140: 0 | C140: 0 | D140: 0 | E140: 0 | F140: 0 | H140: 278.7369 | I140: 34.35834 | J140: 54.86453 | K140: 70.10658 | L140: 304.0872 | N140: 64.53766619 | O140: 7.859129334 | P140: 12.56602071 | Q140: 16.1172135 | R140: 83.12893008 | T140: 137.7653855 | U140: 16.81936306 | V140: 26.94128228 | W140: 34.59655513 | X140: 178.5755227 | Z140: -9.742393205 | AA140: -10.00898985 | AB140: -10.16453026 | AC140: -10.28217642 | AD140: -11.21155591 | AF140: 192.5606585 | AG140: 14.66950255 | AH140: 29.34277272 | AI140: 40.43159221 | AJ140: 250.4928969
A141: 2020-01-06T17:00:00 | B141: 0 | C141: 0 | D141: 0 | E141: 0 | F141: 0 | H141: 28.73521 | I141: 93.19465 | J141: 57.13487 | K141: 128.5597 | L141: 37.40222 | N141: 6.108952308 | O141: 21.42970183 | P141: 13.08829123 | Q141: 29.15198042 | R141: 8.60479903 | T141: 13.04048038 | U141: 45.86181498 | V141: 28.06101922 | W141: 62.57645577 | X141: 18.48461761 | Z141: -9.742393205 | AA141: -10.00898985 | AB141: -10.16453026 | AC141: -10.28217642 | AD141: -11.21155591 | AF141: 9.407039482 | AG141: 57.28252696 | AH141: 30.98478019 | AI141: 81.44625977 | AJ141: 15.87786073
A142: 2020-01-06T18:00:00 | B142: 0 | C142: 0 | D142: 0 | E142: 0 | F142: 0 | H142: 30.71479 | I142: 57.86629 | J142: 125.467 | K142: 107.6324 | L142: 74.31798 | N142: 6.533448606 | O142: 13.2812403 | P142: 27.8818437 | Q142: 24.78051073 | R142: 17.16674073 | T142: 13.94663177 | U142: 28.42325058 | V142: 59.77808242 | W142: 53.19283668 | X142: 36.87717016 | Z142: -9.742393205 | AA142: -10.00898985 | AB142: -10.16453026 | AC142: -10.28217642 | AD142: -11.21155591 | AF142: 10.73768717 | AG142: 31.69550103 | AH142: 77.49539585 | AI142: 67.69117099 | AJ142: 42.83235498
A143: 2020-01-06T19:00:00 | B143: 0 | C143: 0 | D143: 0 | E143: 0 | F143: 0 | H143: 30.71479 | I143: 55.75379 | J143: 67.87443 | K143: 107.586 | L143: 82.7748 | N143: 6.533448606 | O143: 12.79434646 | P143: 15.56119418 | Q143: 24.76871189 | R143: 19.12706665 | T143: 13.94663177 | U143: 27.38124658 | V143: 33.36287078 | W143: 53.16750977 | X143: 41.08829407 | Z143: -9.742393205 | AA143: -10.00898985 | AB143: -10.16453026 | AC143: -10.28217642 | AD143: -11.21155591 | AF143: 10.73768717 | AG143: 30.16660319 | AH143: 38.7595347 | AI143: 67.65404524 | AJ143: 49.00380481
A144: 2020-01-06T20:00:00 | B144: 0 | C144: 0 | D144: 0 | E144: 0 | F144: 0 | H144: 28.73521 | I144: 71.49313 | J144: 170.9776 | K144: 106.6113 | L144: 38.57067 | N144: 6.108952308 | O144: 16.42438219 | P144: 36.42048698 | Q144: 24.54453396 | R144: 8.874641464 | T144: 13.04048038 | U144: 35.1499047 | V144: 78.08475279 | W144: 52.68629854 | X144: 19.06428649 | Z144: -9.742393205 | AA144: -10.00898985 | AB144: -10.16453026 | AC144: -10.28217642 | AD144: -11.21155591 | AF144: 9.407039482 | AG144: 41.56529705 | AH144: 104.3407095 | AI144: 66.94865607 | AJ144: 16.72737204
A145: 2020-01-06T21:00:00 | B145: 0 | C145: 0 | D145: 0 | E145: 0 | F145: 0 | H145: 29.72501 | I145: 29.45568 | J145: 60.50134 | K145: 68.08103 | L145: 100.6087 | N145: 6.321200457 | O145: 6.728566941 | P145: 13.86415768 | Q145: 15.64820967 | R145: 23.26359243 | T145: 13.49355608 | U145: 14.39984067 | V145: 29.72446045 | W145: 33.58981057 | X145: 49.97427701 | Z145: -9.742393205 | AA145: -10.00898985 | AB145: -10.16453026 | AC145: -10.28217642 | AD145: -11.21155591 | AF145: 10.07236333 | AG145: 11.11941777 | AH145: 33.42408787 | AI145: 38.95584382 | AJ145: 62.02631353
A146: 2020-01-06T22:00:00 | B146: 0 | C146: 0 | D146: 0 | E146: 0 | F146: 0 | H146: 28.73521 | I146: 28.47515 | J146: 35.00337 | K146: 35.42634 | L146: 38.57067 | N146: 6.108952308 | O146: 6.501689707 | P146: 7.993069351 | Q146: 8.110226669 | R146: 8.874641464 | T146: 13.04048038 | U146: 13.91429954 | V146: 17.13697141 | W146: 17.40908278 | X146: 19.06428649 | Z146: -9.742393205 | AA146: -10.00898985 | AB146: -10.16453026 | AC146: -10.28217642 | AD146: -11.21155591 | AF146: 9.407039482 | AG146: 10.4069994 | AH146: 14.9655105 | AI146: 15.23713303 | AJ146: 16.72737204
A147: 2020-01-06T23:00:00 | B147: 0 | C147: 0 | D147: 0 | E147: 0 | F147: 0 | H147: 28.73521 | I147: 29.45568 | J147: 38.85096 | K147: 36.53277 | L147: 36.23377 | N147: 6.108952308 | O147: 6.728566941 | P147: 8.8785989 | Q147: 8.365376553 | R147: 8.333369287 | T147: 13.04048038 | U147: 14.39984067 | V147: 19.03552801 | W147: 17.95677715 | X147: 17.90153891 | Z147: -9.742393205 | AA147: -10.00898985 | AB147: -10.16453026 | AC147: -10.28217642 | AD147: -11.21155591 | AF147: 9.407039482 | AG147: 11.11941777 | AH147: 17.74959665 | AI147: 16.03997728 | AJ147: 15.02335229
A148: 2020-01-07 | B148: 0 | C148: 0 | D148: 0 | E148: 0 | F148: 0 | H148: 29.72501 | I148: 28.47515 | J148: 33.10721 | K148: 37.63918 | L148: 37.40222 | N148: 6.321200457 | O148: 6.501689707 | P148: 7.555787732 | Q148: 8.620526437 | R148: 8.60479903 | T148: 13.49355608 | U148: 13.91429954 | V148: 16.19944888 | W148: 18.50447151 | X148: 18.48461761 | Z148: -9.742393205 | AA148: -10.00898985 | AB148: -10.16453026 | AC148: -10.28217642 | AD148: -11.21155591 | AF148: 10.07236333 | AG148: 10.4069994 | AH148: 13.59070635 | AI148: 16.84282153 | AJ148: 15.87786073
A149: 2020-01-07T01:00:00 | B149: 0 | C149: 0 | D149: 0 | E149: 0 | F149: 0 | H149: 29.72501 | I149: 29.45568 | J149: 32.68952 | K149: 37.63918 | L149: 37.40222 | N149: 6.321200457 | O149: 6.728566941 | P149: 7.459832518 | Q149: 8.620526437 | R149: 8.60479903 | T149: 13.49355608 | U149: 14.39984067 | V149: 15.99372294 | W149: 18.50447151 | X149: 18.48461761 | Z149: -9.742393205 | AA149: -10.00898985 | AB149: -10.16453026 | AC149: -10.28217642 | AD149: -11.21155591 | AF149: 10.07236333 | AG149: 11.11941777 | AH149: 13.28902519 | AI149: 16.84282153 | AJ149: 15.87786073
A150: 2020-01-07T02:00:00 | B150: 0 | C150: 0 | D150: 0 | E150: 0 | F150: 0 | H150: 33.68416 | I150: 28.47515 | J150: 34.15226 | K150: 35.42634 | L150: 72.46101 | N150: 7.171378796 | O150: 6.501689707 | P150: 7.797046556 | Q150: 8.110226669 | R150: 16.73499284 | T150: 15.30839001 | U150: 13.91429954 | V150: 16.71670269 | W150: 17.40908278 | X150: 35.94969995 | Z150: -9.742393205 | AA150: -10.00898985 | AB150: -10.16453026 | AC150: -10.28217642 | AD150: -11.21155591 | AF150: 12.7373756 | AG150: 10.4069994 | AH150: 14.34921899 | AI150: 15.23713303 | AJ150: 41.47313688
A151: 2020-01-07T03:00:00 | B151: 0 | C151: 0 | D151: 0 | E151: 0 | F151: 0 | H151: 32.69438 | I151: 28.47515 | J151: 32.68952 | K151: 34.31993 | L151: 38.57067 | N151: 6.957944903 | O151: 6.501689707 | P151: 7.459832518 | Q151: 7.855076784 | R151: 8.874641464 | T151: 14.85278317 | U151: 13.91429954 | V151: 15.99372294 | W151: 16.86138842 | X151: 19.06428649 | Z151: -9.742393205 | AA151: -10.00898985 | AB151: -10.16453026 | AC151: -10.28217642 | AD151: -11.21155591 | AF151: 12.06833486 | AG151: 10.4069994 | AH151: 13.28902519 | AI151: 14.43428878 | AJ151: 16.72737204
A152: 2020-01-07T04:00:00 | B152: 0 | C152: 0 | D152: 0 | E152: 0 | F152: 0 | H152: 34.67396 | I152: 30.43622 | J152: 32.68952 | K152: 36.53277 | L152: 39.73911 | N152: 7.383626945 | O152: 6.954169583 | P152: 7.459832518 | Q152: 8.365376553 | R152: 9.146071206 | T152: 15.76146571 | U152: 14.88265405 | V152: 15.99372294 | W152: 17.95677715 | X152: 19.64736518 | Z152: -9.742393205 | AA152: -10.00898985 | AB152: -10.16453026 | AC152: -10.28217642 | AD152: -11.21155591 | AF152: 13.40269945 | AG152: 11.82783378 | AH152: 13.28902519 | AI152: 16.03997728 | AJ152: 17.58188048
A153: 2020-01-07T05:00:00 | B153: 0 | C153: 0 | D153: 0 | E153: 0 | F153: 0 | H153: 32.69438 | I153: 28.47515 | J153: 33.72148 | K153: 40.12293 | L153: 129.6856 | N153: 6.957944903 | O153: 6.501689707 | P153: 7.696978976 | Q153: 9.194244963 | R153: 29.92235132 | T153: 14.85278317 | U153: 13.91429954 | V153: 16.50215992 | W153: 19.73599237 | X153: 64.27845905 | Z153: -9.742393205 | AA153: -10.00898985 | AB153: -10.16453026 | AC153: -10.28217642 | AD153: -11.21155591 | AF153: 12.06833486 | AG153: 10.4069994 | AH153: 14.03460863 | AI153: 18.64806092 | AJ153: 82.98925446
A154: 2020-01-07T06:00:00 | B154: 0 | C154: 0 | D154: 0 | E154: 0 | F154: 0 | H154: 30.71479 | I154: 34.09021 | J154: 48.24267 | K154: 47.56441 | L154: 37.40222 | N154: 6.533448606 | O154: 7.797948957 | P154: 11.04170359 | Q154: 10.91245083 | R154: 8.60479903 | T154: 13.94663177 | U154: 16.68843062 | V154: 23.67317866 | W154: 23.42422322 | X154: 18.48461761 | Z154: -9.742393205 | AA154: -10.00898985 | AB154: -10.16453026 | AC154: -10.28217642 | AD154: -11.21155591 | AF154: 10.73768717 | AG154: 14.47738973 | AH154: 24.55035198 | AI154: 24.05449764 | AJ154: 15.87786073
A155: 2020-01-07T07:00:00 | B155: 0 | C155: 0 | D155: 0 | E155: 0 | F155: 0 | H155: 69.80735 | I155: 29.45568 | J155: 50.77732 | K155: 47.55019 | L155: 37.40222 | N155: 14.92495782 | O155: 6.728566941 | P155: 11.62428882 | Q155: 10.90950112 | R155: 8.60479903 | T155: 31.85957425 | U155: 14.39984067 | V155: 24.92222905 | W155: 23.4178915 | X155: 18.48461761 | Z155: -9.742393205 | AA155: -10.00898985 | AB155: -10.16453026 | AC155: -10.28217642 | AD155: -11.21155591 | AF155: 37.04213887 | AG155: 11.11941777 | AH155: 26.38198761 | AI155: 24.0452162 | AJ155: 15.87786073
A156: 2020-01-07T08:00:00 | B156: 0 | C156: 0 | D156: 0 | E156: 0 | F156: 0 | H156: 28.73521 | I156: 30.43622 | J156: 44.51449 | K156: 42.59134 | L156: 37.40222 | N156: 6.108952308 | O156: 6.954169583 | P156: 10.18221903 | Q156: 9.763538925 | R156: 8.60479903 | T156: 13.04048038 | U156: 14.88265405 | V156: 21.83046196 | W156: 20.95801564 | X156: 18.48461761 | Z156: -9.742393205 | AA156: -10.00898985 | AB156: -10.16453026 | AC156: -10.28217642 | AD156: -11.21155591 | AF156: 9.407039482 | AG156: 11.82783378 | AH156: 21.84815072 | AI156: 20.43937815 | AJ156: 15.87786073
A157: 2020-01-07T09:00:00 | B157: 0 | C157: 0 | D157: 0 | E157: 0 | F157: 0 | H157: 23.78626 | I157: 28.47515 | J157: 33.65817 | K157: 36.53277 | L157: 38.57067 | N157: 5.04652582 | O157: 6.501689707 | P157: 7.683271088 | Q157: 8.365376553 | R157: 8.874641464 | T157: 10.77257075 | U157: 13.91429954 | V157: 16.4727705 | W157: 17.95677715 | X157: 19.06428649 | Z157: -9.742393205 | AA157: -10.00898985 | AB157: -10.16453026 | AC157: -10.28217642 | AD157: -11.21155591 | AF157: 6.076703363 | AG157: 10.4069994 | AH157: 13.99151132 | AI157: 16.03997728 | AJ157: 16.72737204
A158: 2020-01-07T10:00:00 | B158: 0 | C158: 0 | D158: 0 | E158: 0 | F158: 0 | H158: 19.8271 | I158: 28.47515 | J158: 16.16826 | K158: 47.54095 | L158: 40.90756 | N158: 4.19634748 | O158: 6.501689707 | P158: 3.655893665 | Q158: 10.90655141 | R158: 9.417500949 | T158: 8.957736813 | U158: 13.91429954 | V158: 7.838158594 | W158: 23.41155977 | X158: 20.23044388 | Z158: -9.742393205 | AA158: -10.00898985 | AB158: -10.16453026 | AC158: -10.28217642 | AD158: -11.21155591 | AF158: 3.411691089 | AG158: 10.4069994 | AH158: 1.329521997 | AI158: 24.03593476 | AJ158: 18.43638892
A159: 2020-01-07T11:00:00 | B159: 0 | C159: 0 | D159: 0 | E159: 0 | F159: 0 | H159: 20.81689 | I159: 28.47515 | J159: 36.50462 | K159: 47.53627 | L159: 39.73911 | N159: 4.408595629 | O159: 6.501689707 | P159: 8.338508123 | Q159: 10.90507656 | R159: 9.146071206 | T159: 9.41081251 | U159: 13.91429954 | V159: 17.87758483 | W159: 23.40839391 | X159: 19.64736518 | Z159: -9.742393205 | AA159: -10.00898985 | AB159: -10.16453026 | AC159: -10.28217642 | AD159: -11.21155591 | AF159: 4.077014934 | AG159: 10.4069994 | AH159: 16.05156269 | AI159: 24.03129404 | AJ159: 17.58188048
A160: 2020-01-07T12:00:00 | B160: 0 | C160: 0 | D160: 0 | E160: 0 | F160: 0 | H160: 37.64333 | I160: 24.55303 | J160: 36.50539 | K160: 54.96529 | L160: 38.57067 | N160: 8.020371392 | O160: 5.598004547 | P160: 8.338508123 | Q160: 12.62033272 | R160: 8.874641464 | T160: 17.1206928 | U160: 11.98031829 | V160: 17.87758483 | W160: 27.09029303 | X160: 19.06428649 | Z160: -9.742393205 | AA160: -10.00898985 | AB160: -10.16453026 | AC160: -10.28217642 | AD160: -11.21155591 | AF160: 15.39867098 | AG160: 7.569332987 | AH160: 16.05156269 | AI160: 29.42844933 | AJ160: 16.72737204
A161: 2020-01-07T13:00:00 | B161: 0 | C161: 0 | D161: 0 | E161: 0 | F161: 0 | H161: 23.78626 | I161: 28.47515 | J161: 35.95689 | K161: 47.54113 | L161: 39.73911 | N161: 5.04652582 | O161: 6.501689707 | P161: 8.212395555 | Q161: 10.90655141 | R161: 9.146071206 | T161: 10.77257075 | U161: 13.91429954 | V161: 17.60720215 | W161: 23.41155977 | X161: 19.64736518 | Z161: -9.742393205 | AA161: -10.00898985 | AB161: -10.16453026 | AC161: -10.28217642 | AD161: -11.21155591 | AF161: 6.076703363 | AG161: 10.4069994 | AH161: 15.65506744 | AI161: 24.03593476 | AJ161: 17.58188048
A162: 2020-01-07T14:00:00 | B162: 0 | C162: 0 | D162: 0 | E162: 0 | F162: 0 | H162: 28.73521 | I162: 31.41675 | J162: 56.04076 | K162: 52.49931 | L162: 39.73911 | N162: 6.108952308 | O162: 7.181046816 | P162: 12.8360661 | Q162: 12.05103875 | R162: 9.146071206 | T162: 13.04048038 | U162: 15.36819518 | V162: 27.52025387 | W162: 25.86826976 | X162: 19.64736518 | Z162: -9.742393205 | AA162: -10.00898985 | AB162: -10.16453026 | AC162: -10.28217642 | AD162: -11.21155591 | AF162: 9.407039482 | AG162: 12.54025215 | AH162: 30.19178971 | AI162: 27.6371321 | AJ162: 17.58188048
A163: 2020-01-07T15:00:00 | B163: 0 | C163: 0 | D163: 0 | E163: 0 | F163: 0 | H163: 33.68416 | I163: 29.45568 | J163: 55.02176 | K163: 54.97898 | L163: 44.41289 | N163: 7.171378796 | O163: 6.728566941 | P163: 12.60166122 | Q163: 12.62475728 | R163: 10.23020287 | T163: 15.30839001 | U163: 14.39984067 | V163: 27.01769477 | W163: 27.09979062 | X163: 21.97627015 | Z163: -9.742393205 | AA163: -10.00898985 | AB163: -10.16453026 | AC163: -10.28217642 | AD163: -11.21155591 | AF163: 12.7373756 | AG163: 11.11941777 | AH163: 29.45482572 | AI163: 29.44237148 | AJ163: 20.99491711
A164: 2020-01-07T16:00:00 | B164: 0 | C164: 0 | D164: 0 | E164: 0 | F164: 0 | H164: 278.7369 | I164: 284.8691 | J164: 55.00254 | K164: 62.37991 | L164: 304.0872 | N164: 64.53766619 | O164: 68.69791645 | P164: 12.59754885 | Q164: 14.33263916 | R164: 83.12893008 | T164: 137.7653855 | U164: 147.0207639 | V164: 27.00887795 | W164: 30.76586042 | X164: 178.5755227 | Z164: -9.742393205 | AA164: -10.00898985 | AB164: -10.16453026 | AC164: -10.28217642 | AD164: -11.21155591 | AF164: 192.5606585 | AG164: 205.7096905 | AH164: 29.44189653 | AI164: 34.81632317 | AJ164: 250.4928969
A165: 2020-01-07T17:00:00 | B165: 0 | C165: 0 | D165: 0 | E165: 0 | F165: 0 | H165: 29.72501 | I165: 90.43139 | J165: 117.1379 | K165: 133.5986 | L165: 41.75342 | N165: 6.321200457 | O165: 20.79240623 | P165: 26.27939162 | Q165: 30.14898228 | R165: 9.612739886 | T165: 13.49355608 | U165: 44.49793539 | V165: 56.3424591 | W165: 64.71657942 | X165: 20.64985136 | Z165: -9.742393205 | AA165: -10.00898985 | AB165: -10.16453026 | AC165: -10.28217642 | AD165: -11.21155591 | AF165: 10.07236333 | AG165: 55.28135177 | AH165: 72.45732045 | AI165: 84.58338528 | AJ165: 19.05103534
A166: 2020-01-07T18:00:00 | B166: 0 | C166: 0 | D166: 0 | E166: 0 | F166: 0 | H166: 45.98963 | I166: 51.60887 | J166: 89.45724 | K166: 37.63918 | L166: 113.2243 | N166: 9.812030347 | O166: 11.83840306 | P166: 20.53167428 | Q166: 8.620526437 | R166: 26.19058919 | T166: 20.94525915 | U166: 25.3354272 | V166: 44.01947485 | W166: 18.50447151 | X166: 56.26197944 | Z166: -9.742393205 | AA166: -10.00898985 | AB166: -10.16453026 | AC166: -10.28217642 | AD166: -11.21155591 | AF166: 21.01489629 | AG166: 27.16484041 | AH166: 54.38661887 | AI166: 16.84282153 | AJ166: 71.24101271
A167: 2020-01-07T19:00:00 | B167: 0 | C167: 0 | D167: 0 | E167: 0 | F167: 0 | H167: 37.02651 | I167: 51.65003 | J167: 102.8833 | K167: 37.63918 | L167: 49.32154 | N167: 7.888753825 | O167: 11.8473252 | P167: 23.55563432 | Q167: 8.620526437 | R167: 11.36830302 | T167: 16.83973524 | U167: 25.35452151 | V167: 50.50278113 | W167: 18.50447151 | X167: 24.42110889 | Z167: -9.742393205 | AA167: -10.00898985 | AB167: -10.16453026 | AC167: -10.28217642 | AD167: -11.21155591 | AF167: 14.98609586 | AG167: 27.19285686 | AH167: 63.89388519 | AI167: 16.84282153 | AJ167: 24.577856
A168: 2020-01-07T20:00:00 | B168: 0 | C168: 0 | D168: 0 | E168: 0 | F168: 0 | H168: 33.87427 | I168: 77.95726 | J168: 108.7754 | K168: 159.1954 | L168: 81.44871 | N168: 7.211694087 | O168: 17.9156539 | P168: 24.71120926 | Q168: 35.24313084 | R168: 18.82071612 | T168: 15.39444908 | U168: 38.34138294 | V168: 52.98030933 | W168: 75.65147157 | X168: 40.4301994 | Z168: -9.742393205 | AA168: -10.00898985 | AB168: -10.16453026 | AC168: -10.28217642 | AD168: -11.21155591 | AF168: 12.86374996 | AG168: 46.24804698 | AH168: 67.52698833 | AI168: 100.612426 | AJ168: 48.03935962
A169: 2020-01-07T21:00:00 | B169: 0 | C169: 0 | D169: 0 | E169: 0 | F169: 0 | H169: 77.97525 | I169: 34.24621 | J169: 42.12029 | K169: 66.53519 | L169: 44.41289 | N169: 16.67867297 | O169: 7.83363751 | P169: 9.631161938 | Q169: 15.2912948 | R169: 10.23020287 | T169: 35.60314383 | U169: 16.76480788 | V169: 20.64900723 | W169: 32.82367163 | X169: 21.97627015 | Z169: -9.742393205 | AA169: -10.00898985 | AB169: -10.16453026 | AC169: -10.28217642 | AD169: -11.21155591 | AF169: 42.5394236 | AG169: 14.58945554 | AH169: 20.11563891 | AI169: 37.83279001 | AJ169: 20.99491711
A170: 2020-01-07T22:00:00 | B170: 0 | C170: 0 | D170: 0 | E170: 0 | F170: 0 | H170: 30.71479 | I170: 28.47515 | J170: 34.26059 | K170: 47.71558 | L170: 44.41289 | N170: 6.533448606 | O170: 6.501689707 | P170: 7.821720754 | Q170: 10.94784735 | R170: 10.23020287 | T170: 13.94663177 | U170: 13.91429954 | V170: 16.76960365 | W170: 23.50020394 | X170: 21.97627015 | Z170: -9.742393205 | AA170: -10.00898985 | AB170: -10.16453026 | AC170: -10.28217642 | AD170: -11.21155591 | AF170: =SUM(N170,T170,Z170) -> 10.73768717 | AG170: 10.4069994 | AH170: 14.42679414 | AI170: 24.16587487 | AJ170: 20.99491711
A171: 2020-01-07T23:00:00 | B171: 0 | C171: 0 | D171: 0 | E171: 0 | F171: 0 | H171: 28.73521 | I171: 28.47515 | J171: 32.43137 | K171: 37.63918 | L171: 38.57067 | N171: 6.108952308 | O171: 6.501689707 | P171: 7.4008886 | Q171: 8.620526437 | R171: 8.874641464 | T171: 13.04048038 | U171: 13.91429954 | V171: 15.86734843 | W171: 18.50447151 | X171: 19.06428649 | Z171: -9.742393205 | AA171: -10.00898985 | AB171: -10.16453026 | AC171: -10.28217642 | AD171: -11.21155591 | AF171: 9.407039482 | AG171: 10.4069994 | AH171: 13.10370676 | AI171: 16.84282153 | AJ171: 16.72737204
A172: 2020-01-08 | B172: 0 | C172: 0 | D172: 0 | E172: 0 | F172: 0 | H172: 29.72501 | I172: 28.47515 | J172: 33.264 | K172: 37.63918 | L172: 39.73911 | N172: 6.321200457 | O172: 6.501689707 | P172: 7.592799029 | Q172: 8.620526437 | R172: 9.146071206 | T172: 13.49355608 | U172: 13.91429954 | V172: 16.27880032 | W172: 18.50447151 | X172: 19.64736518 | Z172: -9.742393205 | AA172: -10.00898985 | AB172: -10.16453026 | AC172: -10.28217642 | AD172: -11.21155591 | AF172: 10.07236333 | AG172: 10.4069994 | AH172: 13.70706909 | AI172: 16.84282153 | AJ172: 17.58188048
A173: 2020-01-08T01:00:00 | B173: 0 | C173: 0 | D173: 0 | E173: 0 | F173: 0 | H173: 34.67396 | I173: 28.47515 | J173: 31.42033 | K173: 36.53277 | L173: 55.64755 | N173: 7.383626945 | O173: 6.501689707 | P173: 7.167854508 | Q173: 8.365376553 | R173: 12.83656332 | T173: 15.76146571 | U173: 13.91429954 | V173: 15.36772827 | W173: 17.95677715 | X173: 27.57518956 | Z173: -9.742393205 | AA173: -10.00898985 | AB173: -10.16453026 | AC173: -10.28217642 | AD173: -11.21155591 | AF173: 13.40269945 | AG173: 10.4069994 | AH173: 12.37105251 | AI173: 16.03997728 | AJ173: 29.20019697
A174: 2020-01-08T02:00:00 | B174: 0 | C174: 0 | D174: 0 | E174: 0 | F174: 0 | H174: 37.64333 | I174: 28.47515 | J174: 27.08505 | K174: 34.31993 | L174: 39.73911 | N174: 8.020371392 | O174: 6.501689707 | P174: 6.16992028 | Q174: 7.855076784 | R174: 9.146071206 | T174: 17.1206928 | U174: 13.91429954 | V174: 13.22817841 | W174: 16.86138842 | X174: 19.64736518 | Z174: -9.742393205 | AA174: -10.00898985 | AB174: -10.16453026 | AC174: -10.28217642 | AD174: -11.21155591 | AF174: 15.39867098 | AG174: 10.4069994 | AH174: 9.233568432 | AI174: 14.43428878 | AJ174: 17.58188048
A175: 2020-01-08T03:00:00 | B175: 0 | C175: 0 | D175: 0 | E175: 0 | F175: 0 | H175: 32.69438 | I175: 28.47515 | J175: 27.08505 | K175: 34.31993 | L175: 38.57067 | N175: 6.957944903 | O175: 6.501689707 | P175: 6.16992028 | Q175: 7.855076784 | R175: 8.874641464 | T175: 14.85278317 | U175: 13.91429954 | V175: 13.22817841 | W175: 16.86138842 | X175: 19.06428649 | Z175: -9.742393205 | AA175: -10.00898985 | AB175: -10.16453026 | AC175: -10.28217642 | AD175: -11.21155591 | AF175: 12.06833486 | AG175: 10.4069994 | AH175: 9.233568432 | AI175: 14.43428878 | AJ175: 16.72737204
A176: 2020-01-08T04:00:00 | B176: 0 | C176: 0 | D176: 0 | E176: 0 | F176: 0 | H176: 33.68416 | I176: 30.43622 | J176: 33.264 | K176: 34.31993 | L176: 39.73911 | N176: 7.171378796 | O176: 6.954169583 | P176: 7.592799029 | Q176: 7.855076784 | R176: 9.146071206 | T176: 15.30839001 | U176: 14.88265405 | V176: 16.27880032 | W176: 16.86138842 | X176: 19.64736518 | Z176: -9.742393205 | AA176: -10.00898985 | AB176: -10.16453026 | AC176: -10.28217642 | AD176: -11.21155591 | AF176: 12.7373756 | AG176: 11.82783378 | AH176: 13.70706909 | AI176: 14.43428878 | AJ176: 17.58188048
A177: 2020-01-08T05:00:00 | B177: 0 | C177: 0 | D177: 0 | E177: 0 | F177: 0 | H177: 37.64333 | I177: 29.45568 | J177: 33.51042 | K177: 37.63918 | L177: 50.36738 | N177: 8.020371392 | O177: 6.728566941 | P177: 7.649001369 | Q177: 8.620526437 | R177: 11.61116121 | T177: 17.1206928 | U177: 14.39984067 | V177: 16.39929695 | W177: 18.50447151 | X177: 24.94281088 | Z177: -9.742393205 | AA177: -10.00898985 | AB177: -10.16453026 | AC177: -10.28217642 | AD177: -11.21155591 | AF177: 15.39867098 | AG177: 11.11941777 | AH177: 13.88376805 | AI177: 16.84282153 | AJ177: 25.34241618
A178: 2020-01-08T06:00:00 | B178: 0 | C178: 0 | D178: 0 | E178: 0 | F178: 0 | H178: 30.71479 | I178: 30.43622 | J178: 33.92235 | K178: 37.63918 | L178: 57.42345 | N178: 6.533448606 | O178: 6.954169583 | P178: 7.743585794 | Q178: 8.620526437 | R178: 13.2476762 | T178: 13.94663177 | U178: 14.88265405 | V178: 16.60208395 | W178: 18.50447151 | X178: 28.45833214 | Z178: -9.742393205 | AA178: -10.00898985 | AB178: -10.16453026 | AC178: -10.28217642 | AD178: -11.21155591 | AF178: 10.73768717 | AG178: 11.82783378 | AH178: 14.18113948 | AI178: 16.84282153 | AJ178: 30.49445244
A179: 2020-01-08T07:00:00 | B179: 0 | C179: 0 | D179: 0 | E179: 0 | F179: 0 | H179: 29.72501 | I179: 30.43622 | J179: 54.2219 | K179: 45.08143 | L179: 39.73911 | N179: 6.321200457 | O179: 6.954169583 | P179: 12.41797552 | Q179: 10.33873231 | R179: 9.146071206 | T179: 13.49355608 | U179: 14.88265405 | V179: 26.62387653 | W179: 22.19270236 | X179: 19.64736518 | Z179: -9.742393205 | AA179: -10.00898985 | AB179: -10.16453026 | AC179: -10.28217642 | AD179: -11.21155591 | AF179: 10.07236333 | AG179: 11.82783378 | AH179: 28.87732179 | AI179: 22.24925825 | AJ179: 17.58188048
A180: 2020-01-08T08:00:00 | B180: 0 | C180: 0 | D180: 0 | E180: 0 | F180: 0 | H180: 122.9162 | I180: 28.47515 | J180: 33.92235 | K180: 35.42634 | L180: 50.33418 | N180: 25.49349274 | O180: 6.501689707 | P180: 7.743585794 | Q180: 8.110226669 | R180: 11.60322466 | T180: 54.41970655 | U180: 13.91429954 | V180: 16.60208395 | W180: 17.40908278 | X180: 24.9257618 | Z180: -9.742393205 | AA180: -10.00898985 | AB180: -10.16453026 | AC180: -10.28217642 | AD180: -11.21155591 | AF180: 70.17080609 | AG180: 10.4069994 | AH180: 14.18113948 | AI180: 15.23713303 | AJ180: 25.31743055
A181: 2020-01-08T09:00:00 | B181: 0 | C181: 0 | D181: 0 | E181: 0 | F181: 0 | H181: 30.71479 | I181: 18.66983 | J181: 35.05794 | K181: 40.11619 | L181: 91.98316 | N181: 6.533448606 | O181: 4.24056492 | P181: 8.00540645 | Q181: 9.192770108 | R181: 21.2635838 | T181: 13.94663177 | U181: 9.075254769 | V181: 17.16342189 | W181: 19.73282651 | X181: 45.67790767 | Z181: -9.742393205 | AA181: -10.00898985 | AB181: -10.16453026 | AC181: -10.28217642 | AD181: -11.21155591 | AF181: 10.73768717 | AG181: 3.30682984 | AH181: 15.00429808 | AI181: 18.6434202 | AJ181: 55.72993556
A182: 2020-01-08T10:00:00 | B182: 0 | C182: 0 | D182: 0 | E182: 0 | F182: 0 | H182: 29.72501 | I182: 18.66983 | J182: 26.85953 | K182: 36.53277 | L182: 38.57067 | N182: 6.321200457 | O182: 4.24056492 | P182: 6.117830306 | Q182: 8.365376553 | R182: 8.874641464 | T182: 13.49355608 | U182: 9.075254769 | V182: 13.11649861 | W182: 17.95677715 | X182: 19.06428649 | Z182: -9.742393205 | AA182: -10.00898985 | AB182: -10.16453026 | AC182: -10.28217642 | AD182: -11.21155591 | AF182: 10.07236333 | AG182: 3.30682984 | AH182: 9.069798658 | AI182: 16.03997728 | AJ182: 16.72737204
A183: 2020-01-08T11:00:00 | B183: 0 | C183: 0 | D183: 0 | E183: 0 | F183: 0 | H183: 23.78626 | I183: 17.6893 | J183: 28.53386 | K183: 35.42634 | L183: 37.40222 | N183: 5.04652582 | O183: 4.014962277 | P183: 6.503021952 | Q183: 8.110226669 | R183: 8.60479903 | T183: 10.77257075 | U183: 8.592441395 | V183: 13.94234135 | W183: 17.40908278 | X183: 18.48461761 | Z183: -9.742393205 | AA183: -10.00898985 | AB183: -10.16453026 | AC183: -10.28217642 | AD183: -11.21155591 | AF183: 6.076703363 | AG183: 2.598413824 | AH183: 10.28083304 | AI183: 15.23713303 | AJ183: 15.87786073
A184: 2020-01-08T12:00:00 | B184: 0 | C184: 0 | D184: 0 | E184: 0 | F184: 0 | H184: 32.69438 | I184: 29.45568 | J184: 25.43959 | K184: 42.58502 | L184: 37.40222 | N184: 6.957944903 | O184: 6.728566941 | P184: 5.790211789 | Q184: 9.76206407 | R184: 8.60479903 | T184: 14.85278317 | U184: 14.39984067 | V184: 12.41409145 | W184: 20.95484978 | X184: 18.48461761 | Z184: -9.742393205 | AA184: -10.00898985 | AB184: -10.16453026 | AC184: -10.28217642 | AD184: -11.21155591 | AF184: 12.06833486 | AG184: 11.11941777 | AH184: 8.039772978 | AI184: 20.43473743 | AJ184: 15.87786073
A185: 2020-01-08T13:00:00 | B185: 0 | C185: 0 | D185: 0 | E185: 0 | F185: 0 | H185: 33.68416 | I185: 11.80612 | J185: 27.44781 | K185: 37.63918 | L185: 38.57067 | N185: 7.171378796 | O185: 2.65752265 | P185: 6.253538395 | Q185: 8.620526437 | R185: 8.874641464 | T185: 15.30839001 | U185: 5.687377876 | V185: 13.40745388 | W185: 18.50447151 | X185: 19.06428649 | Z185: -9.742393205 | AA185: -10.00898985 | AB185: -10.16453026 | AC185: -10.28217642 | AD185: -11.21155591 | AF185: 12.7373756 | AG185: -1.664089322 | AH185: 9.496462016 | AI185: 16.84282153 | AJ185: 16.72737204
A186: 2020-01-08T14:00:00 | B186: 0 | C186: 0 | D186: 0 | E186: 0 | F186: 0 | H186: 33.68416 | I186: 15.72824 | J186: 29.83273 | K186: 42.5896 | L186: 38.57067 | N186: 7.171378796 | O186: 3.562482402 | P186: 6.801853905 | Q186: 9.763538925 | R186: 8.874641464 | T186: 15.30839001 | U186: 7.624086889 | V186: 14.58303073 | W186: 20.95801564 | X186: 19.06428649 | Z186: -9.742393205 | AA186: -10.00898985 | AB186: -10.16453026 | AC186: -10.28217642 | AD186: -11.21155591 | AF186: 12.7373756 | AG186: 1.177579442 | AH186: 11.22035437 | AI186: 20.43937815 | AJ186: 16.72737204
A187: 2020-01-08T15:00:00 | B187: 0 | C187: 0 | D187: 0 | E187: 0 | F187: 0 | H187: 47.54123 | I187: 20.63089 | J187: 33.63035 | K187: 47.55576 | L187: 60.94831 | N187: 10.14522437 | O187: 4.693044795 | P187: 7.676417144 | Q187: 10.91097598 | R187: 14.06514005 | T187: 21.65651206 | U187: 10.04360928 | V187: 16.45807579 | W187: 23.42105736 | X187: 30.21438787 | Z187: -9.742393205 | AA187: -10.00898985 | AB187: -10.16453026 | AC187: -10.28217642 | AD187: -11.21155591 | AF187: 22.05934322 | AG187: 4.727664223 | AH187: 13.96996267 | AI187: 24.04985692 | AJ187: 33.067972
A188: 2020-01-08T16:00:00 | B188: 0 | C188: 0 | D188: 0 | E188: 0 | F188: 0 | H188: 278.7369 | I188: 36.59462 | J188: 59.26254 | K188: 54.98407 | L188: 71.52607 | N188: 64.53766619 | O188: 8.37533877 | P188: 13.57903361 | Q188: 12.62475728 | R188: 16.51911889 | T188: 137.7653855 | U188: 17.92410553 | V188: 29.11316049 | W188: 27.09979062 | X188: 35.48596485 | Z188: -9.742393205 | AA188: -10.00898985 | AB188: -10.16453026 | AC188: -10.28217642 | AD188: -11.21155591 | AF188: 192.5606585 | AG188: 16.29045445 | AH188: 32.52766384 | AI188: 29.44237148 | AJ188: 40.79352783
A189: 2020-01-08T17:00:00 | B189: 0 | C189: 0 | D189: 0 | E189: 0 | F189: 0 | H189: 30.71479 | I189: 108.7281 | J189: 45.95035 | K189: 112.3309 | L189: 39.73911 | N189: 6.533448606 | O189: 24.60088474 | P189: 10.51394991 | Q189: 25.86452902 | R189: 9.146071206 | T189: 13.94663177 | U189: 52.6484798 | V189: 22.54168595 | W189: 55.51974627 | X189: 19.64736518 | Z189: -9.742393205 | AA189: -10.00898985 | AB189: -10.16453026 | AC189: -10.28217642 | AD189: -11.21155591 | AF189: 10.73768717 | AG189: 67.24037469 | AH189: 22.89110559 | AI189: 71.10209887 | AJ189: 17.58188048
A190: 2020-01-08T18:00:00 | B190: 0 | C190: 0 | D190: 0 | E190: 0 | F190: 0 | H190: 30.71479 | I190: 69.60528 | J190: 152.8251 | K190: 37.63918 | L190: 171.1688 | N190: 6.533448606 | O190: 15.98974659 | P190: 32.99625662 | Q190: 8.620526437 | R190: 38.04302128 | T190: 13.94663177 | U190: 34.21973883 | V190: 70.74327541 | W190: 18.50447151 | X190: 81.72308249 | Z190: -9.742393205 | AA190: -10.00898985 | AB190: -10.16453026 | AC190: -10.28217642 | AD190: -11.21155591 | AF190: 10.73768717 | AG190: 40.20049557 | AH190: 93.57500177 | AI190: 16.84282153 | AJ190: 108.5545479
A191: 2020-01-08T19:00:00 | B191: 0 | C191: 0 | D191: 0 | E191: 0 | F191: 0 | H191: 93.9454 | I191: 64.22842 | J191: 99.69617 | K191: 68.93774 | L191: 173.272 | N191: 20.10665844 | O191: 14.74956936 | P191: 22.88806019 | Q191: 15.84731507 | R191: 38.44143569 | T191: 42.920696 | U191: 31.56562915 | V191: 49.07151633 | W191: 34.01720213 | X191: 82.57894654 | Z191: -9.742393205 | AA191: -10.00898985 | AB191: -10.16453026 | AC191: -10.28217642 | AD191: -11.21155591 | AF191: 53.28496124 | AG191: 36.30620866 | AH191: 61.79504625 | AI191: 39.58234077 | AJ191: 109.8088263
A192: 2020-01-08T20:00:00 | B192: 0 | C192: 0 | D192: 0 | E192: 0 | F192: 0 | H192: 33.22895 | I192: 64.25793 | J192: 76.25627 | K192: 215.0884 | L192: 39.73911 | N192: 7.072962057 | O192: 14.75594231 | P192: 17.49126478 | Q192: 45.92697917 | R192: 9.146071206 | T192: 15.09830463 | U192: 31.57926795 | V192: 37.50090126 | W192: 98.58498596 | X192: 19.64736518 | Z192: -9.742393205 | AA192: -10.00898985 | AB192: -10.16453026 | AC192: -10.28217642 | AD192: -11.21155591 | AF192: 12.42887348 | AG192: 36.32622041 | AH192: 44.82763578 | AI192: 134.2297887 | AJ192: 17.58188048
A193: 2020-01-08T21:00:00 | B193: 0 | C193: 0 | D193: 0 | E193: 0 | F193: 0 | H193: 31.70458 | I193: 65.9795 | J193: 45.8065 | K193: 65.69405 | L193: 127.3288 | N193: 6.745696755 | O193: 15.15234018 | P193: 10.47968019 | Q193: 15.09808882 | R193: 29.44298417 | T193: 14.39970747 | U193: 32.42760105 | V193: 22.46821239 | W193: 32.40894352 | X193: 63.24869434 | Z193: -9.742393205 | AA193: -10.00898985 | AB193: -10.16453026 | AC193: -10.28217642 | AD193: -11.21155591 | AF193: 11.40301102 | AG193: 37.57095138 | AH193: 22.78336232 | AI193: 37.22485592 | AJ193: 81.4801226
A194: 2020-01-08T22:00:00 | B194: 0 | C194: 0 | D194: 0 | E194: 0 | F194: 0 | H194: 30.71479 | I194: 27.49462 | J194: 32.1411 | K194: 36.53277 | L194: 38.57067 | N194: 6.533448606 | O194: 6.276087065 | P194: 7.33371995 | Q194: 8.365376553 | R194: 8.874641464 | T194: 13.94663177 | U194: 13.43148617 | V194: 15.72334026 | W194: 17.95677715 | X194: 19.06428649 | Z194: -9.742393205 | AA194: -10.00898985 | AB194: -10.16453026 | AC194: -10.28217642 | AD194: -11.21155591 | AF194: 10.73768717 | AG194: 9.698583385 | AH194: 12.89252995 | AI194: 16.03997728 | AJ194: 16.72737204
A195: 2020-01-08T23:00:00 | B195: 0 | C195: 0 | D195: 0 | E195: 0 | F195: 0 | H195: 30.71479 | I195: 28.47515 | J195: 32.92473 | K195: 36.53277 | L195: 39.73911 | N195: 6.533448606 | O195: 6.501689707 | P195: 7.514664069 | Q195: 8.365376553 | R195: 9.146071206 | T195: 13.94663177 | U195: 13.91429954 | V195: 16.11128062 | W195: 17.95677715 | X195: 19.64736518 | Z195: -9.742393205 | AA195: -10.00898985 | AB195: -10.16453026 | AC195: -10.28217642 | AD195: -11.21155591 | AF195: 10.73768717 | AG195: 10.4069994 | AH195: 13.46141443 | AI195: 16.03997728 | AJ195: 17.58188048
A196: 2020-01-09 | B196: 0 | C196: 0 | D196: 0 | E196: 0 | F196: 0 | H196: 32.69438 | I196: 28.47515 | J196: 32.80828 | K196: 36.53277 | L196: 37.40222 | N196: 6.957944903 | O196: 6.501689707 | P196: 7.487248293 | Q196: 8.365376553 | R196: 8.60479903 | T196: 14.85278317 | U196: 13.91429954 | V196: 16.05250178 | W196: 17.95677715 | X196: 18.48461761 | Z196: -9.742393205 | AA196: -10.00898985 | AB196: -10.16453026 | AC196: -10.28217642 | AD196: -11.21155591 | AF196: 12.06833486 | AG196: 10.4069994 | AH196: 13.37521981 | AI196: 16.03997728 | AJ196: 15.87786073
A197: 2020-01-09T01:00:00 | B197: 0 | C197: 0 | D197: 0 | E197: 0 | F197: 0 | H197: 33.68416 | I197: 28.47515 | J197: 32.80828 | K197: 36.53277 | L197: 37.40222 | N197: 7.171378796 | O197: 6.501689707 | P197: 7.487248293 | Q197: 8.365376553 | R197: 8.60479903 | T197: 15.30839001 | U197: 13.91429954 | V197: 16.05250178 | W197: 17.95677715 | X197: 18.48461761 | Z197: -9.742393205 | AA197: -10.00898985 | AB197: -10.16453026 | AC197: -10.28217642 | AD197: -11.21155591 | AF197: 12.7373756 | AG197: 10.4069994 | AH197: 13.37521981 | AI197: 16.03997728 | AJ197: 15.87786073
A198: 2020-01-09T02:00:00 | B198: 0 | C198: 0 | D198: 0 | E198: 0 | F198: 0 | H198: 32.69438 | I198: 28.47515 | J198: 28.13007 | K198: 35.42634 | L198: 36.23377 | N198: 6.957944903 | O198: 6.501689707 | P198: 6.409808315 | Q198: 8.110226669 | R198: 8.333369287 | T198: 14.85278317 | U198: 13.91429954 | V198: 13.74249328 | W198: 17.40908278 | X198: 17.90153891 | Z198: -9.742393205 | AA198: -10.00898985 | AB198: -10.16453026 | AC198: -10.28217642 | AD198: -11.21155591 | AF198: 12.06833486 | AG198: 10.4069994 | AH198: 9.987771336 | AI198: 15.23713303 | AJ198: 15.02335229
A199: 2020-01-09T03:00:00 | B199: 0 | C199: 0 | D199: 0 | E199: 0 | F199: 0 | H199: 32.69438 | I199: 28.47515 | J199: 29.67315 | K199: 34.31993 | L199: 37.40222 | N199: 6.957944903 | O199: 6.501689707 | P199: 6.764842608 | Q199: 7.855076784 | R199: 8.60479903 | T199: 14.85278317 | U199: 13.91429954 | V199: 14.50367929 | W199: 16.86138842 | X199: 18.48461761 | Z199: -9.742393205 | AA199: -10.00898985 | AB199: -10.16453026 | AC199: -10.28217642 | AD199: -11.21155591 | AF199: 12.06833486 | AG199: 10.4069994 | AH199: 11.10399163 | AI199: 14.43428878 | AJ199: 15.87786073
A200: 2020-01-09T04:00:00 | B200: 0 | C200: 0 | D200: 0 | E200: 0 | F200: 0 | H200: 34.67396 | I200: 31.83244 | J200: 32.83183 | K200: 34.31993 | L200: 36.23377 | N200: 7.383626945 | O200: 7.276641156 | P200: 7.492731448 | Q200: 7.855076784 | R200: 8.333369287 | T200: 15.76146571 | U200: 15.57277712 | V200: 16.06425755 | W200: 16.86138842 | X200: 17.90153891 | Z200: -9.742393205 | AA200: -10.00898985 | AB200: -10.16453026 | AC200: -10.28217642 | AD200: -11.21155591 | AF200: 13.40269945 | AG200: 12.84042843 | AH200: 13.39245873 | AI200: 14.43428878 | AJ200: 15.02335229
A201: 2020-01-09T05:00:00 | B201: 0 | C201: 0 | D201: 0 | E201: 0 | F201: 0 | H201: 32.69438 | I201: 28.47515 | J201: 34.6602 | K201: 36.53277 | L201: 38.57067 | N201: 6.957944903 | O201: 6.501689707 | P201: 7.913563602 | Q201: 8.365376553 | R201: 8.874641464 | T201: 14.85278317 | U201: 13.91429954 | V201: 16.96651277 | W201: 17.95677715 | X201: 19.06428649 | Z201: -9.742393205 | AA201: -10.00898985 | AB201: -10.16453026 | AC201: -10.28217642 | AD201: -11.21155591 | AF201: 12.06833486 | AG201: 10.4069994 | AH201: 14.71554611 | AI201: 16.03997728 | AJ201: 16.72737204
... 2049 more rows

Sheet SDG&E Inputs
B2: Generation Capacity ($/MWh) | H2: Energy ($/MWh) | N2: GHG Cap and Trade Hourly Marginal Emissions ($/MWh) | T2: GHG Adder Hourly Marginal Emissions ($/MWh) | Z2: GHG Portfolio Rebalancing ($/MWh) | AF2: Total GHG Values ($/MWh)
A3: Date/Time Stamp | B3: 2023 | C3: 2024 | D3: 2025 | E3: 2026 | F3: 2027 | H3: 2023 | I3: 2024 | J3: 2025 | K3: 2026 | L3: 2027 | N3: 2023 | O3: 2024 | P3: 2025 | Q3: 2026 | R3: 2027 | T3: 2023 | U3: 2024 | V3: 2025 | W3: 2026 | X3: 2027 | Z3: 2023 | AA3: 2024 | AB3: 2025 | AC3: 2026 | AD3: 2027 | AF3: 2023 | AG3: 2024 | AH3: 2025 | AI3: 2026 | AJ3: 2027
A4: 2020-01-01 | B4: 0 | C4: 0 | D4: 0 | E4: 0 | F4: 0 | H4: 101.2718 | I4: 30.43622 | J4: 34.09197 | K4: 41.30977 | L4: 37.40222 | N4: 21.55919465 | O4: 6.954169583 | P4: 7.783338669 | Q4: 9.46856796 | R4: 8.60479903 | T4: 46.0213537 | U4: 14.88265405 | V4: 16.68731327 | W4: 20.32484296 | X4: 18.48461761 | Z4: -9.742393205 | AA4: -10.00898985 | AB4: -10.16453026 | AC4: -10.28217642 | AD4: -11.21155591 | AF4: =SUM(N4,T4,Z4) -> 57.83815515 | AG4: =SUM(O4,U4,AA4) -> 11.82783378 | AH4: =SUM(P4,V4,AB4) -> 14.30612168 | AI4: 19.51123451 | AJ4: =SUM(R4,X4,AD4) -> 15.87786073
A5: 2020-01-01T01:00:00 | B5: 0 | C5: 0 | D5: 0 | E5: 0 | F5: 0 | H5: 23.78626 | I5: 28.47515 | J5: 32.9523 | K5: 41.3062 | L5: 38.57067 | N5: 5.04652582 | O5: 6.501689707 | P5: 7.520147224 | Q5: 9.467093105 | R5: 8.874641464 | T5: 10.77257075 | U5: 13.91429954 | V5: 16.12303639 | W5: 20.3216771 | X5: 19.06428649 | Z5: -9.742393205 | AA5: -10.00898985 | AB5: -10.16453026 | AC5: -10.28217642 | AD5: -11.21155591 | AF5: =SUM(N5,T5,Z5) -> 6.076703363 | AG5: 10.4069994 | AH5: 13.47865335 | AI5: 19.50659379 | AJ5: 16.72737204
A6: 2020-01-01T02:00:00 | B6: 0 | C6: 0 | D6: 0 | E6: 0 | F6: 0 | H6: 28.73521 | I6: 26.51409 | J6: 32.9523 | K6: 36.53277 | L6: 38.57067 | N6: 6.108952308 | O6: 6.050484423 | P6: 7.520147224 | Q6: 8.365376553 | R6: 8.874641464 | T6: 13.04048038 | U6: 12.94867279 | V6: 16.12303639 | W6: 17.95677715 | X6: 19.06428649 | Z6: -9.742393205 | AA6: -10.00898985 | AB6: -10.16453026 | AC6: -10.28217642 | AD6: -11.21155591 | AF6: 9.407039482 | AG6: 8.990167369 | AH6: 13.47865335 | AI6: 16.03997728 | AJ6: 16.72737204
A7: 2020-01-01T03:00:00 | B7: 0 | C7: 0 | D7: 0 | E7: 0 | F7: 0 | H7: 26.75563 | I7: 23.57249 | J7: 32.9523 | K7: 36.53277 | L7: 136.686 | N7: 5.683270266 | O7: 5.371127313 | P7: 7.520147224 | Q7: 8.365376553 | R7: 31.35727815 | T7: 12.13179784 | U7: 11.49477716 | V7: 16.12303639 | W7: 17.95677715 | X7: 67.36093356 | Z7: -9.742393205 | AA7: -10.00898985 | AB7: -10.16453026 | AC7: -10.28217642 | AD7: -11.21155591 | AF7: 8.072674899 | AG7: 6.856914621 | AH7: 13.47865335 | AI7: 16.03997728 | AJ7: 87.5066558
A8: 2020-01-01T04:00:00 | B8: 0 | C8: 0 | D8: 0 | E8: 0 | F8: 0 | H8: 23.78626 | I8: 28.47515 | J8: 32.76948 | K8: 36.53277 | L8: 37.40222 | N8: 5.04652582 | O8: 6.501689707 | P8: 7.47902356 | Q8: 8.365376553 | R8: 8.60479903 | T8: 10.77257075 | U8: 13.91429954 | V8: 16.03486813 | W8: 17.95677715 | X8: 18.48461761 | Z8: -9.742393205 | AA8: -10.00898985 | AB8: -10.16453026 | AC8: -10.28217642 | AD8: -11.21155591 | AF8: 6.076703363 | AG8: 10.4069994 | AH8: 13.34936142 | AI8: 16.03997728 | AJ8: 15.87786073
A9: 2020-01-01T05:00:00 | B9: 0 | C9: 0 | D9: 0 | E9: 0 | F9: 0 | H9: 23.78626 | I9: 26.51409 | J9: 33.92714 | K9: 36.53277 | L9: 48.0952 | N9: 5.04652582 | O9: 6.050484423 | P9: 7.744956583 | Q9: 8.365376553 | R9: 11.08417481 | T9: 10.77257075 | U9: 12.94867279 | V9: 16.60502289 | W9: 17.95677715 | X9: 23.81075166 | Z9: -9.742393205 | AA9: -10.00898985 | AB9: -10.16453026 | AC9: -10.28217642 | AD9: -11.21155591 | AF9: 6.076703363 | AG9: 8.990167369 | AH9: 14.18544921 | AI9: 16.03997728 | AJ9: 23.68337056
A10: 2020-01-01T06:00:00 | B10: 0 | C10: 0 | D10: 0 | E10: 0 | F10: 0 | H10: 28.73521 | I10: 28.47515 | J10: 33.09899 | K10: 41.26804 | L10: 40.47371 | N10: 6.108952308 | O10: 6.501689707 | P10: 7.554416943 | Q10: 9.458243976 | R10: 9.315913209 | T10: 13.04048038 | U10: 13.91429954 | V10: 16.19650994 | W10: 20.30268192 | X10: 20.01221559 | Z10: -9.742393205 | AA10: -10.00898985 | AB10: -10.16453026 | AC10: -10.28217642 | AD10: -11.21155591 | AF10: 9.407039482 | AG10: 10.4069994 | AH10: 13.58639662 | AI10: 19.47874948 | AJ10: 18.11657289
A11: 2020-01-01T07:00:00 | B11: 0 | C11: 0 | D11: 0 | E11: 0 | F11: 0 | H11: 25.76584 | I11: 29.45568 | J11: 33.72148 | K11: 41.25029 | L11: 38.57067 | N11: 5.471022117 | O11: 6.728566941 | P11: 7.696978976 | Q11: 9.455294267 | R11: 8.874641464 | T11: 11.67872214 | U11: 14.39984067 | V11: 16.50215992 | W11: 20.29635019 | X11: 19.06428649 | Z11: -9.742393205 | AA11: -10.00898985 | AB11: -10.16453026 | AC11: -10.28217642 | AD11: -11.21155591 | AF11: 7.407351054 | AG11: 11.11941777 | AH11: 14.03460863 | AI11: 19.46946804 | AJ11: 16.72737204
A12: 2020-01-01T08:00:00 | B12: 0 | C12: 0 | D12: 0 | E12: 0 | F12: 0 | H12: 23.78626 | I12: 29.45568 | J12: 34.9996 | K12: 41.24148 | L12: 106.7557 | N12: 5.04652582 | O12: 6.728566941 | P12: 7.991698563 | Q12: 9.452344557 | R12: 24.68899541 | T12: 10.77257075 | U12: 14.39984067 | V12: 17.13403247 | W12: 20.29001847 | X12: 53.03629262 | Z12: -9.742393205 | AA12: -10.00898985 | AB12: -10.16453026 | AC12: -10.28217642 | AD12: -11.21155591 | AF12: 6.076703363 | AG12: 11.11941777 | AH12: 14.96120077 | AI12: 19.46018661 | AJ12: 66.51373211
A13: 2020-01-01T09:00:00 | B13: 0 | C13: 0 | D13: 0 | E13: 0 | F13: 0 | H13: 22.79647 | I13: 28.47515 | J13: 34.9996 | K13: 45.9563 | L13: 38.57067 | N13: 4.833091927 | O13: 6.501689707 | P13: 7.991698563 | Q13: 10.54078742 | R13: 8.874641464 | T13: 10.3169639 | U13: 13.91429954 | V13: 17.13403247 | W13: 22.62642565 | X13: 19.06428649 | Z13: -9.742393205 | AA13: -10.00898985 | AB13: -10.16453026 | AC13: -10.28217642 | AD13: -11.21155591 | AF13: 5.407662625 | AG13: 10.4069994 | AH13: 14.96120077 | AI13: 22.88503665 | AJ13: 16.72737204
A14: 2020-01-01T10:00:00 | B14: 0 | C14: 0 | D14: 0 | E14: 0 | F14: 0 | H14: 23.78626 | I14: 28.47515 | J14: 34.9996 | K14: 45.98202 | L14: 40.47305 | N14: 5.04652582 | O14: 6.501689707 | P14: 7.991698563 | Q14: 10.54668684 | R14: 9.315913209 | T14: 10.77257075 | U14: 13.91429954 | V14: 17.13403247 | W14: 22.6390891 | X14: 20.01221559 | Z14: -9.742393205 | AA14: -10.00898985 | AB14: -10.16453026 | AC14: -10.28217642 | AD14: -11.21155591 | AF14: 6.076703363 | AG14: 10.4069994 | AH14: 14.96120077 | AI14: 22.90359952 | AJ14: 18.11657289
A15: 2020-01-01T11:00:00 | B15: 0 | C15: 0 | D15: 0 | E15: 0 | F15: 0 | H15: 20.81689 | I15: 28.47515 | J15: 32.65971 | K15: 32.10709 | L15: 38.57067 | N15: 4.408595629 | O15: 6.501689707 | P15: 7.452978574 | Q15: 7.343302161 | R15: 8.874641464 | T15: 9.41081251 | U15: 13.91429954 | V15: 15.97902823 | W15: 15.76283382 | X15: 19.06428649 | Z15: -9.742393205 | AA15: -10.00898985 | AB15: -10.16453026 | AC15: -10.28217642 | AD15: -11.21155591 | AF15: 4.077014934 | AG15: 10.4069994 | AH15: 13.26747654 | AI15: 12.82395956 | AJ15: 16.72737204
A16: 2020-01-01T12:00:00 | B16: 0 | C16: 0 | D16: 0 | E16: 0 | F16: 0 | H16: 19.8271 | I16: 21.61143 | J16: 32.9897 | K16: 32.10709 | L16: 38.57067 | N16: 4.19634748 | O16: 4.918647438 | P16: 7.529742745 | Q16: 7.343302161 | R16: 8.874641464 | T16: 8.957736813 | U16: 10.52642265 | V16: 16.14360898 | W16: 15.76283382 | X16: 19.06428649 | Z16: -9.742393205 | AA16: -10.00898985 | AB16: -10.16453026 | AC16: -10.28217642 | AD16: -11.21155591 | AF16: 3.411691089 | AG16: 5.436080238 | AH16: 13.50882147 | AI16: 12.82395956 | AJ16: 16.72737204
A17: 2020-01-01T13:00:00 | B17: 0 | C17: 0 | D17: 0 | E17: 0 | F17: 0 | H17: 18.83731 | I17: 24.55303 | J17: 31.94466 | K17: 32.10709 | L17: 37.40222 | N17: 3.984099331 | O17: 5.598004547 | P17: 7.288483921 | Q17: 7.343302161 | R17: 8.60479903 | T17: 8.504661117 | U17: 11.98031829 | V17: 15.62635517 | W17: 15.76283382 | X17: 18.48461761 | Z17: -9.742393205 | AA17: -10.00898985 | AB17: -10.16453026 | AC17: -10.28217642 | AD17: -11.21155591 | AF17: 2.746367243 | AG17: 7.569332987 | AH17: 12.75030883 | AI17: 12.82395956 | AJ17: 15.87786073
A18: 2020-01-01T14:00:00 | B18: 0 | C18: 0 | D18: 0 | E18: 0 | F18: 0 | H18: 22.79647 | I18: 22.59196 | J18: 32.65971 | K18: 34.31993 | L18: 40.47581 | N18: 4.833091927 | O18: 5.145524671 | P18: 7.452978574 | Q18: 7.855076784 | R18: 9.317500517 | T18: 10.3169639 | U18: 11.01196378 | V18: 15.97902823 | W18: 16.86138842 | X18: 20.01562541 | Z18: -9.742393205 | AA18: -10.00898985 | AB18: -10.16453026 | AC18: -10.28217642 | AD18: -11.21155591 | AF18: 5.407662625 | AG18: 6.148498605 | AH18: 13.26747654 | AI18: 14.43428878 | AJ18: 18.12157002
A19: 2020-01-01T15:00:00 | B19: 0 | C19: 0 | D19: 0 | E19: 0 | F19: 0 | H19: 28.73521 | I19: 28.47515 | J19: 32.65971 | K19: 34.31993 | L19: 48.09435 | N19: 6.108952308 | O19: 6.501689707 | P19: 7.452978574 | Q19: 7.855076784 | R19: 11.08417481 | T19: 13.04048038 | U19: 13.91429954 | V19: 15.97902823 | W19: 16.86138842 | X19: 23.81075166 | Z19: -9.742393205 | AA19: -10.00898985 | AB19: -10.16453026 | AC19: -10.28217642 | AD19: -11.21155591 | AF19: 9.407039482 | AG19: 10.4069994 | AH19: 13.26747654 | AI19: 14.43428878 | AJ19: 23.68337056
A20: 2020-01-01T16:00:00 | B20: 0 | C20: 0 | D20: 0 | E20: 0 | F20: 0 | H20: 27.74543 | I20: 29.45568 | J20: 34.22744 | K20: 41.25568 | L20: 48.08083 | N20: 5.895518415 | O20: 6.728566941 | P20: 7.813496022 | Q20: 9.455294267 | R20: 11.08100019 | T20: 12.58487353 | U20: 14.39984067 | V20: 16.75197 | W20: 20.29635019 | X20: 23.80393203 | Z20: -9.742393205 | AA20: -10.00898985 | AB20: -10.16453026 | AC20: -10.28217642 | AD20: -11.21155591 | AF20: 8.737998744 | AG20: 11.11941777 | AH20: 14.40093576 | AI20: 19.46946804 | AJ20: 23.67337631
A21: 2020-01-01T17:00:00 | B21: 0 | C21: 0 | D21: 0 | E21: 0 | F21: 0 | H21: 130.4153 | I21: 45.22414 | J21: 85.12605 | K21: 66.15676 | L21: 38.57067 | N21: 26.85828391 | O21: 10.36497563 | P21: 19.53374005 | Q21: 15.20427836 | R21: 8.874641464 | T21: 57.33305921 | U21: 22.18213759 | V21: 41.879925 | W21: 32.63688569 | X21: 19.06428649 | Z21: -9.742393205 | AA21: -10.00898985 | AB21: -10.16453026 | AC21: -10.28217642 | AD21: -11.21155591 | AF21: 74.44894992 | AG21: 22.53812338 | AH21: 51.24913479 | AI21: 37.55898763 | AJ21: 16.72737204
A22: 2020-01-01T18:00:00 | B22: 0 | C22: 0 | D22: 0 | E22: 0 | F22: 0 | H22: 28.73521 | I22: 45.24345 | J22: 35.56136 | K22: 196.6984 | L22: 37.40222 | N22: 6.108952308 | O22: 10.370074 | P22: 8.120552707 | Q22: 42.41092527 | R22: 8.60479903 | T22: 13.04048038 | U22: 22.19304863 | V22: 17.41029303 | W22: 91.03756764 | X22: 18.48461761 | Z22: -9.742393205 | AA22: -10.00898985 | AB22: -10.16453026 | AC22: -10.28217642 | AD22: -11.21155591 | AF22: 9.407039482 | AG22: 22.55413278 | AH22: 15.36631548 | AI22: 123.1663165 | AJ22: 15.87786073
A23: 2020-01-01T19:00:00 | B23: 0 | C23: 0 | D23: 0 | E23: 0 | F23: 0 | H23: 28.73521 | I23: 45.31886 | J23: 35.69021 | K23: 93.18958 | L23: 37.40222 | N23: 6.108952308 | O23: 10.38791827 | P23: 8.150710061 | Q23: 21.44586397 | R23: 8.60479903 | T23: 13.04048038 | U23: 22.23123726 | V23: 17.47494976 | W23: 46.03481955 | X23: 18.48461761 | Z23: -9.742393205 | AA23: -10.00898985 | AB23: -10.16453026 | AC23: -10.28217642 | AD23: -11.21155591 | AF23: 9.407039482 | AG23: 22.61016569 | AH23: 15.46112955 | AI23: 57.19850711 | AJ23: 15.87786073
A24: 2020-01-01T20:00:00 | B24: 0 | C24: 0 | D24: 0 | E24: 0 | F24: 0 | H24: 28.73521 | I24: 59.29035 | J24: 35.69021 | K24: 68.13966 | L24: 36.23377 | N24: 6.108952308 | O24: 13.61008483 | P24: 8.150710061 | Q24: 15.66295821 | R24: 8.333369287 | T24: 13.04048038 | U24: 29.12701245 | V24: 17.47494976 | W24: 33.6214692 | X24: 17.90153891 | Z24: -9.742393205 | AA24: -10.00898985 | AB24: -10.16453026 | AC24: -10.28217642 | AD24: -11.21155591 | AF24: 9.407039482 | AG24: 32.72810743 | AH24: 15.46112955 | AI24: 39.002251 | AJ24: 15.02335229
A25: 2020-01-01T21:00:00 | B25: 0 | C25: 0 | D25: 0 | E25: 0 | F25: 0 | H25: 29.72501 | I25: 31.41675 | J25: 76.46625 | K25: 52.84227 | L25: 37.40222 | N25: 6.321200457 | O25: 7.181046816 | P25: 17.53924239 | Q25: 12.13068091 | R25: 8.60479903 | T25: 13.49355608 | U25: 15.36819518 | V25: 37.60376423 | W25: 26.03922638 | X25: 18.48461761 | Z25: -9.742393205 | AA25: -10.00898985 | AB25: -10.16453026 | AC25: -10.28217642 | AD25: -11.21155591 | AF25: 10.07236333 | AG25: 12.54025215 | AH25: 44.97847636 | AI25: 27.88773088 | AJ25: 15.87786073
A26: 2020-01-01T22:00:00 | B26: 0 | C26: 0 | D26: 0 | E26: 0 | F26: 0 | H26: 26.75563 | I26: 29.45568 | J26: 33.72148 | K26: 52.85586 | L26: 37.40222 | N26: 5.683270266 | O26: 6.728566941 | P26: 7.696978976 | Q26: 12.13363062 | R26: 8.60479903 | T26: 12.13179784 | U26: 14.39984067 | V26: 16.50215992 | W26: 26.04555811 | X26: 18.48461761 | Z26: -9.742393205 | AA26: -10.00898985 | AB26: -10.16453026 | AC26: -10.28217642 | AD26: -11.21155591 | AF26: 8.072674899 | AG26: 11.11941777 | AH26: 14.03460863 | AI26: 27.89701232 | AJ26: 15.87786073
A27: 2020-01-01T23:00:00 | B27: 0 | C27: 0 | D27: 0 | E27: 0 | F27: 0 | H27: 33.10295 | I27: 28.47515 | J27: 34.9996 | K27: 36.53277 | L27: 37.40222 | N27: 7.045689948 | O27: 6.501689707 | P27: 7.991698563 | Q27: 8.365376553 | R27: 8.60479903 | T27: 15.0400882 | U27: 13.91429954 | V27: 17.13403247 | W27: 17.95677715 | X27: 18.48461761 | Z27: -9.742393205 | AA27: -10.00898985 | AB27: -10.16453026 | AC27: -10.28217642 | AD27: -11.21155591 | AF27: 12.34338494 | AG27: 10.4069994 | AH27: 14.96120077 | AI27: 16.03997728 | AJ27: 15.87786073
A28: 2020-01-02 | B28: 0 | C28: 0 | D28: 0 | E28: 0 | F28: 0 | H28: 28.73521 | I28: 30.43622 | J28: 34.9996 | K28: 36.53277 | L28: 38.57067 | N28: 6.108952308 | O28: 6.954169583 | P28: 7.991698563 | Q28: 8.365376553 | R28: 8.874641464 | T28: 13.04048038 | U28: 14.88265405 | V28: 17.13403247 | W28: 17.95677715 | X28: 19.06428649 | Z28: -9.742393205 | AA28: -10.00898985 | AB28: -10.16453026 | AC28: -10.28217642 | AD28: -11.21155591 | AF28: 9.407039482 | AG28: 11.82783378 | AH28: 14.96120077 | AI28: 16.03997728 | AJ28: 16.72737204
A29: 2020-01-02T01:00:00 | B29: 0 | C29: 0 | D29: 0 | E29: 0 | F29: 0 | H29: 32.70758 | I29: 45.17099 | J29: 33.21329 | K29: 35.42634 | L29: 37.40222 | N29: 6.961502135 | O29: 10.35350431 | P29: 7.58046193 | Q29: 8.110226669 | R29: 8.60479903 | T29: 14.86037661 | U29: 22.15758776 | V29: 16.25234984 | W29: 17.40908278 | X29: 18.48461761 | Z29: -9.742393205 | AA29: -10.00898985 | AB29: -10.16453026 | AC29: -10.28217642 | AD29: -11.21155591 | AF29: 12.07948554 | AG29: 22.50210223 | AH29: 13.66828151 | AI29: 15.23713303 | AJ29: 15.87786073
A30: 2020-01-02T02:00:00 | B30: 0 | C30: 0 | D30: 0 | E30: 0 | F30: 0 | H30: 31.70458 | I30: 28.47515 | J30: 33.21329 | K30: 34.31993 | L30: 37.40222 | N30: 6.745696755 | O30: 6.501689707 | P30: 7.58046193 | Q30: 7.855076784 | R30: 8.60479903 | T30: 14.39970747 | U30: 13.91429954 | V30: 16.25234984 | W30: 16.86138842 | X30: 18.48461761 | Z30: -9.742393205 | AA30: -10.00898985 | AB30: -10.16453026 | AC30: -10.28217642 | AD30: -11.21155591 | AF30: 11.40301102 | AG30: 10.4069994 | AH30: 13.66828151 | AI30: 14.43428878 | AJ30: 15.87786073
A31: 2020-01-02T03:00:00 | B31: 0 | C31: 0 | D31: 0 | E31: 0 | F31: 0 | H31: 34.67396 | I31: 28.47515 | J31: 32.16824 | K31: 35.42634 | L31: 37.40222 | N31: 7.383626945 | O31: 6.501689707 | P31: 7.340573894 | Q31: 8.110226669 | R31: 8.60479903 | T31: 15.76146571 | U31: 13.91429954 | V31: 15.73803497 | W31: 17.40908278 | X31: 18.48461761 | Z31: -9.742393205 | AA31: -10.00898985 | AB31: -10.16453026 | AC31: -10.28217642 | AD31: -11.21155591 | AF31: 13.40269945 | AG31: 10.4069994 | AH31: 12.9140786 | AI31: 15.23713303 | AJ31: 15.87786073
A32: 2020-01-02T04:00:00 | B32: 0 | C32: 0 | D32: 0 | E32: 0 | F32: 0 | H32: 37.64333 | I32: 29.45568 | J32: 32.16824 | K32: 36.53277 | L32: 38.57067 | N32: 8.020371392 | O32: 6.728566941 | P32: 7.340573894 | Q32: 8.365376553 | R32: 8.874641464 | T32: 17.1206928 | U32: 14.39984067 | V32: 15.73803497 | W32: 17.95677715 | X32: 19.06428649 | Z32: -9.742393205 | AA32: -10.00898985 | AB32: -10.16453026 | AC32: -10.28217642 | AD32: -11.21155591 | AF32: 15.39867098 | AG32: 11.11941777 | AH32: 12.9140786 | AI32: 16.03997728 | AJ32: 16.72737204
A33: 2020-01-02T05:00:00 | B33: 0 | C33: 0 | D33: 0 | E33: 0 | F33: 0 | H33: 67.30126 | I33: 30.43622 | J33: 33.09899 | K33: 37.63918 | L33: 39.73911 | N33: 14.38663011 | O33: 6.954169583 | P33: 7.554416943 | Q33: 8.620526437 | R33: 9.146071206 | T33: 30.71043254 | U33: 14.88265405 | V33: 16.19650994 | W33: 18.50447151 | X33: 19.64736518 | Z33: -9.742393205 | AA33: -10.00898985 | AB33: -10.16453026 | AC33: -10.28217642 | AD33: -11.21155591 | AF33: 35.35466945 | AG33: 11.82783378 | AH33: 13.58639662 | AI33: 16.84282153 | AJ33: 17.58188048
A34: 2020-01-02T06:00:00 | B34: 0 | C34: 0 | D34: 0 | E34: 0 | F34: 0 | H34: 30.71479 | I34: 35.99319 | J34: 52.56006 | K34: 39.85202 | L34: 42.076 | N34: 6.533448606 | O34: 8.236408329 | P34: 12.03552545 | Q34: 9.132301061 | R34: 9.688930691 | T34: 13.94663177 | U34: 17.62677978 | V34: 25.80391168 | W34: 19.60302611 | X34: 20.81352257 | Z34: -9.742393205 | AA34: -10.00898985 | AB34: -10.16453026 | AC34: -10.28217642 | AD34: -11.21155591 | AF34: 10.73768717 | AG34: 15.85419826 | AH34: 27.67490687 | AI34: 18.45315075 | AJ34: 19.29089736
A35: 2020-01-02T07:00:00 | B35: 0 | C35: 0 | D35: 0 | E35: 0 | F35: 0 | H35: 44.11848 | I35: 35.98806 | J35: 66.56235 | K35: 37.63918 | L35: 44.41289 | N35: 9.411248926 | O35: 8.235133738 | P35: 15.25962065 | Q35: 8.620526437 | R35: 10.23020287 | T35: 20.08973074 | U35: 17.62405202 | V35: 32.71630351 | W35: 18.50447151 | X35: 21.97627015 | Z35: -9.742393205 | AA35: -10.00898985 | AB35: -10.16453026 | AC35: -10.28217642 | AD35: -11.21155591 | AF35: 19.75858646 | AG35: 15.85019591 | AH35: 37.8113939 | AI35: 16.84282153 | AJ35: 20.99491711
A36: 2020-01-02T08:00:00 | B36: 0 | C36: 0 | D36: 0 | E36: 0 | F36: 0 | H36: 29.72501 | I36: 28.47515 | J36: 66.51732 | K36: 39.85202 | L36: 51.44736 | N36: 6.321200457 | O36: 6.501689707 | P36: 15.24865434 | Q36: 9.132301061 | R36: 11.86195594 | T36: 13.49355608 | U36: 13.91429954 | V36: 32.69279198 | W36: 19.60302611 | X36: 25.48156196 | Z36: -9.742393205 | AA36: -10.00898985 | AB36: -10.16453026 | AC36: -10.28217642 | AD36: -11.21155591 | AF36: 10.07236333 | AG36: 10.4069994 | AH36: 37.77691606 | AI36: 18.45315075 | AJ36: 26.13196199
A37: 2020-01-02T09:00:00 | B37: 0 | C37: 0 | D37: 0 | E37: 0 | F37: 0 | H37: 28.73521 | I37: 31.41675 | J37: 42.70721 | K37: 34.31993 | L37: 47.91822 | N37: 6.108952308 | O37: 7.181046816 | P37: 9.766870027 | Q37: 7.855076784 | R37: 11.04290479 | T37: 13.04048038 | U37: 15.36819518 | V37: 20.9399625 | W37: 16.86138842 | X37: 23.72209642 | Z37: -9.742393205 | AA37: -10.00898985 | AB37: -10.16453026 | AC37: -10.28217642 | AD37: -11.21155591 | AF37: 9.407039482 | AG37: 12.54025215 | AH37: 20.54230226 | AI37: 14.43428878 | AJ37: 23.5534453
A38: 2020-01-02T10:00:00 | B38: 0 | C38: 0 | D38: 0 | E38: 0 | F38: 0 | H38: 28.73521 | I38: 34.35834 | J38: 42.71977 | K38: 27.68142 | L38: 43.24445 | N38: 6.108952308 | O38: 7.859129334 | P38: 9.769611605 | Q38: 6.322702624 | R38: 9.958773125 | T38: 13.04048038 | U38: 16.81936306 | V38: 20.94584038 | W38: 13.57205635 | X38: 21.39319145 | Z38: -9.742393205 | AA38: -10.00898985 | AB38: -10.16453026 | AC38: -10.28217642 | AD38: -11.21155591 | AF38: 9.407039482 | AG38: 14.66950255 | AH38: 20.55092172 | AI38: 9.612582558 | AJ38: 20.14040867
A39: 2020-01-02T11:00:00 | B39: 0 | C39: 0 | D39: 0 | E39: 0 | F39: 0 | H39: 29.72501 | I39: 29.45568 | J39: 66.64974 | K39: 31.00067 | L39: 44.41289 | N39: 6.321200457 | O39: 6.728566941 | P39: 15.28018248 | Q39: 7.088152277 | R39: 10.23020287 | T39: 13.49355608 | U39: 14.39984067 | V39: 32.76038765 | W39: 15.21513945 | X39: 21.97627015 | Z39: -9.742393205 | AA39: -10.00898985 | AB39: -10.16453026 | AC39: -10.28217642 | AD39: -11.21155591 | AF39: 10.07236333 | AG39: 11.11941777 | AH39: 37.87603987 | AI39: 12.02111531 | AJ39: 20.99491711
A40: 2020-01-02T12:00:00 | B40: 0 | C40: 0 | D40: 0 | E40: 0 | F40: 0 | H40: 28.73521 | I40: 24.55303 | J40: 85.66617 | K40: 26.57499 | L40: 44.41289 | N40: 6.108952308 | O40: 5.598004547 | P40: 19.65848183 | Q40: 6.066077885 | R40: 10.23020287 | T40: 13.04048038 | U40: 11.98031829 | V40: 42.14736873 | W40: 13.02119612 | X40: 21.97627015 | Z40: -9.742393205 | AA40: -10.00898985 | AB40: -10.16453026 | AC40: -10.28217642 | AD40: -11.21155591 | AF40: 9.407039482 | AG40: 7.569332987 | AH40: 51.6413203 | AI40: 8.805097589 | AJ40: 20.99491711
A41: 2020-01-02T13:00:00 | B41: 0 | C41: 0 | D41: 0 | E41: 0 | F41: 0 | H41: 28.73521 | I41: 23.57249 | J41: 33.72148 | K41: 27.68142 | L41: 51.42356 | N41: 6.108952308 | O41: 5.371127313 | P41: 7.696978976 | Q41: 6.322702624 | R41: 11.85560671 | T41: 13.04048038 | U41: 11.49477716 | V41: 16.50215992 | W41: 13.57205635 | X41: 25.46792269 | Z41: -9.742393205 | AA41: -10.00898985 | AB41: -10.16453026 | AC41: -10.28217642 | AD41: -11.21155591 | AF41: 9.407039482 | AG41: 6.856914621 | AH41: 14.03460863 | AI41: 9.612582558 | AJ41: 26.11197349
A42: 2020-01-02T14:00:00 | B42: 0 | C42: 0 | D42: 0 | E42: 0 | F42: 0 | H42: 34.67396 | I42: 23.57249 | J42: 35.39138 | K42: 26.57499 | L42: 46.74979 | N42: 7.383626945 | O42: 5.371127313 | P42: 8.082170622 | Q42: 6.066077885 | R42: 10.77147504 | T42: 15.76146571 | U42: 11.49477716 | V42: 17.32800265 | W42: 13.02119612 | X42: 23.13901772 | Z42: -9.742393205 | AA42: -10.00898985 | AB42: -10.16453026 | AC42: -10.28217642 | AD42: -11.21155591 | AF42: 13.40269945 | AG42: 6.856914621 | AH42: 15.24564301 | AI42: 8.805097589 | AJ42: 22.69893686
A43: 2020-01-02T15:00:00 | B43: 0 | C43: 0 | D43: 0 | E43: 0 | F43: 0 | H43: 37.64333 | I43: 28.47515 | J43: 33.95455 | K43: 36.53277 | L43: 50.25512 | N43: 8.020371392 | O43: 6.501689707 | P43: 7.751810527 | Q43: 8.365376553 | R43: 11.58576427 | T43: 17.1206928 | U43: 13.91429954 | V43: 16.6197176 | W43: 17.95677715 | X43: 24.88825381 | Z43: -9.742393205 | AA43: -10.00898985 | AB43: -10.16453026 | AC43: -10.28217642 | AD43: -11.21155591 | AF43: 15.39867098 | AG43: 10.4069994 | AH43: 14.20699787 | AI43: 16.03997728 | AJ43: 25.26246217
A44: 2020-01-02T16:00:00 | B44: 0 | C44: 0 | D44: 0 | E44: 0 | F44: 0 | H44: 48.3033 | I44: 284.8691 | J44: 42.72286 | K44: 58.52942 | L44: 304.0872 | N44: 10.30885702 | O44: 68.69791645 | P44: 9.769611605 | Q44: 13.44330171 | R44: 83.12893008 | T44: 22.00581064 | U44: 147.0207639 | V44: 20.94584038 | W44: 28.8568448 | X44: 178.5755227 | Z44: -9.742393205 | AA44: -10.00898985 | AB44: -10.16453026 | AC44: -10.28217642 | AD44: -11.21155591 | AF44: 22.57227445 | AG44: 205.7096905 | AH44: 20.55092172 | AI44: 32.01797009 | AJ44: 250.4928969
A45: 2020-01-02T17:00:00 | B45: 0 | C45: 0 | D45: 0 | E45: 0 | F45: 0 | H45: 42.4947 | I45: 64.52818 | J45: 146.8856 | K45: 130.8874 | L45: 55.10914 | N45: 9.062640235 | O45: 14.81839728 | P45: 31.89825481 | Q45: 29.59886143 | R45: 12.71116595 | T45: 19.34557289 | U45: 31.71292815 | V45: 68.38918278 | W45: 63.53571237 | X45: 27.30581402 | Z45: -9.742393205 | AA45: -10.00898985 | AB45: -10.16453026 | AC45: -10.28217642 | AD45: -11.21155591 | AF45: 18.66581992 | AG45: 36.52233558 | AH45: 90.12290733 | AI45: 82.85239739 | AJ45: 28.80542406
A46: 2020-01-02T18:00:00 | B46: 0 | C46: 0 | D46: 0 | E46: 0 | F46: 0 | H46: 29.72501 | I46: 64.57004 | J46: 113.7785 | K46: 88.07055 | L46: 249.799 | N46: 6.321200457 | O46: 14.82731942 | P46: 25.6584243 | Q46: 20.26450526 | R46: 53.39864308 | T46: 13.49355608 | U46: 31.73202246 | V46: 55.01111832 | W46: 43.49896298 | X46: 114.7096515 | Z46: -9.742393205 | AA46: -10.00898985 | AB46: -10.16453026 | AC46: -10.28217642 | AD46: -11.21155591 | AF46: 10.07236333 | AG46: 36.55035203 | AH46: 70.50501236 | AI46: 53.48129182 | AJ46: 156.8967387
A47: 2020-01-02T19:00:00 | B47: 0 | C47: 0 | D47: 0 | E47: 0 | F47: 0 | H47: 29.72501 | I47: 64.60404 | J47: 131.465 | K47: 88.20895 | L47: 38.57067 | N47: 6.321200457 | O47: 14.83624156 | P47: 29.00314892 | Q47: 20.29547721 | R47: 8.874641464 | T47: 13.49355608 | U47: 31.75111677 | V47: 62.18213706 | W47: 43.56544611 | X47: 19.06428649 | Z47: -9.742393205 | AA47: -10.00898985 | AB47: -10.16453026 | AC47: -10.28217642 | AD47: -11.21155591 | AF47: 10.07236333 | AG47: 36.57836848 | AH47: 81.02075571 | AI47: 53.5787469 | AJ47: 16.72737204
A48: 2020-01-02T20:00:00 | B48: 0 | C48: 0 | D48: 0 | E48: 0 | F48: 0 | H48: 29.72501 | I48: 64.72401 | J48: 129.9692 | K48: 37.63918 | L48: 45.22086 | N48: 6.321200457 | O48: 14.86300797 | P48: 28.72899116 | Q48: 8.620526437 | R48: 10.41750526 | T48: 13.49355608 | U48: 31.80839972 | V48: 61.59434864 | W48: 18.50447151 | X48: 22.37862855 | Z48: -9.742393205 | AA48: -10.00898985 | AB48: -10.16453026 | AC48: -10.28217642 | AD48: -11.21155591 | AF48: 10.07236333 | AG48: 36.66241784 | AH48: 80.15880954 | AI48: 16.84282153 | AJ48: 21.5845779
A49: 2020-01-02T21:00:00 | B49: 0 | C49: 0 | D49: 0 | E49: 0 | F49: 0 | H49: 126.7244 | I49: 32.39728 | J49: 56.20793 | K49: 112.476 | L49: 55.17657 | N49: 26.19426736 | O49: 7.406649459 | P49: 12.87581897 | Q49: 25.89845068 | R49: 12.72703904 | T49: 55.9156157 | U49: 15.85100855 | V49: 27.60548319 | W49: 55.59256113 | X49: 27.33991219 | Z49: -9.742393205 | AA49: -10.00898985 | AB49: -10.16453026 | AC49: -10.28217642 | AD49: -11.21155591 | AF49: 72.36748985 | AG49: 13.24866816 | AH49: 30.3167719 | AI49: 71.20883539 | AJ49: 28.85539532
A50: 2020-01-02T22:00:00 | B50: 0 | C50: 0 | D50: 0 | E50: 0 | F50: 0 | H50: 33.72722 | I50: 31.41675 | J50: 37.3855 | K50: 40.63841 | L50: 44.41289 | N50: 7.179679003 | O50: 7.181046816 | P50: 8.541384862 | Q50: 9.313708204 | R50: 10.23020287 | T50: 15.32610805 | U50: 15.36819518 | V50: 18.31254826 | W50: 19.99242731 | X50: 21.97627015 | Z50: -9.742393205 | AA50: -10.00898985 | AB50: -10.16453026 | AC50: -10.28217642 | AD50: -11.21155591 | AF50: 12.76339385 | AG50: 12.54025215 | AH50: 16.68940286 | AI50: 19.02395909 | AJ50: 20.99491711
A51: 2020-01-02T23:00:00 | B51: 0 | C51: 0 | D51: 0 | E51: 0 | F51: 0 | H51: 34.41255 | I51: 30.43622 | J51: 34.7014 | K51: 37.63918 | L51: 42.076 | N51: 7.32671124 | O51: 6.954169583 | P51: 7.923159124 | Q51: 8.620526437 | R51: 9.688930691 | T51: 15.63997055 | U51: 14.88265405 | V51: 16.98708537 | W51: 18.50447151 | X51: 20.81352257 | Z51: -9.742393205 | AA51: -10.00898985 | AB51: -10.16453026 | AC51: -10.28217642 | AD51: -11.21155591 | AF51: 13.22428858 | AG51: 11.82783378 | AH51: 14.74571423 | AI51: 16.84282153 | AJ51: 19.29089736
A52: 2020-01-03 | B52: 0 | C52: 0 | D52: 0 | E52: 0 | F52: 0 | H52: 30.71479 | I52: 31.41675 | J52: 34.22744 | K52: 36.53277 | L52: 37.40222 | N52: 6.533448606 | O52: 7.181046816 | P52: 7.813496022 | Q52: 8.365376553 | R52: 8.60479903 | T52: 13.94663177 | U52: 15.36819518 | V52: 16.75197 | W52: 17.95677715 | X52: 18.48461761 | Z52: -9.742393205 | AA52: -10.00898985 | AB52: -10.16453026 | AC52: -10.28217642 | AD52: -11.21155591 | AF52: 10.73768717 | AG52: 12.54025215 | AH52: 14.40093576 | AI52: 16.03997728 | AJ52: 15.87786073
A53: 2020-01-03T01:00:00 | B53: 0 | C53: 0 | D53: 0 | E53: 0 | F53: 0 | H53: 64.72668 | I53: 33.37781 | J53: 34.16282 | K53: 40.62971 | L53: 37.40222 | N53: 13.83407348 | O53: 7.633526692 | P53: 7.799788134 | Q53: 9.310758494 | R53: 8.60479903 | T53: 29.53091704 | U53: 16.33654969 | V53: 16.72258058 | W53: 19.98609558 | X53: 18.48461761 | Z53: -9.742393205 | AA53: -10.00898985 | AB53: -10.16453026 | AC53: -10.28217642 | AD53: -11.21155591 | AF53: 33.62259732 | AG53: 13.96108653 | AH53: 14.35783845 | AI53: 19.01467766 | AJ53: 15.87786073
A54: 2020-01-03T02:00:00 | B54: 0 | C54: 0 | D54: 0 | E54: 0 | F54: 0 | H54: 30.71479 | I54: 31.41675 | J54: 33.72148 | K54: 49.58614 | L54: 35.06534 | N54: 6.533448606 | O54: 7.181046816 | P54: 7.696978976 | Q54: 11.37850496 | R54: 8.061939545 | T54: 13.94663177 | U54: 15.36819518 | V54: 16.50215992 | W54: 24.42463605 | X54: 17.31846022 | Z54: -9.742393205 | AA54: -10.00898985 | AB54: -10.16453026 | AC54: -10.28217642 | AD54: -11.21155591 | AF54: 10.73768717 | AG54: 12.54025215 | AH54: 14.03460863 | AI54: 25.52096459 | AJ54: 14.16884385
A55: 2020-01-03T03:00:00 | B55: 0 | C55: 0 | D55: 0 | E55: 0 | F55: 0 | H55: 29.72501 | I55: 31.41675 | J55: 34.22744 | K55: 49.59058 | L55: 29.2231 | N55: 6.321200457 | O55: 7.181046816 | P55: 7.813496022 | Q55: 11.37997981 | R55: 6.707965449 | T55: 13.49355608 | U55: 15.36819518 | V55: 16.75197 | W55: 24.42780192 | X55: 14.40988637 | Z55: -9.742393205 | AA55: -10.00898985 | AB55: -10.16453026 | AC55: -10.28217642 | AD55: -11.21155591 | AF55: 10.07236333 | AG55: 12.54025215 | AH55: 14.40093576 | AI55: 25.52560531 | AJ55: 9.906295909
A56: 2020-01-03T04:00:00 | B56: 0 | C56: 0 | D56: 0 | E56: 0 | F56: 0 | H56: 30.71479 | I56: 33.37781 | J56: 33.84091 | K56: 49.61512 | L56: 37.40222 | N56: 6.533448606 | O56: 7.633526692 | P56: 7.724394751 | Q56: 11.38587923 | R56: 8.60479903 | T56: 13.94663177 | U56: 16.33654969 | V56: 16.56093876 | W56: 24.44046537 | X56: 18.48461761 | Z56: -9.742393205 | AA56: -10.00898985 | AB56: -10.16453026 | AC56: -10.28217642 | AD56: -11.21155591 | AF56: 10.73768717 | AG56: 13.96108653 | AH56: 14.12080325 | AI56: 25.54416818 | AJ56: 15.87786073
A57: 2020-01-03T05:00:00 | B57: 0 | C57: 0 | D57: 0 | E57: 0 | F57: 0 | H57: 40.41211 | I57: 33.37781 | J57: 35.94963 | K57: 58.60991 | L57: 37.40222 | N57: 8.615614804 | O57: 7.633526692 | P57: 8.211024767 | Q57: 13.46247482 | R57: 8.60479903 | T57: 18.39132967 | U57: 16.33654969 | V57: 17.60426321 | W57: 28.89800102 | X57: 18.48461761 | Z57: -9.742393205 | AA57: -10.00898985 | AB57: -10.16453026 | AC57: -10.28217642 | AD57: -11.21155591 | AF57: 17.26455126 | AG57: 13.96108653 | AH57: 15.65075771 | AI57: 32.07829942 | AJ57: 15.87786073
A58: 2020-01-03T06:00:00 | B58: 0 | C58: 0 | D58: 0 | E58: 0 | F58: 0 | H58: 59.77175 | I58: 33.37781 | J58: 49.63121 | K58: 113.0387 | L58: 42.076 | N58: 12.77046125 | O58: 7.633526692 | P58: 11.36109737 | Q58: 26.02823791 | R58: 9.688930691 | T58: 27.26047626 | U58: 16.33654969 | V58: 24.35795217 | W58: 55.87115711 | X58: 20.81352257 | Z58: -9.742393205 | AA58: -10.00898985 | AB58: -10.16453026 | AC58: -10.28217642 | AD58: -11.21155591 | AF58: 30.2885443 | AG58: 13.96108653 | AH58: 25.55451928 | AI58: 71.61721859 | AJ58: 19.29089736
A59: 2020-01-03T07:00:00 | B59: 0 | C59: 0 | D59: 0 | E59: 0 | F59: 0 | H59: 50.0358 | I59: 34.35834 | J59: 61.64422 | K59: 37.63918 | L59: 44.41289 | N59: 10.68118059 | O59: 7.859129334 | P59: 14.12734912 | Q59: 8.620526437 | R59: 10.23020287 | T59: 22.80059147 | U59: 16.81936306 | V59: 30.28873733 | W59: 18.50447151 | X59: 21.97627015 | Z59: -9.742393205 | AA59: -10.00898985 | AB59: -10.16453026 | AC59: -10.28217642 | AD59: -11.21155591 | AF59: 23.73937885 | AG59: 14.66950255 | AH59: 34.25155619 | AI59: 16.84282153 | AJ59: 20.99491711
A60: 2020-01-03T08:00:00 | B60: 0 | C60: 0 | D60: 0 | E60: 0 | F60: 0 | H60: 49.99808 | I60: 31.41675 | J60: 38.71458 | K60: 84.6379 | L60: 43.24445 | N60: 10.67288038 | O60: 7.181046816 | P60: 8.847070759 | Q60: 19.47103337 | R60: 9.958773125 | T60: 22.78287343 | U60: 15.36819518 | V60: 18.96793235 | W60: 41.79572847 | X60: 21.39319145 | Z60: -9.742393205 | AA60: -10.00898985 | AB60: -10.16453026 | AC60: -10.28217642 | AD60: -11.21155591 | AF60: 23.7133606 | AG60: 12.54025215 | AH60: 17.65047284 | AI60: 50.98458542 | AJ60: 20.14040867
A61: 2020-01-03T09:00:00 | B61: 0 | C61: 0 | D61: 0 | E61: 0 | F61: 0 | H61: 59.61329 | I61: 29.45568 | J61: 5.013188 | K61: 37.63918 | L61: 38.57067 | N61: 12.73726042 | O61: 6.728566941 | P61: 1.087035499 | Q61: 8.620526437 | R61: 8.874641464 | T61: 27.18960408 | U61: 14.39984067 | V61: 2.330581089 | W61: 18.50447151 | X61: 19.06428649 | Z61: -9.742393205 | AA61: -10.00898985 | AB61: -10.16453026 | AC61: -10.28217642 | AD61: -11.21155591 | AF61: 30.1844713 | AG61: 11.11941777 | AH61: -6.746913674 | AI61: 16.84282153 | AJ61: 16.72737204
A62: 2020-01-03T10:00:00 | B62: 0 | C62: 0 | D62: 0 | E62: 0 | F62: 0 | H62: 64.50759 | I62: 30.43622 | J62: 0.291136 | K62: 46.6373 | L62: 36.23377 | N62: 13.78782947 | O62: 6.954169583 | P62: 0 | Q62: 10.69859688 | R62: 8.333369287 | T62: 29.43220222 | U62: 14.88265405 | V62: 0 | W62: 22.96517303 | X62: 17.90153891 | Z62: -9.742393205 | AA62: -10.00898985 | AB62: -10.16453026 | AC62: -10.28217642 | AD62: -11.21155591 | AF62: 33.47763849 | AG62: 11.82783378 | AH62: -10.16453026 | AI62: 23.38159349 | AJ62: 15.02335229
A63: 2020-01-03T11:00:00 | B63: 0 | C63: 0 | D63: 0 | E63: 0 | F63: 0 | H63: 76.8282 | I63: 34.51074 | J63: 36.15444 | K63: 35.42634 | L63: 36.23377 | N63: 16.43203825 | O63: 7.894817888 | P63: 8.257631585 | Q63: 8.110226669 | R63: 8.333369287 | T63: 35.07666481 | U63: 16.89574032 | V63: 17.70418724 | W63: 17.40908278 | X63: 17.90153891 | Z63: -9.742393205 | AA63: -10.00898985 | AB63: -10.16453026 | AC63: -10.28217642 | AD63: -11.21155591 | AF63: 41.76630986 | AG63: 14.78156836 | AH63: 15.79728856 | AI63: 15.23713303 | AJ63: 15.02335229
A64: 2020-01-03T12:00:00 | B64: 0 | C64: 0 | D64: 0 | E64: 0 | F64: 0 | H64: 64.48031 | I64: 28.47515 | J64: 36.15444 | K64: 35.42634 | L64: 29.2231 | N64: 13.78190075 | O64: 6.501689707 | P64: 8.257631585 | Q64: 8.110226669 | R64: 6.707965449 | T64: 29.41954648 | U64: 13.91429954 | V64: 17.70418724 | W64: 17.40908278 | X64: 14.40988637 | Z64: -9.742393205 | AA64: -10.00898985 | AB64: -10.16453026 | AC64: -10.28217642 | AD64: -11.21155591 | AF64: 33.45905402 | AG64: 10.4069994 | AH64: 15.79728856 | AI64: 15.23713303 | AJ64: 9.906295909
A65: 2020-01-03T13:00:00 | B65: 0 | C65: 0 | D65: 0 | E65: 0 | F65: 0 | H65: 40.3569 | I65: 24.55303 | J65: 30.92922 | K65: 37.63918 | L65: 32.72844 | N65: 8.603757365 | O65: 5.598004547 | P65: 7.05407904 | Q65: 8.620526437 | R65: 7.520667368 | T65: 18.36601817 | U65: 11.98031829 | V65: 15.12379607 | W65: 18.50447151 | X65: 16.15571264 | Z65: -9.742393205 | AA65: -10.00898985 | AB65: -10.16453026 | AC65: -10.28217642 | AD65: -11.21155591 | AF65: 17.22738233 | AG65: 7.569332987 | AH65: 12.01334485 | AI65: 16.84282153 | AJ65: 12.4648241
A66: 2020-01-03T14:00:00 | B66: 0 | C66: 0 | D66: 0 | E66: 0 | F66: 0 | H66: 59.6366 | I66: 28.47515 | J66: 29.04961 | K66: 37.63918 | L66: 30.39155 | N66: 12.7420034 | O66: 6.501689707 | P66: 6.622280576 | Q66: 8.620526437 | R66: 6.977807883 | T66: 27.19972868 | U66: 13.91429954 | V66: 14.19802931 | W66: 18.50447151 | X66: 14.98955525 | Z66: -9.742393205 | AA66: -10.00898985 | AB66: -10.16453026 | AC66: -10.28217642 | AD66: -11.21155591 | AF66: 30.19933887 | AG66: 10.4069994 | AH66: 10.65577962 | AI66: 16.84282153 | AJ66: 10.75580722
A67: 2020-01-03T15:00:00 | B67: 0 | C67: 0 | D67: 0 | E67: 0 | F67: 0 | H67: 59.67486 | I67: 31.41675 | J67: 27.76753 | K67: 49.68129 | L67: 38.57067 | N67: 12.7503036 | O67: 7.181046816 | P67: 6.3261902 | Q67: 11.40062778 | R67: 8.874641464 | T67: 27.21744672 | U67: 15.36819518 | V67: 13.56321781 | W67: 24.472124 | X67: 19.06428649 | Z67: -9.742393205 | AA67: -10.00898985 | AB67: -10.16453026 | AC67: -10.28217642 | AD67: -11.21155591 | AF67: 30.22535712 | AG67: 12.54025215 | AH67: 9.724877752 | AI67: 25.59057536 | AJ67: 16.72737204
A68: 2020-01-03T16:00:00 | B68: 0 | C68: 0 | D68: 0 | E68: 0 | F68: 0 | H68: 76.81383 | I68: 31.41675 | J68: 36.80307 | K68: 70.59197 | L68: 52.44889 | N68: 16.42966677 | O68: 7.181046816 | P68: 8.407047562 | Q68: 16.22930247 | R68: 12.09370297 | T68: 35.07160251 | U68: 15.36819518 | V68: 18.02453193 | W68: 34.83716074 | X68: 25.97939523 | Z68: -9.742393205 | AA68: -10.00898985 | AB68: -10.16453026 | AC68: -10.28217642 | AD68: -11.21155591 | AF68: =SUM(N68,T68,Z68) -> 41.75887607 | AG68: 12.54025215 | AH68: 16.26704923 | AI68: 40.78428679 | AJ68: 26.86154229
A69: 2020-01-03T17:00:00 | B69: 0 | C69: 0 | D69: 0 | E69: 0 | F69: 0 | H69: 49.96274 | I69: 114.84 | J69: 50.06048 | K69: 35.42634 | L69: 126.375 | N69: 10.66576592 | O69: 25.79135292 | P69: 11.45979417 | Q69: 8.110226669 | R69: 29.23980869 | T69: 22.76768653 | U69: 55.19620687 | V69: 24.569556 | W69: 17.40908278 | X69: 62.81223777 | Z69: -9.742393205 | AA69: -10.00898985 | AB69: -10.16453026 | AC69: -10.28217642 | AD69: -11.21155591 | AF69: 23.69105925 | AG69: 70.97856993 | AH69: 25.8648199 | AI69: 15.23713303 | AJ69: 80.84049055
A70: 2020-01-03T18:00:00 | B70: 0 | C70: 0 | D70: 0 | E70: 0 | F70: 0 | H70: 59.6169 | I70: 49.63261 | J70: 66.97861 | K70: 37.63918 | L70: 106.3025 | N70: 12.73726042 | O70: 11.38209941 | P70: 15.35557587 | Q70: 8.620526437 | R70: 24.58423305 | T70: 27.18960408 | U70: 24.35888942 | V70: 32.92202946 | W70: 18.50447151 | X70: 52.8112447 | Z70: -9.742393205 | AA70: -10.00898985 | AB70: -10.16453026 | AC70: -10.28217642 | AD70: -11.21155591 | AF70: 30.1844713 | AG70: 25.73199898 | AH70: 38.11307506 | AI70: 16.84282153 | AJ70: 66.18392184
A71: 2020-01-03T19:00:00 | B71: 0 | C71: 0 | D71: 0 | E71: 0 | F71: 0 | H71: 59.70592 | I71: 40.5237 | J71: 72.89116 | K71: 35.42634 | L71: 106.4587 | N71: 12.75623232 | O71: 9.281573113 | P71: 16.71676912 | Q71: 8.110226669 | R71: 24.62074115 | T71: 27.23010247 | U71: 19.8635423 | V71: 35.84039897 | W71: 17.40908278 | X71: 52.88967049 | Z71: -9.742393205 | AA71: -10.00898985 | AB71: -10.16453026 | AC71: -10.28217642 | AD71: -11.21155591 | AF71: 30.24394159 | AG71: 19.13612556 | AH71: 42.39263783 | AI71: 15.23713303 | AJ71: 66.29885572
A72: 2020-01-03T20:00:00 | B72: 0 | C72: 0 | D72: 0 | E72: 0 | F72: 0 | H72: 59.79258 | I72: 40.52277 | J72: 72.5045 | K72: 35.42634 | L72: 105.1525 | N72: 12.77520422 | O72: 9.281573113 | P72: 16.62766785 | Q72: 8.110226669 | R72: 24.31756523 | T72: 27.27060086 | U72: 19.8635423 | V72: 35.64936773 | W72: 17.40908278 | X72: 52.23839545 | Z72: -9.742393205 | AA72: -10.00898985 | AB72: -10.16453026 | AC72: -10.28217642 | AD72: -11.21155591 | AF72: 30.30341188 | AG72: 19.13612556 | AH72: 42.11250532 | AI72: 15.23713303 | AJ72: 65.34440478
A73: 2020-01-03T21:00:00 | B73: 0 | C73: 0 | D73: 0 | E73: 0 | F73: 0 | H73: 40.42623 | I73: 30.43622 | J73: 39.08938 | K73: 36.53277 | L73: 48.32007 | N73: 8.617986291 | O73: 6.954169583 | P73: 8.933430451 | Q73: 8.365376553 | R73: 11.13655598 | T73: 18.39639196 | U73: 14.88265405 | V73: 19.1530857 | W73: 17.95677715 | X73: 23.92327562 | Z73: -9.742393205 | AA73: -10.00898985 | AB73: -10.16453026 | AC73: -10.28217642 | AD73: -11.21155591 | AF73: 17.27198505 | AG73: 11.82783378 | AH73: 17.92198589 | AI73: 16.03997728 | AJ73: 23.84827569
A74: 2020-01-03T22:00:00 | B74: 0 | C74: 0 | D74: 0 | E74: 0 | F74: 0 | H74: 30.71479 | I74: 30.43622 | J74: 53.79609 | K74: 36.53277 | L74: 36.23377 | N74: 6.533448606 | O74: 6.954169583 | P74: 12.31927873 | Q74: 8.365376553 | R74: 8.333369287 | T74: 13.94663177 | U74: 14.88265405 | V74: 26.4122727 | W74: 17.95677715 | X74: 17.90153891 | Z74: -9.742393205 | AA74: -10.00898985 | AB74: -10.16453026 | AC74: -10.28217642 | AD74: -11.21155591 | AF74: 10.73768717 | AG74: 11.82783378 | AH74: 28.56702116 | AI74: 16.03997728 | AJ74: 15.02335229
A75: 2020-01-03T23:00:00 | B75: 0 | C75: 0 | D75: 0 | E75: 0 | F75: 0 | H75: 28.73521 | I75: 31.41675 | J75: 35.83205 | K75: 37.63918 | L75: 40.30836 | N75: 6.108952308 | O75: 7.181046816 | P75: 8.183608991 | Q75: 8.620526437 | R75: 9.277817806 | T75: 13.04048038 | U75: 15.36819518 | V75: 17.54548437 | W75: 18.50447151 | X75: 19.93037999 | Z75: -9.742393205 | AA75: -10.00898985 | AB75: -10.16453026 | AC75: -10.28217642 | AD75: -11.21155591 | AF75: 9.407039482 | AG75: 12.54025215 | AH75: 15.5645631 | AI75: 16.84282153 | AJ75: 17.99664188
A76: 2020-01-04 | B76: 0 | C76: 0 | D76: 0 | E76: 0 | F76: 0 | H76: 28.73521 | I76: 29.45568 | J76: 50.99723 | K76: 36.53277 | L76: 37.40222 | N76: 6.108952308 | O76: 6.728566941 | P76: 11.675008 | Q76: 8.365376553 | R76: 8.60479903 | T76: 13.04048038 | U76: 14.39984067 | V76: 25.03096991 | W76: 17.95677715 | X76: 18.48461761 | Z76: -9.742393205 | AA76: -10.00898985 | AB76: -10.16453026 | AC76: -10.28217642 | AD76: -11.21155591 | AF76: 9.407039482 | AG76: 11.11941777 | AH76: 26.54144765 | AI76: 16.03997728 | AJ76: 15.87786073
A77: 2020-01-04T01:00:00 | B77: 0 | C77: 0 | D77: 0 | E77: 0 | F77: 0 | H77: 25.76584 | I77: 63.71957 | J77: 55.65364 | K77: 34.31993 | L77: 37.40222 | N77: 5.471022117 | O77: 14.63103238 | P77: 12.74696483 | Q77: 7.855076784 | R77: 8.60479903 | T77: 11.67872214 | U77: 31.31194755 | V77: 27.32922263 | W77: 16.86138842 | X77: 18.48461761 | Z77: -9.742393205 | AA77: -10.00898985 | AB77: -10.16453026 | AC77: -10.28217642 | AD77: -11.21155591 | AF77: 7.407351054 | AG77: 35.93399007 | AH77: 29.9116572 | AI77: 14.43428878 | AJ77: 15.87786073
A78: 2020-01-04T02:00:00 | B78: 0 | C78: 0 | D78: 0 | E78: 0 | F78: 0 | H78: 28.73521 | I78: 28.47515 | J78: 35.19184 | K78: 35.42634 | L78: 35.06534 | N78: 6.108952308 | O78: 6.501689707 | P78: 8.035563803 | Q78: 8.110226669 | R78: 8.061939545 | T78: 13.04048038 | U78: 13.91429954 | V78: 17.22807862 | W78: 17.40908278 | X78: 17.31846022 | Z78: -9.742393205 | AA78: -10.00898985 | AB78: -10.16453026 | AC78: -10.28217642 | AD78: -11.21155591 | AF78: 9.407039482 | AG78: 10.4069994 | AH78: 15.09911216 | AI78: 15.23713303 | AJ78: 14.16884385
A79: 2020-01-04T03:00:00 | B79: 0 | C79: 0 | D79: 0 | E79: 0 | F79: 0 | H79: 28.73521 | I79: 29.45568 | J79: 71.67961 | K79: 34.31993 | L79: 30.39155 | N79: 6.108952308 | O79: 6.728566941 | P79: 16.43712821 | Q79: 7.855076784 | R79: 6.977807883 | T79: 13.04048038 | U79: 14.39984067 | V79: 35.24085478 | W79: 16.86138842 | X79: 14.98955525 | Z79: -9.742393205 | AA79: -10.00898985 | AB79: -10.16453026 | AC79: -10.28217642 | AD79: -11.21155591 | AF79: 9.407039482 | AG79: 11.11941777 | AH79: 41.51345273 | AI79: 14.43428878 | AJ79: 10.75580722
A80: 2020-01-04T04:00:00 | B80: 0 | C80: 0 | D80: 0 | E80: 0 | F80: 0 | H80: 26.75563 | I80: 29.45568 | J80: 41.42977 | K80: 34.31993 | L80: 35.06534 | N80: 5.683270266 | O80: 6.728566941 | P80: 9.47215044 | Q80: 7.855076784 | R80: 8.061939545 | T80: 12.13179784 | U80: 14.39984067 | V80: 20.30808995 | W80: 16.86138842 | X80: 17.31846022 | Z80: -9.742393205 | AA80: -10.00898985 | AB80: -10.16453026 | AC80: -10.28217642 | AD80: -11.21155591 | AF80: 8.072674899 | AG80: 11.11941777 | AH80: 19.61571012 | AI80: 14.43428878 | AJ80: 14.16884385
A81: 2020-01-04T05:00:00 | B81: 0 | C81: 0 | D81: 0 | E81: 0 | F81: 0 | H81: 28.73521 | I81: 28.47515 | J81: 44.39354 | K81: 36.53277 | L81: 35.06534 | N81: 6.108952308 | O81: 6.501689707 | P81: 10.15480325 | Q81: 8.365376553 | R81: 8.061939545 | T81: 13.04048038 | U81: 13.91429954 | V81: 21.77168311 | W81: 17.95677715 | X81: 17.31846022 | Z81: -9.742393205 | AA81: -10.00898985 | AB81: -10.16453026 | AC81: -10.28217642 | AD81: -11.21155591 | AF81: 9.407039482 | AG81: 10.4069994 | AH81: 21.7619561 | AI81: 16.03997728 | AJ81: 14.16884385
A82: 2020-01-04T06:00:00 | B82: 0 | C82: 0 | D82: 0 | E82: 0 | F82: 0 | H82: 28.73521 | I82: 46.48288 | J82: 45.64287 | K82: 37.63918 | L82: 36.23377 | N82: 6.108952308 | O82: 10.65558243 | P82: 10.44266889 | Q82: 8.620526437 | R82: 8.333369287 | T82: 13.04048038 | U82: 22.80406669 | V82: 22.38886096 | W82: 18.50447151 | X82: 17.90153891 | Z82: -9.742393205 | AA82: -10.00898985 | AB82: -10.16453026 | AC82: -10.28217642 | AD82: -11.21155591 | AF82: 9.407039482 | AG82: 23.45065926 | AH82: 22.66699959 | AI82: 16.84282153 | AJ82: 15.02335229
A83: 2020-01-04T07:00:00 | B83: 0 | C83: 0 | D83: 0 | E83: 0 | F83: 0 | H83: 30.71479 | I83: 46.38503 | J83: 84.96138 | K83: 37.63918 | L83: 37.40222 | N83: 6.533448606 | O83: 10.63391437 | P83: 19.49535797 | Q83: 8.620526437 | R83: 8.60479903 | T83: 13.94663177 | U83: 22.75769478 | V83: 41.79763462 | W83: 18.50447151 | X83: 18.48461761 | Z83: -9.742393205 | AA83: -10.00898985 | AB83: -10.16453026 | AC83: -10.28217642 | AD83: -11.21155591 | AF83: 10.73768717 | AG83: 23.38261931 | AH83: 51.12846232 | AI83: 16.84282153 | AJ83: 15.87786073
A84: 2020-01-04T08:00:00 | B84: 0 | C84: 0 | D84: 0 | E84: 0 | F84: 0 | H84: 28.73521 | I84: 46.32159 | J84: 43.82356 | K84: 34.31993 | L84: 33.89689 | N84: 6.108952308 | O84: 10.61861928 | P84: 10.02320753 | Q84: 7.855076784 | R84: 7.790509802 | T84: 13.04048038 | U84: 22.72496167 | V84: 21.48954467 | W84: 16.86138842 | X84: 16.73538152 | Z84: -9.742393205 | AA84: -10.00898985 | AB84: -10.16453026 | AC84: -10.28217642 | AD84: -11.21155591 | AF84: 9.407039482 | AG84: 23.3345911 | AH84: 21.34822194 | AI84: 14.43428878 | AJ84: 13.31433541
A85: 2020-01-04T09:00:00 | B85: 0 | C85: 0 | D85: 0 | E85: 0 | F85: 0 | H85: 28.73521 | I85: 88.81498 | J85: 2.339067 | K85: 22.14932 | L85: 29.2231 | N85: 6.108952308 | O85: 20.4202256 | P85: 0.4715513389 | Q85: 5.045478348 | R85: 6.707965449 | T85: 13.04048038 | U85: 43.70142971 | V85: 1.010996084 | W85: 10.83041866 | X85: 14.40988637 | Z85: -9.742393205 | AA85: -10.00898985 | AB85: -10.16453026 | AC85: -10.28217642 | AD85: -11.21155591 | AF85: 9.407039482 | AG85: 54.11266547 | AH85: -8.68198284 | AI85: 5.593720586 | AJ85: 9.906295909
A86: 2020-01-04T10:00:00 | B86: 0 | C86: 0 | D86: 0 | E86: 0 | F86: 0 | H86: 28.73521 | I86: 49.6793 | J86: 26.37507 | K86: 22.14932 | L86: 28.05465 | N86: 6.108952308 | O86: 11.39357073 | P86: 6.005425627 | Q86: 5.045478348 | R86: 6.436535707 | T86: 13.04048038 | U86: 24.38343925 | V86: 12.87550536 | W86: 10.83041866 | X86: 13.82680767 | Z86: -9.742393205 | AA86: -10.00898985 | AB86: -10.16453026 | AC86: -10.28217642 | AD86: -11.21155591 | AF86: 9.407039482 | AG86: 25.76802013 | AH86: 8.716400726 | AI86: 5.593720586 | AJ86: 9.05178747
A87: 2020-01-04T11:00:00 | B87: 0 | C87: 0 | D87: 0 | E87: 0 | F87: 0 | H87: 28.73521 | I87: 37.55329 | J87: 2.339067 | K87: 22.14932 | L87: 29.2231 | N87: 6.108952308 | O87: 8.595843047 | P87: 0.4715513389 | Q87: 5.045478348 | R87: 6.707965449 | T87: 13.04048038 | U87: 18.39600786 | V87: 1.010996084 | W87: 10.83041866 | X87: 14.40988637 | Z87: -9.742393205 | AA87: -10.00898985 | AB87: -10.16453026 | AC87: -10.28217642 | AD87: -11.21155591 | AF87: 9.407039482 | AG87: 16.98286106 | AH87: -8.68198284 | AI87: 5.593720586 | AJ87: 9.906295909
A88: 2020-01-04T12:00:00 | B88: 0 | C88: 0 | D88: 0 | E88: 0 | F88: 0 | H88: 29.72501 | I88: 37.5407 | J88: 16.47467 | K88: 22.14932 | L88: 30.39155 | N88: 6.321200457 | O88: 8.593293865 | P88: 3.725803892 | Q88: 5.045478348 | R88: 6.977807883 | T88: 13.49355608 | U88: 18.39055234 | V88: 7.988044642 | W88: 10.83041866 | X88: 14.98955525 | Z88: -9.742393205 | AA88: -10.00898985 | AB88: -10.16453026 | AC88: -10.28217642 | AD88: -11.21155591 | AF88: 10.07236333 | AG88: 16.97485636 | AH88: 1.549318271 | AI88: 5.593720586 | AJ88: 10.75580722
A89: 2020-01-04T13:00:00 | B89: 0 | C89: 0 | D89: 0 | E89: 0 | F89: 0 | H89: 34.42217 | I89: 80.16558 | J89: 2.339067 | K89: 23.25574 | L89: 25.71777 | N89: 7.329082728 | O89: 18.42549038 | P89: 0.4715513389 | Q89: 5.300628232 | R89: 5.893676222 | T89: 15.64503285 | U89: 39.43248661 | V89: 1.010996084 | W89: 11.37811302 | X89: 12.66065028 | Z89: -9.742393205 | AA89: -10.00898985 | AB89: -10.16453026 | AC89: -10.28217642 | AD89: -11.21155591 | AF89: 13.23172237 | AG89: 47.84898713 | AH89: -8.68198284 | AI89: 6.396564837 | AJ89: 7.342770593
A90: 2020-01-04T14:00:00 | B90: 0 | C90: 0 | D90: 0 | E90: 0 | F90: 0 | H90: 30.71479 | I90: 63.9378 | J90: 18.28253 | K90: 22.14932 | L90: 29.2231 | N90: 6.533448606 | O90: 14.68201602 | P90: 4.14252368 | Q90: 5.045478348 | R90: 6.707965449 | T90: 13.94663177 | U90: 31.42105791 | V90: 8.881483041 | W90: 10.83041866 | X90: 14.40988637 | Z90: -9.742393205 | AA90: -10.00898985 | AB90: -10.16453026 | AC90: -10.28217642 | AD90: -11.21155591 | AF90: 10.73768717 | AG90: 36.09408409 | AH90: 2.859476459 | AI90: 5.593720586 | AJ90: 9.906295909
A91: 2020-01-04T15:00:00 | B91: 0 | C91: 0 | D91: 0 | E91: 0 | F91: 0 | H91: 70.56184 | I91: 49.53957 | J91: 7.632283 | K91: 21.0429 | L91: 33.89689 | N91: 15.08740473 | O91: 11.36043136 | P91: 1.69018256 | Q91: 4.788853609 | R91: 7.790509802 | T91: 32.20634168 | U91: 24.31251751 | V91: 3.623715616 | W91: 10.27955843 | X91: 16.73538152 | Z91: -9.742393205 | AA91: -10.00898985 | AB91: -10.16453026 | AC91: -10.28217642 | AD91: -11.21155591 | AF91: 37.55135321 | AG91: 25.66395902 | AH91: -4.850632087 | AI91: 4.786235618 | AJ91: 13.31433541
A92: 2020-01-04T16:00:00 | B92: 0 | C92: 0 | D92: 0 | E92: 0 | F92: 0 | H92: 88.08401 | I92: 70.89347 | J92: 43.90464 | K92: 37.63918 | L92: 37.40222 | N92: 18.84858422 | O92: 16.28672634 | P92: 10.04239857 | Q92: 8.620526437 | R92: 8.60479903 | T92: 40.23514676 | U92: 34.85530671 | V92: 21.53068986 | W92: 18.50447151 | X92: 18.48461761 | Z92: -9.742393205 | AA92: -10.00898985 | AB92: -10.16453026 | AC92: -10.28217642 | AD92: -11.21155591 | AF92: 49.34133777 | AG92: 41.13304321 | AH92: 21.40855817 | AI92: 16.84282153 | AJ92: 15.87786073
A93: 2020-01-04T17:00:00 | B93: 0 | C93: 0 | D93: 0 | E93: 0 | F93: 0 | H93: 70.45409 | I93: 61.27364 | J93: 48.37522 | K93: 58.00412 | L93: 94.29389 | N93: 15.06368985 | O93: 14.06766307 | P93: 11.07186094 | Q93: 13.32236361 | R93: 21.79850675 | T93: 32.1557187 | U93: 30.10627799 | V93: 23.73783538 | W93: 28.597244 | X93: 46.82701598 | Z93: -9.742393205 | AA93: -10.00898985 | AB93: -10.16453026 | AC93: -10.28217642 | AD93: -11.21155591 | AF93: 37.47701535 | AG93: 34.16495121 | AH93: 24.64516606 | AI93: 31.63743119 | AJ93: 57.41396681
A94: 2020-01-04T18:00:00 | B94: 0 | C94: 0 | D94: 0 | E94: 0 | F94: 0 | H94: 70.592 | I94: 50.69849 | J94: 82.99146 | K94: 128.2788 | L94: 94.44161 | N94: 15.09333345 | O94: 11.62809551 | P94: 19.04299767 | Q94: 29.10478507 | R94: 21.83342753 | T94: 32.21899743 | U94: 24.88534694 | V94: 40.82778372 | W94: 62.47514814 | X94: 46.90203195 | Z94: -9.742393205 | AA94: -10.00898985 | AB94: -10.16453026 | AC94: -10.28217642 | AD94: -11.21155591 | AF94: 37.56993767 | AG94: 26.5044526 | AH94: 49.70625113 | AI94: 81.29775679 | AJ94: 57.52390357
A95: 2020-01-04T19:00:00 | B95: 0 | C95: 0 | D95: 0 | E95: 0 | F95: 0 | H95: 70.71663 | I95: 50.76026 | J95: 83.62975 | K95: 85.53204 | L95: 38.57067 | N95: 15.12060556 | O95: 11.64211601 | P95: 19.18967207 | Q95: 19.67751304 | R95: 8.874641464 | T95: 32.27721386 | U95: 24.91535229 | V95: 41.14225053 | W95: 42.23894935 | X95: 19.06428649 | Z95: -9.742393205 | AA95: -10.00898985 | AB95: -10.16453026 | AC95: -10.28217642 | AD95: -11.21155591 | AF95: 37.65542621 | AG95: 26.54847845 | AH95: 50.16739234 | AI95: 51.63428597 | AJ95: 16.72737204
A96: 2020-01-04T20:00:00 | B96: 0 | C96: 0 | D96: 0 | E96: 0 | F96: 0 | H96: 70.76517 | I96: 61.50734 | J96: 41.41889 | K96: 117.097 | L96: 117.8812 | N96: 15.13127725 | O96: 14.1211959 | P96: 9.469408863 | Q96: 26.87332972 | R96: 27.26995892 | T96: 32.2999942 | U96: 30.22084388 | V96: 20.30221206 | W96: 57.68519683 | X96: 58.58065495 | Z96: -9.742393205 | AA96: -10.00898985 | AB96: -10.16453026 | AC96: -10.28217642 | AD96: -11.21155591 | AF96: 37.68887825 | AG96: 34.33304993 | AH96: 19.60709066 | AI96: 74.27635013 | AJ96: 74.63905797
A97: 2020-01-04T21:00:00 | B97: 0 | C97: 0 | D97: 0 | E97: 0 | F97: 0 | H97: 29.72501 | I97: 40.16249 | J97: 57.20776 | K97: 37.63918 | L97: 117.841 | N97: 6.321200457 | O97: 9.197450093 | P97: 13.10611148 | Q97: 8.620526437 | R97: 27.26043507 | T97: 13.49355608 | U97: 19.68351019 | V97: 28.09922547 | W97: 18.50447151 | X97: 58.56019605 | Z97: -9.742393205 | AA97: -10.00898985 | AB97: -10.16453026 | AC97: -10.28217642 | AD97: -11.21155591 | AF97: 10.07236333 | AG97: 18.87197044 | AH97: 31.04080669 | AI97: 16.84282153 | AJ97: 74.60907521
A98: 2020-01-04T22:00:00 | B98: 0 | C98: 0 | D98: 0 | E98: 0 | F98: 0 | H98: 29.72501 | I98: 29.45568 | J98: 78.45358 | K98: 37.63918 | L98: 38.57067 | N98: 6.321200457 | O98: 6.728566941 | P98: 17.99708584 | Q98: 8.620526437 | R98: 8.874641464 | T98: 13.49355608 | U98: 14.39984067 | V98: 38.5853709 | W98: 18.50447151 | X98: 19.06428649 | Z98: -9.742393205 | AA98: -10.00898985 | AB98: -10.16453026 | AC98: -10.28217642 | AD98: -11.21155591 | AF98: 10.07236333 | AG98: 11.11941777 | AH98: 46.41792647 | AI98: 16.84282153 | AJ98: 16.72737204
A99: 2020-01-04T23:00:00 | B99: 0 | C99: 0 | D99: 0 | E99: 0 | F99: 0 | H99: 28.73521 | I99: 28.47515 | J99: 44.55263 | K99: 35.42634 | L99: 37.40222 | N99: 6.108952308 | O99: 6.501689707 | P99: 10.19181455 | Q99: 8.110226669 | R99: 8.60479903 | T99: 13.04048038 | U99: 13.91429954 | V99: 21.85103455 | W99: 17.40908278 | X99: 18.48461761 | Z99: -9.742393205 | AA99: -10.00898985 | AB99: -10.16453026 | AC99: -10.28217642 | AD99: -11.21155591 | AF99: 9.407039482 | AG99: 10.4069994 | AH99: 21.87831884 | AI99: 15.23713303 | AJ99: 15.87786073
A100: 2020-01-05 | B100: 0 | C100: 0 | D100: 0 | E100: 0 | F100: 0 | H100: 28.73521 | I100: 40.13877 | J100: 41.84997 | K100: 36.53277 | L100: 37.40222 | N100: 6.108952308 | O100: 9.192351729 | P100: 9.569476443 | Q100: 8.365376553 | R100: 8.60479903 | T100: 13.04048038 | U100: 19.67259916 | V100: 20.51675484 | W100: 17.95677715 | X100: 18.48461761 | Z100: -9.742393205 | AA100: -10.00898985 | AB100: -10.16453026 | AC100: -10.28217642 | AD100: -11.21155591 | AF100: 9.407039482 | AG100: 18.85596104 | AH100: 19.92170102 | AI100: 16.03997728 | AJ100: 15.87786073
A101: 2020-01-05T01:00:00 | B101: 0 | C101: 0 | D101: 0 | E101: 0 | F101: 0 | H101: 23.78626 | I101: 28.47515 | J101: 37.51668 | K101: 35.42634 | L101: 29.2231 | N101: 5.04652582 | O101: 6.501689707 | P101: 8.571542215 | Q101: 8.110226669 | R101: 6.707965449 | T101: 10.77257075 | U101: 13.91429954 | V101: 18.37720498 | W101: 17.40908278 | X101: 14.40988637 | Z101: -9.742393205 | AA101: -10.00898985 | AB101: -10.16453026 | AC101: -10.28217642 | AD101: -11.21155591 | AF101: 6.076703363 | AG101: 10.4069994 | AH101: 16.78421694 | AI101: 15.23713303 | AJ101: 9.906295909
A102: 2020-01-05T02:00:00 | B102: 0 | C102: 0 | D102: 0 | E102: 0 | F102: 0 | H102: 23.78626 | I102: 23.57249 | J102: 35.59527 | K102: 34.31993 | L102: 35.06534 | N102: 5.04652582 | O102: 5.371127313 | P102: 8.12877744 | Q102: 7.855076784 | R102: 8.061939545 | T102: 10.77257075 | U102: 11.49477716 | V102: 17.42792668 | W102: 16.86138842 | X102: 17.31846022 | Z102: -9.742393205 | AA102: -10.00898985 | AB102: -10.16453026 | AC102: -10.28217642 | AD102: -11.21155591 | AF102: 6.076703363 | AG102: 6.856914621 | AH102: 15.39217386 | AI102: 14.43428878 | AJ102: 14.16884385
A103: 2020-01-05T03:00:00 | B103: 0 | C103: 0 | D103: 0 | E103: 0 | F103: 0 | H103: 23.78626 | I103: 26.51409 | J103: 36.82582 | K103: 34.31993 | L103: 33.89689 | N103: 5.04652582 | O103: 6.050484423 | P103: 8.412530717 | Q103: 7.855076784 | R103: 7.790509802 | T103: 10.77257075 | U103: 12.94867279 | V103: 18.0362877 | W103: 16.86138842 | X103: 16.73538152 | Z103: -9.742393205 | AA103: -10.00898985 | AB103: -10.16453026 | AC103: -10.28217642 | AD103: -11.21155591 | AF103: 6.076703363 | AG103: 8.990167369 | AH103: 16.28428815 | AI103: 14.43428878 | AJ103: 13.31433541
A104: 2020-01-05T04:00:00 | B104: 0 | C104: 0 | D104: 0 | E104: 0 | F104: 0 | H104: 23.78626 | I104: 23.57249 | J104: 35.52059 | K104: 34.31993 | L104: 35.06534 | N104: 5.04652582 | O104: 5.371127313 | P104: 8.112327975 | Q104: 7.855076784 | R104: 8.061939545 | T104: 10.77257075 | U104: 11.49477716 | V104: 17.39265938 | W104: 16.86138842 | X104: 17.31846022 | Z104: -9.742393205 | AA104: -10.00898985 | AB104: -10.16453026 | AC104: -10.28217642 | AD104: -11.21155591 | AF104: 6.076703363 | AG104: 6.856914621 | AH104: 15.34045709 | AI104: 14.43428878 | AJ104: 14.16884385
A105: 2020-01-05T05:00:00 | B105: 0 | C105: 0 | D105: 0 | E105: 0 | F105: 0 | H105: 23.78626 | I105: 28.47515 | J105: 35.95215 | K105: 34.31993 | L105: 35.06534 | N105: 5.04652582 | O105: 6.501689707 | P105: 8.211024767 | Q105: 7.855076784 | R105: 8.061939545 | T105: 10.77257075 | U105: 13.91429954 | V105: 17.60426321 | W105: 16.86138842 | X105: 17.31846022 | Z105: -9.742393205 | AA105: -10.00898985 | AB105: -10.16453026 | AC105: -10.28217642 | AD105: -11.21155591 | AF105: 6.076703363 | AG105: 10.4069994 | AH105: 15.65075771 | AI105: 14.43428878 | AJ105: 14.16884385
A106: 2020-01-05T06:00:00 | B106: 0 | C106: 0 | D106: 0 | E106: 0 | F106: 0 | H106: 28.73521 | I106: 28.47515 | J106: 38.09004 | K106: 34.31993 | L106: 37.40222 | N106: 6.108952308 | O106: 6.501689707 | P106: 8.703137937 | Q106: 7.855076784 | R106: 8.60479903 | T106: 13.04048038 | U106: 13.91429954 | V106: 18.65934343 | W106: 16.86138842 | X106: 18.48461761 | Z106: -9.742393205 | AA106: -10.00898985 | AB106: -10.16453026 | AC106: -10.28217642 | AD106: -11.21155591 | AF106: 9.407039482 | AG106: 10.4069994 | AH106: 17.1979511 | AI106: 14.43428878 | AJ106: 15.87786073
A107: 2020-01-05T07:00:00 | B107: 0 | C107: 0 | D107: 0 | E107: 0 | F107: 0 | H107: 28.73521 | I107: 28.47515 | J107: 65.3848 | K107: 35.42634 | L107: 36.23377 | N107: 6.108952308 | O107: 6.501689707 | P107: 14.98820447 | Q107: 8.110226669 | R107: 8.333369287 | T107: 13.04048038 | U107: 13.91429954 | V107: 32.13439298 | W107: 17.40908278 | X107: 17.90153891 | Z107: -9.742393205 | AA107: -10.00898985 | AB107: -10.16453026 | AC107: -10.28217642 | AD107: -11.21155591 | AF107: 9.407039482 | AG107: 10.4069994 | AH107: 36.95806719 | AI107: 15.23713303 | AJ107: 15.02335229
A108: 2020-01-05T08:00:00 | B108: 0 | C108: 0 | D108: 0 | E108: 0 | F108: 0 | H108: 23.78626 | I108: 23.57249 | J108: 35.38549 | K108: 27.68142 | L108: 28.05465 | N108: 5.04652582 | O108: 5.371127313 | P108: 8.080799833 | Q108: 6.322702624 | R108: 6.436535707 | T108: 10.77257075 | U108: 11.49477716 | V108: 17.32506371 | W108: 13.57205635 | X108: 13.82680767 | Z108: -9.742393205 | AA108: -10.00898985 | AB108: -10.16453026 | AC108: -10.28217642 | AD108: -11.21155591 | AF108: 6.076703363 | AG108: 6.856914621 | AH108: 15.24133328 | AI108: 9.612582558 | AJ108: 9.05178747
A109: 2020-01-05T09:00:00 | B109: 0 | C109: 0 | D109: 0 | E109: 0 | F109: 0 | H109: 22.79647 | I109: 23.57249 | J109: 28.68363 | K109: 1.127355 | L109: 1.180421 | N109: 4.833091927 | O109: 5.371127313 | P109: 6.537291672 | Q109: 0.1917311269 | R109: 0.2031754798 | T109: 10.3169639 | U109: 11.49477716 | V109: 14.0158149 | W109: 0.4115622407 | X109: 0.4364565677 | Z109: -9.742393205 | AA109: -10.00898985 | AB109: -10.16453026 | AC109: -10.28217642 | AD109: -11.21155591 | AF109: 5.407662625 | AG109: 6.856914621 | AH109: 10.38857631 | AI109: -9.678883051 | AJ109: -10.57192386
A110: 2020-01-05T10:00:00 | B110: 0 | C110: 0 | D110: 0 | E110: 0 | F110: 0 | H110: 20.81689 | I110: 18.66983 | J110: 1.353062 | K110: 22.14932 | L110: 1.180421 | N110: 4.408595629 | O110: 4.24056492 | P110: 0.2440004021 | Q110: 5.045478348 | R110: 0.2031754798 | T110: 9.41081251 | U110: 9.075254769 | V110: 0.5231316947 | W110: 10.83041866 | X110: 0.4364565677 | Z110: -9.742393205 | AA110: -10.00898985 | AB110: -10.16453026 | AC110: -10.28217642 | AD110: -11.21155591 | AF110: 4.077014934 | AG110: 3.30682984 | AH110: -9.397398166 | AI110: 5.593720586 | AJ110: -10.57192386
A111: 2020-01-05T11:00:00 | B111: 0 | C111: 0 | D111: 0 | E111: 0 | F111: 0 | H111: 20.81689 | I111: 20.63089 | J111: 0.291136 | K111: 22.14932 | L111: 1.180421 | N111: 4.408595629 | O111: 4.693044795 | P111: 0 | Q111: 5.045478348 | R111: 0.2031754798 | T111: 9.41081251 | U111: 10.04360928 | V111: 0 | W111: 10.83041866 | X111: 0.4364565677 | Z111: -9.742393205 | AA111: -10.00898985 | AB111: -10.16453026 | AC111: -10.28217642 | AD111: -11.21155591 | AF111: 4.077014934 | AG111: 4.727664223 | AH111: -10.16453026 | AI111: 5.593720586 | AJ111: -10.57192386
A112: 2020-01-05T12:00:00 | B112: 0 | C112: 0 | D112: 0 | E112: 0 | F112: 0 | H112: 19.8271 | I112: 20.63089 | J112: 0.291136 | K112: 22.14932 | L112: 0.304087 | N112: 4.19634748 | O112: 4.693044795 | P112: 0 | Q112: 5.045478348 | R112: 0 | T112: 8.957736813 | U112: 10.04360928 | V112: 0 | W112: 10.83041866 | X112: 0 | Z112: -9.742393205 | AA112: -10.00898985 | AB112: -10.16453026 | AC112: -10.28217642 | AD112: -11.21155591 | AF112: 3.411691089 | AG112: 4.727664223 | AH112: -10.16453026 | AI112: 5.593720586 | AJ112: -11.21155591
A113: 2020-01-05T13:00:00 | B113: 0 | C113: 0 | D113: 0 | E113: 0 | F113: 0 | H113: 21.80668 | I113: 23.57249 | J113: 0.291136 | K113: 22.14932 | L113: 24.54932 | N113: 4.620843778 | O113: 5.371127313 | P113: 0 | Q113: 5.045478348 | R113: 5.623833787 | T113: 9.863888206 | U113: 11.49477716 | V113: 0 | W113: 10.83041866 | X113: 12.0809814 | Z113: -9.742393205 | AA113: -10.00898985 | AB113: -10.16453026 | AC113: -10.28217642 | AD113: -11.21155591 | AF113: 4.742338779 | AG113: 6.856914621 | AH113: -10.16453026 | AI113: 5.593720586 | AJ113: 6.49325928
A114: 2020-01-05T14:00:00 | B114: 0 | C114: 0 | D114: 0 | E114: 0 | F114: 0 | H114: 21.80668 | I114: 21.61143 | J114: 0.291136 | K114: 1.127355 | L114: 0.304087 | N114: 4.620843778 | O114: 4.918647438 | P114: 0 | Q114: 0.1917311269 | R114: 0 | T114: 9.863888206 | U114: 10.52642265 | V114: 0 | W114: 0.4115622407 | X114: 0 | Z114: -9.742393205 | AA114: -10.00898985 | AB114: -10.16453026 | AC114: -10.28217642 | AD114: -11.21155591 | AF114: 4.742338779 | AG114: 5.436080238 | AH114: -10.16453026 | AI114: -9.678883051 | AJ114: -11.21155591
A115: 2020-01-05T15:00:00 | B115: 0 | C115: 0 | D115: 0 | E115: 0 | F115: 0 | H115: 23.78626 | I115: 22.59196 | J115: 1.694471 | K115: 23.25574 | L115: 24.54932 | N115: 5.04652582 | O115: 5.145524671 | P115: 0.3235061511 | Q115: 5.300628232 | R115: 5.623833787 | T115: 10.77257075 | U115: 11.01196378 | V115: 0.6935903368 | W115: 11.37811302 | X115: 12.0809814 | Z115: -9.742393205 | AA115: -10.00898985 | AB115: -10.16453026 | AC115: -10.28217642 | AD115: -11.21155591 | AF115: 6.076703363 | AG115: 6.148498605 | AH115: -9.147433775 | AI115: 6.396564837 | AJ115: 6.49325928
A116: 2020-01-05T16:00:00 | B116: 0 | C116: 0 | D116: 0 | E116: 0 | F116: 0 | H116: 278.7369 | I116: 45.22042 | J116: 44.96676 | K116: 34.31993 | L116: 46.29054 | N116: 64.53766619 | O116: 10.36497563 | P116: 10.28639897 | Q116: 7.855076784 | R116: 10.66512538 | T116: 137.7653855 | U116: 22.18213759 | V116: 22.05382156 | W116: 16.86138842 | X116: 22.91055999 | Z116: -9.742393205 | AA116: -10.00898985 | AB116: -10.16453026 | AC116: -10.28217642 | AD116: -11.21155591 | AF116: 192.5606585 | AG116: 22.53812338 | AH116: 22.17569027 | AI116: 14.43428878 | AJ116: 22.36412946
A117: 2020-01-05T17:00:00 | B117: 0 | C117: 0 | D117: 0 | E117: 0 | F117: 0 | H117: 29.72501 | I117: 190.1462 | J117: 43.0749 | K117: 49.42061 | L117: 38.57067 | N117: 6.321200457 | O117: 40.13560227 | P117: 9.851858931 | Q117: 11.34015873 | R117: 8.874641464 | T117: 13.49355608 | U117: 85.8944086 | V117: 21.12217691 | W117: 24.34232361 | X117: 19.06428649 | Z117: -9.742393205 | AA117: -10.00898985 | AB117: -10.16453026 | AC117: -10.28217642 | AD117: -11.21155591 | AF117: 10.07236333 | AG117: 116.021021 | AH117: 20.80950558 | AI117: 25.40030592 | AJ117: 16.72737204
A118: 2020-01-05T18:00:00 | B118: 0 | C118: 0 | D118: 0 | E118: 0 | F118: 0 | H118: 28.73521 | I118: 28.47515 | J118: 58.01817 | K118: 53.39822 | L118: 37.40222 | N118: 6.108952308 | O118: 6.501689707 | P118: 13.29253876 | Q118: 12.25899328 | R118: 8.60479903 | T118: 13.04048038 | U118: 13.91429954 | V118: 28.49892159 | W118: 26.3146565 | X118: 18.48461761 | Z118: -9.742393205 | AA118: -10.00898985 | AB118: -10.16453026 | AC118: -10.28217642 | AD118: -11.21155591 | AF118: 9.407039482 | AG118: 10.4069994 | AH118: 31.62693009 | AI118: 28.29147336 | AJ118: 15.87786073
A119: 2020-01-05T19:00:00 | B119: 0 | C119: 0 | D119: 0 | E119: 0 | F119: 0 | H119: 28.73521 | I119: 28.47515 | J119: 55.70086 | K119: 41.58231 | L119: 38.57067 | N119: 6.108952308 | O119: 6.501689707 | P119: 12.75793114 | Q119: 9.530511863 | R119: 8.874641464 | T119: 13.04048038 | U119: 13.91429954 | V119: 27.35273417 | W119: 20.45780923 | X119: 19.06428649 | Z119: -9.742393205 | AA119: -10.00898985 | AB119: -10.16453026 | AC119: -10.28217642 | AD119: -11.21155591 | AF119: =SUM(N119,T119,Z119) -> 9.407039482 | AG119: 10.4069994 | AH119: 29.94613505 | AI119: 19.70614467 | AJ119: 16.72737204
A120: 2020-01-05T20:00:00 | B120: 0 | C120: 0 | D120: 0 | E120: 0 | F120: 0 | H120: 29.72501 | I120: 28.47515 | J120: 69.86051 | K120: 37.63918 | L120: 37.40222 | N120: 6.321200457 | O120: 6.501689707 | P120: 16.01903763 | Q120: 8.620526437 | R120: 8.60479903 | T120: 13.49355608 | U120: 13.91429954 | V120: 34.34447744 | W120: 18.50447151 | X120: 18.48461761 | Z120: -9.742393205 | AA120: -10.00898985 | AB120: -10.16453026 | AC120: -10.28217642 | AD120: -11.21155591 | AF120: 10.07236333 | AG120: 10.4069994 | AH120: 40.19898481 | AI120: 16.84282153 | AJ120: 15.87786073
A121: 2020-01-05T21:00:00 | B121: 0 | C121: 0 | D121: 0 | E121: 0 | F121: 0 | H121: 30.71479 | I121: 29.45568 | J121: 74.20184 | K121: 37.63918 | L121: 38.57067 | N121: 6.533448606 | O121: 6.728566941 | P121: 17.01834265 | Q121: 8.620526437 | R121: 8.874641464 | T121: 13.94663177 | U121: 14.39984067 | V121: 36.48696623 | W121: 18.50447151 | X121: 19.06428649 | Z121: -9.742393205 | AA121: -10.00898985 | AB121: -10.16453026 | AC121: -10.28217642 | AD121: -11.21155591 | AF121: 10.73768717 | AG121: 11.11941777 | AH121: 43.34077862 | AI121: 16.84282153 | AJ121: 16.72737204
A122: 2020-01-05T22:00:00 | B122: 0 | C122: 0 | D122: 0 | E122: 0 | F122: 0 | H122: 30.71479 | I122: 29.45568 | J122: 61.86828 | K122: 35.42634 | L122: 38.57067 | N122: 6.533448606 | O122: 6.728566941 | P122: 14.17806831 | Q122: 8.110226669 | R122: 8.874641464 | T122: 13.94663177 | U122: 14.39984067 | V122: 30.39747819 | W122: 17.40908278 | X122: 19.06428649 | Z122: -9.742393205 | AA122: -10.00898985 | AB122: -10.16453026 | AC122: -10.28217642 | AD122: -11.21155591 | AF122: 10.73768717 | AG122: 11.11941777 | AH122: 34.41101624 | AI122: 15.23713303 | AJ122: 16.72737204
A123: 2020-01-05T23:00:00 | B123: 0 | C123: 0 | D123: 0 | E123: 0 | F123: 0 | H123: 30.71479 | I123: 28.47515 | J123: 33.98847 | K123: 35.42634 | L123: 37.40222 | N123: 6.533448606 | O123: 6.501689707 | P123: 7.758664471 | Q123: 8.110226669 | R123: 8.60479903 | T123: 13.94663177 | U123: 13.91429954 | V123: 16.63441231 | W123: 17.40908278 | X123: 18.48461761 | Z123: -9.742393205 | AA123: -10.00898985 | AB123: -10.16453026 | AC123: -10.28217642 | AD123: -11.21155591 | AF123: 10.73768717 | AG123: 10.4069994 | AH123: 14.22854652 | AI123: 15.23713303 | AJ123: 15.87786073
A124: 2020-01-06 | B124: 0 | C124: 0 | D124: 0 | E124: 0 | F124: 0 | H124: 28.73521 | I124: 28.47515 | J124: 35.10163 | K124: 32.10709 | L124: 38.57067 | N124: 6.108952308 | O124: 6.501689707 | P124: 8.015001972 | Q124: 7.343302161 | R124: 8.874641464 | T124: 13.04048038 | U124: 13.91429954 | V124: 17.18399449 | W124: 15.76283382 | X124: 19.06428649 | Z124: -9.742393205 | AA124: -10.00898985 | AB124: -10.16453026 | AC124: -10.28217642 | AD124: -11.21155591 | AF124: 9.407039482 | AG124: 10.4069994 | AH124: 15.0344662 | AI124: 12.82395956 | AJ124: 16.72737204
A125: 2020-01-06T01:00:00 | B125: 0 | C125: 0 | D125: 0 | E125: 0 | F125: 0 | H125: 29.72501 | I125: 28.47515 | J125: 50.56973 | K125: 34.31993 | L125: 48.46647 | N125: 6.321200457 | O125: 6.501689707 | P125: 11.577682 | Q125: 7.855076784 | R125: 11.16988946 | T125: 13.49355608 | U125: 13.91429954 | V125: 24.82230502 | W125: 16.86138842 | X125: 23.99488178 | Z125: -9.742393205 | AA125: -10.00898985 | AB125: -10.16453026 | AC125: -10.28217642 | AD125: -11.21155591 | AF125: 10.07236333 | AG125: 10.4069994 | AH125: 26.23545676 | AI125: 14.43428878 | AJ125: 23.95321533
A126: 2020-01-06T02:00:00 | B126: 0 | C126: 0 | D126: 0 | E126: 0 | F126: 0 | H126: 28.73521 | I126: 28.47515 | J126: 33.10721 | K126: 34.31993 | L126: 46.29705 | N126: 6.108952308 | O126: 6.501689707 | P126: 7.555787732 | Q126: 7.855076784 | R126: 10.66671269 | T126: 13.04048038 | U126: 13.91429954 | V126: 16.19944888 | W126: 16.86138842 | X126: 22.91396981 | Z126: -9.742393205 | AA126: -10.00898985 | AB126: -10.16453026 | AC126: -10.28217642 | AD126: -11.21155591 | AF126: 9.407039482 | AG126: 10.4069994 | AH126: 13.59070635 | AI126: 14.43428878 | AJ126: 22.36912658
A127: 2020-01-06T03:00:00 | B127: 0 | C127: 0 | D127: 0 | E127: 0 | F127: 0 | H127: 23.78626 | I127: 28.47515 | J127: 34.6602 | K127: 34.31993 | L127: 77.27888 | N127: 5.04652582 | O127: 6.501689707 | P127: 7.913563602 | Q127: 7.855076784 | R127: 17.85245798 | T127: 10.77257075 | U127: 13.91429954 | V127: 16.96651277 | W127: 16.86138842 | X127: 38.35021107 | Z127: -9.742393205 | AA127: -10.00898985 | AB127: -10.16453026 | AC127: -10.28217642 | AD127: -11.21155591 | AF127: 6.076703363 | AG127: 10.4069994 | AH127: 14.71554611 | AI127: 14.43428878 | AJ127: 44.99111314
A128: 2020-01-06T04:00:00 | B128: 0 | C128: 0 | D128: 0 | E128: 0 | F128: 0 | H128: 29.72501 | I128: 28.47515 | J128: 32.67643 | K128: 35.42634 | L128: 61.8998 | N128: 6.321200457 | O128: 6.501689707 | P128: 7.45709094 | Q128: 8.110226669 | R128: 14.28577592 | T128: 13.49355608 | U128: 13.91429954 | V128: 15.98784505 | W128: 17.40908278 | X128: 30.68835242 | Z128: -9.742393205 | AA128: -10.00898985 | AB128: -10.16453026 | AC128: -10.28217642 | AD128: -11.21155591 | AF128: 10.07236333 | AG128: 10.4069994 | AH128: 13.28040573 | AI128: 15.23713303 | AJ128: 33.76257243
A129: 2020-01-06T05:00:00 | B129: 0 | C129: 0 | D129: 0 | E129: 0 | F129: 0 | H129: 30.71479 | I129: 29.45568 | J129: 34.15226 | K129: 36.53277 | L129: 230.3802 | N129: 6.533448606 | O129: 6.728566941 | P129: 7.797046556 | Q129: 8.365376553 | R129: 49.58910284 | T129: 13.94663177 | U129: 14.39984067 | V129: 16.71670269 | W129: 17.95677715 | X129: 106.5260909 | Z129: -9.742393205 | AA129: -10.00898985 | AB129: -10.16453026 | AC129: -10.28217642 | AD129: -11.21155591 | AF129: 10.73768717 | AG129: 11.11941777 | AH129: 14.34921899 | AI129: 16.03997728 | AJ129: 144.9036378
A130: 2020-01-06T06:00:00 | B130: 0 | C130: 0 | D130: 0 | E130: 0 | F130: 0 | H130: 37.03085 | I130: 34.79101 | J130: 37.24234 | K130: 53.51214 | L130: 38.57067 | N130: 7.888753825 | O130: 7.958547448 | P130: 8.508485931 | Q130: 12.28554067 | R130: 8.874641464 | T130: 16.83973524 | U130: 17.03212828 | V130: 18.24201365 | W130: 26.37164204 | X130: 19.06428649 | Z130: -9.742393205 | AA130: -10.00898985 | AB130: -10.16453026 | AC130: -10.28217642 | AD130: -11.21155591 | AF130: 14.98609586 | AG130: 14.98168588 | AH130: 16.58596931 | AI130: 28.37500629 | AJ130: 16.72737204
A131: 2020-01-06T07:00:00 | B131: 0 | C131: 0 | D131: 0 | E131: 0 | F131: 0 | H131: 30.71479 | I131: 108.584 | J131: 62.77091 | K131: 49.53424 | L131: 37.40222 | N131: 6.533448606 | O131: 24.57539291 | P131: 14.3864282 | Q131: 11.36670612 | R131: 8.60479903 | T131: 13.94663177 | U131: 52.59392461 | V131: 30.84419739 | W131: 24.39930915 | X131: 18.48461761 | Z131: -9.742393205 | AA131: -10.00898985 | AB131: -10.16453026 | AC131: -10.28217642 | AD131: -11.21155591 | AF131: 10.73768717 | AG131: 67.16032768 | AH131: 35.06609533 | AI131: 25.48383885 | AJ131: 15.87786073
